Workbook

Sheet AVISO LEGAL
H2: Fecha de actualización: | J2: 2017-05-09
J23: www.ree.es

Sheet Emisiones mensual nacional
O1: 11
M4: Sistema eléctrico
M5: Horizonte temporal
M6: Periodo
C8: Ene. | D8: Feb. | E8: Mar. | F8: Abr. | G8: May. | H8: Jun. | I8: Jul. | J8: Ago. | K8: Sep. | L8: Oct. | M8: Nov. | N8: Dic. | O8: =OFFSET(Año!B19,($O$1-1),0) -> 2017
B10: Carbón | C10: =OFFSET(Emisiones!C160,0,($O$1-1)*12) -> 5117837.353 | D10: =OFFSET(Emisiones!D160,0,($O$1-1)*12) -> 3340224.129 | E10: =OFFSET(Emisiones!E160,0,($O$1-1)*12) -> 1870687.191 | F10: =OFFSET(Emisiones!F160,0,($O$1-1)*12) -> 1986303.063 | G10: =OFFSET(Emisiones!G160,0,($O$1-1)*12) -> - | H10: =OFFSET(Emisiones!H160,0,($O$1-1)*12) -> - | I10: =OFFSET(Emisiones!I160,0,($O$1-1)*12) -> - | J10: =OFFSET(Emisiones!J160,0,($O$1-1)*12) -> - | K10: =OFFSET(Emisiones!K160,0,($O$1-1)*12) -> - | L10: =OFFSET(Emisiones!L160,0,($O$1-1)*12) -> - | M10: =OFFSET(Emisiones!M160,0,($O$1-1)*12) -> - | N10: =OFFSET(Emisiones!N160,0,($O$1-1)*12) -> - | O10: =IF(SUM(C10:N10)=0,"-",SUM(C10:N10)) -> 12315051.74
B11: Fuel + Gas (1) | C11: =OFFSET(Emisiones!C161,0,($O$1-1)*12) -> 465272.3789 | D11: =OFFSET(Emisiones!D161,0,($O$1-1)*12) -> 411754.1604 | E11: =OFFSET(Emisiones!E161,0,($O$1-1)*12) -> 441544.3703 | F11: =OFFSET(Emisiones!F161,0,($O$1-1)*12) -> 459243.2929 | G11: =OFFSET(Emisiones!G161,0,($O$1-1)*12) -> - | H11: =OFFSET(Emisiones!H161,0,($O$1-1)*12) -> - | I11: =OFFSET(Emisiones!I161,0,($O$1-1)*12) -> - | J11: =OFFSET(Emisiones!J161,0,($O$1-1)*12) -> - | K11: =OFFSET(Emisiones!K161,0,($O$1-1)*12) -> - | L11: =OFFSET(Emisiones!L161,0,($O$1-1)*12) -> - | M11: =OFFSET(Emisiones!M161,0,($O$1-1)*12) -> - | N11: =OFFSET(Emisiones!N161,0,($O$1-1)*12) -> - | O11: =IF(SUM(C11:N11)=0,"-",SUM(C11:N11)) -> 1777814.203
B12: Ciclo combinado (2) | C12: =OFFSET(Emisiones!C162,0,($O$1-1)*12) -> 1282972.538 | D12: =OFFSET(Emisiones!D162,0,($O$1-1)*12) -> 746169.0213 | E12: =OFFSET(Emisiones!E162,0,($O$1-1)*12) -> 735241.9415 | F12: =OFFSET(Emisiones!F162,0,($O$1-1)*12) -> 629901.6769 | G12: =OFFSET(Emisiones!G162,0,($O$1-1)*12) -> - | H12: =OFFSET(Emisiones!H162,0,($O$1-1)*12) -> - | I12: =OFFSET(Emisiones!I162,0,($O$1-1)*12) -> - | J12: =OFFSET(Emisiones!J162,0,($O$1-1)*12) -> - | K12: =OFFSET(Emisiones!K162,0,($O$1-1)*12) -> - | L12: =OFFSET(Emisiones!L162,0,($O$1-1)*12) -> - | M12: =OFFSET(Emisiones!M162,0,($O$1-1)*12) -> - | N12: =OFFSET(Emisiones!N162,0,($O$1-1)*12) -> - | O12: =IF(SUM(C12:N12)=0,"-",SUM(C12:N12)) -> 3394285.177
B13: Térmica renovable (3) | C13: =OFFSET(Emisiones!C163,0,($O$1-1)*12) -> - | D13: =OFFSET(Emisiones!D163,0,($O$1-1)*12) -> - | E13: =OFFSET(Emisiones!E163,0,($O$1-1)*12) -> - | F13: =OFFSET(Emisiones!F163,0,($O$1-1)*12) -> - | G13: =OFFSET(Emisiones!G163,0,($O$1-1)*12) -> - | H13: =OFFSET(Emisiones!H163,0,($O$1-1)*12) -> - | I13: =OFFSET(Emisiones!I163,0,($O$1-1)*12) -> - | J13: =OFFSET(Emisiones!J163,0,($O$1-1)*12) -> - | K13: =OFFSET(Emisiones!K163,0,($O$1-1)*12) -> - | L13: =OFFSET(Emisiones!L163,0,($O$1-1)*12) -> - | M13: =OFFSET(Emisiones!M163,0,($O$1-1)*12) -> - | N13: =OFFSET(Emisiones!N163,0,($O$1-1)*12) -> - | O13: -
B14: Térmica no renovable/Cogeneración y resto/Cogeneración (3) | C14: =OFFSET(Emisiones!C164,0,($O$1-1)*12) -> 906251.73 | D14: =OFFSET(Emisiones!D164,0,($O$1-1)*12) -> 816185.59 | E14: =OFFSET(Emisiones!E164,0,($O$1-1)*12) -> 884273.36 | F14: =OFFSET(Emisiones!F164,0,($O$1-1)*12) -> 824106.5563 | G14: =OFFSET(Emisiones!G164,0,($O$1-1)*12) -> - | H14: =OFFSET(Emisiones!H164,0,($O$1-1)*12) -> - | I14: =OFFSET(Emisiones!I164,0,($O$1-1)*12) -> - | J14: =OFFSET(Emisiones!J164,0,($O$1-1)*12) -> - | K14: =OFFSET(Emisiones!K164,0,($O$1-1)*12) -> - | L14: =OFFSET(Emisiones!L164,0,($O$1-1)*12) -> - | M14: =OFFSET(Emisiones!M164,0,($O$1-1)*12) -> - | N14: =OFFSET(Emisiones!N164,0,($O$1-1)*12) -> - | O14: 3430817.236
B15: Residuos | C15: =OFFSET(Emisiones!C165,0,($O$1-1)*12) -> 71420.4 | D15: =OFFSET(Emisiones!D165,0,($O$1-1)*12) -> 62922.72 | E15: =OFFSET(Emisiones!E165,0,($O$1-1)*12) -> 69828.24 | F15: =OFFSET(Emisiones!F165,0,($O$1-1)*12) -> 60267.84744 | G15: =OFFSET(Emisiones!G165,0,($O$1-1)*12) -> - | H15: =OFFSET(Emisiones!H165,0,($O$1-1)*12) -> - | I15: =OFFSET(Emisiones!I165,0,($O$1-1)*12) -> - | J15: =OFFSET(Emisiones!J165,0,($O$1-1)*12) -> - | K15: =OFFSET(Emisiones!K165,0,($O$1-1)*12) -> - | L15: =OFFSET(Emisiones!L165,0,($O$1-1)*12) -> - | M15: =OFFSET(Emisiones!M165,0,($O$1-1)*12) -> - | N15: =OFFSET(Emisiones!N165,0,($O$1-1)*12) -> - | O15: 264439.2074
B16: Emisiones (tCO2) | C16: =IF(SUM(C10:C15)=0,"-",SUM(C10:C15)) -> 7843754.4 | D16: 5377255.621 | E16: 4001575.103 | F16: 3959822.437 | G16: - | H16: - | I16: - | J16: - | K16: - | L16: - | M16: - | N16: - | O16: =IF(SUM(C16:N16)=0,"-",SUM(C16:N16)) -> 21182407.56
B17: Factor de emision de CO2 (tCO2/MWh) | C17: =OFFSET(Emisiones!C167,0,($O$1-1)*12) -> 0.310631253 | D17: =OFFSET(Emisiones!D167,0,($O$1-1)*12) -> 0.2560830333 | E17: =OFFSET(Emisiones!E167,0,($O$1-1)*12) -> 0.1891704845 | F17: =OFFSET(Emisiones!F167,0,($O$1-1)*12) -> 0.2052518191 | G17: =OFFSET(Emisiones!G167,0,($O$1-1)*12) -> - | H17: =OFFSET(Emisiones!H167,0,($O$1-1)*12) -> - | I17: =OFFSET(Emisiones!I167,0,($O$1-1)*12) -> - | J17: =OFFSET(Emisiones!J167,0,($O$1-1)*12) -> - | K17: =OFFSET(Emisiones!K167,0,($O$1-1)*12) -> - | L17: =OFFSET(Emisiones!L167,0,($O$1-1)*12) -> - | M17: =OFFSET(Emisiones!M167,0,($O$1-1)*12) -> - | N17: =OFFSET(Emisiones!N167,0,($O$1-1)*12) -> - | O17: =OFFSET(Emisiones!C323,0,($O$1-1)) -> 0.2443328228
B18: (1) En el sistema eléctrico de Baleares y Canarias se incluye la generación con grupos auxiliares.
B19: (2) Incluye funcionamiento en ciclo abierto. En el sistema eléctrico de Canarias utiliza gasoil como combustible principal.
B20: (3) Incluye residuos hasta el 31/12/2014.
B21: =IF(MONTH(O4)=1,"",CONCATENATE(" Para el año ",YEAR(O4), " valores acumulados hasta ",TEXT(O4-30,"mmmm")," de ",YEAR(O4),".")) -> 

Sheet Emisiones anual nacional
J1: 2
H4: Sistema eléctrico
H5: Horizonte temporal
H6: Periodo
C8: =OFFSET(Emisiones!C315,0,($J$1-1)*8) -> 2015 | D8: =OFFSET(Emisiones!D315,0,($J$1-1)*8) -> 2016 | E8: =OFFSET(Emisiones!E315,0,($J$1-1)*8) -> 2017 | F8: =OFFSET(Emisiones!F315,0,($J$1-1)*8) -> 2018 | G8: =OFFSET(Emisiones!G315,0,($J$1-1)*8) -> 2019 | H8: =OFFSET(Emisiones!H315,0,($J$1-1)*8) -> 2020 | I8: =OFFSET(Emisiones!I315,0,($J$1-1)*8) -> 2021 | J8: =OFFSET(Emisiones!J315,0,($J$1-1)*8) -> 2022
B10: Carbón | C10: =OFFSET(Emisiones!C316,0,($J$1-1)*8) -> 50149588.63 | D10: =OFFSET(Emisiones!D316,0,($J$1-1)*8) -> 35616708.69 | E10: =OFFSET(Emisiones!E316,0,($J$1-1)*8) -> 12315051.74 | F10: =OFFSET(Emisiones!F316,0,($J$1-1)*8) -> - | G10: =OFFSET(Emisiones!G316,0,($J$1-1)*8) -> - | H10: =OFFSET(Emisiones!H316,0,($J$1-1)*8) -> - | I10: =OFFSET(Emisiones!I316,0,($J$1-1)*8) -> - | J10: =OFFSET(Emisiones!J316,0,($J$1-1)*8) -> -
B11: Fuel + Gas (1) | C11: =OFFSET(Emisiones!C317,0,($J$1-1)*8) -> 5257556.639 | D11: =OFFSET(Emisiones!D317,0,($J$1-1)*8) -> 5491480.173 | E11: =OFFSET(Emisiones!E317,0,($J$1-1)*8) -> 1777814.203 | F11: =OFFSET(Emisiones!F317,0,($J$1-1)*8) -> - | G11: =OFFSET(Emisiones!G317,0,($J$1-1)*8) -> - | H11: =OFFSET(Emisiones!H317,0,($J$1-1)*8) -> - | I11: =OFFSET(Emisiones!I317,0,($J$1-1)*8) -> - | J11: =OFFSET(Emisiones!J317,0,($J$1-1)*8) -> -
B12: Ciclo combinado (2) | C12: =OFFSET(Emisiones!C318,0,($J$1-1)*8) -> 12154924.54 | D12: =OFFSET(Emisiones!D318,0,($J$1-1)*8) -> 12069345.14 | E12: =OFFSET(Emisiones!E318,0,($J$1-1)*8) -> 3394285.177 | F12: =OFFSET(Emisiones!F318,0,($J$1-1)*8) -> - | G12: =OFFSET(Emisiones!G318,0,($J$1-1)*8) -> - | H12: =OFFSET(Emisiones!H318,0,($J$1-1)*8) -> - | I12: =OFFSET(Emisiones!I318,0,($J$1-1)*8) -> - | J12: =OFFSET(Emisiones!J318,0,($J$1-1)*8) -> -
B13: Térmica renovable (3) | C13: =OFFSET(Emisiones!C319,0,($J$1-1)*8) -> 0 | D13: =OFFSET(Emisiones!D319,0,($J$1-1)*8) -> 0 | E13: =OFFSET(Emisiones!E319,0,($J$1-1)*8) -> 0 | F13: =OFFSET(Emisiones!F319,0,($J$1-1)*8) -> - | G13: =OFFSET(Emisiones!G319,0,($J$1-1)*8) -> - | H13: =OFFSET(Emisiones!H319,0,($J$1-1)*8) -> - | I13: =OFFSET(Emisiones!I319,0,($J$1-1)*8) -> - | J13: =OFFSET(Emisiones!J319,0,($J$1-1)*8) -> -
B14: Térmica no renovable/Cogeneración y resto/Cogeneración (3) | C14: =OFFSET(Emisiones!C320,0,($J$1-1)*8) -> 9416312.898 | D14: =OFFSET(Emisiones!D320,0,($J$1-1)*8) -> 9552356.644 | E14: =OFFSET(Emisiones!E320,0,($J$1-1)*8) -> 3430817.236 | F14: =OFFSET(Emisiones!F320,0,($J$1-1)*8) -> - | G14: =OFFSET(Emisiones!G320,0,($J$1-1)*8) -> - | H14: =OFFSET(Emisiones!H320,0,($J$1-1)*8) -> - | I14: =OFFSET(Emisiones!I320,0,($J$1-1)*8) -> - | J14: =OFFSET(Emisiones!J320,0,($J$1-1)*8) -> -
B15: Residuos | C15: =OFFSET(Emisiones!C321,0,($J$1-1)*8) -> 791557.92 | D15: =OFFSET(Emisiones!D321,0,($J$1-1)*8) -> 814166.88 | E15: =OFFSET(Emisiones!E321,0,($J$1-1)*8) -> 264439.2074 | F15: =OFFSET(Emisiones!F321,0,($J$1-1)*8) -> - | G15: =OFFSET(Emisiones!G321,0,($J$1-1)*8) -> - | H15: =OFFSET(Emisiones!H321,0,($J$1-1)*8) -> - | I15: =OFFSET(Emisiones!I321,0,($J$1-1)*8) -> - | J15: =OFFSET(Emisiones!J321,0,($J$1-1)*8) -> -
B16: Emisiones (tCO2) | C16: =IF(SUM(C10:C15)=0,"-",SUM(C10:C15)) -> 77769940.63 | D16: 63544057.52 | E16: 21182407.56 | F16: - | G16: - | H16: - | I16: - | J16: -
B17: Factor de emision de CO2 (tCO2/MWh) | C17: =OFFSET(Emisiones!C323,0,($J$1-1)*8) -> 0.2902553556 | D17: =OFFSET(Emisiones!D323,0,($J$1-1)*8) -> 0.2423858713 | E17: =OFFSET(Emisiones!E323,0,($J$1-1)*8) -> 0.2443328228 | F17: =OFFSET(Emisiones!F323,0,($J$1-1)*8) -> - | G17: =OFFSET(Emisiones!G323,0,($J$1-1)*8) -> - | H17: =OFFSET(Emisiones!H323,0,($J$1-1)*8) -> - | I17: =OFFSET(Emisiones!I323,0,($J$1-1)*8) -> - | J17: =OFFSET(Emisiones!J323,0,($J$1-1)*8) -> -
B18: (1) En el sistema eléctrico de Baleares y Canarias se incluye la generación con grupos auxiliares.
B19: (2) Incluye funcionamiento en ciclo abierto. En el sistema eléctrico de Canarias utiliza gasoil como combustible principal.
B20: (3) Incluye residuos hasta el 31/12/2014.
B21: =IF(MONTH('AVISO LEGAL'!J2)=1,"",CONCATENATE(" Para el año ",YEAR('AVISO LEGAL'!J2), " valores hasta ",TEXT('AVISO LEGAL'!J2-30,"mmmm")," de ",YEAR('AVISO LEGAL'!J2),".")) -> Para el año 2017 valores hasta abril de 2017.

Sheet Emisiones mensual Peninsular
O1: 28
M4: Sistema eléctrico
M5: Horizonte temporal
M6: Periodo
C8: Ene. | D8: Feb. | E8: Mar. | F8: Abr. | G8: May. | H8: Jun. | I8: Jul. | J8: Ago. | K8: Sep. | L8: Oct. | M8: Nov. | N8: Dic. | O8: =OFFSET(Año!B2,($O$1-1),0) -> 2017
B10: Carbón | C10: =OFFSET(Emisiones!C102,0,($O$1-1)*12) -> 4907832.05 | D10: =OFFSET(Emisiones!D102,0,($O$1-1)*12) -> 3160240.55 | E10: =OFFSET(Emisiones!E102,0,($O$1-1)*12) -> 1701927.85 | F10: =OFFSET(Emisiones!F102,0,($O$1-1)*12) -> 1798045.715 | G10: =OFFSET(Emisiones!G102,0,($O$1-1)*12) -> - | H10: =OFFSET(Emisiones!H102,0,($O$1-1)*12) -> - | I10: =OFFSET(Emisiones!I102,0,($O$1-1)*12) -> - | J10: =OFFSET(Emisiones!J102,0,($O$1-1)*12) -> - | K10: =OFFSET(Emisiones!K102,0,($O$1-1)*12) -> - | L10: =OFFSET(Emisiones!L102,0,($O$1-1)*12) -> - | M10: =OFFSET(Emisiones!M102,0,($O$1-1)*12) -> - | N10: =OFFSET(Emisiones!N102,0,($O$1-1)*12) -> - | O10: =IF(SUM(C10:N10)=0,"-",SUM(C10:N10)) -> 11568046.16
B11: Fuel + Gas | C11: =OFFSET(Emisiones!C103,0,($O$1-1)*12) -> - | D11: =OFFSET(Emisiones!D103,0,($O$1-1)*12) -> - | E11: =OFFSET(Emisiones!E103,0,($O$1-1)*12) -> - | F11: =OFFSET(Emisiones!F103,0,($O$1-1)*12) -> - | G11: =OFFSET(Emisiones!G103,0,($O$1-1)*12) -> - | H11: =OFFSET(Emisiones!H103,0,($O$1-1)*12) -> - | I11: =OFFSET(Emisiones!I103,0,($O$1-1)*12) -> - | J11: =OFFSET(Emisiones!J103,0,($O$1-1)*12) -> - | K11: =OFFSET(Emisiones!K103,0,($O$1-1)*12) -> - | L11: =OFFSET(Emisiones!L103,0,($O$1-1)*12) -> - | M11: =OFFSET(Emisiones!M103,0,($O$1-1)*12) -> - | N11: =OFFSET(Emisiones!N103,0,($O$1-1)*12) -> - | O11: =IF(SUM(C11:N11)=0,"-",SUM(C11:N11)) -> -
B12: Ciclo combinado (1) | C12: =OFFSET(Emisiones!C104,0,($O$1-1)*12) -> 1048728.137 | D12: =OFFSET(Emisiones!D104,0,($O$1-1)*12) -> 549496.25 | E12: =OFFSET(Emisiones!E104,0,($O$1-1)*12) -> 527421.68 | F12: =OFFSET(Emisiones!F104,0,($O$1-1)*12) -> 445677.543 | G12: =OFFSET(Emisiones!G104,0,($O$1-1)*12) -> - | H12: =OFFSET(Emisiones!H104,0,($O$1-1)*12) -> - | I12: =OFFSET(Emisiones!I104,0,($O$1-1)*12) -> - | J12: =OFFSET(Emisiones!J104,0,($O$1-1)*12) -> - | K12: =OFFSET(Emisiones!K104,0,($O$1-1)*12) -> - | L12: =OFFSET(Emisiones!L104,0,($O$1-1)*12) -> - | M12: =OFFSET(Emisiones!M104,0,($O$1-1)*12) -> - | N12: =OFFSET(Emisiones!N104,0,($O$1-1)*12) -> - | O12: 2571323.61
B13: Térmica renovable (2) | C13: =OFFSET(Emisiones!C105,0,($O$1-1)*12) -> - | D13: =OFFSET(Emisiones!D105,0,($O$1-1)*12) -> - | E13: =OFFSET(Emisiones!E105,0,($O$1-1)*12) -> - | F13: =OFFSET(Emisiones!F105,0,($O$1-1)*12) -> - | G13: =OFFSET(Emisiones!G105,0,($O$1-1)*12) -> - | H13: =OFFSET(Emisiones!H105,0,($O$1-1)*12) -> - | I13: =OFFSET(Emisiones!I105,0,($O$1-1)*12) -> - | J13: =OFFSET(Emisiones!J105,0,($O$1-1)*12) -> - | K13: =OFFSET(Emisiones!K105,0,($O$1-1)*12) -> - | L13: =OFFSET(Emisiones!L105,0,($O$1-1)*12) -> - | M13: =OFFSET(Emisiones!M105,0,($O$1-1)*12) -> - | N13: =OFFSET(Emisiones!N105,0,($O$1-1)*12) -> - | O13: -
B14: Térmica no renovable/Cogeneración y resto/Cogeneración (3) | C14: =OFFSET(Emisiones!C106,0,($O$1-1)*12) -> 905135.07 | D14: =OFFSET(Emisiones!D106,0,($O$1-1)*12) -> 815036.37 | E14: =OFFSET(Emisiones!E106,0,($O$1-1)*12) -> 882972.81 | F14: =OFFSET(Emisiones!F106,0,($O$1-1)*12) -> 823392.2269 | G14: =OFFSET(Emisiones!G106,0,($O$1-1)*12) -> - | H14: =OFFSET(Emisiones!H106,0,($O$1-1)*12) -> - | I14: =OFFSET(Emisiones!I106,0,($O$1-1)*12) -> - | J14: =OFFSET(Emisiones!J106,0,($O$1-1)*12) -> - | K14: =OFFSET(Emisiones!K106,0,($O$1-1)*12) -> - | L14: =OFFSET(Emisiones!L106,0,($O$1-1)*12) -> - | M14: =OFFSET(Emisiones!M106,0,($O$1-1)*12) -> - | N14: =OFFSET(Emisiones!N106,0,($O$1-1)*12) -> - | O14: 3426536.477
B15: Residuos | C15: =OFFSET(Emisiones!C107,0,($O$1-1)*12) -> 67582.32 | D15: =OFFSET(Emisiones!D107,0,($O$1-1)*12) -> 59251.68 | E15: =OFFSET(Emisiones!E107,0,($O$1-1)*12) -> 64569.36 | F15: =OFFSET(Emisiones!F107,0,($O$1-1)*12) -> 53248.104 | G15: =OFFSET(Emisiones!G107,0,($O$1-1)*12) -> - | H15: =OFFSET(Emisiones!H107,0,($O$1-1)*12) -> - | I15: =OFFSET(Emisiones!I107,0,($O$1-1)*12) -> - | J15: =OFFSET(Emisiones!J107,0,($O$1-1)*12) -> - | K15: =OFFSET(Emisiones!K107,0,($O$1-1)*12) -> - | L15: =OFFSET(Emisiones!L107,0,($O$1-1)*12) -> - | M15: =OFFSET(Emisiones!M107,0,($O$1-1)*12) -> - | N15: =OFFSET(Emisiones!N107,0,($O$1-1)*12) -> - | O15: 244651.464
B16: Emisiones (tCO2) | C16: =IF(SUM(C10:C15)=0,"-",SUM(C10:C15)) -> 6929277.577 | D16: 4584024.85 | E16: 3176891.7 | F16: 3120363.589 | G16: - | H16: - | I16: - | J16: - | K16: - | L16: - | M16: - | N16: - | O16: =IF(SUM(C16:N16)=0,"-",SUM(C16:N16)) -> 17810557.72
B17: Factor de emision de CO2 (tCO2/MWh) | C17: =OFFSET(Emisiones!C109,0,($O$1-1)*12) -> 0.2877008633 | D17: =OFFSET(Emisiones!D109,0,($O$1-1)*12) -> 0.2295608837 | E17: =OFFSET(Emisiones!E109,0,($O$1-1)*12) -> 0.1584406683 | F17: =OFFSET(Emisiones!F109,0,($O$1-1)*12) -> 0.171524472 | G17: =OFFSET(Emisiones!G109,0,($O$1-1)*12) -> - | H17: =OFFSET(Emisiones!H109,0,($O$1-1)*12) -> - | I17: =OFFSET(Emisiones!I109,0,($O$1-1)*12) -> - | J17: =OFFSET(Emisiones!J109,0,($O$1-1)*12) -> - | K17: =OFFSET(Emisiones!K109,0,($O$1-1)*12) -> - | L17: =OFFSET(Emisiones!L109,0,($O$1-1)*12) -> - | M17: =OFFSET(Emisiones!M109,0,($O$1-1)*12) -> - | N17: =OFFSET(Emisiones!N109,0,($O$1-1)*12) -> - | O17: =OFFSET(Emisiones!C276,0,($O$1-1)) -> 0.2164191052
B18: (1) Incluye funcionamiento en ciclo abierto.
B19: (2) Incluye residuos hasta el 31/12/2014.
B20: =IF(MONTH(O4)=1,"",CONCATENATE(" Para el año ",YEAR(O4), " valores acumulados hasta ",TEXT(O4-30,"mmmm")," de ",YEAR(O4),".")) -> 

Sheet Emisiones anual Peninsular
J1: 4
H4: Sistema eléctrico
H5: Horizonte temporal
H6: Periodo
C8: =OFFSET(Emisiones!C268,0,($J$1-1)*8) -> 2014 | D8: =OFFSET(Emisiones!D268,0,($J$1-1)*8) -> 2015 | E8: =OFFSET(Emisiones!E268,0,($J$1-1)*8) -> 2016 | F8: =OFFSET(Emisiones!F268,0,($J$1-1)*8) -> 2017 | G8: =OFFSET(Emisiones!G268,0,($J$1-1)*8) -> 2018 | H8: =OFFSET(Emisiones!H268,0,($J$1-1)*8) -> 2019 | I8: =OFFSET(Emisiones!I268,0,($J$1-1)*8) -> 2020 | J8: =OFFSET(Emisiones!J268,0,($J$1-1)*8) -> 2021
B10: Carbón | C10: =OFFSET(Emisiones!C269,0,($J$1-1)*8) -> 39076043.15 | D10: =OFFSET(Emisiones!D269,0,($J$1-1)*8) -> 48377583.75 | E10: =OFFSET(Emisiones!E269,0,($J$1-1)*8) -> 33428128.8 | F10: =OFFSET(Emisiones!F269,0,($J$1-1)*8) -> 11568046.16 | G10: =OFFSET(Emisiones!G269,0,($J$1-1)*8) -> - | H10: =OFFSET(Emisiones!H269,0,($J$1-1)*8) -> - | I10: =OFFSET(Emisiones!I269,0,($J$1-1)*8) -> - | J10: =OFFSET(Emisiones!J269,0,($J$1-1)*8) -> -
B11: Fuel + Gas | C11: =OFFSET(Emisiones!C270,0,($J$1-1)*8) -> 0 | D11: =OFFSET(Emisiones!D270,0,($J$1-1)*8) -> 0 | E11: =OFFSET(Emisiones!E270,0,($J$1-1)*8) -> 0 | F11: =OFFSET(Emisiones!F270,0,($J$1-1)*8) -> 0 | G11: =OFFSET(Emisiones!G270,0,($J$1-1)*8) -> - | H11: =OFFSET(Emisiones!H270,0,($J$1-1)*8) -> - | I11: =OFFSET(Emisiones!I270,0,($J$1-1)*8) -> - | J11: =OFFSET(Emisiones!J270,0,($J$1-1)*8) -> -
B12: Ciclo combinado (1) | C12: =OFFSET(Emisiones!C271,0,($J$1-1)*8) -> 7894598.944 | D12: =OFFSET(Emisiones!D271,0,($J$1-1)*8) -> 9349333.161 | E12: =OFFSET(Emisiones!E271,0,($J$1-1)*8) -> 9503875.052 | F12: =OFFSET(Emisiones!F271,0,($J$1-1)*8) -> 2571323.61 | G12: =OFFSET(Emisiones!G271,0,($J$1-1)*8) -> - | H12: =OFFSET(Emisiones!H271,0,($J$1-1)*8) -> - | I12: =OFFSET(Emisiones!I271,0,($J$1-1)*8) -> - | J12: =OFFSET(Emisiones!J271,0,($J$1-1)*8) -> -
B13: Térmica renovable (2) | C13: =OFFSET(Emisiones!C272,0,($J$1-1)*8) -> 802056.26 | D13: =OFFSET(Emisiones!D272,0,($J$1-1)*8) -> 0 | E13: =OFFSET(Emisiones!E272,0,($J$1-1)*8) -> 0 | F13: =OFFSET(Emisiones!F272,0,($J$1-1)*8) -> 0 | G13: =OFFSET(Emisiones!G272,0,($J$1-1)*8) -> - | H13: =OFFSET(Emisiones!H272,0,($J$1-1)*8) -> - | I13: =OFFSET(Emisiones!I272,0,($J$1-1)*8) -> - | J13: =OFFSET(Emisiones!J272,0,($J$1-1)*8) -> -
B14: Térmica no renovable/Cogeneración y resto/Cogeneración (3) | C14: =OFFSET(Emisiones!C273,0,($J$1-1)*8) -> 9470348.32 | D14: =OFFSET(Emisiones!D273,0,($J$1-1)*8) -> 9404650.75 | E14: =OFFSET(Emisiones!E273,0,($J$1-1)*8) -> 9539517.97 | F14: =OFFSET(Emisiones!F273,0,($J$1-1)*8) -> 3426536.477 | G14: =OFFSET(Emisiones!G273,0,($J$1-1)*8) -> - | H14: =OFFSET(Emisiones!H273,0,($J$1-1)*8) -> - | I14: =OFFSET(Emisiones!I273,0,($J$1-1)*8) -> - | J14: =OFFSET(Emisiones!J273,0,($J$1-1)*8) -> -
B15: Residuos | C15: =OFFSET(Emisiones!C274,0,($J$1-1)*8) -> - | D15: =OFFSET(Emisiones!D274,0,($J$1-1)*8) -> 716969.04 | E15: =OFFSET(Emisiones!E274,0,($J$1-1)*8) -> 749052.24 | F15: =OFFSET(Emisiones!F274,0,($J$1-1)*8) -> 244651.464 | G15: =OFFSET(Emisiones!G274,0,($J$1-1)*8) -> - | H15: =OFFSET(Emisiones!H274,0,($J$1-1)*8) -> - | I15: =OFFSET(Emisiones!I274,0,($J$1-1)*8) -> - | J15: =OFFSET(Emisiones!J274,0,($J$1-1)*8) -> -
B16: Emisiones (tCO2) | C16: =IF(SUM(C10:C15)=0,"-",SUM(C10:C15)) -> 57243046.67 | D16: 67848536.7 | E16: 53220574.06 | F16: 17810557.72 | G16: - | H16: - | I16: - | J16: -
B17: Factor de emision de CO2 (tCO2/MWh) | C17: =OFFSET(Emisiones!C276,0,($J$1-1)*8) -> 0.2257415475 | D17: =OFFSET(Emisiones!D276,0,($J$1-1)*8) -> 0.2667134857 | E17: =OFFSET(Emisiones!E276,0,($J$1-1)*8) -> 0.2142685862 | F17: =OFFSET(Emisiones!F276,0,($J$1-1)*8) -> 0.2164191052 | G17: =OFFSET(Emisiones!G276,0,($J$1-1)*8) -> - | H17: =OFFSET(Emisiones!H276,0,($J$1-1)*8) -> - | I17: =OFFSET(Emisiones!I276,0,($J$1-1)*8) -> - | J17: =OFFSET(Emisiones!J276,0,($J$1-1)*8) -> -
B18: (1) Incluye funcionamiento en ciclo abierto.
B19: (2) Incluye residuos hasta el 31/12/2014.
B20: =IF(MONTH('AVISO LEGAL'!J2)=1,"",CONCATENATE(" Para el año ",YEAR('AVISO LEGAL'!J2), " valores hasta ",TEXT('AVISO LEGAL'!J2-30,"mmmm")," de ",YEAR('AVISO LEGAL'!J2),".")) -> Para el año 2017 valores hasta abril de 2017.

Sheet Emisiones mensual Baleares
O1: 12
M4: Sistema eléctrico
M5: Horizonte temporal
M6: Periodo
C8: Ene. | D8: Feb. | E8: Mar. | F8: Abr. | G8: May. | H8: Jun. | I8: Jul. | J8: Ago. | K8: Sep. | L8: Oct. | M8: Nov. | N8: Dic. | O8: =OFFSET(Año!B18,($O$1-1),0) -> 2017
B10: Carbón | C10: =OFFSET(Emisiones!C112,0,($O$1-1)*12) -> 210005.3033 | D10: =OFFSET(Emisiones!D112,0,($O$1-1)*12) -> 179983.5791 | E10: =OFFSET(Emisiones!E112,0,($O$1-1)*12) -> 168759.3414 | F10: =OFFSET(Emisiones!F112,0,($O$1-1)*12) -> 188257.3485 | G10: =OFFSET(Emisiones!G112,0,($O$1-1)*12) -> - | H10: =OFFSET(Emisiones!H112,0,($O$1-1)*12) -> - | I10: =OFFSET(Emisiones!I112,0,($O$1-1)*12) -> - | J10: =OFFSET(Emisiones!J112,0,($O$1-1)*12) -> - | K10: =OFFSET(Emisiones!K112,0,($O$1-1)*12) -> - | L10: =OFFSET(Emisiones!L112,0,($O$1-1)*12) -> - | M10: =OFFSET(Emisiones!M112,0,($O$1-1)*12) -> - | N10: =OFFSET(Emisiones!N112,0,($O$1-1)*12) -> - | O10: =IF(SUM(C10:N10)=0,"-",SUM(C10:N10)) -> 747005.5722
B11: Motores diesel | C11: =OFFSET(Emisiones!C118,0,($O$1-1)*12) -> 48060.93453 | D11: =OFFSET(Emisiones!D118,0,($O$1-1)*12) -> 40399.13019 | E11: =OFFSET(Emisiones!E118,0,($O$1-1)*12) -> 35568.59907 | F11: =OFFSET(Emisiones!F118,0,($O$1-1)*12) -> 42038.7027 | G11: =OFFSET(Emisiones!G118,0,($O$1-1)*12) -> - | H11: =OFFSET(Emisiones!H118,0,($O$1-1)*12) -> - | I11: =OFFSET(Emisiones!I118,0,($O$1-1)*12) -> - | J11: =OFFSET(Emisiones!J118,0,($O$1-1)*12) -> - | K11: =OFFSET(Emisiones!K118,0,($O$1-1)*12) -> - | L11: =OFFSET(Emisiones!L118,0,($O$1-1)*12) -> - | M11: =OFFSET(Emisiones!M118,0,($O$1-1)*12) -> - | N11: =OFFSET(Emisiones!N118,0,($O$1-1)*12) -> - | O11: =IF(SUM(C11:N11)=0,"-",SUM(C11:N11)) -> 166067.3665
B12: Turbina de gas | C12: =OFFSET(Emisiones!C125,0,($O$1-1)*12) -> 6759.09273 | D12: =OFFSET(Emisiones!D125,0,($O$1-1)*12) -> 5487.95088 | E12: =OFFSET(Emisiones!E125,0,($O$1-1)*12) -> 11320.4649 | F12: =OFFSET(Emisiones!F125,0,($O$1-1)*12) -> 6010.1868 | G12: =OFFSET(Emisiones!G125,0,($O$1-1)*12) -> - | H12: =OFFSET(Emisiones!H125,0,($O$1-1)*12) -> - | I12: =OFFSET(Emisiones!I125,0,($O$1-1)*12) -> - | J12: =OFFSET(Emisiones!J125,0,($O$1-1)*12) -> - | K12: =OFFSET(Emisiones!K125,0,($O$1-1)*12) -> - | L12: =OFFSET(Emisiones!L125,0,($O$1-1)*12) -> - | M12: =OFFSET(Emisiones!M125,0,($O$1-1)*12) -> - | N12: =OFFSET(Emisiones!N125,0,($O$1-1)*12) -> - | O12: =IF(SUM(C12:N12)=0,"-",SUM(C12:N12)) -> 29577.69531
B13: Ciclo combinado (1) | C13: =OFFSET(Emisiones!C126,0,($O$1-1)*12) -> 14035.14192 | D13: =OFFSET(Emisiones!D126,0,($O$1-1)*12) -> 13120.05126 | E13: =OFFSET(Emisiones!E126,0,($O$1-1)*12) -> 12100.02823 | F13: =OFFSET(Emisiones!F126,0,($O$1-1)*12) -> 11934.46729 | G13: =OFFSET(Emisiones!G126,0,($O$1-1)*12) -> - | H13: =OFFSET(Emisiones!H126,0,($O$1-1)*12) -> - | I13: =OFFSET(Emisiones!I126,0,($O$1-1)*12) -> - | J13: =OFFSET(Emisiones!J126,0,($O$1-1)*12) -> - | K13: =OFFSET(Emisiones!K126,0,($O$1-1)*12) -> - | L13: =OFFSET(Emisiones!L126,0,($O$1-1)*12) -> - | M13: =OFFSET(Emisiones!M126,0,($O$1-1)*12) -> - | N13: =OFFSET(Emisiones!N126,0,($O$1-1)*12) -> - | O13: 51189.6887
B14: Generación auxiliar (2) | C14: =OFFSET(Emisiones!C127,0,($O$1-1)*12) -> - | D14: =OFFSET(Emisiones!D127,0,($O$1-1)*12) -> - | E14: =OFFSET(Emisiones!E127,0,($O$1-1)*12) -> - | F14: =OFFSET(Emisiones!F127,0,($O$1-1)*12) -> - | G14: =OFFSET(Emisiones!G127,0,($O$1-1)*12) -> - | H14: =OFFSET(Emisiones!H127,0,($O$1-1)*12) -> - | I14: =OFFSET(Emisiones!I127,0,($O$1-1)*12) -> - | J14: =OFFSET(Emisiones!J127,0,($O$1-1)*12) -> - | K14: =OFFSET(Emisiones!K127,0,($O$1-1)*12) -> - | L14: =OFFSET(Emisiones!L127,0,($O$1-1)*12) -> - | M14: =OFFSET(Emisiones!M127,0,($O$1-1)*12) -> - | N14: =OFFSET(Emisiones!N127,0,($O$1-1)*12) -> - | O14: -
B15: Térmica no renovable/Cogeneración y resto/Cogeneración (3) | C15: =OFFSET(Emisiones!C128,0,($O$1-1)*12) -> - | D15: =OFFSET(Emisiones!D128,0,($O$1-1)*12) -> - | E15: =OFFSET(Emisiones!E128,0,($O$1-1)*12) -> - | F15: =OFFSET(Emisiones!F128,0,($O$1-1)*12) -> - | G15: =OFFSET(Emisiones!G128,0,($O$1-1)*12) -> - | H15: =OFFSET(Emisiones!H128,0,($O$1-1)*12) -> - | I15: =OFFSET(Emisiones!I128,0,($O$1-1)*12) -> - | J15: =OFFSET(Emisiones!J128,0,($O$1-1)*12) -> - | K15: =OFFSET(Emisiones!K128,0,($O$1-1)*12) -> - | L15: =OFFSET(Emisiones!L128,0,($O$1-1)*12) -> - | M15: =OFFSET(Emisiones!M128,0,($O$1-1)*12) -> - | N15: =OFFSET(Emisiones!N128,0,($O$1-1)*12) -> - | O15: -
B16: Cogeneración | C16: =OFFSET(Emisiones!C129,0,($O$1-1)*12) -> 1116.66 | D16: =OFFSET(Emisiones!D129,0,($O$1-1)*12) -> 1149.22 | E16: =OFFSET(Emisiones!E129,0,($O$1-1)*12) -> 1300.55 | F16: =OFFSET(Emisiones!F129,0,($O$1-1)*12) -> 714.3294 | G16: =OFFSET(Emisiones!G129,0,($O$1-1)*12) -> - | H16: =OFFSET(Emisiones!H129,0,($O$1-1)*12) -> - | I16: =OFFSET(Emisiones!I129,0,($O$1-1)*12) -> - | J16: =OFFSET(Emisiones!J129,0,($O$1-1)*12) -> - | K16: =OFFSET(Emisiones!K129,0,($O$1-1)*12) -> - | L16: =OFFSET(Emisiones!L129,0,($O$1-1)*12) -> - | M16: =OFFSET(Emisiones!M129,0,($O$1-1)*12) -> - | N16: =OFFSET(Emisiones!N129,0,($O$1-1)*12) -> - | O16: 4280.7594
B17: Residuos | C17: =OFFSET(Emisiones!C130,0,($O$1-1)*12) -> 3621.12 | D17: =OFFSET(Emisiones!D130,0,($O$1-1)*12) -> 3466.56 | E17: =OFFSET(Emisiones!E130,0,($O$1-1)*12) -> 5048.64 | F17: =OFFSET(Emisiones!F130,0,($O$1-1)*12) -> 6841.68 | G17: =OFFSET(Emisiones!G130,0,($O$1-1)*12) -> - | H17: =OFFSET(Emisiones!H130,0,($O$1-1)*12) -> - | I17: =OFFSET(Emisiones!I130,0,($O$1-1)*12) -> - | J17: =OFFSET(Emisiones!J130,0,($O$1-1)*12) -> - | K17: =OFFSET(Emisiones!K130,0,($O$1-1)*12) -> - | L17: =OFFSET(Emisiones!L130,0,($O$1-1)*12) -> - | M17: =OFFSET(Emisiones!M130,0,($O$1-1)*12) -> - | N17: =OFFSET(Emisiones!N130,0,($O$1-1)*12) -> - | O17: 18978
B18: Emisiones (tCO2) | C18: =IF(SUM(C10:C17)=0,"-",SUM(C10:C17)) -> 283598.2525 | D18: =IF(SUM(D10:D17)=0,"-",SUM(D10:D17)) -> 243606.4914 | E18: 234097.6236 | F18: 255796.7147 | G18: - | H18: - | I18: - | J18: - | K18: - | L18: - | M18: - | N18: - | O18: =IF(SUM(C18:N18)=0,"-",SUM(C18:N18)) -> 1017099.082
B19: Factor de emision de CO2 (tCO2/MWh) | C19: =OFFSET(Emisiones!C132,0,($O$1-1)*12) -> 0.74410515 | D19: =OFFSET(Emisiones!D132,0,($O$1-1)*12) -> 0.7342424714 | E19: =OFFSET(Emisiones!E132,0,($O$1-1)*12) -> 0.705576131 | F19: =OFFSET(Emisiones!F132,0,($O$1-1)*12) -> 0.7118918123 | G19: =OFFSET(Emisiones!G132,0,($O$1-1)*12) -> - | H19: =OFFSET(Emisiones!H132,0,($O$1-1)*12) -> - | I19: =OFFSET(Emisiones!I132,0,($O$1-1)*12) -> - | J19: =OFFSET(Emisiones!J132,0,($O$1-1)*12) -> - | K19: =OFFSET(Emisiones!K132,0,($O$1-1)*12) -> - | L19: =OFFSET(Emisiones!L132,0,($O$1-1)*12) -> - | M19: =OFFSET(Emisiones!M132,0,($O$1-1)*12) -> - | N19: =OFFSET(Emisiones!N132,0,($O$1-1)*12) -> - | O19: =OFFSET(Emisiones!C288,0,($O$1-1)) -> 0.7244255144
B20: (1) Incluye funcionamiento en ciclo abierto.
B21: (2) Grupos de emergencia que se instalan de forma transitoria en determinadas zonas para cubrir un déficit de generación.
B22: (3) Incluye residuos hasta el 31/12/2014.
B23: =IF(MONTH(O4)=1,"",CONCATENATE(" Para el año ",YEAR(O4), " valores acumulados hasta ",TEXT(O4-30,"mmmm")," de ",YEAR(O4),".")) -> 

Sheet Emisiones anual Baleares
J1: 2
H4: Sistema eléctrico
H5: Horizonte temporal
H6: Periodo
C8: =OFFSET(Emisiones!C278,0,($J$1-1)*8) -> 2014 | D8: =OFFSET(Emisiones!D278,0,($J$1-1)*8) -> 2015 | E8: =OFFSET(Emisiones!E278,0,($J$1-1)*8) -> 2016 | F8: =OFFSET(Emisiones!F278,0,($J$1-1)*8) -> 2017 | G8: =OFFSET(Emisiones!G278,0,($J$1-1)*8) -> 2018 | H8: =OFFSET(Emisiones!H278,0,($J$1-1)*8) -> 2019 | I8: =OFFSET(Emisiones!I278,0,($J$1-1)*8) -> 2020 | J8: =OFFSET(Emisiones!J278,0,($J$1-1)*8) -> 2021
B10: Carbón | C10: =OFFSET(Emisiones!C279,0,($J$1-1)*8) -> 2078244.514 | D10: =OFFSET(Emisiones!D279,0,($J$1-1)*8) -> 1772004.882 | E10: =OFFSET(Emisiones!E279,0,($J$1-1)*8) -> 2188579.887 | F10: =OFFSET(Emisiones!F279,0,($J$1-1)*8) -> 747005.5722 | G10: =OFFSET(Emisiones!G279,0,($J$1-1)*8) -> - | H10: =OFFSET(Emisiones!H279,0,($J$1-1)*8) -> - | I10: =OFFSET(Emisiones!I279,0,($J$1-1)*8) -> - | J10: =OFFSET(Emisiones!J279,0,($J$1-1)*8) -> -
B11: Motores diesel | C11: =OFFSET(Emisiones!C280,0,($J$1-1)*8) -> 416173.9627 | D11: =OFFSET(Emisiones!D280,0,($J$1-1)*8) -> 415966.5482 | E11: =OFFSET(Emisiones!E280,0,($J$1-1)*8) -> 549140.6135 | F11: =OFFSET(Emisiones!F280,0,($J$1-1)*8) -> 166067.3665 | G11: =OFFSET(Emisiones!G280,0,($J$1-1)*8) -> - | H11: =OFFSET(Emisiones!H280,0,($J$1-1)*8) -> - | I11: =OFFSET(Emisiones!I280,0,($J$1-1)*8) -> - | J11: =OFFSET(Emisiones!J280,0,($J$1-1)*8) -> -
B12: Turbina de gas | C12: =OFFSET(Emisiones!C281,0,($J$1-1)*8) -> 285046.5764 | D12: =OFFSET(Emisiones!D281,0,($J$1-1)*8) -> 296890.3708 | E12: =OFFSET(Emisiones!E281,0,($J$1-1)*8) -> 172526.6928 | F12: =OFFSET(Emisiones!F281,0,($J$1-1)*8) -> 29577.69531 | G12: =OFFSET(Emisiones!G281,0,($J$1-1)*8) -> - | H12: =OFFSET(Emisiones!H281,0,($J$1-1)*8) -> - | I12: =OFFSET(Emisiones!I281,0,($J$1-1)*8) -> - | J12: =OFFSET(Emisiones!J281,0,($J$1-1)*8) -> -
B13: Ciclo combinado (1) | C13: =OFFSET(Emisiones!C282,0,($J$1-1)*8) -> 157962.1405 | D13: =OFFSET(Emisiones!D282,0,($J$1-1)*8) -> 299418.5662 | E13: =OFFSET(Emisiones!E282,0,($J$1-1)*8) -> 200744.465 | F13: =OFFSET(Emisiones!F282,0,($J$1-1)*8) -> 51189.6887 | G13: =OFFSET(Emisiones!G282,0,($J$1-1)*8) -> - | H13: =OFFSET(Emisiones!H282,0,($J$1-1)*8) -> - | I13: =OFFSET(Emisiones!I282,0,($J$1-1)*8) -> - | J13: =OFFSET(Emisiones!J282,0,($J$1-1)*8) -> -
B14: Generación auxiliar (2) | C14: =OFFSET(Emisiones!C283,0,($J$1-1)*8) -> 5694.44874 | D14: =OFFSET(Emisiones!D283,0,($J$1-1)*8) -> 7830.5727 | E14: =OFFSET(Emisiones!E283,0,($J$1-1)*8) -> 7467.8987 | F14: =OFFSET(Emisiones!F283,0,($J$1-1)*8) -> - | G14: =OFFSET(Emisiones!G283,0,($J$1-1)*8) -> - | H14: =OFFSET(Emisiones!H283,0,($J$1-1)*8) -> - | I14: =OFFSET(Emisiones!I283,0,($J$1-1)*8) -> - | J14: =OFFSET(Emisiones!J283,0,($J$1-1)*8) -> -
B15: Térmica no renovable/Cogeneración y resto/Cogeneración (3) | C15: =OFFSET(Emisiones!C284,0,($J$1-1)*8) -> 73161.4 | D15: =OFFSET(Emisiones!D284,0,($J$1-1)*8) -> - | E15: =OFFSET(Emisiones!E284,0,($J$1-1)*8) -> - | F15: =OFFSET(Emisiones!F284,0,($J$1-1)*8) -> - | G15: =OFFSET(Emisiones!G284,0,($J$1-1)*8) -> - | H15: =OFFSET(Emisiones!H284,0,($J$1-1)*8) -> - | I15: =OFFSET(Emisiones!I284,0,($J$1-1)*8) -> - | J15: =OFFSET(Emisiones!J284,0,($J$1-1)*8) -> -
B16: Cogeneración | C16: =OFFSET(Emisiones!C285,0,($J$1-1)*8) -> - | D16: =OFFSET(Emisiones!D285,0,($J$1-1)*8) -> 11662.1484 | E16: =OFFSET(Emisiones!E285,0,($J$1-1)*8) -> 12838.6744 | F16: =OFFSET(Emisiones!F285,0,($J$1-1)*8) -> 4280.7594 | G16: =OFFSET(Emisiones!G285,0,($J$1-1)*8) -> - | H16: =OFFSET(Emisiones!H285,0,($J$1-1)*8) -> - | I16: =OFFSET(Emisiones!I285,0,($J$1-1)*8) -> - | J16: =OFFSET(Emisiones!J285,0,($J$1-1)*8) -> -
B17: Residuos | C17: =OFFSET(Emisiones!C286,0,($J$1-1)*8) -> - | D17: =OFFSET(Emisiones!D286,0,($J$1-1)*8) -> 72527.04 | E17: =OFFSET(Emisiones!E286,0,($J$1-1)*8) -> 62786.64 | F17: =OFFSET(Emisiones!F286,0,($J$1-1)*8) -> 18978 | G17: =OFFSET(Emisiones!G286,0,($J$1-1)*8) -> - | H17: =OFFSET(Emisiones!H286,0,($J$1-1)*8) -> - | I17: =OFFSET(Emisiones!I286,0,($J$1-1)*8) -> - | J17: =OFFSET(Emisiones!J286,0,($J$1-1)*8) -> -
B18: Emisiones (tCO2) | C18: =IF(SUM(C10:C17)=0,"-",SUM(C10:C17)) -> 3016283.042 | D18: =IF(SUM(D10:D17)=0,"-",SUM(D10:D17)) -> 2876300.128 | E18: 3194084.871 | F18: 1017099.082 | G18: - | H18: - | I18: - | J18: -
B19: Factor de emision de CO2 (tCO2/MWh) | C19: =OFFSET(Emisiones!C288,0,($J$1-1)*8) -> 0.7035607709 | D19: =OFFSET(Emisiones!D288,0,($J$1-1)*8) -> 0.6448172713 | E19: =OFFSET(Emisiones!E288,0,($J$1-1)*8) -> 0.6971555239 | F19: =OFFSET(Emisiones!F288,0,($J$1-1)*8) -> 0.7244255144 | G19: =OFFSET(Emisiones!G288,0,($J$1-1)*8) -> - | H19: =OFFSET(Emisiones!H288,0,($J$1-1)*8) -> - | I19: =OFFSET(Emisiones!I288,0,($J$1-1)*8) -> - | J19: =OFFSET(Emisiones!J288,0,($J$1-1)*8) -> -
B20: (1) Incluye funcionamiento en ciclo abierto.
B21: (2) Grupos de emergencia que se instalan de forma transitoria en determinadas zonas para cubrir un déficit de generación.
B22: (3) Incluye residuos hasta el 31/12/2014.
B23: =IF(MONTH('AVISO LEGAL'!J2)=1,"",CONCATENATE(" Para el año ",YEAR('AVISO LEGAL'!J2), " valores hasta ",TEXT('AVISO LEGAL'!J2-30,"mmmm")," de ",YEAR('AVISO LEGAL'!J2),".")) -> Para el año 2017 valores hasta abril de 2017.

Sheet Emisiones mensual Canarias
O1: 12
M4: Sistema eléctrico
M5: Horizonte temporal
M6: Periodo
C8: Ene. | D8: Feb. | E8: Mar. | F8: Abr. | G8: May. | H8: Jun. | I8: Jul. | J8: Ago. | K8: Sep. | L8: Oct. | M8: Nov. | N8: Dic. | O8: =OFFSET(Año!B18,($O$1-1),0) -> 2017
B10: Motores diesel | C10: =OFFSET(Emisiones!C135,0,($O$1-1)*12) -> 154392.1682 | D10: =OFFSET(Emisiones!D135,0,($O$1-1)*12) -> 136458.7223 | E10: =OFFSET(Emisiones!E135,0,($O$1-1)*12) -> 163706.7582 | F10: =OFFSET(Emisiones!F135,0,($O$1-1)*12) -> 152200.2845 | G10: =OFFSET(Emisiones!G135,0,($O$1-1)*12) -> - | H10: =OFFSET(Emisiones!H135,0,($O$1-1)*12) -> - | I10: =OFFSET(Emisiones!I135,0,($O$1-1)*12) -> - | J10: =OFFSET(Emisiones!J135,0,($O$1-1)*12) -> - | K10: =OFFSET(Emisiones!K135,0,($O$1-1)*12) -> - | L10: =OFFSET(Emisiones!L135,0,($O$1-1)*12) -> - | M10: =OFFSET(Emisiones!M135,0,($O$1-1)*12) -> - | N10: =OFFSET(Emisiones!N135,0,($O$1-1)*12) -> - | O10: =IF(SUM(C10:N10)=0,"-",SUM(C10:N10)) -> 606757.9332
B11: Turbina de gas | C11: =OFFSET(Emisiones!C136,0,($O$1-1)*12) -> 40741.0354 | D11: =OFFSET(Emisiones!D136,0,($O$1-1)*12) -> 30579.9221 | E11: =OFFSET(Emisiones!E136,0,($O$1-1)*12) -> 24684.1049 | F11: =OFFSET(Emisiones!F136,0,($O$1-1)*12) -> 20388.7294 | G11: =OFFSET(Emisiones!G136,0,($O$1-1)*12) -> - | H11: =OFFSET(Emisiones!H136,0,($O$1-1)*12) -> - | I11: =OFFSET(Emisiones!I136,0,($O$1-1)*12) -> - | J11: =OFFSET(Emisiones!J136,0,($O$1-1)*12) -> - | K11: =OFFSET(Emisiones!K136,0,($O$1-1)*12) -> - | L11: =OFFSET(Emisiones!L136,0,($O$1-1)*12) -> - | M11: =OFFSET(Emisiones!M136,0,($O$1-1)*12) -> - | N11: =OFFSET(Emisiones!N136,0,($O$1-1)*12) -> - | O11: =IF(SUM(C11:N11)=0,"-",SUM(C11:N11)) -> 116393.7918
B12: Turbina de vapor | C12: =OFFSET(Emisiones!C137,0,($O$1-1)*12) -> 187437.6356 | D12: =OFFSET(Emisiones!D137,0,($O$1-1)*12) -> 175378.95 | E12: =OFFSET(Emisiones!E137,0,($O$1-1)*12) -> 182449.0984 | F12: =OFFSET(Emisiones!F137,0,($O$1-1)*12) -> 215075.1349 | G12: =OFFSET(Emisiones!G137,0,($O$1-1)*12) -> - | H12: =OFFSET(Emisiones!H137,0,($O$1-1)*12) -> - | I12: =OFFSET(Emisiones!I137,0,($O$1-1)*12) -> - | J12: =OFFSET(Emisiones!J137,0,($O$1-1)*12) -> - | K12: =OFFSET(Emisiones!K137,0,($O$1-1)*12) -> - | L12: =OFFSET(Emisiones!L137,0,($O$1-1)*12) -> - | M12: =OFFSET(Emisiones!M137,0,($O$1-1)*12) -> - | N12: =OFFSET(Emisiones!N137,0,($O$1-1)*12) -> - | O12: 760340.819
B13: Ciclo combinado (1) | C13: =OFFSET(Emisiones!C138,0,($O$1-1)*12) -> 220209.2591 | D13: =OFFSET(Emisiones!D138,0,($O$1-1)*12) -> 183552.72 | E13: =OFFSET(Emisiones!E138,0,($O$1-1)*12) -> 195720.2333 | F13: =OFFSET(Emisiones!F138,0,($O$1-1)*12) -> 172289.6666 | G13: =OFFSET(Emisiones!G138,0,($O$1-1)*12) -> - | H13: =OFFSET(Emisiones!H138,0,($O$1-1)*12) -> - | I13: =OFFSET(Emisiones!I138,0,($O$1-1)*12) -> - | J13: =OFFSET(Emisiones!J138,0,($O$1-1)*12) -> - | K13: =OFFSET(Emisiones!K138,0,($O$1-1)*12) -> - | L13: =OFFSET(Emisiones!L138,0,($O$1-1)*12) -> - | M13: =OFFSET(Emisiones!M138,0,($O$1-1)*12) -> - | N13: =OFFSET(Emisiones!N138,0,($O$1-1)*12) -> - | O13: 771771.8791
B14: Generación auxiliar (2) | C14: =OFFSET(Emisiones!C139,0,($O$1-1)*12) -> - | D14: =OFFSET(Emisiones!D139,0,($O$1-1)*12) -> - | E14: =OFFSET(Emisiones!E139,0,($O$1-1)*12) -> - | F14: =OFFSET(Emisiones!F139,0,($O$1-1)*12) -> - | G14: =OFFSET(Emisiones!G139,0,($O$1-1)*12) -> - | H14: =OFFSET(Emisiones!H139,0,($O$1-1)*12) -> - | I14: =OFFSET(Emisiones!I139,0,($O$1-1)*12) -> - | J14: =OFFSET(Emisiones!J139,0,($O$1-1)*12) -> - | K14: =OFFSET(Emisiones!K139,0,($O$1-1)*12) -> - | L14: =OFFSET(Emisiones!L139,0,($O$1-1)*12) -> - | M14: =OFFSET(Emisiones!M139,0,($O$1-1)*12) -> - | N14: =OFFSET(Emisiones!N139,0,($O$1-1)*12) -> - | O14: -
B15: Térmica no renovable/Cogeneración y resto | C15: =OFFSET(Emisiones!C140,0,($O$1-1)*12) -> - | D15: =OFFSET(Emisiones!D140,0,($O$1-1)*12) -> - | E15: =OFFSET(Emisiones!E140,0,($O$1-1)*12) -> - | F15: =OFFSET(Emisiones!F140,0,($O$1-1)*12) -> - | G15: =OFFSET(Emisiones!G140,0,($O$1-1)*12) -> - | H15: =OFFSET(Emisiones!H140,0,($O$1-1)*12) -> - | I15: =OFFSET(Emisiones!I140,0,($O$1-1)*12) -> - | J15: =OFFSET(Emisiones!J140,0,($O$1-1)*12) -> - | K15: =OFFSET(Emisiones!K140,0,($O$1-1)*12) -> - | L15: =OFFSET(Emisiones!L140,0,($O$1-1)*12) -> - | M15: =OFFSET(Emisiones!M140,0,($O$1-1)*12) -> - | N15: =OFFSET(Emisiones!N140,0,($O$1-1)*12) -> - | O15: -
B16: Cogeneración | C16: =OFFSET(Emisiones!C141,0,($O$1-1)*12) -> - | D16: =OFFSET(Emisiones!D141,0,($O$1-1)*12) -> - | E16: =OFFSET(Emisiones!E141,0,($O$1-1)*12) -> - | F16: =OFFSET(Emisiones!F141,0,($O$1-1)*12) -> - | G16: =OFFSET(Emisiones!G141,0,($O$1-1)*12) -> - | H16: =OFFSET(Emisiones!H141,0,($O$1-1)*12) -> - | I16: =OFFSET(Emisiones!I141,0,($O$1-1)*12) -> - | J16: =OFFSET(Emisiones!J141,0,($O$1-1)*12) -> - | K16: =OFFSET(Emisiones!K141,0,($O$1-1)*12) -> - | L16: =OFFSET(Emisiones!L141,0,($O$1-1)*12) -> - | M16: =OFFSET(Emisiones!M141,0,($O$1-1)*12) -> - | N16: =OFFSET(Emisiones!N141,0,($O$1-1)*12) -> - | O16: -
B17: Emisiones (tCO2) | C17: =IF(SUM(C10:C16)=0,"-",SUM(C10:C16)) -> 602780.0984 | D17: =IF(SUM(D10:D16)=0,"-",SUM(D10:D16)) -> 525970.3144 | E17: 566560.1948 | F17: 559953.8154 | G17: - | H17: - | I17: - | J17: - | K17: - | L17: - | M17: - | N17: - | O17: =IF(SUM(C17:N17)=0,"-",SUM(C17:N17)) -> 2255264.423
B18: Factor de emision de CO2 (tCO2/MWh) | C18: =OFFSET(Emisiones!C143,0,($O$1-1)*12) -> 0.8061126508 | D18: =OFFSET(Emisiones!D143,0,($O$1-1)*12) -> 0.7893457024 | E18: =OFFSET(Emisiones!E143,0,($O$1-1)*12) -> 0.7669762415 | F18: =OFFSET(Emisiones!F143,0,($O$1-1)*12) -> 0.7887295654 | G18: =OFFSET(Emisiones!G143,0,($O$1-1)*12) -> - | H18: =OFFSET(Emisiones!H143,0,($O$1-1)*12) -> - | I18: =OFFSET(Emisiones!I143,0,($O$1-1)*12) -> - | J18: =OFFSET(Emisiones!J143,0,($O$1-1)*12) -> - | K18: =OFFSET(Emisiones!K143,0,($O$1-1)*12) -> - | L18: =OFFSET(Emisiones!L143,0,($O$1-1)*12) -> - | M18: =OFFSET(Emisiones!M143,0,($O$1-1)*12) -> - | N18: =OFFSET(Emisiones!N143,0,($O$1-1)*12) -> - | O18: =OFFSET(Emisiones!C299,0,($O$1-1)) -> 0.7878003581
B19: (1) Utiliza gasoil como combustible principal. Incluye funcionamiento en ciclo abierto.
B20: (2) Grupos de emergencia que se instalan de forma transitoria en determinadas zonas para cubrir un déficit de generación.
B21: =IF(MONTH(O4)=1,"",CONCATENATE(" Para el año ",YEAR(O4), " valores acumulados hasta ",TEXT(O4-30,"mmmm")," de ",YEAR(O4),".")) -> 

Sheet Emisiones anual Canarias
J1: 2
H4: Sistema eléctrico
H5: Horizonte temporal
H6: Periodo
C8: =OFFSET(Emisiones!C278,0,($J$1-1)*8) -> 2014 | D8: =OFFSET(Emisiones!D278,0,($J$1-1)*8) -> 2015 | E8: =OFFSET(Emisiones!E278,0,($J$1-1)*8) -> 2016 | F8: =OFFSET(Emisiones!F278,0,($J$1-1)*8) -> 2017 | G8: =OFFSET(Emisiones!G278,0,($J$1-1)*8) -> 2018 | H8: =OFFSET(Emisiones!H278,0,($J$1-1)*8) -> 2019 | I8: =OFFSET(Emisiones!I278,0,($J$1-1)*8) -> 2020 | J8: =OFFSET(Emisiones!J278,0,($J$1-1)*8) -> 2021
B10: Motores diesel | C10: =OFFSET(Emisiones!C291,0,($J$1-1)*8) -> 1758991.761 | D10: =OFFSET(Emisiones!D291,0,($J$1-1)*8) -> 1810307.735 | E10: =OFFSET(Emisiones!E291,0,($J$1-1)*8) -> 1826685.731 | F10: =OFFSET(Emisiones!F291,0,($J$1-1)*8) -> 606757.9332 | G10: =OFFSET(Emisiones!G291,0,($J$1-1)*8) -> - | H10: =OFFSET(Emisiones!H291,0,($J$1-1)*8) -> - | I10: =OFFSET(Emisiones!I291,0,($J$1-1)*8) -> - | J10: =OFFSET(Emisiones!J291,0,($J$1-1)*8) -> -
B11: Turbina de gas | C11: =OFFSET(Emisiones!C292,0,($J$1-1)*8) -> 472896.8998 | D11: =OFFSET(Emisiones!D292,0,($J$1-1)*8) -> 430174.9218 | E11: =OFFSET(Emisiones!E292,0,($J$1-1)*8) -> 362881.4072 | F11: =OFFSET(Emisiones!F292,0,($J$1-1)*8) -> 116393.7918 | G11: =OFFSET(Emisiones!G292,0,($J$1-1)*8) -> - | H11: =OFFSET(Emisiones!H292,0,($J$1-1)*8) -> - | I11: =OFFSET(Emisiones!I292,0,($J$1-1)*8) -> - | J11: =OFFSET(Emisiones!J292,0,($J$1-1)*8) -> -
B12: Turbina de vapor | C12: =OFFSET(Emisiones!C293,0,($J$1-1)*8) -> 1845892.104 | D12: =OFFSET(Emisiones!D293,0,($J$1-1)*8) -> 1980529.041 | E12: =OFFSET(Emisiones!E293,0,($J$1-1)*8) -> 2257630.646 | F12: =OFFSET(Emisiones!F293,0,($J$1-1)*8) -> 760340.819 | G12: =OFFSET(Emisiones!G293,0,($J$1-1)*8) -> - | H12: =OFFSET(Emisiones!H293,0,($J$1-1)*8) -> - | I12: =OFFSET(Emisiones!I293,0,($J$1-1)*8) -> - | J12: =OFFSET(Emisiones!J293,0,($J$1-1)*8) -> -
B13: Ciclo combinado (1) | C13: =OFFSET(Emisiones!C294,0,($J$1-1)*8) -> 2582930.176 | D13: =OFFSET(Emisiones!D294,0,($J$1-1)*8) -> 2506172.815 | E13: =OFFSET(Emisiones!E294,0,($J$1-1)*8) -> 2364725.619 | F13: =OFFSET(Emisiones!F294,0,($J$1-1)*8) -> 771771.8791 | G13: =OFFSET(Emisiones!G294,0,($J$1-1)*8) -> - | H13: =OFFSET(Emisiones!H294,0,($J$1-1)*8) -> - | I13: =OFFSET(Emisiones!I294,0,($J$1-1)*8) -> - | J13: =OFFSET(Emisiones!J294,0,($J$1-1)*8) -> -
B14: Generación auxiliar (2) | C14: =OFFSET(Emisiones!C295,0,($J$1-1)*8) -> - | D14: =OFFSET(Emisiones!D295,0,($J$1-1)*8) -> - | E14: =OFFSET(Emisiones!E295,0,($J$1-1)*8) -> - | F14: =OFFSET(Emisiones!F295,0,($J$1-1)*8) -> - | G14: =OFFSET(Emisiones!G295,0,($J$1-1)*8) -> - | H14: =OFFSET(Emisiones!H295,0,($J$1-1)*8) -> - | I14: =OFFSET(Emisiones!I295,0,($J$1-1)*8) -> - | J14: =OFFSET(Emisiones!J295,0,($J$1-1)*8) -> -
B15: Térmica no renovable/Cogeneración y resto | C15: =OFFSET(Emisiones!C296,0,($J$1-1)*8) -> - | D15: =OFFSET(Emisiones!D296,0,($J$1-1)*8) -> - | E15: =OFFSET(Emisiones!E296,0,($J$1-1)*8) -> - | F15: =OFFSET(Emisiones!F296,0,($J$1-1)*8) -> - | G15: =OFFSET(Emisiones!G296,0,($J$1-1)*8) -> - | H15: =OFFSET(Emisiones!H296,0,($J$1-1)*8) -> - | I15: =OFFSET(Emisiones!I296,0,($J$1-1)*8) -> - | J15: =OFFSET(Emisiones!J296,0,($J$1-1)*8) -> -
B16: Cogeneración | C16: =OFFSET(Emisiones!C297,0,($J$1-1)*8) -> - | D16: =OFFSET(Emisiones!D297,0,($J$1-1)*8) -> - | E16: =OFFSET(Emisiones!E297,0,($J$1-1)*8) -> - | F16: =OFFSET(Emisiones!F297,0,($J$1-1)*8) -> - | G16: =OFFSET(Emisiones!G297,0,($J$1-1)*8) -> - | H16: =OFFSET(Emisiones!H297,0,($J$1-1)*8) -> - | I16: =OFFSET(Emisiones!I297,0,($J$1-1)*8) -> - | J16: =OFFSET(Emisiones!J297,0,($J$1-1)*8) -> -
B17: Emisiones (tCO2) | C17: =IF(SUM(C10:C16)=0,"-",SUM(C10:C16)) -> 6660710.941 | D17: =IF(SUM(D10:D16)=0,"-",SUM(D10:D16)) -> 6727184.512 | E17: 6811923.403 | F17: 2255264.423 | G17: - | H17: - | I17: - | J17: -
B18: Factor de emision de CO2 (tCO2/MWh) | C18: =OFFSET(Emisiones!C299,0,($J$1-1)*8) -> 0.7763087746 | D18: =OFFSET(Emisiones!D299,0,($J$1-1)*8) -> 0.7759722308 | E18: =OFFSET(Emisiones!E299,0,($J$1-1)*8) -> 0.7760640903 | F18: =OFFSET(Emisiones!F299,0,($J$1-1)*8) -> 0.7878003581 | G18: =OFFSET(Emisiones!G299,0,($J$1-1)*8) -> - | H18: =OFFSET(Emisiones!H299,0,($J$1-1)*8) -> - | I18: =OFFSET(Emisiones!I299,0,($J$1-1)*8) -> - | J18: =OFFSET(Emisiones!J299,0,($J$1-1)*8) -> -
B19: (1) Utiliza gasoil como combustible principal. Incluye funcionamiento en ciclo abierto.
B20: (2) Grupos de emergencia que se instalan de forma transitoria en determinadas zonas para cubrir un déficit de generación.
B21: =IF(MONTH('AVISO LEGAL'!J2)=1,"",CONCATENATE(" Para el año ",YEAR('AVISO LEGAL'!J2), " valores hasta ",TEXT('AVISO LEGAL'!J2-30,"mmmm")," de ",YEAR('AVISO LEGAL'!J2),".")) -> Para el año 2017 valores hasta abril de 2017.

Sheet Emisiones mensual Ceuta
O1: 11
M4: Sistema eléctrico
M5: Horizonte temporal
M6: Periodo
C8: Ene. | D8: Feb. | E8: Mar. | F8: Abr. | G8: May. | H8: Jun. | I8: Jul. | J8: Ago. | K8: Sep. | L8: Oct. | M8: Nov. | N8: Dic. | O8: =OFFSET(Año!B19,($O$1-1),0) -> 2017
B10: Motores diesel | C10: =OFFSET(Emisiones!C146,0,($O$1-1)*12) -> 14275.58286 | D10: =OFFSET(Emisiones!D146,0,($O$1-1)*12) -> 12096.17563 | E10: =OFFSET(Emisiones!E146,0,($O$1-1)*12) -> 12187.31591 | F10: =OFFSET(Emisiones!F146,0,($O$1-1)*12) -> 11769.48003 | G10: =OFFSET(Emisiones!G146,0,($O$1-1)*12) -> - | H10: =OFFSET(Emisiones!H146,0,($O$1-1)*12) -> - | I10: =OFFSET(Emisiones!I146,0,($O$1-1)*12) -> - | J10: =OFFSET(Emisiones!J146,0,($O$1-1)*12) -> - | K10: =OFFSET(Emisiones!K146,0,($O$1-1)*12) -> - | L10: =OFFSET(Emisiones!L146,0,($O$1-1)*12) -> - | M10: =OFFSET(Emisiones!M146,0,($O$1-1)*12) -> - | N10: =OFFSET(Emisiones!N146,0,($O$1-1)*12) -> - | O10: =IF(SUM(C10:N10)=0,"-",SUM(C10:N10)) -> 50328.55443
B11: Turbina de gas | C11: =OFFSET(Emisiones!C147,0,($O$1-1)*12) -> 0.26048 | D11: =OFFSET(Emisiones!D147,0,($O$1-1)*12) -> 10.79586 | E11: =OFFSET(Emisiones!E147,0,($O$1-1)*12) -> 0.3071 | F11: =OFFSET(Emisiones!F147,0,($O$1-1)*12) -> 0.39442 | G11: =OFFSET(Emisiones!G147,0,($O$1-1)*12) -> - | H11: =OFFSET(Emisiones!H147,0,($O$1-1)*12) -> - | I11: =OFFSET(Emisiones!I147,0,($O$1-1)*12) -> - | J11: =OFFSET(Emisiones!J147,0,($O$1-1)*12) -> - | K11: =OFFSET(Emisiones!K147,0,($O$1-1)*12) -> - | L11: =OFFSET(Emisiones!L147,0,($O$1-1)*12) -> - | M11: =OFFSET(Emisiones!M147,0,($O$1-1)*12) -> - | N11: =OFFSET(Emisiones!N147,0,($O$1-1)*12) -> - | O11: =IF(SUM(C11:N11)=0,"-",SUM(C11:N11)) -> 11.75786
B12: Emisiones (tCO2) | C12: =IF(SUM(C10:C11)=0,"-",SUM(C10:C11)) -> 14275.84334 | D12: =IF(SUM(D10:D11)=0,"-",SUM(D10:D11)) -> 12106.97149 | E12: 12187.62301 | F12: 11769.87445 | G12: - | H12: - | I12: - | J12: - | K12: - | L12: - | M12: - | N12: - | O12: =IF(SUM(C12:N12)=0,"-",SUM(C12:N12)) -> 50340.31229
B13: Factor de emision de CO2 (tCO2/MWh) | C13: =OFFSET(Emisiones!C149,0,($O$1-1)*12) -> 0.7699994304 | D13: =OFFSET(Emisiones!D149,0,($O$1-1)*12) -> 0.7699721653 | E13: =OFFSET(Emisiones!E149,0,($O$1-1)*12) -> 0.7699992134 | F13: =OFFSET(Emisiones!F149,0,($O$1-1)*12) -> 0.7699989539 | G13: =OFFSET(Emisiones!G149,0,($O$1-1)*12) -> - | H13: =OFFSET(Emisiones!H149,0,($O$1-1)*12) -> - | I13: =OFFSET(Emisiones!I149,0,($O$1-1)*12) -> - | J13: =OFFSET(Emisiones!J149,0,($O$1-1)*12) -> - | K13: =OFFSET(Emisiones!K149,0,($O$1-1)*12) -> - | L13: =OFFSET(Emisiones!L149,0,($O$1-1)*12) -> - | M13: =OFFSET(Emisiones!M149,0,($O$1-1)*12) -> - | N13: =OFFSET(Emisiones!N149,0,($O$1-1)*12) -> - | O13: =OFFSET(Emisiones!C305,0,($O$1-1)) -> 0.769992709
B14: =IF(MONTH(O4)=1,"",CONCATENATE(" Para el año ",YEAR(O4), " valores acumulados hasta ",TEXT(O4-30,"mmmm")," de ",YEAR(O4),".")) -> 

Sheet Emisiones anual Ceuta
J1: 2
H4: Sistema eléctrico
H5: Horizonte temporal
H6: Periodo
C8: =OFFSET(Emisiones!C301,0,($J$1-1)*8) -> 2015 | D8: =OFFSET(Emisiones!D301,0,($J$1-1)*8) -> 2016 | E8: =OFFSET(Emisiones!E301,0,($J$1-1)*8) -> 2017 | F8: =OFFSET(Emisiones!F301,0,($J$1-1)*8) -> 2018 | G8: =OFFSET(Emisiones!G301,0,($J$1-1)*8) -> 2019 | H8: =OFFSET(Emisiones!H301,0,($J$1-1)*8) -> 2020 | I8: =OFFSET(Emisiones!I301,0,($J$1-1)*8) -> 2021 | J8: =OFFSET(Emisiones!J301,0,($J$1-1)*8) -> 2022
B10: Motores diesel | C10: =OFFSET(Emisiones!C302,0,($J$1-1)*8) -> 157631.0266 | D10: =OFFSET(Emisiones!D302,0,($J$1-1)*8) -> 162171.2315 | E10: =OFFSET(Emisiones!E302,0,($J$1-1)*8) -> 50328.55443 | F10: =OFFSET(Emisiones!F302,0,($J$1-1)*8) -> - | G10: =OFFSET(Emisiones!G302,0,($J$1-1)*8) -> - | H10: =OFFSET(Emisiones!H302,0,($J$1-1)*8) -> - | I10: =OFFSET(Emisiones!I302,0,($J$1-1)*8) -> - | J10: =OFFSET(Emisiones!J302,0,($J$1-1)*8) -> -
B11: Turbina de gas | C11: =OFFSET(Emisiones!C303,0,($J$1-1)*8) -> 535.74594 | D11: =OFFSET(Emisiones!D303,0,($J$1-1)*8) -> 85.95692 | E11: =OFFSET(Emisiones!E303,0,($J$1-1)*8) -> 11.75786 | F11: =OFFSET(Emisiones!F303,0,($J$1-1)*8) -> - | G11: =OFFSET(Emisiones!G303,0,($J$1-1)*8) -> - | H11: =OFFSET(Emisiones!H303,0,($J$1-1)*8) -> - | I11: =OFFSET(Emisiones!I303,0,($J$1-1)*8) -> - | J11: =OFFSET(Emisiones!J303,0,($J$1-1)*8) -> -
B12: Emisiones (tCO2) | C12: =IF(SUM(C10:C11)=0,"-",SUM(C10:C11)) -> 158166.7726 | D12: =IF(SUM(D10:D11)=0,"-",SUM(D10:D11)) -> 162257.1884 | E12: 50340.31229 | F12: - | G12: - | H12: - | I12: - | J12: -
B13: Factor de emision de CO2 (tCO2/MWh) | C13: =OFFSET(Emisiones!C305,0,($J$1-1)*8) -> 0.7698942783 | D13: =OFFSET(Emisiones!D305,0,($J$1-1)*8) -> 0.7699834633 | E13: =OFFSET(Emisiones!E305,0,($J$1-1)*8) -> 0.769992709 | F13: =OFFSET(Emisiones!F305,0,($J$1-1)*8) -> - | G13: =OFFSET(Emisiones!G305,0,($J$1-1)*8) -> - | H13: =OFFSET(Emisiones!H305,0,($J$1-1)*8) -> - | I13: =OFFSET(Emisiones!I305,0,($J$1-1)*8) -> - | J13: =OFFSET(Emisiones!J305,0,($J$1-1)*8) -> -
B14: =IF(MONTH('AVISO LEGAL'!J2)=1,"",CONCATENATE("Para el año ",YEAR('AVISO LEGAL'!J2), " valores hasta ",TEXT('AVISO LEGAL'!J2-30,"mmmm")," de ",YEAR('AVISO LEGAL'!J2),".")) -> Para el año 2017 valores hasta abril de 2017.

Sheet Emisiones mensual Melilla
O1: 11
M4: Sistema eléctrico
M5: Horizonte temporal
M6: Periodo
C8: Ene. | D8: Feb. | E8: Mar. | F8: Abr. | G8: May. | H8: Jun. | I8: Jul. | J8: Ago. | K8: Sep. | L8: Oct. | M8: Nov. | N8: Dic. | O8: =OFFSET(Año!B19,($O$1-1),0) -> 2017
B10: Motores diesel | C10: =OFFSET(Emisiones!C152,0,($O$1-1)*12) -> 13605.669 | D10: =OFFSET(Emisiones!D152,0,($O$1-1)*12) -> 11339.6822 | E10: =OFFSET(Emisiones!E152,0,($O$1-1)*12) -> 11627.40656 | F10: =OFFSET(Emisiones!F152,0,($O$1-1)*12) -> 11760.38017 | G10: =OFFSET(Emisiones!G152,0,($O$1-1)*12) -> - | H10: =OFFSET(Emisiones!H152,0,($O$1-1)*12) -> - | I10: =OFFSET(Emisiones!I152,0,($O$1-1)*12) -> - | J10: =OFFSET(Emisiones!J152,0,($O$1-1)*12) -> - | K10: =OFFSET(Emisiones!K152,0,($O$1-1)*12) -> - | L10: =OFFSET(Emisiones!L152,0,($O$1-1)*12) -> - | M10: =OFFSET(Emisiones!M152,0,($O$1-1)*12) -> - | N10: =OFFSET(Emisiones!N152,0,($O$1-1)*12) -> - | O10: =IF(SUM(C10:N10)=0,"-",SUM(C10:N10)) -> 48333.13793
B11: Turbina de gas | C11: =OFFSET(Emisiones!C153,0,($O$1-1)*12) -> - | D11: =OFFSET(Emisiones!D153,0,($O$1-1)*12) -> 2.83124 | E11: =OFFSET(Emisiones!E153,0,($O$1-1)*12) -> 0.31524 | F11: =OFFSET(Emisiones!F153,0,($O$1-1)*12) -> - | G11: =OFFSET(Emisiones!G153,0,($O$1-1)*12) -> - | H11: =OFFSET(Emisiones!H153,0,($O$1-1)*12) -> - | I11: =OFFSET(Emisiones!I153,0,($O$1-1)*12) -> - | J11: =OFFSET(Emisiones!J153,0,($O$1-1)*12) -> - | K11: =OFFSET(Emisiones!K153,0,($O$1-1)*12) -> - | L11: =OFFSET(Emisiones!L153,0,($O$1-1)*12) -> - | M11: =OFFSET(Emisiones!M153,0,($O$1-1)*12) -> - | N11: =OFFSET(Emisiones!N153,0,($O$1-1)*12) -> - | O11: =IF(SUM(C11:N11)=0,"-",SUM(C11:N11)) -> 3.14648
B12: Térmica no renovable/Cogeneración y resto | C12: =OFFSET(Emisiones!C154,0,($O$1-1)*12) -> - | D12: =OFFSET(Emisiones!D154,0,($O$1-1)*12) -> - | E12: =OFFSET(Emisiones!E154,0,($O$1-1)*12) -> - | F12: =OFFSET(Emisiones!F154,0,($O$1-1)*12) -> - | G12: =OFFSET(Emisiones!G154,0,($O$1-1)*12) -> - | H12: =OFFSET(Emisiones!H154,0,($O$1-1)*12) -> - | I12: =OFFSET(Emisiones!I154,0,($O$1-1)*12) -> - | J12: =OFFSET(Emisiones!J154,0,($O$1-1)*12) -> - | K12: =OFFSET(Emisiones!K154,0,($O$1-1)*12) -> - | L12: =OFFSET(Emisiones!L154,0,($O$1-1)*12) -> - | M12: =OFFSET(Emisiones!M154,0,($O$1-1)*12) -> - | N12: =OFFSET(Emisiones!N154,0,($O$1-1)*12) -> - | O12: -
B13: Residuos | C13: =OFFSET(Emisiones!C155,0,($O$1-1)*12) -> 216.96 | D13: =OFFSET(Emisiones!D155,0,($O$1-1)*12) -> 204.48 | E13: =OFFSET(Emisiones!E155,0,($O$1-1)*12) -> 210.24 | F13: =OFFSET(Emisiones!F155,0,($O$1-1)*12) -> 178.06344 | G13: =OFFSET(Emisiones!G155,0,($O$1-1)*12) -> - | H13: =OFFSET(Emisiones!H155,0,($O$1-1)*12) -> - | I13: =OFFSET(Emisiones!I155,0,($O$1-1)*12) -> - | J13: =OFFSET(Emisiones!J155,0,($O$1-1)*12) -> - | K13: =OFFSET(Emisiones!K155,0,($O$1-1)*12) -> - | L13: =OFFSET(Emisiones!L155,0,($O$1-1)*12) -> - | M13: =OFFSET(Emisiones!M155,0,($O$1-1)*12) -> - | N13: =OFFSET(Emisiones!N155,0,($O$1-1)*12) -> - | O13: 809.74344
B14: Emisiones (tCO2) | C14: =IF(SUM(C10:C13)=0,"-",SUM(C10:C13)) -> 13822.629 | D14: 11546.99344 | E14: 11837.9618 | F14: 11938.44361 | G14: - | H14: - | I14: - | J14: - | K14: - | L14: - | M14: - | N14: - | O14: =IF(SUM(C14:N14)=0,"-",SUM(C14:N14)) -> 49146.02785
B15: Factor de emision de CO2 (tCO2/MWh) | C15: =OFFSET(Emisiones!C157,0,($O$1-1)*12) -> 0.7440041015 | D15: =OFFSET(Emisiones!D157,0,($O$1-1)*12) -> 0.7408241521 | E15: =OFFSET(Emisiones!E157,0,($O$1-1)*12) -> 0.7406153571 | F15: =OFFSET(Emisiones!F157,0,($O$1-1)*12) -> 0.7454467875 | G15: =OFFSET(Emisiones!G157,0,($O$1-1)*12) -> - | H15: =OFFSET(Emisiones!H157,0,($O$1-1)*12) -> - | I15: =OFFSET(Emisiones!I157,0,($O$1-1)*12) -> - | J15: =OFFSET(Emisiones!J157,0,($O$1-1)*12) -> - | K15: =OFFSET(Emisiones!K157,0,($O$1-1)*12) -> - | L15: =OFFSET(Emisiones!L157,0,($O$1-1)*12) -> - | M15: =OFFSET(Emisiones!M157,0,($O$1-1)*12) -> - | N15: =OFFSET(Emisiones!N157,0,($O$1-1)*12) -> - | O15: =OFFSET(Emisiones!C313,0,($O$1-1)) -> 0.742785539
B16: =IF(MONTH(O4)=1,"",CONCATENATE(" Para el año ",YEAR(O4), " valores acumulados hasta ",TEXT(O4-30,"mmmm")," de ",YEAR(O4),".")) -> 

Sheet Emisiones anual Melilla
J1: 2
H4: Sistema eléctrico
H5: Horizonte temporal
H6: Periodo
C8: =OFFSET(Emisiones!C307,0,($J$1-1)*8) -> 2015 | D8: =OFFSET(Emisiones!D307,0,($J$1-1)*8) -> 2016 | E8: =OFFSET(Emisiones!E307,0,($J$1-1)*8) -> 2017 | F8: =OFFSET(Emisiones!F307,0,($J$1-1)*8) -> 2018 | G8: =OFFSET(Emisiones!G307,0,($J$1-1)*8) -> 2019 | H8: =OFFSET(Emisiones!H307,0,($J$1-1)*8) -> 2020 | I8: =OFFSET(Emisiones!I307,0,($J$1-1)*8) -> 2021 | J8: =OFFSET(Emisiones!J307,0,($J$1-1)*8) -> 2022
B10: Motores diesel | C10: =OFFSET(Emisiones!C308,0,($J$1-1)*8) -> 157255.6624 | D10: =OFFSET(Emisiones!D308,0,($J$1-1)*8) -> 152711.261 | E10: =OFFSET(Emisiones!E308,0,($J$1-1)*8) -> 48333.13793 | F10: =OFFSET(Emisiones!F308,0,($J$1-1)*8) -> - | G10: =OFFSET(Emisiones!G308,0,($J$1-1)*8) -> - | H10: =OFFSET(Emisiones!H308,0,($J$1-1)*8) -> - | I10: =OFFSET(Emisiones!I308,0,($J$1-1)*8) -> - | J10: =OFFSET(Emisiones!J308,0,($J$1-1)*8) -> -
B11: Turbina de gas | C11: =OFFSET(Emisiones!C309,0,($J$1-1)*8) -> 435.01492 | D11: =OFFSET(Emisiones!D309,0,($J$1-1)*8) -> 178.73442 | E11: =OFFSET(Emisiones!E309,0,($J$1-1)*8) -> 3.14648 | F11: =OFFSET(Emisiones!F309,0,($J$1-1)*8) -> - | G11: =OFFSET(Emisiones!G309,0,($J$1-1)*8) -> - | H11: =OFFSET(Emisiones!H309,0,($J$1-1)*8) -> - | I11: =OFFSET(Emisiones!I309,0,($J$1-1)*8) -> - | J11: =OFFSET(Emisiones!J309,0,($J$1-1)*8) -> -
B12: Térmica no renovable/Cogeneración y resto | C12: =OFFSET(Emisiones!C310,0,($J$1-1)*8) -> - | D12: =OFFSET(Emisiones!D310,0,($J$1-1)*8) -> - | E12: =OFFSET(Emisiones!E310,0,($J$1-1)*8) -> - | F12: =OFFSET(Emisiones!F310,0,($J$1-1)*8) -> - | G12: =OFFSET(Emisiones!G310,0,($J$1-1)*8) -> - | H12: =OFFSET(Emisiones!H310,0,($J$1-1)*8) -> - | I12: =OFFSET(Emisiones!I310,0,($J$1-1)*8) -> - | J12: =OFFSET(Emisiones!J310,0,($J$1-1)*8) -> -
B13: Residuos | C13: =OFFSET(Emisiones!C311,0,($J$1-1)*8) -> 2061.84 | D13: =OFFSET(Emisiones!D311,0,($J$1-1)*8) -> 2328 | E13: =OFFSET(Emisiones!E311,0,($J$1-1)*8) -> 809.74344 | F13: =OFFSET(Emisiones!F311,0,($J$1-1)*8) -> - | G13: =OFFSET(Emisiones!G311,0,($J$1-1)*8) -> - | H13: =OFFSET(Emisiones!H311,0,($J$1-1)*8) -> - | I13: =OFFSET(Emisiones!I311,0,($J$1-1)*8) -> - | J13: =OFFSET(Emisiones!J311,0,($J$1-1)*8) -> -
B14: Emisiones (tCO2) | C14: =IF(SUM(C10:C13)=0,"-",SUM(C10:C13)) -> 159752.5173 | D14: 155217.9954 | E14: 49146.02785 | F14: - | G14: - | H14: - | I14: - | J14: -
B15: Factor de emision de CO2 (tCO2/MWh) | C15: =OFFSET(Emisiones!C313,0,($J$1-1)*8) -> 0.7483079564 | D15: =OFFSET(Emisiones!D313,0,($J$1-1)*8) -> 0.7449909054 | E15: =OFFSET(Emisiones!E313,0,($J$1-1)*8) -> 0.742785539 | F15: =OFFSET(Emisiones!F313,0,($J$1-1)*8) -> - | G15: =OFFSET(Emisiones!G313,0,($J$1-1)*8) -> - | H15: =OFFSET(Emisiones!H313,0,($J$1-1)*8) -> - | I15: =OFFSET(Emisiones!I313,0,($J$1-1)*8) -> - | J15: =OFFSET(Emisiones!J313,0,($J$1-1)*8) -> -
B16: =IF(MONTH('AVISO LEGAL'!J2)=1,"",CONCATENATE("Para el año ",YEAR('AVISO LEGAL'!J2), " valores hasta ",TEXT('AVISO LEGAL'!J2-30,"mmmm")," de ",YEAR('AVISO LEGAL'!J2),".")) -> Para el año 2017 valores hasta abril de 2017.

Sheet Emisiones (hidden)
B2: Balance eléctrico mensual peninsular (GWh) | C2: 1990-01-01 | D2: 1990-02-01 | E2: 1990-03-01 | F2: 1990-04-01 | G2: 1990-05-01 | H2: 1990-06-01 | I2: 1990-07-01 | J2: 1990-08-01 | K2: 1990-09-01 | L2: 1990-10-01 | M2: 1990-11-01 | N2: 1990-12-01 | O2: 1991-01-01 | P2: 1991-02-01 | Q2: 1991-03-01 | R2: 1991-04-01 | S2: 1991-05-01 | T2: 1991-06-01 | U2: 1991-07-01 | V2: 1991-08-01 | W2: 1991-09-01 | X2: 1991-10-01 | Y2: 1991-11-01 | Z2: 1991-12-01 | AA2: 1992-01-01 | AB2: 1992-02-01 | AC2: 1992-03-01 | AD2: 1992-04-01 | AE2: 1992-05-01 | AF2: 1992-06-01 | AG2: 1992-07-01 | AH2: 1992-08-01 | AI2: 1992-09-01 | AJ2: 1992-10-01 | AK2: 1992-11-01 | AL2: 1992-12-01 | AM2: 1993-01-01 | AN2: 1993-02-01 | AO2: 1993-03-01 | AP2: 1993-04-01 | AQ2: 1993-05-01 | AR2: 1993-06-01 | AS2: 1993-07-01 | AT2: 1993-08-01 | AU2: 1993-09-01 | AV2: 1993-10-01 | AW2: 1993-11-01 | AX2: 1993-12-01 | AY2: 1994-01-01 | AZ2: 1994-02-01 | BA2: 1994-03-01 | BB2: 1994-04-01 | BC2: 1994-05-01 | BD2: 1994-06-01 | BE2: 1994-07-01 | BF2: 1994-08-01 | BG2: 1994-09-01 | BH2: 1994-10-01 | BI2: 1994-11-01 | BJ2: 1994-12-01 | BK2: 1995-01-01 | BL2: 1995-02-01 | BM2: 1995-03-01 | BN2: 1995-04-01 | BO2: 1995-05-01 | BP2: 1995-06-01 | BQ2: 1995-07-01 | BR2: 1995-08-01 | BS2: 1995-09-01 | BT2: 1995-10-01 | BU2: 1995-11-01 | BV2: 1995-12-01 | BW2: 1996-01-01 | BX2: 1996-02-01 | BY2: 1996-03-01 | BZ2: 1996-04-01 | CA2: 1996-05-01 | CB2: 1996-06-01 | CC2: 1996-07-01 | CD2: 1996-08-01 | CE2: 1996-09-01 | CF2: 1996-10-01 | CG2: 1996-11-01 | CH2: 1996-12-01 | CI2: 1997-01-01 | CJ2: 1997-02-01 | CK2: 1997-03-01 | CL2: 1997-04-01 | CM2: 1997-05-01 | CN2: 1997-06-01 | CO2: 1997-07-01 | CP2: 1997-08-01 | CQ2: 1997-09-01 | CR2: 1997-10-01 | CS2: 1997-11-01 | CT2: 1997-12-01 | CU2: 1998-01-01 | CV2: 1998-02-01 | CW2: 1998-03-01 | CX2: 1998-04-01 | CY2: 1998-05-01 | CZ2: 1998-06-01 | DA2: 1998-07-01 | DB2: 1998-08-01 | DC2: 1998-09-01 | DD2: 1998-10-01 | DE2: 1998-11-01 | DF2: 1998-12-01 | DG2: 1999-01-01 | DH2: 1999-02-01 | DI2: 1999-03-01 | DJ2: 1999-04-01 | DK2: 1999-05-01 | DL2: 1999-06-01 | DM2: 1999-07-01 | DN2: 1999-08-01 | DO2: 1999-09-01 | DP2: 1999-10-01 | DQ2: 1999-11-01 | DR2: 1999-12-01 | DS2: 2000-01-01 | DT2: 2000-02-01 | DU2: 2000-03-01 | DV2: 2000-04-01 | DW2: 2000-05-01 | DX2: 2000-06-01 | DY2: 2000-07-01 | DZ2: 2000-08-01 | EA2: 2000-09-01 | EB2: 2000-10-01 | EC2: 2000-11-01 | ED2: 2000-12-01 | EE2: 2001-01-01 | EF2: 2001-02-01 | EG2: 2001-03-01 | EH2: 2001-04-01 | EI2: 2001-05-01 | EJ2: 2001-06-01 | EK2: 2001-07-01 | EL2: 2001-08-01 | EM2: 2001-09-01 | EN2: 2001-10-01 | EO2: 2001-11-01 | EP2: 2001-12-01 | EQ2: 2002-01-01 | ER2: 2002-02-01 | ES2: 2002-03-01 | ET2: 2002-04-01 | EU2: 2002-05-01 | EV2: 2002-06-01 | EW2: 2002-07-01 | EX2: 2002-08-01 | EY2: 2002-09-01 | EZ2: 2002-10-01 | FA2: 2002-11-01 | FB2: 2002-12-01 | FC2: 2003-01-01 | FD2: 2003-02-01 | FE2: 2003-03-01 | FF2: 2003-04-01 | FG2: 2003-05-01 | FH2: 2003-06-01 | FI2: 2003-07-01 | FJ2: 2003-08-01 | FK2: 2003-09-01 | FL2: 2003-10-01 | FM2: 2003-11-01 | FN2: 2003-12-01 | FO2: 2004-01-01 | FP2: 2004-02-01 | FQ2: 2004-03-01 | FR2: 2004-04-01 | FS2: 2004-05-01 | FT2: 2004-06-01 | FU2: 2004-07-01 | FV2: 2004-08-01 | FW2: 2004-09-01 | FX2: 2004-10-01 | FY2: 2004-11-01 | FZ2: 2004-12-01 | GA2: 2005-01-01 | GB2: 2005-02-01 | GC2: 2005-03-01 | GD2: 2005-04-01 | GE2: 2005-05-01 | GF2: 2005-06-01 | GG2: 2005-07-01 | GH2: 2005-08-01 | GI2: 2005-09-01 | GJ2: 2005-10-01 | GK2: 2005-11-01 | GL2: 2005-12-01 | GM2: 2006-01-01 | GN2: 2006-02-01 | GO2: 2006-03-01 | GP2: 2006-04-01 | GQ2: 2006-05-01 | GR2: 2006-06-01 | GS2: 2006-07-01 | GT2: 2006-08-01 | GU2: 2006-09-01 | GV2: 2006-10-01 | GW2: 2006-11-01 | GX2: 2006-12-01 | GY2: 2007-01-01 | GZ2: 2007-02-01 | HA2: 2007-03-01 | HB2: 2007-04-01 | HC2: 2007-05-01 | HD2: 2007-06-01 | HE2: 2007-07-01 | HF2: 2007-08-01 | HG2: 2007-09-01 | HH2: 2007-10-01 | HI2: 2007-11-01 | HJ2: 2007-12-01 | HK2: 2008-01-01 | HL2: 2008-02-01 | HM2: 2008-03-01 | HN2: 2008-04-01 | HO2: 2008-05-01 | HP2: 2008-06-01 | HQ2: 2008-07-01 | HR2: 2008-08-01 | HS2: 2008-09-01 | HT2: 2008-10-01 | HU2: 2008-11-01 | HV2: 2008-12-01 | HW2: 2009-01-01 | HX2: 2009-02-01 | HY2: 2009-03-01 | HZ2: 2009-04-01 | IA2: 2009-05-01 | IB2: 2009-06-01 | IC2: 2009-07-01 | ID2: 2009-08-01 | IE2: 2009-09-01 | IF2: 2009-10-01 | IG2: 2009-11-01 | IH2: 2009-12-01 | II2: 2010-01-01 | IJ2: 2010-02-01 | IK2: 2010-03-01 | IL2: 2010-04-01 | IM2: 2010-05-01 | IN2: 2010-06-01 | IO2: 2010-07-01 | IP2: 2010-08-01 | IQ2: 2010-09-01 | IR2: 2010-10-01 | IS2: 2010-11-01 | IT2: 2010-12-01 | IU2: 2011-01-01 | IV2: 2011-02-01 | IW2: 2011-03-01 | IX2: 2011-04-01 | IY2: 2011-05-01 | IZ2: 2011-06-01 | JA2: 2011-07-01 | JB2: 2011-08-01 | JC2: 2011-09-01 | JD2: 2011-10-01 | JE2: 2011-11-01 | JF2: 2011-12-01 | JG2: 2012-01-01 | JH2: 2012-02-01 | JI2: 2012-03-01 | JJ2: 2012-04-01 | JK2: 2012-05-01 | JL2: 2012-06-01 | JM2: 2012-07-01 | JN2: 2012-08-01 | JO2: 2012-09-01 | JP2: 2012-10-01 | JQ2: 2012-11-01 | JR2: 2012-12-01 | JS2: 2013-01-01 | JT2: 2013-02-01 | JU2: 2013-03-01 | JV2: 2013-04-01 | JW2: 2013-05-01 | JX2: 2013-06-01 | JY2: 2013-07-01 | JZ2: 2013-08-01 | KA2: 2013-09-01 | KB2: 2013-10-01 | KC2: 2013-11-01 | KD2: 2013-12-01 | KE2: 2014-01-01 | KF2: 2014-02-01 | KG2: 2014-03-01 | KH2: 2014-04-01 | KI2: 2014-05-01 | KJ2: 2014-06-01 | KK2: 2014-07-01 | KL2: 2014-08-01 | KM2: 2014-09-01 | KN2: 2014-10-01 | KO2: 2014-11-01 | KP2: 2014-12-01 | KQ2: 2015-01-01 | KR2: 2015-02-01 | KS2: 2015-03-01 | KT2: 2015-04-01 | KU2: 2015-05-01 | KV2: 2015-06-01 | KW2: 2015-07-01 | KX2: 2015-08-01 | KY2: 2015-09-01 | KZ2: 2015-10-01 | LA2: 2015-11-01 | LB2: 2015-12-01 | LC2: 2016-01-01 | LD2: 2016-02-01 | LE2: 2016-03-01 | LF2: 2016-04-01 | LG2: 2016-05-01 | LH2: 2016-06-01 | LI2: 2016-07-01 | LJ2: 2016-08-01 | LK2: 2016-09-01 | LL2: 2016-10-01 | LM2: 2016-11-01 | LN2: 2016-12-01 | LO2: 2017-01-01 | LP2: 2017-02-01 | LQ2: 2017-03-01 | LR2: 2017-04-01 | LS2: 2017-05-01 | LT2: 2017-06-01 | LU2: 2017-07-01 | LV2: 2017-08-01 | LW2: 2017-09-01 | LX2: 2017-10-01 | LY2: 2017-11-01 | LZ2: 2017-12-01
B3: Hidráulica | C3: 3974.159 | D3: 3326.933 | E3: 2397.802 | F3: 1684.194 | G3: 1783.342 | H3: 1749.062 | I3: 1559.541 | J3: 1204.883 | K3: 1290.822 | L3: 1445.911 | M3: 1899.352 | N3: 1952.25 | O3: 2655.706 | P3: 2072.431 | Q3: 3734.385 | R3: 3325.251 | S3: 2705.77 | T3: 2002.821 | U3: 1661.366 | V3: 1105.919 | W3: 1129.598 | X3: 1513.241 | Y3: 1976.046 | Z3: 1848.313 | AA3: 1434.261 | AB3: 824.8 | AC3: 817.438 | AD3: 1599.138 | AE3: 1426.515 | AF3: 1557.522 | AG3: 1685.039 | AH3: 1213.592 | AI3: 1295.308 | AJ3: 1857.684 | AK3: 2092.35 | AL3: 2706.714 | AM3: 2061.841 | AN3: 1461.131 | AO3: 1416.13 | AP3: 1113.404 | AQ3: 1788.245 | AR3: 2092.223 | AS3: 1829.984 | AT3: 1274.24 | AU3: 1240.15 | AV3: 2737.703 | AW3: 3287.51 | AX3: 2533.22 | AY3: 3719.035 | AZ3: 2958.97 | BA3: 2570.417 | BB3: 2204.369 | BC3: 2434.416 | BD3: 2289.01 | BE3: 1803.883 | BF3: 1260.113 | BG3: 1271.202 | BH3: 1508.154 | BI3: 2165.038 | BJ3: 1765.831 | BK3: 2692.873 | BL3: 2498.983 | BM3: 3026.996 | BN3: 1834.058 | BO3: 1664.004 | BP3: 1701.644 | BQ3: 1620.764 | BR3: 1097.03 | BS3: 932.247 | BT3: 1000.796 | BU3: 1221.332 | BV3: 2405.569 | BW3: 5899.367 | BX3: 5345.564 | BY3: 3320.7 | BZ3: 3451.056 | CA3: 3596.674 | CB3: 2768.455 | CC3: 2179.589 | CD3: 1435.096 | CE3: 1670.171 | CF3: 1670.396 | CG3: 2076.946 | CH3: 3976.576 | CI3: 5420.713 | CJ3: 3238.142 | CK3: 2472.252 | CL3: 2164.87 | CM3: 2104.391 | CN3: 2215.964 | CO3: 1944.96 | CP3: 1697.05 | CQ3: 1599.736 | CR3: 1463.251 | CS3: 3378.28 | CT3: 5214.276 | CU3: 5664.638 | CV3: 3832.994 | CW3: 2512.007 | CX3: 3292.711 | CY3: 3830.053 | CZ3: 3255.279 | DA3: 2534.594 | DB3: 2111.219 | DC3: 1834.709 | DD3: 1911.747 | DE3: 1491.967 | DF3: 1395.045 | DG3: 1440 | DH3: 1322.973 | DI3: 1835.717 | DJ3: 2005.181 | DK3: 2660.269 | DL3: 2365.118 | DM3: 1913.626 | DN3: 1463.579 | DO3: 1580.462 | DP3: 1817.625 | DQ3: 2701.581 | DR3: 2757.717 | DS3: 2516.743 | DT3: 1575.335 | DU3: 1542.824 | DV3: 2163.819 | DW3: 3296.306 | DX3: 2241.516 | DY3: 1719.151 | DZ3: 1729.832 | EA3: 1860.943 | EB3: 1765.186 | EC3: 2453.296 | ED3: 4627.704 | EE3: 6220.212 | EF3: 5587.12 | EG3: 6369.986 | EH3: 4097.512 | EI3: 3117.593 | EJ3: 2408.653 | EK3: 1997.357 | EL3: 1925.375 | EM3: 1577.556 | EN3: 1832.697 | EO3: 2047.747 | EP3: 1814.654 | EQ3: 1549.583 | ER3: 1273.063 | ES3: 1887.584 | ET3: 1843.163 | EU3: 1964.034 | EV3: 2035.094 | EW3: 1625.148 | EX3: 1244.876 | EY3: 1256.353 | EZ3: 1340.712 | FA3: 2006.566 | FB3: 4169.374 | FC3: 5488.6 | FD3: 4227.989 | FE3: 4300.239 | FF3: 3543.028 | FG3: 3381.403 | FH3: 2300.329 | FI3: 1999.247 | FJ3: 1588.485 | FK3: 1757.054 | FL3: 1975.174 | FM3: 3035.28 | FN3: 4686.229 | FO3: 3477.732 | FP3: 3164.105 | FQ3: 2912.952 | FR3: 2719.447 | FS3: 3066.68 | FT3: 2645.58 | FU3: 2062.695 | FV3: 1769.584 | FW3: 1608.064 | FX3: 1787.534 | FY3: 2290.257 | FZ3: 1839.124 | GA3: 1600.076 | GB3: 1550.317 | GC3: 1769.209 | GD3: 1949.429 | GE3: 2198.706 | GF3: 1970.237 | GG3: 1549.021 | GH3: 1250.806 | GI3: 1031.671 | GJ3: 976.931 | GK3: 1340.315 | GL3: 1693.759 | GM3: 1644.478 | GN3: 1240.481 | GO3: 2706.078 | GP3: 2435.285 | GQ3: 1994.87 | GR3: 1514.597 | GS3: 1639.863 | GT3: 1135.991 | GU3: 1292.67 | GV3: 1703.194 | GW3: 2967.623 | GX3: 4695.116 | GY3: 2180.291 | GZ3: 2816.85 | HA3: 3681.278 | HB3: 2543.08 | HC3: 2606.62 | HD3: 2145.872 | HE3: 2385.917 | HF3: 1774.248 | HG3: 1432.069 | HH3: 1747.45 | HI3: 1421.001 | HJ3: 1346.903 | HK3: 1354.557 | HL3: 1017.947 | HM3: 1055.817 | HN3: 2312.239 | HO3: 2901.132 | HP3: 2793.615 | HQ3: 1979.105 | HR3: 1408.582 | HS3: 1259.733 | HT3: 1112.641 | HU3: 1480.554 | HV3: 2281.468 | HW3: 2097.988 | HX3: 3127.006 | HY3: 2431.408 | HZ3: 1883.19 | IA3: 2181.921 | IB3: 1816.87 | IC3: 1561.772 | ID3: 1338.679 | IE3: 928.486 | IF3: 1227.016 | IG3: 1839.212 | IH3: 2954.687 | II3: 4943.88595 | IJ3: 3839.031117 | IK3: 5413.043137 | IL3: 4242.06855 | IM3: 3370.503482 | IN3: 3107.19674 | IO3: 2576.587098 | IP3: 1856.882582 | IQ3: 1412.994312 | IR3: 1524.894218 | IS3: 2269.414636 | IT3: 3573.40017 | IU3: 4736.562871 | IV3: 2661.689286 | IW3: 3413.721831 | IX3: 3149.45552 | IY3: 2414.950469 | IZ3: 1754.266074 | JA3: 1378.10705 | JB3: 1346.77389 | JC3: 1126.063556 | JD3: 1274.693359 | JE3: 1952.733234 | JF3: 2016.889 | JG3: 1609.526934 | JH3: 1159.229 | JI3: 1252.635934 | JJ3: 1581.88496 | JK3: 2116.565248 | JL3: 1863.321606 | JM3: 1529.582176 | JN3: 1326.369134 | JO3: 1106.914876 | JP3: 1403.075294 | JQ3: 1852.270934 | JR3: 2378.397978 | JS3: 2718.657934 | JT3: 3206.197978 | JU3: 4235.779988 | JV3: 4914.134444 | JW3: 3283.026454 | JX3: 2759.058822 | JY3: 2359.490098 | JZ3: 1902.669014 | KA3: 1663.894216 | KB3: 1738.634822 | KC3: 2524.999 | KD3: 2270.638978 | KE3: 3919.577944 | KF3: 5374.031891 | KG3: 4837.885468 | KH3: 4532.424727 | KI3: 2487.632363 | KJ3: 2166.407894 | KK3: 2042.000852 | KL3: 1790.955276 | KM3: 1600.810338 | KN3: 1538.647781 | KO3: 2233.135 | KP3: 2935.365 | KQ3: 2885.90931 | KR3: 3850.773737 | KS3: 4171.350821 | KT3: 2911.391163 | KU3: 3188.904105 | KV3: 2611.330989 | KW3: 2165.610739 | KX3: 1837.442496 | KY3: 1763.773618 | KZ3: 1896.156669 | LA3: 2164.26617 | LB3: 1770.880256 | LC3: 3895.569161 | LD3: 4485.232111 | LE3: 4713.849907 | LF3: 5656.259677 | LG3: 5401.12375 | LH3: 3107.567795 | LI3: 2361.370239 | LJ3: 2150.861274 | LK3: 1754.997281 | LL3: 1794.053914 | LM3: 1751.951509 | LN3: 2095.11001 | LO3: 2334.141571 | LP3: 2220.139032 | LQ3: 2937.817497 | LR3: 1999.5099 | LS3: - | LT3: - | LU3: - | LV3: - | LW3: - | LX3: - | LY3: - | LZ3: -
B4: Nuclear | C4: 5193.267 | D4: 4339.07 | E4: 4257.043 | F4: 4556.652 | G4: 3888.478 | H4: 3340.776 | I4: 4237.203 | J4: 4785.957 | K4: 3922.86 | L4: 3724.698 | M4: 4508.012 | N4: 5151.652 | O4: 5104.171 | P4: 4384.294 | Q4: 4067.27 | R4: 3992.02 | S4: 4552.189 | T4: 4225.19 | U4: 4437.653 | V4: 4942.09 | W4: 4277.073 | X4: 4464.017 | Y4: 4223.282 | Z4: 4493.151 | AA4: 5192.877 | AB4: 4385.729 | AC4: 4026.587 | AD4: 3462.453 | AE4: 4064.541 | AF4: 4293.199 | AG4: 4749.755 | AH4: 4946.147 | AI4: 4034.17 | AJ4: 4813.036 | AK4: 4192.345 | AL4: 5199.221 | AM4: 5201.174 | AN4: 4155.793 | AO4: 4669.188 | AP4: 4062.371 | AQ4: 3893.606 | AR4: 4183.93 | AS4: 4729.246 | AT4: 4829.798 | AU4: 4382.91 | AV4: 4501.306 | AW4: 4049.26 | AX4: 5006.708 | AY4: 4888.214 | AZ4: 3958.138 | BA4: 3900.121 | BB4: 4180.04 | BC4: 4543.501 | BD4: 3955.25 | BE4: 4579.176 | BF4: 5011.767 | BG4: 4867.835 | BH4: 4055.733 | BI4: 3978.734 | BJ4: 5077.294 | BK4: 5146.429 | BL4: 4395.348 | BM4: 4446.422 | BN4: 4134.199 | BO4: 4752.051 | BP4: 4513.055 | BQ4: 4113.75 | BR4: 4140.442 | BS4: 3814.664 | BT4: 4207.821 | BU4: 4297.065 | BV4: 5176.852 | BW4: 5195.754 | BX4: 4737.443 | BY4: 4830.922 | BZ4: 4445.974 | CA4: 5116.925 | CB4: 3774.429 | CC4: 3664.36 | CD4: 3673.057 | CE4: 3886.011 | CF4: 4866.237 | CG4: 4595.546 | CH4: 5326.088 | CI4: 5031.441 | CJ4: 4410.622 | CK4: 3691.562 | CL4: 4062.065 | CM4: 4998.131 | CN4: 4588.075 | CO4: 4734.536 | CP4: 4656.466 | CQ4: 4176.013 | CR4: 4076.844 | CS4: 4225.661 | CT4: 4396.926 | CU4: 4850.357 | CV4: 4864.741 | CW4: 4461.119 | CX4: 4236.956 | CY4: 4651.556 | CZ4: 4934.211 | DA4: 5286.895 | DB4: 5284.746 | DC4: 4524.404 | DD4: 4228.455 | DE4: 4439.546 | DF4: 4809.061 | DG4: 5175.085 | DH4: 3934.949 | DI4: 4011.019 | DJ4: 3517.41 | DK4: 4880.704 | DL4: 4516.897 | DM4: 4677.932 | DN4: 5216.167 | DO4: 4711.526 | DP4: 5076.299 | DQ4: 5278.687 | DR4: 5381.522 | DS4: 5459.17 | DT4: 5121.331 | DU4: 4958.84 | DV4: 4468.136 | DW4: 4874.432 | DX4: 5231.805 | DY4: 5359.431 | DZ4: 5001.26 | EA4: 4030.767 | EB4: 4407.563 | EC4: 5064.955 | ED4: 5552.63 | EE4: 5502.377 | EF4: 4781.093 | EG4: 4681.95 | EH4: 4579.076 | EI4: 5513.328 | EJ4: 5103.848 | EK4: 5432.708 | EL4: 5308.987 | EM4: 4701.936 | EN4: 4737.749 | EO4: 5173.696 | EP4: 5468.465 | EQ4: 5520.427 | ER4: 4774.628 | ES4: 4206.713 | ET4: 4213.842 | EU4: 4779.207 | EV4: 5056.317 | EW4: 5461.048 | EX4: 5342.009 | EY4: 4584.918 | EZ4: 5397.964 | FA4: 5372.254 | FB4: 5579.12 | FC4: 5509.204 | FD4: 4935.939 | FE4: 4672.105 | FF4: 4666.587 | FG4: 4788.816 | FH4: 4456.119 | FI4: 5407.931 | FJ4: 5310.365 | FK4: 4125.64 | FL4: 4543.852 | FM4: 5301.45 | FN4: 5501.582 | FO4: 5460.718 | FP4: 5125.564 | FQ4: 4948.627 | FR4: 5126.832 | FS4: 4825.293 | FT4: 5119.868 | FU4: 5506.266 | FV4: 5391.197 | FW4: 4699.066 | FX4: 4456.99 | FY4: 5064.813 | FZ4: 5150.508 | GA4: 5568.309 | GB4: 4881.149 | GC4: 4397.378 | GD4: 3772.495 | GE4: 3619.368 | GF4: 3778.693 | GG4: 3888.026 | GH4: 4532.116 | GI4: 5109.769 | GJ4: 4710.487 | GK4: 5173.164 | GL4: 5470.879 | GM4: 5421.283 | GN4: 4884.597 | GO4: 5073.241 | GP4: 3528.834 | GQ4: 4300.088 | GR4: 4842.653 | GS4: 4775.66 | GT4: 5164.555 | GU4: 4298.756 | GV4: 4620.297 | GW4: 5068.626 | GX4: 5375.116 | GY4: 5319.158 | GZ4: 4778.305 | HA4: 4947.463 | HB4: 4342.93 | HC4: 3485.058 | HD4: 3161.45 | HE4: 3855.746 | HF4: 3976.62 | HG4: 4877.284 | HH4: 4891.066 | HI4: 3934.346 | HJ4: 5069.501 | HK4: 5322.941 | HL4: 5119.932 | HM4: 5354.706 | HN4: 4039.755 | HO4: 4689.704 | HP4: 4579.733 | HQ4: 4541.035 | HR4: 5013.949 | HS4: 4482.389 | HT4: 4314.462 | HU4: 4045.827 | HV4: 4955.858 | HW4: 5438.39 | HX4: 4335.14 | HY4: 3949.223 | HZ4: 4063.489 | IA4: 3687.607 | IB4: 3530.33 | IC4: 3998.25 | ID4: 5278.162 | IE4: 4387.847 | IF4: 3957.824 | IG4: 3973.495 | IH4: 3949.688 | II4: 4480.61 | IJ4: 4635.983 | IK4: 4877.964647 | IL4: 4894.268 | IM4: 4417.869 | IN4: 4693.97 | IO4: 5399.984 | IP4: 5421.255 | IQ4: 5066.819 | IR4: 5429.769 | IS4: 5094.619 | IT4: 4829.211 | IU4: 4718.777 | IV4: 4271.59 | IW4: 4332.264311 | IX4: 4457.337 | IY4: 3640.74 | IZ4: 4702.229 | JA4: 4823.025 | JB4: 5271.61 | JC4: 4983.123 | JD4: 4499.729 | JE4: 4546.877 | JF4: 4856.63 | JG4: 5171.784 | JH4: 5146.045 | JI4: 5472.373 | JJ4: 5200.715 | JK4: 4487.326 | JL4: 3504.371 | JM4: 5098.692 | JN4: 5457.922 | JO4: 5300.065 | JP4: 5396.02 | JQ4: 4070.386 | JR4: 4361.288 | JS4: 4582.812 | JT4: 4425.602 | JU4: 5210.321 | JV4: 4458.841 | JW4: 3995.289 | JX4: 4334.933 | JY4: 5136.478 | JZ4: 5025.363 | KA4: 4740.614 | KB4: 4342.401 | KC4: 4067.681 | KD4: 3986.552 | KE4: 4535.384 | KF4: 4723.773 | KG4: 5288.506 | KH4: 5057.696 | KI4: 4341.378 | KJ4: 3439.377 | KK4: 4262.548 | KL4: 4221.397 | KM4: 4806.071 | KN4: 5129.582 | KO4: 4369.283 | KP4: 4695.244 | KQ4: 5242.722 | KR4: 4720.861 | KS4: 5205.786 | KT4: 4690.141 | KU4: 3554.401048 | KV4: 3771.769 | KW4: 4798.925 | KX4: 4963.979 | KY4: 4873.917 | KZ4: 4095.259 | LA4: 3973.493 | LB4: 4863.586 | LC4: 4615.686 | LD4: 3973.207 | LE4: 5191.753 | LF4: 5055.57 | LG4: 3891.866 | LH4: 4819.247 | LI4: 5178.065 | LJ4: 5151.821 | LK4: 5009.895 | LL4: 5096.101 | LM4: 3774.597 | LN4: 4341.164 | LO4: 5285.374 | LP4: 4768.268 | LQ4: 5270.734 | LR4: 4931.1529 | LS4: - | LT4: - | LU4: - | LV4: - | LW4: - | LX4: - | LY4: - | LZ4: -
B5: Carbón | C5: 3554.713 | D5: 2808.93 | E5: 4652.699 | F5: 4136.543 | G5: 4587.111 | H5: 5321.432 | I5: 5250.706 | J5: 3947.904 | K5: 5387.902 | L5: 5510.969 | M5: 4915.063 | N5: 5264.836 | O5: 5224.28 | P5: 5296.625 | Q5: 3495.028 | R5: 3481.849 | S5: 3671.818 | T5: 4256.693 | U5: 4980.173 | V5: 4086.721 | W5: 5208.071 | X5: 5263.247 | Y5: 5335.63 | Z5: 5504.172 | AA5: 5944.99 | AB5: 5738.336 | AC5: 6103.602 | AD5: 5201.309 | AE5: 4697.456 | AF5: 4286.62 | AG5: 5015.971 | AH5: 4074.345 | AI5: 5319.274 | AJ5: 4625.697 | AK5: 4904.899 | AL5: 3913.396 | AM5: 5346.884 | AN5: 5513.03 | AO5: 5612.2 | AP5: 5170.295 | AQ5: 4777.482 | AR5: 4212.786 | AS5: 4707.795 | AT5: 4404.015 | AU5: 5167.946 | AV5: 4033.755 | AW5: 4331.081 | AX5: 4573.829 | AY5: 3978.51 | AZ5: 4574.626 | BA5: 4772.031 | BB5: 4414.084 | BC5: 3947.582 | BD5: 4969.916 | BE5: 5461.822 | BF5: 4646.473 | BG5: 4986.63 | BH5: 5297.803 | BI5: 4989.803 | BJ5: 5135.429 | BK5: 4961.543 | BL5: 4086.702 | BM5: 4543.376 | BN5: 4764.923 | BO5: 4849.966 | BP5: 4988.427 | BQ5: 5813.121 | BR5: 5715.288 | BS5: 5955.434 | BT5: 5452.807 | BU5: 5627.412 | BV5: 4475.713 | BW5: 2360.506 | BX5: 2530.396 | BY5: 3906.415 | BZ5: 2566.183 | CA5: 2468.016 | CB5: 4802.957 | CC5: 6075.884 | CD5: 5718.72 | CE5: 5483.271 | CF5: 5300.673 | CG5: 5235.796 | CH5: 3019.852 | CI5: 3369.965 | CJ5: 3440.405 | CK5: 5261.442 | CL5: 5405.207 | CM5: 4764.108 | CN5: 4851.495 | CO5: 5510.269 | CP5: 5458.799 | CQ5: 6182.282 | CR5: 6159.891 | CS5: 4489.942 | CT5: 3626.001 | CU5: 2784.997 | CV5: 3170.357 | CW5: 5292.931 | CX5: 4252.312 | CY5: 3309.682 | CZ5: 4052.584 | DA5: 5346.399 | DB5: 4423.574 | DC5: 5801.128 | DD5: 6013.634 | DE5: 6005.669 | DF5: 6472.708 | DG5: 6340.864 | DH5: 5930.681 | DI5: 6145.65 | DJ5: 5483.532 | DK5: 4405.944 | DL5: 5287.699 | DM5: 6323.383 | DN5: 5275.55 | DO5: 6366.487 | DP5: 5855.647 | DQ5: 5280.283 | DR5: 5709.913 | DS5: 6646.727 | DT5: 6309.58 | DU5: 6444.9 | DV5: 5440.619 | DW5: 4905.92 | DX5: 5885.038 | DY5: 6534.355 | DZ5: 6262.804 | EA5: 6674.877 | EB5: 6592.702 | EC5: 6222.237 | ED5: 4308.412 | EE5: 3864.127 | EF5: 3418.344 | EG5: 3396.487 | EH5: 3806.208 | EI5: 4867.444 | EJ5: 5835.146 | EK5: 6385.937 | EL5: 6261.54 | EM5: 6593.664 | EN5: 6585.913 | EO5: 6448.018 | EP5: 6986.076 | EQ5: 6959.422 | ER5: 6404.216 | ES5: 6858.526 | ET5: 6465.355 | EU5: 6436.551 | EV5: 6061.064 | EW5: 6297.098 | EX5: 6142.676 | EY5: 6405.984 | EZ5: 5954.988 | FA5: 6040.416 | FB5: 4529.395 | FC5: 4692.41 | FD5: 5217.618 | FE5: 5238.538 | FF5: 4917.42 | FG5: 5208.806 | FH5: 6150.093 | FI5: 6649.875 | FJ5: 6645.774 | FK5: 6560.467 | FL5: 6463.724 | FM5: 5574.144 | FN5: 4974.297 | FO5: 5656.455 | FP5: 5871.244 | FQ5: 6356.156 | FR5: 5163.093 | FS5: 5313.855 | FT5: 5886.91 | FU5: 6545.987 | FV5: 6332.239 | FW5: 6239.248 | FX5: 6190.806 | FY5: 5967.052 | FZ5: 6597.061 | GA5: 6811.043 | GB5: 6089.217 | GC5: 6168.657 | GD5: 5506.63 | GE5: 5676.776 | GF5: 5758.908 | GG5: 6257.933 | GH5: 5758.177 | GI5: 5916.067 | GJ5: 6141.552 | GK5: 6328.211 | GL5: 6580.918 | GM5: 6886.589 | GN5: 5775.369 | GO5: 4765.658 | GP5: 3496.492 | GQ5: 5080.473 | GR5: 5562.59 | GS5: 6510.018 | GT5: 5286.591 | GU5: 5409.01 | GV5: 4807.43 | GW5: 4258.214 | GX5: 4287.631 | GY5: 6102.67 | GZ5: 4895.344 | HA5: 4863.635 | HB5: 5834.914 | HC5: 5991.804 | HD5: 5773.713 | HE5: 5941.476 | HF5: 5886.238 | HG5: 5490.184 | HH5: 5348.828 | HI5: 5486.22 | HJ5: 6071.222 | HK5: 4980.962 | HL5: 4597.712 | HM5: 3661.907 | HN5: 3107.048 | HO5: 2174.694 | HP5: 2041.751 | HQ5: 3682.365 | HR5: 3065.986 | HS5: 3445.736 | HT5: 4099.561 | HU5: 4098.351 | HV5: 4453.464 | HW5: 4585.163 | HX5: 3015.414 | HY5: 2964.835 | HZ5: 1785.362 | IA5: 2230.875 | IB5: 2454.086 | IC5: 3212.927 | ID5: 1795.094 | IE5: 2689.472 | IF5: 3054.298 | IG5: 1997.712 | IH5: 1837.324 | II5: 1696.094 | IJ5: 1367.276 | IK5: 844.196834 | IL5: 633.698 | IM5: 823.906 | IN5: 1322.563 | IO5: 2450.416 | IP5: 2835.734 | IQ5: 2971.126 | IR5: 1987.136 | IS5: 1627.231 | IT5: 2039.879 | IU5: 2046.91 | IV5: 2465.985 | IW5: 2981.859407 | IX5: 2442.991 | IY5: 2961.694 | IZ5: 2727.028 | JA5: 4186.613 | JB5: 4069.807 | JC5: 4665.65 | JD5: 4282.619 | JE5: 3880.549 | JF5: 3790.122 | JG5: 5155.723 | JH5: 5284.447 | JI5: 4450.686 | JJ5: 2519.977 | JK5: 3786.125 | JL5: 5062.384 | JM5: 4674.929 | JN5: 4819.269 | JO5: 3811.017 | JP5: 4058.458037 | JQ5: 3915.724 | JR5: 3592.147 | JS5: 2887.249 | JT5: 2416.603 | JU5: 1257.787 | JV5: 904.232 | JW5: 1901.736 | JX5: 2464.334 | JY5: 5226.978 | JZ5: 4374.253 | KA5: 4539.962 | KB5: 4032.012 | KC5: 2511.31 | KD5: 4660.427 | KE5: 2116.608 | KF5: 756.298 | KG5: 1149.219 | KH5: 1222.699 | KI5: 3177.691 | KJ5: 5007.983 | KK5: 5378.171 | KL5: 5052.89 | KM5: 5684.267 | KN5: 4391.006 | KO5: 3148.079 | KP5: 4047.766 | KQ5: 4900.113 | KR5: 2941.508 | KS5: 2591.26 | KT5: 2955.792 | KU5: 2829.463 | KV5: 5330.826 | KW5: 6063.442 | KX5: 5202.15 | KY5: 4598.276 | KZ5: 4304.632 | LA5: 4578.015 | LB5: 4628.295367 | LC5: 2561.026 | LD5: 1806.484 | LE5: 1690.627 | LF5: 903.561 | LG5: 1036.145 | LH5: 2053.368 | LI5: 3659.521 | LJ5: 3398.391 | LK5: 4304.271 | LL5: 4283.707 | LM5: 4457.428 | LN5: 5032.975 | LO5: 5166.139 | LP5: 3326.569 | LQ5: 1791.503 | LR5: 1892.6797 | LS5: - | LT5: - | LU5: - | LV5: - | LW5: - | LX5: - | LY5: - | LZ5: -
B6: Fuel + Gas | C6: 204.218 | D6: 106.632 | E6: 108.531 | F6: 79.792 | G6: 202.105 | H6: 384.878 | I6: 413.754 | J6: 154.664 | K6: 238.912 | L6: 286.886 | M6: 267.439 | N6: 418.135 | O6: 255.223 | P6: 330.269 | Q6: 128.713 | R6: 181.603 | S6: 200.854 | T6: 278.568 | U6: 687.282 | V6: 178.961 | W6: 651.77 | X6: 308.139 | Y6: 371.593 | Z6: 468.71 | AA6: 1299.375 | AB6: 1787.73 | AC6: 1434.253 | AD6: 698.915 | AE6: 614.411 | AF6: 147.673 | AG6: 415.723 | AH6: 221.515 | AI6: 529.484 | AJ6: 185.837 | AK6: 87.533 | AL6: 41.134 | AM6: 95.265 | AN6: 339.473 | AO6: 343.836 | AP6: 259.45 | AQ6: 99.405 | AR6: 120.458 | AS6: 38.927 | AT6: 88.599 | AU6: 185.272 | AV6: 52.688 | AW6: 79.194 | AX6: 74.58 | AY6: 99.884 | AZ6: 90.411 | BA6: 115.894 | BB6: 122.311 | BC6: 19.071 | BD6: 97.452 | BE6: 377.674 | BF6: 54.8 | BG6: 84.704 | BH6: 118.869 | BI6: 64.49 | BJ6: 166.625 | BK6: 152.781 | BL6: 37.526 | BM6: 143.05 | BN6: 120.69 | BO6: 108.382 | BP6: 288.232 | BQ6: 593.743 | BR6: 231.724 | BS6: 578.349 | BT6: 658.579 | BU6: 432.286 | BV6: 315.821 | BW6: 15.11 | BX6: 185.81 | BY6: 257.11 | BZ6: 138.064 | CA6: 30.668 | CB6: 162.97 | CC6: 265.834 | CD6: 140.586 | CE6: 231.84 | CF6: 97.463 | CG6: 243.305 | CH6: 274.57 | CI6: 261.459 | CJ6: 382.801 | CK6: 453.163 | CL6: 496.788 | CM6: 437.559 | CN6: 493.385 | CO6: 819.472 | CP6: 582.312 | CQ6: 735.84 | CR6: 822.644 | CS6: 542.729 | CT6: 524.389 | CU6: 69.924 | CV6: 100.933 | CW6: 152.994 | CX6: 52.482 | CY6: 36.298 | CZ6: 200.457 | DA6: 473.969 | DB6: 507.113 | DC6: 713.855 | DD6: 389.214 | DE6: 997.22 | DF6: 1644.422 | DG6: 1502.458 | DH6: 1861.304 | DI6: 1086.079 | DJ6: 532.757 | DK6: 168.644 | DL6: 532.41 | DM6: 1127.99 | DN6: 686.731 | DO6: 596.713 | DP6: 154.831 | DQ6: 413.447 | DR6: 687.299 | DS6: 1113.669 | DT6: 491.264 | DU6: 1132.887 | DV6: 724.643 | DW6: 174.013 | DX6: 674.131 | DY6: 890.41 | DZ6: 736.769 | EA6: 1450.383 | EB6: 931.175 | EC6: 755.077 | ED6: 490.878 | EE6: 502.29 | EF6: 406.874 | EG6: 415.246 | EH6: 162.849 | EI6: 332.142 | EJ6: 1148.567 | EK6: 1351.695 | EL6: 1201.89 | EM6: 1299.134 | EN6: 1281.455 | EO6: 1320.459 | EP6: 2157.018 | EQ6: 2663.572 | ER6: 1619.697 | ES6: 1419.443 | ET6: 1389.165 | EU6: 1086.731 | EV6: 1639.803 | EW6: 1896.914 | EX6: 889.726 | EY6: 1207.86 | EZ6: 878.513 | FA6: 477.951 | FB6: 376.307 | FC6: 581.383 | FD6: 499.107 | FE6: 206.448 | FF6: 78.708 | FG6: 237.103 | FH6: 1224.425 | FI6: 1186.803 | FJ6: 1068.492 | FK6: 943.468 | FL6: 648.372 | FM6: 347.553 | FN6: 409.78 | FO6: 431.414 | FP6: 344.906 | FQ6: 608.288 | FR6: 174.5 | FS6: 312.653 | FT6: 737.545 | FU6: 1090.75 | FV6: 714.632 | FW6: 946.658 | FX6: 578.892 | FY6: 466.279 | FZ6: 682.951 | GA6: 916.314 | GB6: 1095.09 | GC6: 1363.62 | GD6: 371.743 | GE6: 521.771 | GF6: 1160.585 | GG6: 1354.295 | GH6: 407.675 | GI6: 515.482 | GJ6: 357.865 | GK6: 420.929 | GL6: 808.949 | GM6: 760.536 | GN6: 627.523 | GO6: 291.553 | GP6: 282.347 | GQ6: 230.671 | GR6: 521.586 | GS6: 1004.05 | GT6: 339.096 | GU6: 760.597 | GV6: 340.628 | GW6: 131.166 | GX6: 106.305 | GY6: 102.61 | GZ6: 220.437 | HA6: 191.126 | HB6: 113.172 | HC6: 166.474 | HD6: 83.596 | HE6: 272.951 | HF6: 212.661 | HG6: 233.035 | HH6: 127.132 | HI6: 199.016 | HJ6: 168.555 | HK6: 142.142 | HL6: 124.255 | HM6: 70.555 | HN6: 137.2 | HO6: 147.767 | HP6: 248.855 | HQ6: 154.963 | HR6: 242.519 | HS6: 189.069 | HT6: 200.066 | HU6: 227.266 | HV6: 190.238 | HW6: 128.807 | HX6: 119.209 | HY6: 191.562 | HZ6: 137.769 | IA6: 91.484 | IB6: 147.091 | IC6: 212.322 | ID6: 171.65 | IE6: 154.518 | IF6: 104.516 | IG6: 165.878 | IH6: 164.784 | II6: 153.209 | IJ6: 126.666 | IK6: 22.518 | IL6: 105.508 | IM6: 163.869 | IN6: 165.569 | IO6: 138.492 | IP6: 113.152 | IQ6: 138.319 | IR6: 124.903 | IS6: 166.811 | IT6: 147.007 | IU6: 0 | IV6: 0 | IW6: 0 | IX6: 0 | IY6: 0 | IZ6: 0 | JA6: 0 | JB6: 0 | JC6: 0 | JD6: 0 | JE6: 0 | JF6: 0 | JG6: 0 | JH6: 0 | JI6: 0 | JJ6: 0 | JK6: 0 | JL6: 0 | JM6: 0 | JN6: 0 | JO6: 0 | JP6: 0 | JQ6: 0 | JR6: 0 | JS6: 0 | JT6: 0 | JU6: 0 | JV6: 0 | JW6: 0 | JX6: 0 | JY6: 0 | JZ6: 0 | KA6: 0 | KB6: 0 | KC6: 0 | KD6: 0 | KE6: 0 | KF6: 0 | KG6: 0 | KH6: 0 | KI6: 0 | KJ6: 0 | KK6: 0 | KL6: 0 | KM6: 0 | KN6: 0 | KO6: 0 | KP6: 0 | KQ6: 0 | KR6: 0 | KS6: 0 | KT6: 0 | KU6: 0 | KV6: 0 | KW6: 0 | KX6: 0 | KY6: 0 | KZ6: 0 | LA6: 0 | LB6: 0 | LC6: 0 | LD6: 0 | LE6: 0 | LF6: 0 | LG6: 0 | LH6: 0 | LI6: 0 | LJ6: 0 | LK6: 0 | LL6: 0 | LM6: 0 | LN6: 0 | LO6: 0 | LP6: 0 | LQ6: 0 | LR6: 0 | LS6: - | LT6: - | LU6: - | LV6: - | LW6: - | LX6: - | LY6: - | LZ6: -
B7: Ciclo combinado | C7: - | D7: - | E7: - | F7: - | G7: - | H7: - | I7: - | J7: - | K7: - | L7: - | M7: - | N7: - | O7: - | P7: - | Q7: - | R7: - | S7: - | T7: - | U7: - | V7: - | W7: - | X7: - | Y7: - | Z7: - | AA7: - | AB7: - | AC7: - | AD7: - | AE7: - | AF7: - | AG7: - | AH7: - | AI7: - | AJ7: - | AK7: - | AL7: - | AM7: 0.213 | AN7: - | AO7: - | AP7: - | AQ7: - | AR7: - | AS7: - | AT7: - | AU7: - | AV7: - | AW7: - | AX7: - | AY7: - | AZ7: - | BA7: - | BB7: - | BC7: - | BD7: - | BE7: - | BF7: - | BG7: - | BH7: - | BI7: - | BJ7: - | BK7: - | BL7: - | BM7: - | BN7: - | BO7: - | BP7: - | BQ7: - | BR7: - | BS7: - | BT7: - | BU7: - | BV7: - | BW7: - | BX7: - | BY7: - | BZ7: - | CA7: - | CB7: - | CC7: - | CD7: - | CE7: - | CF7: - | CG7: - | CH7: - | CI7: - | CJ7: - | CK7: - | CL7: - | CM7: - | CN7: - | CO7: - | CP7: - | CQ7: - | CR7: - | CS7: - | CT7: - | CU7: - | CV7: - | CW7: - | CX7: - | CY7: - | CZ7: - | DA7: - | DB7: - | DC7: - | DD7: - | DE7: - | DF7: - | DG7: - | DH7: - | DI7: - | DJ7: - | DK7: - | DL7: - | DM7: - | DN7: - | DO7: - | DP7: - | DQ7: - | DR7: - | DS7: - | DT7: - | DU7: - | DV7: - | DW7: - | DX7: - | DY7: - | DZ7: - | EA7: - | EB7: - | EC7: - | ED7: - | EE7: - | EF7: - | EG7: - | EH7: - | EI7: - | EJ7: - | EK7: - | EL7: - | EM7: - | EN7: - | EO7: - | EP7: - | EQ7: - | ER7: - | ES7: - | ET7: - | EU7: 121.518 | EV7: 305.007 | EW7: 520.594 | EX7: 763.192 | EY7: 1165.914 | EZ7: 1151.137 | FA7: 610.332 | FB7: 517.979 | FC7: 436.832 | FD7: 845.815 | FE7: 761.981 | FF7: 386.589 | FG7: 799.416 | FH7: 1781.138 | FI7: 1927.342 | FJ7: 1793.886 | FK7: 2025.468 | FL7: 1795.77 | FM7: 1208.196 | FN7: 863.653 | FO7: 1541.807 | FP7: 1943.228 | FQ7: 2272.911 | FR7: 1822.15 | FS7: 2011.424 | FT7: 2317.648 | FU7: 2722.288 | FV7: 2333.433 | FW7: 2921.537 | FX7: 2845.403 | FY7: 2763.156 | FZ7: 2817.86 | GA7: 3347.629 | GB7: 3357.813 | GC7: 3345.948 | GD7: 3237.21 | GE7: 3507.254 | GF7: 4645.311 | GG7: 5188.211 | GH7: 4424.916 | GI7: 4433.434 | GJ7: 4074.636 | GK7: 4170.737 | GL7: 4113.69 | GM7: 5549.648 | GN7: 5482.822 | GO7: 4705.139 | GP7: 4650.806 | GQ7: 4929.557 | GR7: 5469.55 | GS7: 6664.457 | GT7: 4828.182 | GU7: 6324.433 | GV7: 5050.22 | GW7: 4256.457 | GX7: 4211.163 | GY7: 6046.649 | GZ7: 3813.023 | HA7: 3823.553 | HB7: 4054.708 | HC7: 4329.247 | HD7: 6168.922 | HE7: 6583.839 | HF7: 5145.517 | HG7: 5637.609 | HH7: 6092.117 | HI7: 7608.162 | HJ7: 7269.522 | HK7: 7999.771 | HL7: 7995.581 | HM7: 6774.804 | HN7: 6899.11 | HO7: 7196.281 | HP7: 7596.274 | HQ7: 8863.531 | HR7: 8223.301 | HS7: 7817.517 | HT7: 7214.455 | HU7: 6826.167 | HV7: 5693.94 | HW7: 5970.275 | HX7: 4444.191 | HY7: 5032.65 | HZ7: 5434.445 | IA7: 5603.483 | IB7: 7620.646 | IC7: 8497.575 | ID7: 8177.814 | IE7: 7385.088 | IF7: 6555.009 | IG7: 5522.15 | IH7: 6135.958 | II7: 5308.095 | IJ7: 4758.78 | IK7: 4086.589928 | IL7: 4360.6161 | IM7: 4552.942 | IN7: 5475.442 | IO7: 6782.456 | IP7: 5736.69 | IQ7: 6235.23 | IR7: 5277.748 | IS7: 5529.094 | IT7: 4851.257217 | IU7: 5017.54814 | IV7: 4626.0791 | IW7: 3936.288283 | IX7: 2780.183 | IY7: 4145.37703 | IZ7: 4837.543 | JA7: 4513.752006 | JB7: 4686.590034 | JC7: 4471.739 | JD7: 3709.547 | JE7: 3346.757 | JF7: 3340.253412 | JG7: 4223.492 | JH7: 3867.639 | JI7: 3070.445 | JJ7: 2221.107431 | JK7: 2396.91303 | JL7: 3094.711 | JM7: 3351.596 | JN7: 3470.291965 | JO7: 2874.596345 | JP7: 3215.303 | JQ7: 2947.85 | JR7: 2797.722 | JS7: 2607.2273 | JT7: 1958.49535 | JU7: 1498.034 | JV7: 1120.755 | JW7: 1635.241296 | JX7: 1378.832001 | JY7: 2221.196817 | JZ7: 2365.594108 | KA7: 2232.158 | KB7: 2535.204 | KC7: 2034.98 | KD7: 2772.864 | KE7: 1551.037019 | KF7: 1268.540247 | KG7: 1284.147 | KH7: 1230.010441 | KI7: 1422.793 | KJ7: 1773.52217 | KK7: 1859.79216 | KL7: 2219.649836 | KM7: 2659.492 | KN7: 2137.49203 | KO7: 1928.739 | KP7: 2001.539 | KQ7: 2227.425 | KR7: 1716.241 | KS7: 1625.308002 | KT7: 1666.992 | KU7: 1600.517 | KV7: 1879.125 | KW7: 3407.078 | KX7: 2337.272 | KY7: 1999.653 | KZ7: 2081.912 | LA7: 2093.551 | LB7: 2633.394 | LC7: 1878.426 | LD7: 1312.371 | LE7: 1344.51 | LF7: 1171.745 | LG7: 1499.554 | LH7: 1891.633495 | LI7: 2381.915 | LJ7: 2023.298293 | LK7: 2143.091 | LL7: 3301.415 | LM7: 3431.904 | LN7: 3306.286 | LO7: 2834.400369 | LP7: 1485.125 | LQ7: 1425.464 | LR7: 1204.5339 | LS7: - | LT7: - | LU7: - | LV7: - | LW7: - | LX7: - | LY7: - | LZ7: -
B8: Régimen ordinario | C8: 12926.357 | D8: 10581.565 | E8: 11416.075 | F8: 10457.181 | G8: 10461.036 | H8: 10796.148 | I8: 11461.204 | J8: 10093.408 | K8: 10840.496 | L8: 10968.464 | M8: 11589.866 | N8: 12786.873 | O8: 13239.38 | P8: 12083.619 | Q8: 11425.396 | R8: 10980.723 | S8: 11130.631 | T8: 10763.272 | U8: 11766.474 | V8: 10313.691 | W8: 11266.512 | X8: 11548.644 | Y8: 11906.551 | Z8: 12314.346 | AA8: 13871.503 | AB8: 12736.595 | AC8: 12381.88 | AD8: 10961.815 | AE8: 10802.923 | AF8: 10285.014 | AG8: 11866.488 | AH8: 10455.599 | AI8: 11178.236 | AJ8: 11482.254 | AK8: 11277.127 | AL8: 11860.465 | AM8: 12705.377 | AN8: 11469.427 | AO8: 12041.354 | AP8: 10605.52 | AQ8: 10558.738 | AR8: 10609.397 | AS8: 11305.952 | AT8: 10596.652 | AU8: 10976.278 | AV8: 11325.452 | AW8: 11747.045 | AX8: 12188.337 | AY8: 12685.643 | AZ8: 11582.145 | BA8: 11358.463 | BB8: 10920.804 | BC8: 10944.57 | BD8: 11311.628 | BE8: 12222.555 | BF8: 10973.153 | BG8: 11210.371 | BH8: 10980.559 | BI8: 11198.065 | BJ8: 12145.179 | BK8: 12953.626 | BL8: 11018.559 | BM8: 12159.844 | BN8: 10853.87 | BO8: 11374.403 | BP8: 11491.358 | BQ8: 12141.378 | BR8: 11184.484 | BS8: 11280.694 | BT8: 11320.003 | BU8: 11578.095 | BV8: 12373.955 | BW8: 13470.737 | BX8: 12799.213 | BY8: 12315.147 | BZ8: 10601.277 | CA8: 11212.283 | CB8: 11508.811 | CC8: 12185.667 | CD8: 10967.459 | CE8: 11271.293 | CF8: 11934.769 | CG8: 12151.593 | CH8: 12597.086 | CI8: 14083.578 | CJ8: 11471.97 | CK8: 11878.419 | CL8: 12128.93 | CM8: 12304.189 | CN8: 12148.919 | CO8: 13009.237 | CP8: 12394.627 | CQ8: 12693.871 | CR8: 12522.63 | CS8: 12636.612 | CT8: 13761.592 | CU8: 13369.916 | CV8: 11969.025 | CW8: 12419.051 | CX8: 11834.461 | CY8: 11827.589 | CZ8: 12442.531 | DA8: 13641.857 | DB8: 12326.652 | DC8: 12874.096 | DD8: 12543.05 | DE8: 12934.402 | DF8: 14321.236 | DG8: 14458.407 | DH8: 13049.907 | DI8: 13078.465 | DJ8: 11538.88 | DK8: 12115.561 | DL8: 12702.124 | DM8: 14042.931 | DN8: 12642.027 | DO8: 13255.188 | DP8: 12904.402 | DQ8: 13673.998 | DR8: 14536.451 | DS8: 15736.309 | DT8: 13497.51 | DU8: 14079.451 | DV8: 12797.217 | DW8: 13250.671 | DX8: 14032.49 | DY8: 14503.347 | DZ8: 13730.665 | EA8: 14016.97 | EB8: 13696.626 | EC8: 14495.565 | ED8: 14979.624 | EE8: 16089.006 | EF8: 14193.431 | EG8: 14863.669 | EH8: 12645.645 | EI8: 13830.507 | EJ8: 14496.214 | EK8: 15167.697 | EL8: 14697.792 | EM8: 14172.29 | EN8: 14437.814 | EO8: 14989.92 | EP8: 16426.213 | EQ8: 16693.004 | ER8: 14071.604 | ES8: 14372.266 | ET8: 13911.525 | EU8: 14388.041 | EV8: 15097.285 | EW8: 15800.802 | EX8: 14382.479 | EY8: 14621.029 | EZ8: 14723.314 | FA8: 14507.519 | FB8: 15172.175 | FC8: 16708.429 | FD8: 15726.468 | FE8: 15179.311 | FF8: 13592.332 | FG8: 14415.544 | FH8: 15912.104 | FI8: 17171.198 | FJ8: 16407.002 | FK8: 15412.097 | FL8: 15426.892 | FM8: 15466.623 | FN8: 16435.541 | FO8: 16568.126 | FP8: 16449.047 | FQ8: 17098.934 | FR8: 15006.022 | FS8: 15529.905 | FT8: 16707.551 | FU8: 17927.986 | FV8: 16541.085 | FW8: 16414.573 | FX8: 15859.625 | FY8: 16551.557 | FZ8: 17087.504 | GA8: 18243.371 | GB8: 16973.586 | GC8: 17044.812 | GD8: 14837.507 | GE8: 15523.875 | GF8: 17313.734 | GG8: 18237.486 | GH8: 16373.69 | GI8: 17006.423 | GJ8: 16261.471 | GK8: 17433.356 | GL8: 18668.195 | GM8: 20262.534 | GN8: 18010.792 | GO8: 17541.669 | GP8: 14393.764 | GQ8: 16535.659 | GR8: 17910.976 | GS8: 20594.048 | GT8: 16754.415 | GU8: 18085.466 | GV8: 16521.769 | GW8: 16682.086 | GX8: 18675.331 | GY8: 19751.378 | GZ8: 16523.959 | HA8: 17507.055 | HB8: 16888.804 | HC8: 16579.203 | HD8: 17333.553 | HE8: 19039.929 | HF8: 16995.284 | HG8: 17670.181 | HH8: 18206.593 | HI8: 18648.745 | HJ8: 19925.703 | HK8: 19800.373 | HL8: 18855.427 | HM8: 16917.789 | HN8: 16495.352 | HO8: 17109.578 | HP8: 17260.228 | HQ8: 19220.999 | HR8: 17954.337 | HS8: 17194.444 | HT8: 16941.185 | HU8: 16678.165 | HV8: 17574.968 | HW8: 18220.623 | HX8: 15040.96 | HY8: 14569.678 | HZ8: 13304.255 | IA8: 13795.37 | IB8: 15569.023 | IC8: 17482.846 | ID8: 16761.399 | IE8: 15545.411 | IF8: 14898.663 | IG8: 13498.447 | IH8: 15042.441 | II8: 16581.89395 | IJ8: 14727.73612 | IK8: 15244.31255 | IL8: 14236.15865 | IM8: 13329.08948 | IN8: 14764.74074 | IO8: 17347.9351 | IP8: 15963.71358 | IQ8: 15824.48831 | IR8: 14344.45022 | IS8: 14687.16964 | IT8: 15440.75439 | IU8: 16519.79801 | IV8: 14025.34339 | IW8: 14664.13383 | IX8: 12829.96652 | IY8: 13162.7615 | IZ8: 14021.06607 | JA8: 14901.49706 | JB8: 15374.78092 | JC8: 15246.57556 | JD8: 13766.58836 | JE8: 13726.91623 | JF8: 14003.89441 | JG8: 16160.52593 | JH8: 15457.36 | JI8: 14246.13993 | JJ8: 11523.68439 | JK8: 12786.92928 | JL8: 13524.78761 | JM8: 14654.79918 | JN8: 15073.8521 | JO8: 13092.59322 | JP8: 14072.85633 | JQ8: 12786.23093 | JR8: 13129.55498 | JS8: 12795.94623 | JT8: 12006.89833 | JU8: 12201.92199 | JV8: 11397.96244 | JW8: 10815.29275 | JX8: 10937.15782 | JY8: 14944.14292 | JZ8: 13667.87912 | KA8: 13176.62822 | KB8: 12648.25182 | KC8: 11138.97 | KD8: 13690.48198 | KE8: - | KF8: - | KG8: - | KH8: - | KI8: - | KJ8: - | KK8: - | KL8: - | KM8: - | KN8: - | KO8: - | KP8: - | KQ8: - | KR8: - | KS8: - | KT8: - | KU8: - | KV8: - | KW8: - | KX8: - | KY8: - | KZ8: - | LA8: - | LB8: - | LC8: - | LD8: - | LE8: - | LF8: - | LG8: - | LH8: - | LI8: - | LJ8: - | LK8: - | LL8: - | LM8: - | LN8: - | LO8: - | LP8: - | LQ8: - | LR8: - | LS8: - | LT8: - | LU8: - | LV8: - | LW8: - | LX8: - | LY8: - | LZ8: -
B9: Hidráulica/Resto hidráulica | C9: 105.992 | D9: 92.30599999 | E9: 64.72999999 | F9: 90.82900001 | G9: 84.02299996 | H9: 91.299 | I9: 55.459 | J9: 57.63200001 | K9: 34.01199999 | L9: 69.63399999 | M9: 110.01 | N9: 126.706 | O9: 179.138 | P9: 122.811 | Q9: 215.011 | R9: 190.109 | S9: 195.073 | T9: 144.594 | U9: 99.561 | V9: 80.389 | W9: 78.209 | X9: 93.88 | Y9: 141.988 | Z9: 164.018 | AA9: 125.135 | AB9: 89.669 | AC9: 114.311 | AD9: 191.757 | AE9: 193.59 | AF9: 203.803 | AG9: 181.002 | AH9: 118.066 | AI9: 117.869 | AJ9: 215.527 | AK9: 233.875 | AL9: 297.169 | AM9: 208.395 | AN9: 120.724 | AO9: 171.353 | AP9: 192.554 | AQ9: 247.309 | AR9: 207.114 | AS9: 151.58 | AT9: 102.715 | AU9: 108.434 | AV9: 243.801 | AW9: 228.351 | AX9: 251.898 | AY9: 342.685 | AZ9: 275.549 | BA9: 261.048 | BB9: 218.693 | BC9: 253.366 | BD9: 170.896 | BE9: 113.035 | BF9: 101.443 | BG9: 106.75 | BH9: 171.698 | BI9: 238.982 | BJ9: 221.123 | BK9: 329.748 | BL9: 321.577 | BM9: 299.329 | BN9: 168.033 | BO9: 176.271 | BP9: 142.427 | BQ9: 114.445 | BR9: 86.067 | BS9: 110.54 | BT9: 88.179 | BU9: 129.774 | BV9: 256.484 | BW9: 431.994 | BX9: 394.019 | BY9: 364.698 | BZ9: 371.68 | CA9: 349.161 | CB9: 242.652 | CC9: 197.031 | CD9: 174.123 | CE9: 161.743 | CF9: 181.576 | CG9: 235.112 | CH9: 440.058 | CI9: 440.792 | CJ9: 368.973 | CK9: 267.722 | CL9: 216.182 | CM9: 261.68 | CN9: 278.391 | CO9: 254.605 | CP9: 204.188 | CQ9: 190.687 | CR9: 154.25 | CS9: 310.862 | CT9: 480.663 | CU9: 492.716819 | CV9: 339.410518 | CW9: 327.064365 | CX9: 403.458525 | CY9: 412.076272 | CZ9: 315.956945 | DA9: 207.934447 | DB9: 197.432695 | DC9: 167.836814 | DD9: 248.31533 | DE9: 203.701928 | DF9: 262.569259 | DG9: 323.522396 | DH9: 292.899812 | DI9: 373.902231 | DJ9: 348.717189 | DK9: 443.138313 | DL9: 296.523594 | DM9: 224.706943 | DN9: 189.845427 | DO9: 210.825293 | DP9: 274.411798 | DQ9: 366.447977 | DR9: 395.381639 | DS9: 330.40558 | DT9: 282.436739 | DU9: 249.446216 | DV9: 435.783218 | DW9: 494.627909 | DX9: 357.927451 | DY9: 254.292919 | DZ9: 199.410305 | EA9: 158.612187 | EB9: 230.155185 | EC9: 367.537209 | ED9: 475.465015 | EE9: 558.920303 | EF9: 485.996064 | EG9: 596.948281 | EH9: 489.463965 | EI9: 476.68399 | EJ9: 352.760995 | EK9: 300.49063 | EL9: 227.071678 | EM9: 181.600837 | EN9: 202.508315 | EO9: 222.42957 | EP9: 192.648005 | EQ9: 255.920349 | ER9: 271.46624 | ES9: 345.515552 | ET9: 361.372052 | EU9: 420.062442 | EV9: 357.790122 | EW9: 235.872343 | EX9: 210.054023 | EY9: 204.411097 | EZ9: 280.620946 | FA9: 390.817645 | FB9: 565.549528 | FC9: 581.193939 | FD9: 453.43334 | FE9: 562.61659 | FF9: 532.278526 | FG9: 529.630674 | FH9: 359.335678 | FI9: 277.913169 | FJ9: 209.447635 | FK9: 208.9305 | FL9: 309.717496 | FM9: 485.77286 | FN9: 578.373638 | FO9: 587.995369 | FP9: 427.628958 | FQ9: 507.792138 | FR9: 547.04273 | FS9: 572.541482 | FT9: 412.623003 | FU9: 336.467575 | FV9: 259.270925 | FW9: 199.838133 | FX9: 245.598881 | FY9: 329.701046 | FZ9: 323.078145 | GA9: 350.78451 | GB9: 292.229427 | GC9: 386.56585 | GD9: 465.508544 | GE9: 438.710303 | GF9: 297.453519 | GG9: 244.468044 | GH9: 191.049618 | GI9: 151.162091 | GJ9: 217.906843 | GK9: 377.399041 | GL9: 404.345149 | GM9: 400.558873 | GN9: 320.878335 | GO9: 567.05897 | GP9: 506.039156 | GQ9: 360.074545 | GR9: 248.514 | GS9: 226.349 | GT9: 177.815 | GU9: 164.14 | GV9: 312.404 | GW9: 381.881 | GX9: 482.851 | GY9: 345.489 | GZ9: 478.796 | HA9: 516.028 | HB9: 529.759 | HC9: 509.19 | HD9: 412.917 | HE9: 302.212 | HF9: 256.501 | HG9: 186.134 | HH9: 186.888 | HI9: 189.873 | HJ9: 211.538 | HK9: 340.206 | HL9: 233.218 | HM9: 301.234 | HN9: 581.111 | HO9: 613.279 | HP9: 581.555 | HQ9: 380.409 | HR9: 264.581 | HS9: 212.28 | HT9: 190.523 | HU9: 400.121 | HV9: 539.626 | HW9: 521.055 | HX9: 629.452 | HY9: 559.845 | HZ9: 501.442 | IA9: 577.142 | IB9: 468.387 | IC9: 365.353 | ID9: 282.65 | IE9: 242.869 | IF9: 230.81 | IG9: 466.05 | IH9: 608.618 | II9: 764.37 | IJ9: 616.578 | IK9: 784.76 | IL9: 690.196 | IM9: 688.343 | IN9: 608.948 | IO9: 459.603 | IP9: 341.748 | IQ9: 281.05 | IR9: 318.889 | IS9: 567.66 | IT9: 702.175 | IU9: 663.648 | IV9: 506.22 | IW9: 655.863 | IX9: 588.128 | IY9: 489.538 | IZ9: 405.258 | JA9: 384.186 | JB9: 304.794 | JC9: 235.563 | JD9: 189.002 | JE9: 423.492 | JF9: 448.623 | JG9: 336.823 | JH9: 331.681 | JI9: 324.862 | JJ9: 468.281 | JK9: 642.16 | JL9: 439.563 | JM9: 337.726 | JN9: 264.852 | JO9: 198.808 | JP9: 269.484 | JQ9: 410.351 | JR9: 619.955 | JS9: 667.289 | JT9: 687.923 | JU9: 842.281 | JV9: 845.369 | JW9: 779.847 | JX9: 658.839 | JY9: 534.941 | JZ9: 402.893 | KA9: 302.909 | KB9: 342.663 | KC9: 522.626 | KD9: 511.575 | KE9: 783.351 | KF9: 754.573 | KG9: 806.168 | KH9: 776.295 | KI9: 608.477 | KJ9: 523.418 | KK9: 479.798 | KL9: 401.515 | KM9: 357.392 | KN9: 362.73 | KO9: 544.005 | KP9: 671.798 | KQ9: - | KR9: - | KS9: - | KT9: - | KU9: - | KV9: - | KW9: - | KX9: - | KY9: - | KZ9: - | LA9: - | LB9: - | LC9: - | LD9: - | LE9: - | LF9: - | LG9: - | LH9: - | LI9: - | LJ9: - | LK9: - | LL9: - | LM9: - | LN9: - | LO9: - | LP9: - | LQ9: - | LR9: - | LS9: - | LT9: - | LU9: - | LV9: - | LW9: - | LX9: - | LY9: - | LZ9: -
B10: Eólica | C10: 0.115 | D10: 0.19899999 | E10: 0.18 | F10: 0.189 | G10: 0.174 | H10: 0.12 | I10: 0.26 | J10: 0.186 | K10: 0.131 | L10: 0.17 | M10: 0.207 | N10: 0.25599999 | O10: 0.192 | P10: 0.143 | Q10: 0.212 | R10: 0.562 | S10: 0.322 | T10: 0.2 | U10: 0.184 | V10: 0.212 | W10: 0.144 | X10: 0.242 | Y10: 0.271 | Z10: 0.181 | AA10: 0.262 | AB10: 0.225 | AC10: 0.313 | AD10: 0.207 | AE10: 0.195 | AF10: 0.163 | AG10: 0.195 | AH10: 0.666 | AI10: 1.295 | AJ10: 2.137 | AK10: 2.507 | AL10: 9.196 | AM10: 7.115 | AN10: 11.386 | AO10: 7.326 | AP10: 6.164 | AQ10: 5.271 | AR10: 7.974 | AS10: 7.391 | AT10: 6.981 | AU10: 5.631 | AV10: 7.198 | AW10: 6.728 | AX10: 5.603 | AY10: 6.899 | AZ10: 4.814 | BA10: 8.769 | BB10: 6.859 | BC10: 4.97 | BD10: 6.462 | BE10: 3.859 | BF10: 5.393 | BG10: 5.047 | BH10: 6.336 | BI10: 7.78 | BJ10: 5.672 | BK10: 7.87 | BL10: 7.675 | BM10: 8.496 | BN10: 11.902 | BO10: 9.211 | BP10: 8.898 | BQ10: 14.465 | BR10: 17.63 | BS10: 14.853 | BT10: 27.623 | BU10: 13.795 | BV10: 17.439 | BW10: 18.83 | BX10: 22.031 | BY10: 24.646 | BZ10: 26.102 | CA10: 23.157 | CB10: 27.099 | CC10: 25.434 | CD10: 15.643 | CE10: 22.706 | CF10: 30.321 | CG10: 31.616 | CH10: 36.544 | CI10: 39.627 | CJ10: 32.179 | CK10: 46.04 | CL10: 56.365 | CM10: 39.41 | CN10: 43.759 | CO10: 57.268 | CP10: 41.053 | CQ10: 45.835 | CR10: 69.47 | CS10: 72.794 | CT10: 76.085 | CU10: 85.726279 | CV10: 73.041771 | CW10: 100.156674 | CX10: 97.154275 | CY10: 87.936697 | CZ10: 72.687051 | DA10: 112.788958 | DB10: 131.013278 | DC10: 104.747635 | DD10: 104.146754 | DE10: 128.518917 | DF10: 138.738417 | DG10: 159.911065 | DH10: 214.375135 | DI10: 206.772797 | DJ10: 190.999426 | DK10: 173.148566 | DL10: 212.214153 | DM10: 177.000959 | DN10: 139.302129 | DO10: 172.17858 | DP10: 199.350315 | DQ10: 312.980648 | DR10: 315.799525 | DS10: 305.024786 | DT10: 295.1137 | DU10: 338.149516 | DV10: 416.021442 | DW10: 226.957358 | DX10: 365.846115 | DY10: 360.052448 | DZ10: 315.707212 | EA10: 276.366005 | EB10: 409.721173 | EC10: 544.093822 | ED10: 609.442473 | EE10: 594.731676 | EF10: 573.654778 | EG10: 654.248611 | EH10: 650.224566 | EI10: 424.361087 | EJ10: 408.907282 | EK10: 400.205723 | EL10: 374.720812 | EM10: 611.542894 | EN10: 574.769948 | EO10: 768.828981 | EP10: 557.951755 | EQ10: 657.009295 | ER10: 782.540758 | ES10: 795.79278 | ET10: 618.787308 | EU10: 820.586332 | EV10: 646.365366 | EW10: 693.582831 | EX10: 598.43409 | EY10: 505.371396 | EZ10: 869.000019 | FA10: 1056.957505 | FB10: 1214.869007 | FC10: 1395.171019 | FD10: 997.62485 | FE10: 837.860626 | FF10: 1138.000866 | FG10: 901.866016 | FH10: 703.483064 | FI10: 727.405981 | FJ10: 543.970839 | FK10: 781.2453 | FL10: 1086.955352 | FM10: 1172.985179 | FN10: 1433.677041 | FO10: 1685.344923 | FP10: 1074.447704 | FQ10: 1281.279462 | FR10: 1519.372767 | FS10: 1019.357853 | FT10: 1048.332716 | FU10: 970.026109 | FV10: 1114.316325 | FW10: 1147.637898 | FX10: 1635.269143 | FY10: 1511.245273 | FZ10: 1747.487596 | GA10: 1879.193348 | GB10: 1745.313957 | GC10: 1763.513597 | GD10: 1926.458081 | GE10: 1492.0682 | GF10: 1261.460764 | GG10: 1611.02847 | GH10: 1640.440853 | GI10: 1271.494533 | GJ10: 1902.724597 | GK10: 1958.532153 | GL10: 2405.437406 | GM10: 1563.700931 | GN10: 1924.867031 | GO10: 2788.267198 | GP10: 1955.917235 | GQ10: 1670.51768 | GR10: 1364.448 | GS10: 1171.791 | GT10: 2177.821 | GU10: 1465.816 | GV10: 2334.802 | GW10: 2279.523 | GX10: 2183.385 | GY10: 2149.807 | GZ10: 2871.919 | HA10: 3086.247 | HB10: 1356.316 | HC10: 2605.873 | HD10: 1786.288 | HE10: 1888.609 | HF10: 2419.819 | HG10: 2028.855 | HH10: 1907.625 | HI10: 2752.312 | HJ10: 2395.485 | HK10: 2651.468 | HL10: 2018.948 | HM10: 4092.55 | HN10: 3352.686 | HO10: 1737.161 | HP10: 2085.509 | HQ10: 2124.237 | HR10: 1972.523 | HS10: 2129.885 | HT10: 2482.013 | HU10: 3462.688 | HV10: 3648.182 | HW10: 3503.799 | HX10: 3226.32 | HY10: 3100.516 | HZ10: 3059.658 | IA10: 2698.004 | IB10: 2332.395 | IC10: 2426.129 | ID10: 2235.837 | IE10: 2466.731 | IF10: 3125.33 | IG10: 4792.63 | IH10: 4921.228 | II10: 4292.092 | IJ10: 4622.435 | IK10: 4546.547 | IL10: 2634.819 | IM10: 3619.334 | IN10: 2576.197 | IO10: 2798.133 | IP10: 2894.744 | IQ10: 2301.323 | IR10: 3952.831 | IS10: 4348.059 | IT10: 4621.882 | IU10: 4018.65 | IV10: 4028.246 | IW10: 4690.99 | IX10: 3399.409 | IY10: 3165.622 | IZ10: 2937.197 | JA10: 3254.705 | JB10: 2729.485 | JC10: 2322.977 | JD10: 3149.505 | JE10: 3819.887 | JF10: 4588.76 | JG10: 3645.515 | JH10: 5014.665 | JI10: 3805.554 | JJ10: 5306.39 | JK10: 3707.879 | JL10: 3429.201 | JM10: 2981.913 | JN10: 3126.895 | JO10: 3937.412 | JP10: 3129.821 | JQ10: 4604.842 | JR10: 5449.978 | JS10: 6291.574 | JT10: 5340.996 | JU10: 5749.103 | JV10: 4396.782 | JW10: 3932.35 | JX10: 3827.052 | JY10: 2844.213 | JZ10: 3410.875 | KA10: 3214.273 | KB10: 3963.88 | KC10: 6429.814 | KD10: 4943.44 | KE10: 6539.485 | KF10: 5884.285 | KG10: 5050.331 | KH10: 3950.218 | KI10: 4134.841 | KJ10: 3275.599 | KK10: 3591.602 | KL10: 2856.841 | KM10: 2132.614 | KN10: 3382.772 | KO10: 5071.981 | KP10: 4764.321 | KQ10: 4912.46 | KR10: 5948.174 | KS10: 4865.124 | KT10: 3904.518 | KU10: 4800.453 | KV10: 2873.288 | KW10: 3053.374 | KX10: 3237.373 | KY10: 3002.695 | KZ10: 3887.249 | LA10: 3699.88 | LB10: 3528.562 | LC10: 5604.841 | LD10: 6068.587 | LE10: 5410.014 | LF10: 4414.843 | LG10: 3902.567 | LH10: 3226.898 | LI10: 3464.979 | LJ10: 3603.71 | LK10: 2666.876 | LL10: 2376.059 | LM10: 3884.41 | LN10: 2671.9 | LO10: 4813.059 | LP10: 4925.494 | LQ10: 4685.845 | LR10: 4128.278003 | LS10: - | LT10: - | LU10: - | LV10: - | LW10: - | LX10: - | LY10: - | LZ10: -
B11: Solar fotovoltaica | C11: 0 | D11: 0 | E11: 0 | F11: 0 | G11: 0 | H11: 0 | I11: 0 | J11: 0 | K11: 0 | L11: 0 | M11: 0 | N11: 0 | O11: 0 | P11: 0 | Q11: 0 | R11: 0 | S11: 0 | T11: 0 | U11: 0 | V11: 0 | W11: 0 | X11: 0 | Y11: 0 | Z11: 0 | AA11: 1.01 | AB11: 0.772 | AC11: 0.572 | AD11: 1.289 | AE11: 1.113 | AF11: 1.164 | AG11: 1.307 | AH11: 1.155 | AI11: 1.223 | AJ11: 0.944 | AK11: 0.57 | AL11: 0.937 | AM11: 0.538 | AN11: 0.533 | AO11: 1.252 | AP11: 1.303 | AQ11: 1.05 | AR11: 1.069 | AS11: 1.273 | AT11: 1.193 | AU11: 0.88 | AV11: 0.72 | AW11: 1.263 | AX11: 0.926 | AY11: 0.978 | AZ11: 1.242 | BA11: 1.065 | BB11: 1.208 | BC11: 1.742 | BD11: 1.484 | BE11: 1.635 | BF11: 1.668 | BG11: 1.69 | BH11: 1.521 | BI11: 1.004 | BJ11: 1.126 | BK11: 0.804 | BL11: 1.412 | BM11: 1.84 | BN11: 1.854 | BO11: 1.931 | BP11: 1.866 | BQ11: 1.745 | BR11: 1.795 | BS11: 1.812 | BT11: 1.635 | BU11: 1.834 | BV11: 1.679 | BW11: 1.81 | BX11: 1.513 | BY11: 1.899 | BZ11: 1.765 | CA11: 1.421 | CB11: 1.788 | CC11: 1.889 | CD11: 1.748 | CE11: 1.673 | CF11: 1.745 | CG11: 1.774 | CH11: 1.738 | CI11: 1.684 | CJ11: 1.714 | CK11: 2.044 | CL11: 1.719 | CM11: 1.339 | CN11: 1.284 | CO11: 1.733 | CP11: 1.975 | CQ11: 1.901 | CR11: 1.716 | CS11: 1.793 | CT11: 1.916 | CU11: 1.951689 | CV11: 1.788536 | CW11: 1.425942 | CX11: 1.873996 | CY11: 1.884227 | CZ11: 1.793625 | DA11: 1.91802 | DB11: 1.781137 | DC11: 1.858388 | DD11: 1.855271 | DE11: 1.816025 | DF11: 1.739763 | DG11: 1.946628 | DH11: 1.574211 | DI11: 2.029084 | DJ11: 1.889765 | DK11: 1.74451 | DL11: 1.287548 | DM11: 1.861371 | DN11: 1.985432 | DO11: 1.898779 | DP11: 1.920468 | DQ11: 1.576874 | DR11: 1.934561 | DS11: 1.888697 | DT11: 1.904599 | DU11: 1.959623 | DV11: 1.887758 | DW11: 1.714456 | DX11: 1.894068 | DY11: 1.884149 | DZ11: 2.10953 | EA11: 1.799961 | EB11: 1.943646 | EC11: 1.711958 | ED11: 1.82343 | EE11: 1.990993 | EF11: 1.752698 | EG11: 2.031274 | EH11: 1.845371 | EI11: 2.060721 | EJ11: 2.044068 | EK11: 1.954216 | EL11: 2.057688 | EM11: 1.868215 | EN11: 1.694714 | EO11: 1.868259 | EP11: 2.004572 | EQ11: 0.126051 | ER11: 0.229529 | ES11: 0.274106 | ET11: 0.396381 | EU11: 0.478436 | EV11: 0.479391 | EW11: 0.538064 | EX11: 0.533652 | EY11: 0.489809 | EZ11: 0.419306 | FA11: 0.317988 | FB11: 0.278739 | FC11: 0.331772 | FD11: 0.405857 | FE11: 0.562187 | FF11: 0.715348 | FG11: 0.856797 | FH11: 0.976934 | FI11: 1.140896 | FJ11: 1.017998 | FK11: 0.915326 | FL11: 0.809065 | FM11: 0.531804 | FN11: 0.666121 | FO11: 0.575979 | FP11: 0.833369 | FQ11: 1.127006 | FR11: 1.376597 | FS11: 1.638065 | FT11: 1.936569 | FU11: 2.015126 | FV11: 2.030072 | FW11: 1.850632 | FX11: 1.706128 | FY11: 1.375854 | FZ11: 1.328614 | GA11: 1.310038 | GB11: 1.59649 | GC11: 2.752105 | GD11: 2.916883 | GE11: 3.637065 | GF11: 4.270227 | GG11: 4.396409 | GH11: 4.542723 | GI11: 4.291025 | GJ11: 3.943208 | GK11: 3.248179 | GL11: 3.183997 | GM11: 2.56564 | GN11: 4.341388 | GO11: 5.163743 | GP11: 7.314716 | GQ11: 8.774512 | GR11: 10.192 | GS11: 11.021 | GT11: 13.52 | GU11: 11.63 | GV11: 9.949 | GW11: 8.077 | GX11: 9.826 | GY11: 9.686 | GZ11: 12.005 | HA11: 20.551 | HB11: 24.491 | HC11: 34.18 | HD11: 38.843 | HE11: 49.655 | HF11: 53.862 | HG11: 58.231 | HH11: 55.535 | HI11: 52.622 | HJ11: 52.916 | HK11: 57.421 | HL11: 70.549 | HM11: 104.433 | HN11: 126.235 | HO11: 131.754 | HP11: 189.707 | HQ11: 232.234 | HR11: 288.112 | HS11: 317.111 | HT11: 320.166 | HU11: 324.321 | HV11: 244.027 | HW11: 248.703 | HX11: 380.174 | HY11: 508.662 | HZ11: 546.455 | IA11: 647.317 | IB11: 618.528 | IC11: 690.862 | ID11: 637.125 | IE11: 492.289 | IF11: 482.285 | IG11: 345.4 | IH11: 231.205 | II11: 248.575 | IJ11: 289.95 | IK11: 458.217 | IL11: 565.84 | IM11: 683.248 | IN11: 656.766 | IO11: 752.89 | IP11: 691.532 | IQ11: 605.388 | IR11: 525.855 | IS11: 364.052 | IT11: 297.469 | IU11: 335.968 | IV11: 481.247 | IW11: 508.384 | IX11: 631.454 | IY11: 716.118 | IZ11: 776.898 | JA11: 821.81 | JB11: 766.368 | JC11: 702.334 | JD11: 601.935 | JE11: 344.356 | JF11: 404.816 | JG11: 482.68 | JH11: 635.514 | JI11: 736.945 | JJ11: 627.604 | JK11: 826.209 | JL11: 839.146 | JM11: 902.627 | JN11: 826.454 | JO11: 658.334 | JP11: 566.62 | JQ11: 350.382 | JR11: 377.386 | JS11: 418.753 | JT11: 500.807 | JU11: 531.456 | JV11: 725.436 | JW11: 832.56 | JX11: 886.252 | JY11: 929.537 | JZ11: 856.806 | KA11: 724.785 | KB11: 603.79 | KC11: 490.228 | KD11: 417.628 | KE11: 352.691 | KF11: 405.785 | KG11: 697.63 | KH11: 753.264 | KI11: 882.487 | KJ11: 862.847 | KK11: 910.009 | KL11: 871.503 | KM11: 655.164 | KN11: 616.974 | KO11: 362.107 | KP11: 431.963 | KQ11: 493.219 | KR11: 469.243 | KS11: 677.682 | KT11: 718.229 | KU11: 880.722 | KV11: 848.48 | KW11: 888.936 | KX11: 793.673 | KY11: 691.739 | KZ11: 510.302 | LA11: 503.195 | LB11: 369.378 | LC11: 337.689 | LD11: 452.578 | LE11: 674.219 | LF11: 685.876 | LG11: 768.775 | LH11: 881.131 | LI11: 874.722 | LJ11: 853.2 | LK11: 728.551 | LL11: 554.506 | LM11: 401.935 | LN11: 353.631 | LO11: 448.576 | LP11: 415.888 | LQ11: 674.688 | LR11: 800.3407 | LS11: - | LT11: - | LU11: - | LV11: - | LW11: - | LX11: - | LY11: - | LZ11: -
B12: Solar térmica | C12: - | D12: - | E12: - | F12: - | G12: - | H12: - | I12: - | J12: - | K12: - | L12: - | M12: - | N12: - | O12: - | P12: - | Q12: - | R12: - | S12: - | T12: - | U12: - | V12: - | W12: - | X12: - | Y12: - | Z12: - | AA12: - | AB12: - | AC12: - | AD12: - | AE12: - | AF12: - | AG12: - | AH12: - | AI12: - | AJ12: - | AK12: - | AL12: - | AM12: - | AN12: - | AO12: - | AP12: - | AQ12: - | AR12: - | AS12: - | AT12: - | AU12: - | AV12: - | AW12: - | AX12: - | AY12: - | AZ12: - | BA12: - | BB12: - | BC12: - | BD12: - | BE12: - | BF12: - | BG12: - | BH12: - | BI12: - | BJ12: - | BK12: - | BL12: - | BM12: - | BN12: - | BO12: - | BP12: - | BQ12: - | BR12: - | BS12: - | BT12: - | BU12: - | BV12: - | BW12: - | BX12: - | BY12: - | BZ12: - | CA12: - | CB12: - | CC12: - | CD12: - | CE12: - | CF12: - | CG12: - | CH12: - | CI12: - | CJ12: - | CK12: - | CL12: - | CM12: - | CN12: - | CO12: - | CP12: - | CQ12: - | CR12: - | CS12: - | CT12: - | CU12: - | CV12: - | CW12: - | CX12: - | CY12: - | CZ12: - | DA12: - | DB12: - | DC12: - | DD12: - | DE12: - | DF12: - | DG12: - | DH12: - | DI12: - | DJ12: - | DK12: - | DL12: - | DM12: - | DN12: - | DO12: - | DP12: - | DQ12: - | DR12: - | DS12: - | DT12: - | DU12: - | DV12: - | DW12: - | DX12: - | DY12: - | DZ12: - | EA12: - | EB12: - | EC12: - | ED12: - | EE12: - | EF12: - | EG12: - | EH12: - | EI12: - | EJ12: - | EK12: - | EL12: - | EM12: - | EN12: - | EO12: - | EP12: - | EQ12: - | ER12: - | ES12: - | ET12: - | EU12: - | EV12: - | EW12: - | EX12: - | EY12: - | EZ12: - | FA12: - | FB12: - | FC12: - | FD12: - | FE12: - | FF12: - | FG12: - | FH12: - | FI12: - | FJ12: - | FK12: - | FL12: - | FM12: - | FN12: - | FO12: - | FP12: - | FQ12: - | FR12: - | FS12: - | FT12: - | FU12: - | FV12: - | FW12: - | FX12: - | FY12: - | FZ12: - | GA12: - | GB12: - | GC12: - | GD12: - | GE12: - | GF12: - | GG12: - | GH12: - | GI12: - | GJ12: - | GK12: - | GL12: - | GM12: 0 | GN12: 0 | GO12: 0 | GP12: 0 | GQ12: 0 | GR12: 0 | GS12: 0 | GT12: 0 | GU12: 0 | GV12: 0 | GW12: 0 | GX12: 0 | GY12: 0 | GZ12: 0 | HA12: 0.431 | HB12: 0.342 | HC12: 0.558 | HD12: 0.883 | HE12: 1.256 | HF12: 1.116 | HG12: 0.639 | HH12: 1.214 | HI12: 0.997 | HJ12: 0.191 | HK12: 1.084 | HL12: 0.797 | HM12: 1.461 | HN12: 0.958 | HO12: 0.942 | HP12: 1.963 | HQ12: 2.038 | HR12: 1.98 | HS12: 0.859 | HT12: 0.866 | HU12: 1.27 | HV12: 1.16 | HW12: 0.69 | HX12: 1.236 | HY12: 2.323 | HZ12: 7.204 | IA12: 7.658 | IB12: 6.752 | IC12: 12.414 | ID12: 23.868 | IE12: 17.539 | IF12: 23.446 | IG12: 16.183 | IH12: 10.51 | II12: 13.152 | IJ12: 11.682 | IK12: 23.732 | IL12: 36.92 | IM12: 69.084 | IN12: 72.532 | IO12: 104.59 | IP12: 121.9 | IQ12: 100.917 | IR12: 71.745 | IS12: 31.619 | IT12: 33.747 | IU12: 34.25 | IV12: 88.657 | IW12: 98.457 | IX12: 137.833 | IY12: 154.073 | IZ12: 232.484 | JA12: 284.208 | JB12: 235.329 | JC12: 228.558 | JD12: 172.912 | JE12: 80.437 | JF12: 85.159 | JG12: 117.342 | JH12: 200.342 | JI12: 235.113 | JJ12: 177.777 | JK12: 348.382 | JL12: 414.749 | JM12: 541.317 | JN12: 485.127 | JO12: 368.643 | JP12: 285.795 | JQ12: 133.962 | JR12: 135.585 | JS12: 113.494 | JT12: 204.009 | JU12: 125.37 | JV12: 300.894 | JW12: 499.268 | JX12: 647.33 | JY12: 758.523 | JZ12: 661.856 | KA12: 478.955 | KB12: 294.242 | KC12: 199.224 | KD12: 158.362 | KE12: 79.801 | KF12: 103.265 | KG12: 385.175 | KH12: 435.527 | KI12: 729.936 | KJ12: 687.288 | KK12: 811.153 | KL12: 833.178 | KM12: 389.596 | KN12: 289.337 | KO12: 90.187 | KP12: 124.472 | KQ12: 176.951 | KR12: 190.925 | KS12: 415.829 | KT12: 393.16 | KU12: 694.839 | KV12: 734.054 | KW12: 888.918 | KX12: 607.623 | KY12: 483.25 | KZ12: 188.169 | LA12: 226.818 | LB12: 84.699 | LC12: 59.914 | LD12: 133.027 | LE12: 387.896 | LF12: 408.323 | LG12: 498.798 | LH12: 813.991 | LI12: 825.325 | LJ12: 801.424 | LK12: 588.907 | LL12: 284.703 | LM12: 139.7 | LN12: 118.136 | LO12: 149.214 | LP12: 88.742 | LQ12: 340.838 | LR12: 547.154 | LS12: - | LT12: - | LU12: - | LV12: - | LW12: - | LX12: - | LY12: - | LZ12: -
B13: Térmica renovable/Otras renovables | C13: - | D13: - | E13: - | F13: - | G13: - | H13: - | I13: - | J13: - | K13: - | L13: - | M13: - | N13: - | O13: - | P13: - | Q13: - | R13: - | S13: - | T13: - | U13: - | V13: - | W13: - | X13: 0.479 | Y13: 0.195 | Z13: 0.18 | AA13: 0.226 | AB13: 0.185 | AC13: 0.209 | AD13: 0.186 | AE13: 0.219 | AF13: 2.491 | AG13: 0.855 | AH13: 1.652 | AI13: 2.195 | AJ13: 3.186 | AK13: 2.852 | AL13: 2.293 | AM13: 2.747 | AN13: 4.291 | AO13: 5.55 | AP13: 5.08 | AQ13: 5.191 | AR13: 4.069 | AS13: 4.405 | AT13: 5.055 | AU13: 4.77 | AV13: 5.999 | AW13: 6.529 | AX13: 5.136 | AY13: 6.182 | AZ13: 4.201 | BA13: 7.788 | BB13: 12.483 | BC13: 22.434 | BD13: 14.593 | BE13: 25.895 | BF13: 34.064 | BG13: 35.963 | BH13: 40.081 | BI13: 55.065 | BJ13: 63.701 | BK13: 52.516 | BL13: 54.169 | BM13: 59.649 | BN13: 59.275 | BO13: 60.63 | BP13: 38.39 | BQ13: 56.09 | BR13: 56.16 | BS13: 55.471 | BT13: 65.761 | BU13: 51.017 | BV13: 62.141 | BW13: 61.97 | BX13: 55.767 | BY13: 73.194 | BZ13: 69.39 | CA13: 67.607 | CB13: 74.481 | CC13: 76.311 | CD13: 76.089 | CE13: 74.905 | CF13: 70.728 | CG13: 57.923 | CH13: 56.715 | CI13: 56.474 | CJ13: 46.637 | CK13: 55.156 | CL13: 57.041 | CM13: 57.334 | CN13: 33.856 | CO13: 57.003 | CP13: 53.272 | CQ13: 57.104 | CR13: 61.066 | CS13: 58.17 | CT13: 55.262 | CU13: 29.002801 | CV13: 53.305843 | CW13: 61.549511 | CX13: 62.649003 | CY13: 69.878224 | CZ13: 68.57453 | DA13: 70.406914 | DB13: 67.345651 | DC13: 60.385234 | DD13: 67.235012 | DE13: 69.010129 | DF13: 69.403475 | DG13: 71.806642 | DH13: 67.740664 | DI13: 76.241169 | DJ13: 70.556648 | DK13: 71.228353 | DL13: 64.031022 | DM13: 80.270443 | DN13: 79.088938 | DO13: 85.153421 | DP13: 84.480839 | DQ13: 82.713458 | DR13: 74.942079 | DS13: 77.705164 | DT13: 72.094493 | DU13: 81.5787 | DV13: 75.639545 | DW13: 57.155141 | DX13: 64.878718 | DY13: 80.062335 | DZ13: 78.219893 | EA13: 86.225769 | EB13: 91.935601 | EC13: 96.959691 | ED13: 98.655336 | EE13: 114.03217 | EF13: 103.259727 | EG13: 115.38466 | EH13: 106.780576 | EI13: 116.226635 | EJ13: 163.253433 | EK13: 164.156034 | EL13: 142.644941 | EM13: 174.912517 | EN13: 184.368091 | EO13: 170.800963 | EP13: 182.638681 | EQ13: 102.326662 | ER13: 103.972908 | ES13: 114.937767 | ET13: 113.405046 | EU13: 116.821017 | EV13: 106.527145 | EW13: 125.927582 | EX13: 138.275534 | EY13: 128.415374 | EZ13: 130.569012 | FA13: 128.796967 | FB13: 143.040272 | FC13: 125.499869 | FD13: 125.666718 | FE13: 141.367661 | FF13: 136.225564 | FG13: 148.434649 | FH13: 135.674954 | FI13: 145.85112 | FJ13: 152.329642 | FK13: 154.938327 | FL13: 162.073384 | FM13: 144.46359 | FN13: 164.51626 | FO13: 165.781692 | FP13: 141.425287 | FQ13: 163.310002 | FR13: 158.001119 | FS13: 158.154288 | FT13: 141.570139 | FU13: 142.667679 | FV13: 139.216976 | FW13: 148.774135 | FX13: 152.856929 | FY13: 147.726873 | FZ13: 158.608513 | GA13: 174.85461 | GB13: 150.827771 | GC13: 176.756115 | GD13: 159.635672 | GE13: 172.117306 | GF13: 162.540982 | GG13: 167.519914 | GH13: 173.003408 | GI13: 160.254506 | GJ13: 152.959924 | GK13: 165.982026 | GL13: 171.405836 | GM13: 172.08672 | GN13: 164.504679 | GO13: 179.217148 | GP13: 172.157263 | GQ13: 184.666872 | GR13: 201.174 | GS13: 194.67 | GT13: 180.725 | GU13: 181.291 | GV13: 197.311 | GW13: 176.127 | GX13: 178.676 | GY13: 195.417 | GZ13: 170.868 | HA13: 196.962 | HB13: 184.118 | HC13: 197.114 | HD13: 193.247 | HE13: 203.052 | HF13: 202.649 | HG13: 191.273 | HH13: 224.429 | HI13: 204.157 | HJ13: 212.399 | HK13: 218.304 | HL13: 215.698 | HM13: 223.7 | HN13: 221.483 | HO13: 218.887 | HP13: 220.451 | HQ13: 223.504 | HR13: 218.31 | HS13: 211.555 | HT13: 229.725 | HU13: 225.656 | HV13: 224.216 | HW13: 243.686 | HX13: 231.253 | HY13: 252.346 | HZ13: 275.297 | IA13: 250.078 | IB13: 229.126 | IC13: 236.274 | ID13: 235.859 | IE13: 264.076 | IF13: 325.339 | IG13: 249.01 | IH13: 251.943 | II13: 250.94 | IJ13: 226.424 | IK13: 245.998 | IL13: 252.761 | IM13: 274.925 | IN13: 268.961 | IO13: 268.03 | IP13: 278.804 | IQ13: 262.937 | IR13: 279.287 | IS13: 269.121 | IT13: 293.611 | IU13: 357.051 | IV13: 328.661 | IW13: 349.277 | IX13: 351.055 | IY13: 328.804 | IZ13: 335.645 | JA13: 357.9 | JB13: 355.299 | JC13: 375.1 | JD13: 383.14 | JE13: 375.338 | JF13: 387.571 | JG13: 393.7 | JH13: 372.92 | JI13: 398.179 | JJ13: 371.93 | JK13: 360.835 | JL13: 406.082 | JM13: 421.354 | JN13: 400.507 | JO13: 373.05 | JP13: 413.074 | JQ13: 400.883 | JR13: 433.635 | JS13: 435.821 | JT13: 414.997 | JU13: 452.924 | JV13: 421.415 | JW13: 437.997 | JX13: 392.453 | JY13: 431.913 | JZ13: 417.438 | KA13: 398.002 | KB13: 404.689 | KC13: 413.637 | KD13: 444.28 | KE13: 423.546 | KF13: 331.354 | KG13: 365.401 | KH13: 338.696 | KI13: 410.022 | KJ13: 406.227 | KK13: 411.334 | KL13: 445.07 | KM13: 422.226 | KN13: 387.615 | KO13: 372.542 | KP13: 403.945 | KQ13: 239.402 | KR13: 205.804 | KS13: 234.044 | KT13: 179.708 | KU13: 226.202 | KV13: 276.375 | KW13: 299.334 | KX13: 311.422 | KY13: 301.429 | KZ13: 310.146 | LA13: 303.686 | LB13: 286.399 | LC13: 268.935 | LD13: 260.662 | LE13: 254.627 | LF13: 209.024 | LG13: 276.212 | LH13: 286.849 | LI13: 310.284 | LJ13: 326.465 | LK13: 307.174 | LL13: 306.106 | LM13: 304.169 | LN13: 305.281 | LO13: 326.2 | LP13: 288.759 | LQ13: 268.645 | LR13: 241.0434 | LS13: - | LT13: - | LU13: - | LV13: - | LW13: - | LX13: - | LY13: - | LZ13: -
B14: Térmica no renovable/Cogeneración y resto/Cogeneración | C14: 35.68500001 | D14: 38.35100002 | E14: 45.94500001 | F14: 29.54299999 | G14: 39.72400004 | H14: 36.554 | I14: 59.266 | J14: 54.41599999 | K14: 70.54800001 | L14: 79.42600001 | M14: 86.14999999 | N14: 79.24899999 | O14: 95.989 | P14: 93.531 | Q14: 115.056 | R14: 116.111 | S14: 113.29 | T14: 97.624 | U14: 119.55 | V14: 109.126 | W14: 134.507 | X14: 150.722 | Y14: 140.301 | Z14: 150.177 | AA14: 158.544 | AB14: 156.649 | AC14: 153.353 | AD14: 133.677 | AE14: 150.357 | AF14: 147.037 | AG14: 147.135 | AH14: 155.598 | AI14: 159.136 | AJ14: 169.633 | AK14: 179.527 | AL14: 192.236 | AM14: 216.233 | AN14: 207.395 | AO14: 238.976 | AP14: 228.409 | AQ14: 230.781 | AR14: 243.422 | AS14: 273.033 | AT14: 222.175 | AU14: 290.868 | AV14: 356.511 | AW14: 393.027 | AX14: 406.674 | AY14: 424.012 | AZ14: 397.51 | BA14: 428.83 | BB14: 427.683 | BC14: 448.762 | BD14: 440.017 | BE14: 418.092 | BF14: 419.04 | BG14: 459.931 | BH14: 463.43 | BI14: 473.756 | BJ14: 509.861 | BK14: 487.315 | BL14: 460.6 | BM14: 536.874 | BN14: 512.537 | BO14: 529.816 | BP14: 521.282 | BQ14: 523.277 | BR14: 508.965 | BS14: 558.123 | BT14: 603.7 | BU14: 623.613 | BV14: 655.506 | BW14: 647.528 | BX14: 672.755 | BY14: 691.911 | BZ14: 719.591 | CA14: 705.592 | CB14: 706.626 | CC14: 762.261 | CD14: 719.438 | CE14: 744.749 | CF14: 826.294 | CG14: 869.506 | CH14: 905.697 | CI14: 905.787 | CJ14: 825.312 | CK14: 927.093 | CL14: 909.443 | CM14: 931.093 | CN14: 900.919 | CO14: 982.445 | CP14: 908.521 | CQ14: 945.769 | CR14: 1076.894 | CS14: 1049.293 | CT14: 1080.356 | CU14: 1130.561412 | CV14: 1053.608332 | CW14: 1178.169508 | CX14: 1138.700201 | CY14: 1141.59358 | CZ14: 1070.268849 | DA14: 1167.739661 | DB14: 1088.836239 | DC14: 1174.696929 | DD14: 1305.191633 | DE14: 1293.768001 | DF14: 1404.630086 | DG14: 1377.982269 | DH14: 1317.095178 | DI14: 1434.180719 | DJ14: 1382.954972 | DK14: 1423.710258 | DL14: 1389.789683 | DM14: 1433.142284 | DN14: 1348.475074 | DO14: 1394.143927 | DP14: 1535.57158 | DQ14: 1508.656043 | DR14: 1571.262196 | DS14: 1566.100773 | DT14: 1436.060469 | DU14: 1553.760945 | DV14: 1467.718037 | DW14: 1467.518136 | DX14: 1425.027648 | DY14: 1438.062149 | DZ14: 1346.53506 | EA14: 1375.063078 | EB14: 1449.896395 | EC14: 1350.16632 | ED14: 1482.393746 | EE14: 1508.045858 | EF14: 1419.318733 | EG14: 1478.409174 | EH14: 1390.302522 | EI14: 1476.997567 | EJ14: 1416.251222 | EK14: 1479.748397 | EL14: 1313.185881 | EM14: 1434.335537 | EN14: 1553.113932 | EO14: 1585.864227 | EP14: 1579.581987 | EQ14: 1753.946643 | ER14: 1624.383565 | ES14: 1752.277795 | ET14: 1751.529213 | EU14: 1747.522773 | EV14: 1607.281976 | EW14: 1731.76718 | EX14: 1586.239701 | EY14: 1675.706324 | EZ14: 1903.924717 | FA14: 1846.961895 | FB14: 1850.110454 | FC14: 1949.896401 | FD14: 1795.454235 | FE14: 1917.128936 | FF14: 1863.546696 | FG14: 1892.492864 | FH14: 1805.79937 | FI14: 1913.795834 | FJ14: 1744.961886 | FK14: 1903.913547 | FL14: 2075.884703 | FM14: 1958.696567 | FN14: 2023.77594 | FO14: 2046.926037 | FP14: 1962.114682 | FQ14: 2107.656392 | FR14: 1979.842787 | FS14: 1934.491312 | FT14: 1817.996573 | FU14: 1921.340511 | FV14: 1769.469702 | FW14: 1826.677202 | FX14: 1981.941919 | FY14: 2074.231954 | FZ14: 2106.015132 | GA14: 2043.023494 | GB14: 1951.798355 | GC14: 2095.811333 | GD14: 2039.99882 | GE14: 2040.297126 | GF14: 1919.581508 | GG14: 1935.739163 | GH14: 1786.162398 | GI14: 1917.189845 | GJ14: 1838.219428 | GK14: 1867.242601 | GL14: 1828.639612 | GM14: 1998.073836 | GN14: 1940.378567 | GO14: 2060.451941 | GP14: 1910.70463 | GQ14: 1907.436391 | GR14: 1747.218 | GS14: 1731.357 | GT14: 1635.847 | GU14: 1728.153 | GV14: 1850.389 | GW14: 1883.634 | GX14: 1925.296 | GY14: 1984.567 | GZ14: 1757.03 | HA14: 1865.888 | HB14: 1831.562 | HC14: 1829.89 | HD14: 1893.941 | HE14: 1990.347 | HF14: 1868.579 | HG14: 1956.135 | HH14: 2102.763 | HI14: 2100.066 | HJ14: 2146.989 | HK14: 2251.917 | HL14: 2226.859 | HM14: 2271.986 | HN14: 2229.342 | HO14: 2106.663 | HP14: 2078.812 | HQ14: 2217.977 | HR14: 2016.659 | HS14: 2177.9 | HT14: 2358.957 | HU14: 2314.276 | HV14: 2324.628 | HW14: 2421.963 | HX14: 2242.406 | HY14: 2406.646 | HZ14: 2338.367 | IA14: 2351.126 | IB14: 2309.733 | IC14: 2396.594 | ID14: 2034.392 | IE14: 2337.3 | IF14: 2464.42 | IG14: 2571.26 | IH14: 2591.727 | II14: 2661.214 | IJ14: 2477.021 | IK14: 2616.777 | IL14: 2550.354 | IM14: 2581.357 | IN14: 2541.783 | IO14: 2613.673 | IP14: 2153.408 | IQ14: 2523.764 | IR14: 2647.117 | IS14: 2659.682 | IT14: 2762.902 | IU14: 2780.759 | IV14: 2596.086 | IW14: 2880.479 | IX14: 2687.991 | IY14: 2721.65 | IZ14: 2576.579 | JA14: 2636.97 | JB14: 2201.011 | JC14: 2634.476 | JD14: 2759.121 | JE14: 2749.167 | JF14: 2826.723 | JG14: 2930.724 | JH14: 2780.595 | JI14: 2916.443 | JJ14: 2814.673 | JK14: 2845.836 | JL14: 2681.83 | JM14: 2782.808 | JN14: 2350.113 | JO14: 2741.203 | JP14: 2903.628 | JQ14: 2845.644 | JR14: 2899.367 | JS14: 3001.223 | JT14: 2689.526 | JU14: 2882.224 | JV14: 2782.855 | JW14: 2818.268 | JX14: 2650.783 | JY14: 2656.915 | JZ14: 2097.047 | KA14: 2558.014 | KB14: 2616.55 | KC14: 2613.469 | KD14: 2669.851 | KE14: 2680.59 | KF14: 1980.698 | KG14: 1893.632 | KH14: 1709.93 | KI14: 2060.306 | KJ14: 2193.45 | KK14: 2250.899 | KL14: 2101.003 | KM14: 2253.253 | KN14: 2263.274 | KO14: 2067.924 | KP14: 2140.577 | KQ14: 2222.803 | KR14: 1961.531 | KS14: 2117.582 | KT14: 2033.185 | KU14: 2122.167 | KV14: 2073.412 | KW14: 2167.245 | KX14: 2041.69 | KY14: 2153.728 | KZ14: 2214.896 | LA14: 2129.212 | LB14: 2180.524 | LC14: 2128.323 | LD14: 1967.514 | LE14: 2069.361 | LF14: 1992.476 | LG14: 2113.633 | LH14: 2167.707 | LI14: 2239.449 | LJ14: 2110.488 | LK14: 2122.311 | LL14: 2291.091 | LM14: 2264.534 | LN14: 2315.594 | LO14: 2446.311 | LP14: 2202.801 | LQ14: 2386.413 | LR14: 2225.384397 | LS14: - | LT14: - | LU14: - | LV14: - | LW14: - | LX14: - | LY14: - | LZ14: -
B15: Residuos | C15: - | D15: - | E15: - | F15: - | G15: - | H15: - | I15: - | J15: - | K15: - | L15: - | M15: - | N15: - | O15: - | P15: - | Q15: - | R15: - | S15: - | T15: - | U15: - | V15: - | W15: - | X15: - | Y15: - | Z15: - | AA15: - | AB15: - | AC15: - | AD15: - | AE15: - | AF15: - | AG15: - | AH15: - | AI15: - | AJ15: - | AK15: - | AL15: - | AM15: - | AN15: - | AO15: - | AP15: - | AQ15: - | AR15: - | AS15: - | AT15: - | AU15: - | AV15: - | AW15: - | AX15: - | AY15: - | AZ15: - | BA15: - | BB15: - | BC15: - | BD15: - | BE15: - | BF15: - | BG15: - | BH15: - | BI15: - | BJ15: - | BK15: - | BL15: - | BM15: - | BN15: - | BO15: - | BP15: - | BQ15: - | BR15: - | BS15: - | BT15: - | BU15: - | BV15: - | BW15: - | BX15: - | BY15: - | BZ15: - | CA15: - | CB15: - | CC15: - | CD15: - | CE15: - | CF15: - | CG15: - | CH15: - | CI15: - | CJ15: - | CK15: - | CL15: - | CM15: - | CN15: - | CO15: - | CP15: - | CQ15: - | CR15: - | CS15: - | CT15: - | CU15: - | CV15: - | CW15: - | CX15: - | CY15: - | CZ15: - | DA15: - | DB15: - | DC15: - | DD15: - | DE15: - | DF15: - | DG15: - | DH15: - | DI15: - | DJ15: - | DK15: - | DL15: - | DM15: - | DN15: - | DO15: - | DP15: - | DQ15: - | DR15: - | DS15: - | DT15: - | DU15: - | DV15: - | DW15: - | DX15: - | DY15: - | DZ15: - | EA15: - | EB15: - | EC15: - | ED15: - | EE15: - | EF15: - | EG15: - | EH15: - | EI15: - | EJ15: - | EK15: - | EL15: - | EM15: - | EN15: - | EO15: - | EP15: - | EQ15: - | ER15: - | ES15: - | ET15: - | EU15: - | EV15: - | EW15: - | EX15: - | EY15: - | EZ15: - | FA15: - | FB15: - | FC15: - | FD15: - | FE15: - | FF15: - | FG15: - | FH15: - | FI15: - | FJ15: - | FK15: - | FL15: - | FM15: - | FN15: - | FO15: - | FP15: - | FQ15: - | FR15: - | FS15: - | FT15: - | FU15: - | FV15: - | FW15: - | FX15: - | FY15: - | FZ15: - | GA15: - | GB15: - | GC15: - | GD15: - | GE15: - | GF15: - | GG15: - | GH15: - | GI15: - | GJ15: - | GK15: - | GL15: - | GM15: - | GN15: - | GO15: - | GP15: - | GQ15: - | GR15: - | GS15: - | GT15: - | GU15: - | GV15: - | GW15: - | GX15: - | GY15: - | GZ15: - | HA15: - | HB15: - | HC15: - | HD15: - | HE15: - | HF15: - | HG15: - | HH15: - | HI15: - | HJ15: - | HK15: - | HL15: - | HM15: - | HN15: - | HO15: - | HP15: - | HQ15: - | HR15: - | HS15: - | HT15: - | HU15: - | HV15: - | HW15: - | HX15: - | HY15: - | HZ15: - | IA15: - | IB15: - | IC15: - | ID15: - | IE15: - | IF15: - | IG15: - | IH15: - | II15: - | IJ15: - | IK15: - | IL15: - | IM15: - | IN15: - | IO15: - | IP15: - | IQ15: - | IR15: - | IS15: - | IT15: - | IU15: - | IV15: - | IW15: - | IX15: - | IY15: - | IZ15: - | JA15: - | JB15: - | JC15: - | JD15: - | JE15: - | JF15: - | JG15: - | JH15: - | JI15: - | JJ15: - | JK15: - | JL15: - | JM15: - | JN15: - | JO15: - | JP15: - | JQ15: - | JR15: - | JS15: - | JT15: - | JU15: - | JV15: - | JW15: - | JX15: - | JY15: - | JZ15: - | KA15: - | KB15: - | KC15: - | KD15: - | KE15: - | KF15: - | KG15: - | KH15: - | KI15: - | KJ15: - | KK15: - | KL15: - | KM15: - | KN15: - | KO15: - | KP15: - | KQ15: 242.707 | KR15: 222.545 | KS15: 256.033 | KT15: 187.488 | KU15: 242.401 | KV15: 255.272 | KW15: 270.198 | KX15: 271.272 | KY15: 257.484 | KZ15: 276.352 | LA15: 263.344 | LB15: 242.275 | LC15: 258.16 | LD15: 235.71 | LE15: 266.616 | LF15: 206.117 | LG15: 161.276 | LH15: 250.707 | LI15: 306.591 | LJ15: 303.47 | LK15: 299.045 | LL15: 290.088 | LM15: 270.062 | LN15: 273.209 | LO15: 281.593 | LP15: 246.882 | LQ15: 269.039 | LR15: 221.8671 | LS15: - | LT15: - | LU15: - | LV15: - | LW15: - | LX15: - | LY15: - | LZ15: -
B16: Régimen especial | C16: 141.792 | D16: 130.856 | E16: 110.855 | F16: 120.561 | G16: 123.921 | H16: 127.973 | I16: 114.985 | J16: 112.234 | K16: 104.691 | L16: 149.23 | M16: 196.367 | N16: 206.211 | O16: 275.319 | P16: 216.485 | Q16: 330.279 | R16: 306.782 | S16: 308.685 | T16: 242.418 | U16: 219.295 | V16: 189.727 | W16: 212.86 | X16: 245.323 | Y16: 282.755 | Z16: 314.556 | AA16: 285.177 | AB16: 247.5 | AC16: 268.758 | AD16: 327.116 | AE16: 345.474 | AF16: 354.658 | AG16: 330.494 | AH16: 277.137 | AI16: 281.718 | AJ16: 391.427 | AK16: 419.331 | AL16: 501.831 | AM16: 435.028 | AN16: 344.329 | AO16: 424.457 | AP16: 433.51 | AQ16: 489.602 | AR16: 463.648 | AS16: 437.682 | AT16: 338.119 | AU16: 410.583 | AV16: 614.229 | AW16: 635.898 | AX16: 670.237 | AY16: 780.756 | AZ16: 683.316 | BA16: 707.5 | BB16: 666.926 | BC16: 731.274 | BD16: 633.452 | BE16: 562.516 | BF16: 561.608 | BG16: 609.381 | BH16: 683.066 | BI16: 776.587 | BJ16: 801.483 | BK16: 878.253 | BL16: 845.433 | BM16: 906.188 | BN16: 753.601 | BO16: 777.859 | BP16: 712.863 | BQ16: 710.022 | BR16: 670.617 | BS16: 740.799 | BT16: 786.898 | BU16: 820.033 | BV16: 993.249 | BW16: 1162.132 | BX16: 1146.085 | BY16: 1156.348 | BZ16: 1188.528 | CA16: 1146.938 | CB16: 1052.646 | CC16: 1062.926 | CD16: 987.041 | CE16: 1005.776 | CF16: 1110.664 | CG16: 1195.931 | CH16: 1440.752 | CI16: 1444.364 | CJ16: 1274.815 | CK16: 1298.055 | CL16: 1240.75 | CM16: 1290.856 | CN16: 1258.209 | CO16: 1353.054 | CP16: 1209.009 | CQ16: 1241.296 | CR16: 1363.396 | CS16: 1492.912 | CT16: 1694.282 | CU16: 1739.959 | CV16: 1521.155 | CW16: 1668.366 | CX16: 1703.836 | CY16: 1713.369 | CZ16: 1529.281 | DA16: 1560.788 | DB16: 1486.409 | DC16: 1509.525 | DD16: 1726.744 | DE16: 1696.815 | DF16: 1877.081 | DG16: 1935.169 | DH16: 1893.685 | DI16: 2093.126 | DJ16: 1995.118 | DK16: 2112.97 | DL16: 1963.846 | DM16: 1916.982 | DN16: 1758.697 | DO16: 1864.2 | DP16: 2095.735 | DQ16: 2272.375 | DR16: 2359.32 | DS16: 2281.125 | DT16: 2087.61 | DU16: 2224.895 | DV16: 2397.05 | DW16: 2247.973 | DX16: 2215.574 | DY16: 2134.354 | DZ16: 1941.982 | EA16: 1898.067 | EB16: 2183.652 | EC16: 2360.469 | ED16: 2667.78 | EE16: 2777.721 | EF16: 2583.982 | EG16: 2847.022 | EH16: 2638.617 | EI16: 2496.33 | EJ16: 2343.217 | EK16: 2346.555 | EL16: 2059.681 | EM16: 2404.26 | EN16: 2516.455 | EO16: 2749.792 | EP16: 2514.825 | EQ16: 2769.329 | ER16: 2782.593 | ES16: 3008.798 | ET16: 2845.49 | EU16: 3105.471 | EV16: 2718.444 | EW16: 2787.688 | EX16: 2533.537 | EY16: 2514.394 | EZ16: 3184.534 | FA16: 3423.852 | FB16: 3773.848 | FC16: 4052.093 | FD16: 3372.585 | FE16: 3459.536 | FF16: 3670.767 | FG16: 3473.281 | FH16: 3005.27 | FI16: 3066.107 | FJ16: 2651.728 | FK16: 3049.943 | FL16: 3635.44 | FM16: 3762.45 | FN16: 4201.009 | FO16: 4486.624 | FP16: 3606.45 | FQ16: 4061.165 | FR16: 4205.636 | FS16: 3686.183 | FT16: 3422.459 | FU16: 3372.517 | FV16: 3284.304 | FW16: 3324.778 | FX16: 4017.373 | FY16: 4064.281 | FZ16: 4336.518 | GA16: 4449.166 | GB16: 4141.766 | GC16: 4425.399 | GD16: 4594.518 | GE16: 4146.83 | GF16: 3645.307 | GG16: 3963.152 | GH16: 3795.199 | GI16: 3504.392 | GJ16: 4115.754 | GK16: 4372.404 | GL16: 4813.012 | GM16: 4136.986 | GN16: 4354.97 | GO16: 5600.159 | GP16: 4552.133 | GQ16: 4131.47 | GR16: 3571.546 | GS16: 3335.188 | GT16: 4185.728 | GU16: 3551.03 | GV16: 4704.855 | GW16: 4729.242 | GX16: 4780.034 | GY16: 4684.966 | GZ16: 5290.618 | HA16: 5686.107 | HB16: 3926.588 | HC16: 5176.805 | HD16: 4326.119 | HE16: 4435.131 | HF16: 4802.526 | HG16: 4421.267 | HH16: 4478.454 | HI16: 5300.027 | HJ16: 5019.518 | HK16: 5520.4 | HL16: 4766.069 | HM16: 6995.364 | HN16: 6511.815 | HO16: 4808.686 | HP16: 5157.997 | HQ16: 5180.399 | HR16: 4762.165 | HS16: 5049.59 | HT16: 5582.25 | HU16: 6728.332 | HV16: 6981.839 | HW16: 6939.896 | HX16: 6710.841 | HY16: 6830.338 | HZ16: 6728.423 | IA16: 6531.325 | IB16: 5964.921 | IC16: 6127.626 | ID16: 5449.731 | IE16: 5820.804 | IF16: 6651.63 | IG16: 8440.533 | IH16: 8615.231 | II16: 8230.343 | IJ16: 8244.09 | IK16: 8676.031 | IL16: 6730.89 | IM16: 7916.291 | IN16: 6725.187 | IO16: 6996.919 | IP16: 6482.136 | IQ16: 6075.379 | IR16: 7795.724 | IS16: 8240.193 | IT16: 8711.786 | IU16: 8190.326 | IV16: 8029.117 | IW16: 9183.45 | IX16: 7795.87 | IY16: 7575.805 | IZ16: 7264.061 | JA16: 7739.779 | JB16: 6592.286 | JC16: 6499.008 | JD16: 7255.615 | JE16: 7792.677 | JF16: 8741.652 | JG16: 7906.784 | JH16: 9335.717 | JI16: 8417.096 | JJ16: 9766.655 | JK16: 8731.301 | JL16: 8210.571 | JM16: 7967.745 | JN16: 7453.948 | JO16: 8277.45 | JP16: 7568.422 | JQ16: 8746.064 | JR16: 9915.906 | JS16: 10928.154 | JT16: 9838.258 | JU16: 10583.358 | JV16: 9472.751 | JW16: 9300.29 | JX16: 9062.709 | JY16: 8156.042 | JZ16: 7846.915 | KA16: 7676.938 | KB16: 8225.814 | KC16: 10668.998 | KD16: 9145.136 | KE16: - | KF16: - | KG16: - | KH16: - | KI16: - | KJ16: - | KK16: - | KL16: - | KM16: - | KN16: - | KO16: - | KP16: - | KQ16: - | KR16: - | KS16: - | KT16: - | KU16: - | KV16: - | KW16: - | KX16: - | KY16: - | KZ16: - | LA16: - | LB16: - | LC16: - | LD16: - | LE16: - | LF16: - | LG16: - | LH16: - | LI16: - | LJ16: - | LK16: - | LL16: - | LM16: - | LN16: - | LO16: - | LP16: - | LQ16: - | LR16: - | LS16: - | LT16: - | LU16: - | LV16: - | LW16: - | LX16: - | LY16: - | LZ16: -
B17: Generación | C17: 13068.149 | D17: 10712.421 | E17: 11526.93 | F17: 10577.742 | G17: 10584.957 | H17: 10924.121 | I17: 11576.189 | J17: 10205.642 | K17: 10945.187 | L17: 11117.694 | M17: 11786.233 | N17: 12993.084 | O17: 13514.699 | P17: 12300.104 | Q17: 11755.675 | R17: 11287.505 | S17: 11439.316 | T17: 11005.69 | U17: 11985.769 | V17: 10503.418 | W17: 11479.372 | X17: 11793.967 | Y17: 12189.306 | Z17: 12628.902 | AA17: 14156.68 | AB17: 12984.095 | AC17: 12650.638 | AD17: 11288.931 | AE17: 11148.397 | AF17: 10639.672 | AG17: 12196.982 | AH17: 10732.736 | AI17: 11459.954 | AJ17: 11873.681 | AK17: 11696.458 | AL17: 12362.296 | AM17: 13140.405 | AN17: 11813.756 | AO17: 12465.811 | AP17: 11039.03 | AQ17: 11048.34 | AR17: 11073.045 | AS17: 11743.634 | AT17: 10934.771 | AU17: 11386.861 | AV17: 11939.681 | AW17: 12382.943 | AX17: 12858.574 | AY17: 13466.399 | AZ17: 12265.461 | BA17: 12065.963 | BB17: 11587.73 | BC17: 11675.844 | BD17: 11945.08 | BE17: 12785.071 | BF17: 11534.761 | BG17: 11819.752 | BH17: 11663.625 | BI17: 11974.652 | BJ17: 12946.662 | BK17: 13831.879 | BL17: 11863.992 | BM17: 13066.032 | BN17: 11607.471 | BO17: 12152.262 | BP17: 12204.221 | BQ17: 12851.4 | BR17: 11855.101 | BS17: 12021.493 | BT17: 12106.901 | BU17: 12398.128 | BV17: 13367.204 | BW17: 14632.869 | BX17: 13945.298 | BY17: 13471.495 | BZ17: 11789.805 | CA17: 12359.221 | CB17: 12561.457 | CC17: 13248.593 | CD17: 11954.5 | CE17: 12277.069 | CF17: 13045.433 | CG17: 13347.524 | CH17: 14037.838 | CI17: 15527.942 | CJ17: 12746.785 | CK17: 13176.474 | CL17: 13369.68 | CM17: 13595.045 | CN17: 13407.128 | CO17: 14362.291 | CP17: 13603.636 | CQ17: 13935.167 | CR17: 13886.026 | CS17: 14129.524 | CT17: 15455.874 | CU17: 15109.875 | CV17: 13490.18 | CW17: 14087.417 | CX17: 13538.297 | CY17: 13540.958 | CZ17: 13971.812 | DA17: 15202.645 | DB17: 13813.061 | DC17: 14383.621 | DD17: 14269.794 | DE17: 14631.217 | DF17: 16198.317 | DG17: 16393.576 | DH17: 14943.592 | DI17: 15171.591 | DJ17: 13533.998 | DK17: 14228.531 | DL17: 14665.97 | DM17: 15959.913 | DN17: 14400.724 | DO17: 15119.388 | DP17: 15000.137 | DQ17: 15946.373 | DR17: 16895.771 | DS17: 18017.434 | DT17: 15585.12 | DU17: 16304.346 | DV17: 15194.267 | DW17: 15498.644 | DX17: 16248.064 | DY17: 16637.701 | DZ17: 15672.647 | EA17: 15915.037 | EB17: 15880.278 | EC17: 16856.034 | ED17: 17647.404 | EE17: 18866.727 | EF17: 16777.413 | EG17: 17710.691 | EH17: 15284.262 | EI17: 16326.837 | EJ17: 16839.431 | EK17: 17514.252 | EL17: 16757.473 | EM17: 16576.55 | EN17: 16954.269 | EO17: 17739.712 | EP17: 18941.038 | EQ17: 19462.333 | ER17: 16854.197 | ES17: 17381.064 | ET17: 16757.015 | EU17: 17493.512 | EV17: 17815.729 | EW17: 18588.49 | EX17: 16916.016 | EY17: 17135.423 | EZ17: 17907.848 | FA17: 17931.371 | FB17: 18946.023 | FC17: 20760.522 | FD17: 19099.053 | FE17: 18638.847 | FF17: 17263.099 | FG17: 17888.825 | FH17: 18917.374 | FI17: 20237.305 | FJ17: 19058.73 | FK17: 18462.04 | FL17: 19062.332 | FM17: 19229.073 | FN17: 20636.55 | FO17: 21054.75 | FP17: 20055.497 | FQ17: 21160.099 | FR17: 19211.658 | FS17: 19216.088 | FT17: 20130.01 | FU17: 21300.503 | FV17: 19825.389 | FW17: 19739.351 | FX17: 19876.998 | FY17: 20615.838 | FZ17: 21424.022 | GA17: 22692.537 | GB17: 21115.352 | GC17: 21470.211 | GD17: 19432.025 | GE17: 19670.705 | GF17: 20959.041 | GG17: 22200.638 | GH17: 20168.889 | GI17: 20510.815 | GJ17: 20377.225 | GK17: 21805.76 | GL17: 23481.207 | GM17: 24399.52 | GN17: 22365.762 | GO17: 23141.828 | GP17: 18945.897 | GQ17: 20667.129 | GR17: 21482.522 | GS17: 23929.236 | GT17: 20940.143 | GU17: 21636.496 | GV17: 21226.624 | GW17: 21411.328 | GX17: 23455.365 | GY17: 24436.344 | GZ17: 21814.577 | HA17: 23193.162 | HB17: 20815.392 | HC17: 21756.008 | HD17: 21659.672 | HE17: 23475.06 | HF17: 21797.81 | HG17: 22091.448 | HH17: 22685.047 | HI17: 23948.772 | HJ17: 24945.221 | HK17: 25320.773 | HL17: 23621.496 | HM17: 23913.153 | HN17: 23007.167 | HO17: 21918.264 | HP17: 22418.225 | HQ17: 24401.398 | HR17: 22716.502 | HS17: 22244.034 | HT17: 22523.435 | HU17: 23406.497 | HV17: 24556.807 | HW17: 25160.519 | HX17: 21751.801 | HY17: 21400.016 | HZ17: 20032.678 | IA17: 20326.695 | IB17: 21533.944 | IC17: 23610.472 | ID17: 22211.13 | IE17: 21366.215 | IF17: 21550.293 | IG17: 21938.98 | IH17: 23657.672 | II17: 24812.23695 | IJ17: 22971.82612 | IK17: 23920.34355 | IL17: 20967.04865 | IM17: 21245.38048 | IN17: 21489.92774 | IO17: 24344.8541 | IP17: 22445.84958 | IQ17: 21899.86731 | IR17: 22140.17422 | IS17: 22927.36264 | IT17: 24152.54039 | IU17: 24710.12401 | IV17: 22054.46039 | IW17: 23847.58383 | IX17: 20625.83652 | IY17: 20738.5665 | IZ17: 21285.12707 | JA17: 22641.27606 | JB17: 21967.06692 | JC17: 21745.58356 | JD17: 21022.20336 | JE17: 21519.59323 | JF17: 22745.54641 | JG17: 24067.30993 | JH17: 24793.077 | JI17: 22663.23593 | JJ17: 21290.33939 | JK17: 21518.23028 | JL17: 21735.35861 | JM17: 22622.54418 | JN17: 22527.8001 | JO17: 21370.04322 | JP17: 21641.27833 | JQ17: 21532.29493 | JR17: 23045.46098 | JS17: 23724.10023 | JT17: 21845.15633 | JU17: 22785.27999 | JV17: 20870.71344 | JW17: 20115.58275 | JX17: 19999.86682 | JY17: 23100.18491 | JZ17: 21514.79412 | KA17: 20853.56622 | KB17: 20874.06582 | KC17: 21807.968 | KD17: 22835.61798 | KE17: 22982.07096 | KF17: 21582.60314 | KG17: 21758.09447 | KH17: 20006.76017 | KI17: 20255.56336 | KJ17: 20336.11906 | KK17: 21997.30701 | KL17: 20794.00211 | KM17: 20960.88534 | KN17: 20499.42981 | KO17: 20187.982 | KP17: 22216.99 | KQ17: 23543.71131 | KR17: 22227.60574 | KS17: 22159.99882 | KT17: 19640.60416 | KU17: 20140.06915 | KV17: 20653.93199 | KW17: 24003.06074 | KX17: 21603.8965 | KY17: 20125.94462 | KZ17: 19765.07367 | LA17: 19935.46017 | LB17: 20587.99262 | LC17: 21608.56916 | LD17: 20695.37211 | LE17: 22003.47291 | LF17: 20703.79468 | LG17: 19549.94975 | LH17: 19499.09929 | LI17: 21602.22124 | LJ17: 20723.12857 | LK17: 19925.11828 | LL17: 20577.82991 | LM17: 20680.69051 | LN17: 20813.28601 | LO17: 24085.00794 | LP17: 19968.66703 | LQ17: 20050.9865 | LR17: 18191.944 | LS17: - | LT17: - | LU17: - | LV17: - | LW17: - | LX17: - | LY17: - | LZ17: -
B18: Consumos en bombeo | C18: -230.679 | D18: -122.288 | E18: -14.289 | F18: -28.145 | G18: -43.486 | H18: -13.114 | I18: -22.104 | J18: -49.978 | K18: -160.713 | L18: -155.501 | M18: -44.507 | N18: -154.468 | O18: -268.908 | P18: -218.383 | Q18: -171.686 | R18: -12.201 | S18: -15.629 | T18: -41.384 | U18: -57.712 | V18: -72.09 | W18: -112.773 | X18: -80.879 | Y18: -188.527 | Z18: -192.561 | AA18: -261.992 | AB18: -144.315 | AC18: -170.44 | AD18: -297.593 | AE18: -198.615 | AF18: -246.854 | AG18: -277.393 | AH18: -274.778 | AI18: -274.414 | AJ18: -292.157 | AK18: -181.749 | AL18: -170.405 | AM18: -138.741 | AN18: -112.689 | AO18: -188.994 | AP18: -202.544 | AQ18: -227.069 | AR18: -134.422 | AS18: -139.846 | AT18: -190.283 | AU18: -202.364 | AV18: -190.647 | AW18: -85.039 | AX18: -74.921 | AY18: -304.076 | AZ18: -125.633 | BA18: -16.009 | BB18: -34.589 | BC18: -53.005 | BD18: -40 | BE18: -112.842 | BF18: -29.006 | BG18: -168.634 | BH18: -188.043 | BI18: -112.602 | BJ18: -160.95 | BK18: -229.933 | BL18: -151.828 | BM18: -149.914 | BN18: -139.099 | BO18: -126.803 | BP18: -126.251 | BQ18: -163.945 | BR18: -157.261 | BS18: -174.299 | BT18: -178.249 | BU18: -166.69 | BV18: -317.454 | BW18: -761.345 | BX18: -190.414 | BY18: -30.027 | BZ18: -33.853 | CA18: -44.028 | CB18: -72.871 | CC18: -66.354 | CD18: -12.074 | CE18: -23.203 | CF18: -39.189 | CG18: -69.679 | CH18: -179.581 | CI18: -252.936 | CJ18: -37.278 | CK18: -12.262 | CL18: -21.497 | CM18: -81.886 | CN18: -85.457 | CO18: -118.164 | CP18: -176.339 | CQ18: -190.051 | CR18: -144.696 | CS18: -266.061 | CT18: -374.262 | CU18: -277.155 | CV18: -134.838 | CW18: -111.211 | CX18: -214.861 | CY18: -181.761 | CZ18: -114.558 | DA18: -203.373 | DB18: -319.925 | DC18: -193.376 | DD18: -171.723 | DE18: -213.786 | DF18: -451.187 | DG18: -468.772 | DH18: -342.761 | DI18: -234.381 | DJ18: -215.759 | DK18: -219.826 | DL18: -177.636 | DM18: -214.518 | DN18: -260.838 | DO18: -340.931 | DP18: -489.764 | DQ18: -316.026 | DR18: -385.168 | DS18: -368.592 | DT18: -313.254 | DU18: -345.672 | DV18: -513.572 | DW18: -617.926 | DX18: -330.215 | DY18: -323.442 | DZ18: -246.341 | EA18: -256.832 | EB18: -362.529 | EC18: -451.677 | ED18: -776.834 | EE18: -539.073 | EF18: -307.359 | EG18: -387.497 | EH18: -200.959 | EI18: -214.621 | EJ18: -258.663 | EK18: -303.011 | EL18: -291.532 | EM18: -368.749 | EN18: -364.099 | EO18: -336.146 | EP18: -559.555 | EQ18: -652.852 | ER18: -506.242 | ES18: -466.289 | ET18: -443.393 | EU18: -559.457 | EV18: -628.458 | EW18: -699.813 | EX18: -572.272 | EY18: -597.974 | EZ18: -575.567 | FA18: -570.422 | FB18: -683.943 | FC18: -587.335 | FD18: -379.733 | FE18: -368.65 | FF18: -218.7 | FG18: -265.991 | FH18: -415.715 | FI18: -419.844 | FJ18: -472.319 | FK18: -437.025 | FL18: -390.301 | FM18: -322.124 | FN18: -400.397 | FO18: -404.817 | FP18: -276.12 | FQ18: -339.003 | FR18: -328.995 | FS18: -393.378 | FT18: -425.607 | FU18: -408.312 | FV18: -386.442 | FW18: -387.786 | FX18: -411.484 | FY18: -358.575 | FZ18: -484.188 | GA18: -553.09 | GB18: -432.938 | GC18: -492.587 | GD18: -450.62 | GE18: -643.068 | GF18: -634.527 | GG18: -693.313 | GH18: -446.08 | GI18: -519.718 | GJ18: -482.776 | GK18: -454.591 | GL18: -553.639 | GM18: -586.441 | GN18: -529.919 | GO18: -374.921 | GP18: -305.801 | GQ18: -313.703 | GR18: -370.081 | GS18: -513.356 | GT18: -400.354 | GU18: -486.573 | GV18: -541.523 | GW18: -541.572 | GX18: -384.129 | GY18: -371.776 | GZ18: -395.879 | HA18: -384.168 | HB18: -293.397 | HC18: -397.622 | HD18: -356.254 | HE18: -333.521 | HF18: -371.382 | HG18: -345.925 | HH18: -317.001 | HI18: -384.155 | HJ18: -481.207 | HK18: -430.836 | HL18: -419.305 | HM18: -401.794 | HN18: -219.058 | HO18: -206.073 | HP18: -285.255 | HQ18: -253.782 | HR18: -190.802 | HS18: -226.556 | HT18: -297.145 | HU18: -411.256 | HV18: -460.64 | HW18: -492.227 | HX18: -392.035 | HY18: -281.472 | HZ18: -255.759 | IA18: -247.498 | IB18: -224.594 | IC18: -241.018 | ID18: -245.006 | IE18: -254.493 | IF18: -284.123 | IG18: -397.501 | IH18: -478.463 | II18: -756.585481 | IJ18: -554.722222 | IK18: -544.664418 | IL18: -303.160599 | IM18: -279.949192 | IN18: -230.155124 | IO18: -199.16813 | IP18: -231.143955 | IQ18: -233.695669 | IR18: -346.115985 | IS18: -322.223669 | IT18: -456.198133 | IU18: -430.919188 | IV18: -280.664786 | IW18: -347.705771 | IX18: -297.009922 | IY18: -158.925102 | IZ18: -139.951524 | JA18: -173.534306 | JB18: -181.064397 | JC18: -176.063418 | JD18: -301.625919 | JE18: -325.480608 | JF18: -402.014874 | JG18: -448.910674 | JH18: -444.122642 | JI18: -429.066476 | JJ18: -565.841943 | JK18: -360.20399 | JL18: -322.063238 | JM18: -285.671228 | JN18: -365.726053 | JO18: -454.578665 | JP18: -397.034219 | JQ18: -403.311929 | JR18: -546.016731 | JS18: -697.63725 | JT18: -562.656986 | JU18: -1052.422988 | JV18: -872.861874 | JW18: -452.792659 | JX18: -384.579999 | JY18: -256.578637 | JZ18: -231.782928 | KA18: -211.570285 | KB18: -305.596187 | KC18: -348.255885 | KD18: -581.109312 | KE18: -858.014017 | KF18: -633.188315 | KG18: -524.051324 | KH18: -508.09411 | KI18: -434.991199 | KJ18: -325.471928 | KK18: -239.806214 | KL18: -218.068423 | KM18: -215.907819 | KN18: -408.39205 | KO18: -518.487421 | KP18: -445.117231 | KQ18: -479.606489 | KR18: -543.863983 | KS18: -478.82839 | KT18: -406.195685 | KU18: -422.735 | KV18: -154.357195 | KW18: -167.860691 | KX18: -301.471337 | KY18: -245.095511 | KZ18: -374.451597 | LA18: -436.893245 | LB18: -508.735056 | LC18: -897.237227 | LD18: -716.427677 | LE18: -590.255871 | LF18: -584.078535 | LG18: -474.71409 | LH18: -210.517944 | LI18: -141.613625 | LJ18: -157.408583 | LK18: -122.319526 | LL18: -229.380497 | LM18: -352.86669 | LN18: -342.59281 | LO18: -433.831684 | LP18: -560.187406 | LQ18: -335.177776 | LR18: -366.5738 | LS18: - | LT18: - | LU18: - | LV18: - | LW18: - | LX18: - | LY18: - | LZ18: -
B19: Enlace Península-Baleares | C19: - | D19: - | E19: - | F19: - | G19: - | H19: - | I19: - | J19: - | K19: - | L19: - | M19: - | N19: - | O19: - | P19: - | Q19: - | R19: - | S19: - | T19: - | U19: - | V19: - | W19: - | X19: - | Y19: - | Z19: - | AA19: - | AB19: - | AC19: - | AD19: - | AE19: - | AF19: - | AG19: - | AH19: - | AI19: - | AJ19: - | AK19: - | AL19: - | AM19: - | AN19: - | AO19: - | AP19: - | AQ19: - | AR19: - | AS19: - | AT19: - | AU19: - | AV19: - | AW19: - | AX19: - | AY19: - | AZ19: - | BA19: - | BB19: - | BC19: - | BD19: - | BE19: - | BF19: - | BG19: - | BH19: - | BI19: - | BJ19: - | BK19: - | BL19: - | BM19: - | BN19: - | BO19: - | BP19: - | BQ19: - | BR19: - | BS19: - | BT19: - | BU19: - | BV19: - | BW19: - | BX19: - | BY19: - | BZ19: - | CA19: - | CB19: - | CC19: - | CD19: - | CE19: - | CF19: - | CG19: - | CH19: - | CI19: - | CJ19: - | CK19: - | CL19: - | CM19: - | CN19: - | CO19: - | CP19: - | CQ19: - | CR19: - | CS19: - | CT19: - | CU19: - | CV19: - | CW19: - | CX19: - | CY19: - | CZ19: - | DA19: - | DB19: - | DC19: - | DD19: - | DE19: - | DF19: - | DG19: - | DH19: - | DI19: - | DJ19: - | DK19: - | DL19: - | DM19: - | DN19: - | DO19: - | DP19: - | DQ19: - | DR19: - | DS19: - | DT19: - | DU19: - | DV19: - | DW19: - | DX19: - | DY19: - | DZ19: - | EA19: - | EB19: - | EC19: - | ED19: - | EE19: - | EF19: - | EG19: - | EH19: - | EI19: - | EJ19: - | EK19: - | EL19: - | EM19: - | EN19: - | EO19: - | EP19: - | EQ19: - | ER19: - | ES19: - | ET19: - | EU19: - | EV19: - | EW19: - | EX19: - | EY19: - | EZ19: - | FA19: - | FB19: - | FC19: - | FD19: - | FE19: - | FF19: - | FG19: - | FH19: - | FI19: - | FJ19: - | FK19: - | FL19: - | FM19: - | FN19: - | FO19: - | FP19: - | FQ19: - | FR19: - | FS19: - | FT19: - | FU19: - | FV19: - | FW19: - | FX19: - | FY19: - | FZ19: - | GA19: - | GB19: - | GC19: - | GD19: - | GE19: - | GF19: - | GG19: - | GH19: - | GI19: - | GJ19: - | GK19: - | GL19: - | GM19: - | GN19: - | GO19: - | GP19: - | GQ19: - | GR19: - | GS19: - | GT19: - | GU19: - | GV19: - | GW19: - | GX19: - | GY19: - | GZ19: - | HA19: - | HB19: - | HC19: - | HD19: - | HE19: - | HF19: - | HG19: - | HH19: - | HI19: - | HJ19: - | HK19: - | HL19: - | HM19: - | HN19: - | HO19: - | HP19: - | HQ19: - | HR19: - | HS19: - | HT19: - | HU19: - | HV19: - | HW19: - | HX19: - | HY19: - | HZ19: - | IA19: - | IB19: - | IC19: - | ID19: - | IE19: - | IF19: - | IG19: - | IH19: - | II19: 0 | IJ19: 0 | IK19: 0 | IL19: 0 | IM19: 0 | IN19: 0 | IO19: 0 | IP19: 0 | IQ19: 0 | IR19: 0 | IS19: 0 | IT19: 0 | IU19: 0 | IV19: 0 | IW19: 0 | IX19: 0 | IY19: 0 | IZ19: 0 | JA19: 0 | JB19: 0 | JC19: 0 | JD19: 0 | JE19: 0.043891 | JF19: -0.5203 | JG19: -2.681381 | JH19: -25.375897 | JI19: -36.694079 | JJ19: -35.112659 | JK19: -27.254534 | JL19: -35.803857 | JM19: -36.379672 | JN19: -68.014382 | JO19: -74.016633 | JP19: -70.230888 | JQ19: -67.437619 | JR19: -91.247602 | JS19: -108.822873 | JT19: -90.838239 | JU19: -84.296937 | JV19: -88.234445 | JW19: -83.693952 | JX19: -112.811098 | JY19: -145.595967 | JZ19: -157.387881 | KA19: -113.878526 | KB19: -108.856743 | KC19: -86.13635 | KD19: -87.955589 | KE19: -98.644522 | KF19: -86.919696 | KG19: -88.247651 | KH19: -80.403574 | KI19: -85.675402 | KJ19: -124.876598 | KK19: -153.194 | KL19: -165.073 | KM19: -146.829629 | KN19: -101.059 | KO19: -79.551937 | KP19: -87.789395 | KQ19: -110.897596 | KR19: -111.884631 | KS19: -100.736395 | KT19: -87.606187 | KU19: -65.672035 | KV19: -123.287107 | KW19: -181.060099 | KX19: -170.384126 | KY19: -119.555349 | KZ19: -99.372747 | LA19: -71.777664 | LB19: -93.548866 | LC19: -89.213443 | LD19: -91.217189 | LE19: -111.467448 | LF19: -86.955768 | LG19: -105.354345 | LH19: -124.743759 | LI19: -144.841694 | LJ19: -152.53868 | LK19: -109.260447 | LL19: -90.882304 | LM19: -58.978757 | LN19: -85.128667 | LO19: -96.651403 | LP19: -64.562012 | LQ19: -78.352012 | LR19: -56.8326 | LS19: - | LT19: - | LU19: - | LV19: - | LW19: - | LX19: - | LY19: - | LZ19: -
B20: Saldo intercambios internacionales | C20: -269.297 | D20: 16.551 | E20: -11.987 | F20: -20.997 | G20: 159.398 | H20: 0.442 | I20: -28.161 | J20: -32.036 | K20: 14.863 | L20: -21.733 | M20: -139.47 | N20: -87.152 | O20: -24.533 | P20: 22.889 | Q20: -122.07 | R20: -226.919 | S20: -191.566 | T20: -45.839 | U20: -92.112 | V20: 27.849 | W20: -99.836 | X20: -14.272 | Y20: 56.174 | Z20: 33.649 | AA20: -96.052 | AB20: -312.209 | AC20: -213.216 | AD20: 188.663 | AE20: 271.98 | AF20: 371.259 | AG20: 87.992 | AH20: 216.896 | AI20: 131.307 | AJ20: -16.239 | AK20: 8.023 | AL20: 2.72 | AM20: 95.905 | AN20: 222.438 | AO20: 184.267 | AP20: 48.24 | AQ20: 224.115 | AR20: 217.795 | AS20: 282.58 | AT20: 18.098 | AU20: -4.785 | AV20: -0.854 | AW20: -0.365 | AX20: -20.362 | AY20: -20.455 | AZ20: 19.067 | BA20: 44.103 | BB20: 42.116 | BC20: 71.338 | BD20: 56.383 | BE20: 128.051 | BF20: 134.206 | BG20: 271.501 | BH20: 383.184 | BI20: 371.482 | BJ20: 354.129 | BK20: 382.278 | BL20: 376.395 | BM20: 379.125 | BN20: 353.886 | BO20: 378.616 | BP20: 369.635 | BQ20: 406.479 | BR20: 389.687 | BS20: 389.569 | BT20: 434.896 | BU20: 380.024 | BV20: 248.455 | BW20: -23.15 | BX20: -228.839 | BY20: 95.809 | BZ20: 234.45 | CA20: 175.223 | CB20: 297.359 | CC20: 337.605 | CD20: 288.542 | CE20: 53.531 | CF20: -123.297 | CG20: -16.169 | CH20: -31.698 | CI20: -483.959 | CJ20: -204.565 | CK20: -220.011 | CL20: -410.142 | CM20: -439.194 | CN20: -268.21 | CO20: -397.761 | CP20: -455.005 | CQ20: -103.389 | CR20: 13.219 | CS20: 65.416 | CT20: -169.271 | CU20: 339.841 | CV20: 345.961 | CW20: 404.92 | CX20: 388.819 | CY20: 355.114 | CZ20: 244.862 | DA20: 284.57 | DB20: 320.095 | DC20: -25.49 | DD20: 206.148 | DE20: 283.522 | DF20: 253.502 | DG20: 244.117 | DH20: 366.794 | DI20: 462.856 | DJ20: 712.678 | DK20: 628.458 | DL20: 570.858 | DM20: 515.622 | DN20: 504.84 | DO20: 210.995 | DP20: 438.75 | DQ20: 625.315 | DR20: 437.962 | DS20: 196.386 | DT20: 415.9 | DU20: 422.249 | DV20: 519.17 | DW20: 683.538 | DX20: 173.875 | DY20: 258.827 | DZ20: 208.528 | EA20: 340.728 | EB20: 443.806 | EC20: 516.198 | ED20: 261.39 | EE20: -38.209 | EF20: 21.673 | EG20: -83.964 | EH20: 447.062 | EI20: 578.603 | EJ20: 504.504 | EK20: 431.037 | EL20: 282.045 | EM20: 283.086 | EN20: 139.702 | EO20: 402.852 | EP20: 489.569 | EQ20: 532.016 | ER20: 648.786 | ES20: 721.604 | ET20: 705.349 | EU20: 259.038 | EV20: 187.01 | EW20: 575.936 | EX20: 236.118 | EY20: 428.063 | EZ20: 298.139 | FA20: 490.714 | FB20: 245.995 | FC20: 26.416 | FD20: 50.988 | FE20: 247.018 | FF20: -36.927 | FG20: 134.057 | FH20: 409.345 | FI20: 237.348 | FJ20: 123.487 | FK20: 160.179 | FL20: 55.116 | FM20: -24.058 | FN20: -119.067 | FO20: -318.326 | FP20: -299.787 | FQ20: -234.032 | FR20: -621.22 | FS20: -303.664 | FT20: -321.336 | FU20: -241.462 | FV20: -454.689 | FW20: -53.952 | FX20: -330.99 | FY20: -45.66 | FZ20: 198.1 | GA20: 295.549 | GB20: 299.658 | GC20: 51.223 | GD20: 68.78 | GE20: 176.042 | GF20: 176.29 | GG20: 31.582 | GH20: -174.634 | GI20: -495.369 | GJ20: -662.588 | GK20: -689.605 | GL20: -420.322 | GM20: -365.174 | GN20: -583.775 | GO20: -799.06 | GP20: 41.878 | GQ20: 18.828 | GR20: -262.107 | GS20: -377.879 | GT20: 63.245 | GU20: -310.535 | GV20: -236.933 | GW20: -285.297 | GX20: -175.709 | GY20: 94.565 | GZ20: -235.492 | HA20: -243.362 | HB20: -261.054 | HC20: -494.788 | HD20: -223.463 | HE20: -289.778 | HF20: -314.014 | HG20: -846.576 | HH20: -1153.772 | HI20: -1052.93 | HJ20: -729.801 | HK20: -456.804 | HL20: -655.587 | HM20: -1199.348 | HN20: -1291.615 | HO20: -761.275 | HP20: -1052.342 | HQ20: -907.813 | HR20: -796.073 | HS20: -935.81 | HT20: -1102.016 | HU20: -948.447 | HV20: -932.456 | HW20: -897.628 | HX20: -474.277 | HY20: -192.952 | HZ20: -548.934 | IA20: -437.376 | IB20: -769.161 | IC20: -944.909 | ID20: -817.417 | IE20: -711.168 | IF20: -941.365 | IG20: -897.212 | IH20: -454.015 | II20: -304.713446 | IJ20: -506.196753 | IK20: -560.114046 | IL20: -729.095102 | IM20: -542.815029 | IN20: -821.225751 | IO20: -1000.653567 | IP20: -758.601057 | IQ20: -964.255452 | IR20: -1295.509887 | IS20: -593.210574 | IT20: -256.288394 | IU20: -611.335805 | IV20: -358.842359 | IW20: -762.636009 | IX20: -1074.811317 | IY20: -233.6238 | IZ20: -404.767187 | JA20: -470.93457 | JB20: -197.100881 | JC20: -548.756858 | JD20: -381.584261 | JE20: -579.516633 | JF20: -466.216654 | JG20: -525.290936 | JH20: -1375.793221 | JI20: -869.96907 | JJ20: -1211.919782 | JK20: -939.840381 | JL20: -625.329352 | JM20: -629.525456 | JN20: -646.209749 | JO20: -1047.302604 | JP20: -1457.208903 | JQ20: -791.406931 | JR20: -1080.157206 | JS20: -364.452211 | JT20: -642.393978 | JU20: -430.417258 | JV20: -411.182201 | JW20: -132.055593 | JX20: -358.69515 | JY20: -1060.431631 | JZ20: -517.674522 | KA20: -821.873088 | KB20: -679.119191 | KC20: -892.911319 | KD20: -420.926308 | KE20: 28.099829 | KF20: -490.540624 | KG20: -225.946703 | KH20: -652.232276 | KI20: -256.411483 | KJ20: -285.581113 | KK20: -481.720248 | KL20: -236.69277 | KM20: -336.25484 | KN20: -303.549761 | KO20: 195.372657 | KP20: -360.667597 | KQ20: -259.102957 | KR20: -558.855046 | KS20: -396.756779 | KT20: -295.550736 | KU20: 180.77279 | KV20: 0.889155 | KW20: -184.17543 | KX20: -251.793361 | KY20: -169.941732 | KZ20: 436.527912 | LA20: 453.108449 | LB20: 911.71451 | LC20: 847.590265 | LD20: 960.575773 | LE20: 174.926621 | LF20: -106.684112 | LG20: 762.502365 | LH20: 1083.269212 | LI20: 917.731142 | LJ20: 1034.656114 | LK20: 1130.590642 | LL20: -433.777858 | LM20: 357.211215 | LN20: 938.722174 | LO20: -531.549298 | LP20: 541.133687 | LQ20: 1457.080766 | LR20: 1035.588 | LS20: - | LT20: - | LU20: - | LV20: - | LW20: - | LX20: - | LY20: - | LZ20: -
B21: Demanda transporte (b.c.) | C21: 12568.173 | D21: 10606.684 | E21: 11500.654 | F21: 10528.6 | G21: 10700.869 | H21: 10911.449 | I21: 11525.924 | J21: 10123.628 | K21: 10799.337 | L21: 10940.46 | M21: 11602.256 | N21: 12751.464 | O21: 13221.258 | P21: 12104.61 | Q21: 11461.919 | R21: 11048.385 | S21: 11232.121 | T21: 10918.467 | U21: 11835.945 | V21: 10459.177 | W21: 11266.763 | X21: 11698.816 | Y21: 12056.953 | Z21: 12469.99 | AA21: 13798.636 | AB21: 12527.571 | AC21: 12266.982 | AD21: 11180.001 | AE21: 11221.762 | AF21: 10764.077 | AG21: 12007.581 | AH21: 10674.854 | AI21: 11316.847 | AJ21: 11565.285 | AK21: 11522.732 | AL21: 12194.611 | AM21: 13097.569 | AN21: 11923.505 | AO21: 12461.084 | AP21: 10884.726 | AQ21: 11045.386 | AR21: 11156.418 | AS21: 11886.368 | AT21: 10762.586 | AU21: 11179.712 | AV21: 11748.18 | AW21: 12297.539 | AX21: 12763.291 | AY21: 13141.868 | AZ21: 12158.895 | BA21: 12094.057 | BB21: 11595.257 | BC21: 11694.177 | BD21: 11961.463 | BE21: 12800.28 | BF21: 11639.961 | BG21: 11922.619 | BH21: 11858.766 | BI21: 12233.532 | BJ21: 13139.841 | BK21: 13984.224 | BL21: 12088.559 | BM21: 13295.243 | BN21: 11822.258 | BO21: 12404.075 | BP21: 12447.605 | BQ21: 13093.934 | BR21: 12087.527 | BS21: 12236.763 | BT21: 12363.548 | BU21: 12611.462 | BV21: 13298.205 | BW21: 13848.374 | BX21: 13526.045 | BY21: 13537.277 | BZ21: 11990.402 | CA21: 12490.416 | CB21: 12785.945 | CC21: 13519.844 | CD21: 12230.968 | CE21: 12307.397 | CF21: 12882.947 | CG21: 13261.676 | CH21: 13826.559 | CI21: 14791.047 | CJ21: 12504.942 | CK21: 12944.201 | CL21: 12938.041 | CM21: 13073.965 | CN21: 13053.461 | CO21: 13846.366 | CP21: 12972.292 | CQ21: 13641.727 | CR21: 13754.549 | CS21: 13928.879 | CT21: 14912.341 | CU21: 15172.561 | CV21: 13701.303 | CW21: 14381.126 | CX21: 13712.255 | CY21: 13714.311 | CZ21: 14102.116 | DA21: 15283.842 | DB21: 13813.231 | DC21: 14164.755 | DD21: 14304.219 | DE21: 14700.953 | DF21: 16000.632 | DG21: 16168.921 | DH21: 14967.625 | DI21: 15400.066 | DJ21: 14030.917 | DK21: 14637.163 | DL21: 15059.192 | DM21: 16261.017 | DN21: 14644.726 | DO21: 14989.452 | DP21: 14949.123 | DQ21: 16255.662 | DR21: 16948.565 | DS21: 17845.228 | DT21: 15687.766 | DU21: 16380.923 | DV21: 15199.865 | DW21: 15564.256 | DX21: 16091.724 | DY21: 16573.086 | DZ21: 15634.834 | EA21: 15998.933 | EB21: 15961.555 | EC21: 16920.555 | ED21: 17131.96 | EE21: 18289.445 | EF21: 16491.727 | EG21: 17239.23 | EH21: 15530.365 | EI21: 16690.819 | EJ21: 17085.272 | EK21: 17642.278 | EL21: 16747.986 | EM21: 16490.887 | EN21: 16729.872 | EO21: 17806.418 | EP21: 18871.052 | EQ21: 19341.497 | ER21: 16996.741 | ES21: 17636.379 | ET21: 17018.971 | EU21: 17193.093 | EV21: 17374.281 | EW21: 18464.613 | EX21: 16579.862 | EY21: 16965.512 | EZ21: 17630.42 | FA21: 17851.663 | FB21: 18508.075 | FC21: 20199.603 | FD21: 18770.308 | FE21: 18517.215 | FF21: 17007.472 | FG21: 17756.891 | FH21: 18911.004 | FI21: 20054.809 | FJ21: 18709.898 | FK21: 18185.194 | FL21: 18727.147 | FM21: 18882.891 | FN21: 20117.086 | FO21: 20331.607 | FP21: 19479.59 | FQ21: 20587.064 | FR21: 18261.443 | FS21: 18519.046 | FT21: 19383.067 | FU21: 20650.729 | FV21: 18984.258 | FW21: 19297.613 | FX21: 19134.524 | FY21: 20211.603 | FZ21: 21137.934 | GA21: 22434.996 | GB21: 20982.072 | GC21: 21028.847 | GD21: 19050.185 | GE21: 19203.679 | GF21: 20500.804 | GG21: 21538.907 | GH21: 19548.175 | GI21: 19495.728 | GJ21: 19231.861 | GK21: 20661.564 | GL21: 22507.246 | GM21: 23447.905 | GN21: 21252.068 | GO21: 21967.847 | GP21: 18681.974 | GQ21: 20372.254 | GR21: 20850.334 | GS21: 23038.001 | GT21: 20603.034 | GU21: 20839.388 | GV21: 20448.168 | GW21: 20584.459 | GX21: 22895.527 | GY21: 24159.133 | GZ21: 21183.206 | HA21: 22565.632 | HB21: 20260.941 | HC21: 20863.598 | HD21: 21079.955 | HE21: 22851.761 | HF21: 21112.414 | HG21: 20898.947 | HH21: 21214.274 | HI21: 22511.687 | HJ21: 23734.213 | HK21: 24433.133 | HL21: 22546.604 | HM21: 22312.011 | HN21: 21496.494 | HO21: 20950.916 | HP21: 21080.628 | HQ21: 23239.803 | HR21: 21729.627 | HS21: 21081.668 | HT21: 21124.274 | HU21: 22046.794 | HV21: 23163.711 | HW21: 23770.664 | HX21: 20885.489 | HY21: 20925.592 | HZ21: 19227.985 | IA21: 19641.821 | IB21: 20540.189 | IC21: 22424.545 | ID21: 21148.707 | IE21: 20400.554 | IF21: 20324.805 | IG21: 20644.267 | IH21: 22725.194 | II21: 23750.93802 | IJ21: 21910.90714 | IK21: 22815.56508 | IL21: 19934.79295 | IM21: 20422.61626 | IN21: 20438.54686 | IO21: 23145.0324 | IP21: 21456.10457 | IQ21: 20701.91619 | IR21: 20498.54835 | IS21: 22011.92839 | IT21: 23440.05386 | IU21: 23667.86902 | IV21: 21414.95324 | IW21: 22737.24205 | IX21: 19254.01528 | IY21: 20346.0176 | IZ21: 20740.40836 | JA21: 21996.80718 | JB21: 21588.90165 | JC21: 21020.76328 | JD21: 20338.99318 | JE21: 20614.63988 | JF21: 21876.79458 | JG21: 23090.42694 | JH21: 22947.78524 | JI21: 21327.50631 | JJ21: 19477.46501 | JK21: 20190.93137 | JL21: 20752.16216 | JM21: 21670.96782 | JN21: 21447.84991 | JO21: 19794.14532 | JP21: 19716.80432 | JQ21: 20270.13845 | JR21: 21328.03944 | JS21: 22553.1879 | JT21: 20549.26712 | JU21: 21218.1428 | JV21: 19498.43492 | JW21: 19447.04055 | JX21: 19143.78058 | JY21: 21637.57868 | JZ21: 20607.94879 | KA21: 19706.24432 | KB21: 19780.4937 | KC21: 20480.66445 | KD21: 21745.62677 | KE21: 22053.51225 | KF21: 20371.9545 | KG21: 20919.84879 | KH21: 18766.03021 | KI21: 19478.48528 | KJ21: 19600.18943 | KK21: 21122.58655 | KL21: 20174.16792 | KM21: 20261.89305 | KN21: 19686.429 | KO21: 19785.3153 | KP21: 21323.41578 | KQ21: 22694.10427 | KR21: 21013.00208 | KS21: 21183.67726 | KT21: 18851.25155 | KU21: 19832.43491 | KV21: 20377.17684 | KW21: 23469.96452 | KX21: 20880.24767 | KY21: 19591.35203 | KZ21: 19727.77724 | LA21: 19879.89771 | LB21: 20897.42321 | LC21: 21469.70876 | LD21: 20848.30302 | LE21: 21476.67621 | LF21: 19926.07626 | LG21: 19732.38368 | LH21: 20247.1068 | LI21: 22233.49706 | LJ21: 21447.83742 | LK21: 20824.12895 | LL21: 19823.78925 | LM21: 20626.05628 | LN21: 21324.28671 | LO21: 23022.97556 | LP21: 19885.0513 | LQ21: 21094.53748 | LR21: 18804.1256 | LS21: - | LT21: - | LU21: - | LV21: - | LW21: - | LX21: - | LY21: - | LZ21: -
B23: Balance eléctrico mensual Islas Baleares (MWh) | C23: 2006-01-01 | D23: 2006-02-01 | E23: 2006-03-01 | F23: 2006-04-01 | G23: 2006-05-01 | H23: 2006-06-01 | I23: 2006-07-01 | J23: 2006-08-01 | K23: 2006-09-01 | L23: 2006-10-01 | M23: 2006-11-01 | N23: 2006-12-01 | O23: 2007-01-01 | P23: 2007-02-01 | Q23: 2007-03-01 | R23: 2007-04-01 | S23: 2007-05-01 | T23: 2007-06-01 | U23: 2007-07-01 | V23: 2007-08-01 | W23: 2007-09-01 | X23: 2007-10-01 | Y23: 2007-11-01 | Z23: 2007-12-01 | AA23: 2008-01-01 | AB23: 2008-02-01 | AC23: 2008-03-01 | AD23: 2008-04-01 | AE23: 2008-05-01 | AF23: 2008-06-01 | AG23: 2008-07-01 | AH23: 2008-08-01 | AI23: 2008-09-01 | AJ23: 2008-10-01 | AK23: 2008-11-01 | AL23: 2008-12-01 | AM23: 2009-01-01 | AN23: 2009-02-01 | AO23: 2009-03-01 | AP23: 2009-04-01 | AQ23: 2009-05-01 | AR23: 2009-06-01 | AS23: 2009-07-01 | AT23: 2009-08-01 | AU23: 2009-09-01 | AV23: 2009-10-01 | AW23: 2009-11-01 | AX23: 2009-12-01 | AY23: 2010-01-01 | AZ23: 2010-02-01 | BA23: 2010-03-01 | BB23: 2010-04-01 | BC23: 2010-05-01 | BD23: 2010-06-01 | BE23: 2010-07-01 | BF23: 2010-08-01 | BG23: 2010-09-01 | BH23: 2010-10-01 | BI23: 2010-11-01 | BJ23: 2010-12-01 | BK23: 2011-01-01 | BL23: 2011-02-01 | BM23: 2011-03-01 | BN23: 2011-04-01 | BO23: 2011-05-01 | BP23: 2011-06-01 | BQ23: 2011-07-01 | BR23: 2011-08-01 | BS23: 2011-09-01 | BT23: 2011-10-01 | BU23: 2011-11-01 | BV23: 2011-12-01 | BW23: 2012-01-01 | BX23: 2012-02-01 | BY23: 2012-03-01 | BZ23: 2012-04-01 | CA23: 2012-05-01 | CB23: 2012-06-01 | CC23: 2012-07-01 | CD23: 2012-08-01 | CE23: 2012-09-01 | CF23: 2012-10-01 | CG23: 2012-11-01 | CH23: 2012-12-01 | CI23: 2013-01-01 | CJ23: 2013-02-01 | CK23: 2013-03-01 | CL23: 2013-04-01 | CM23: 2013-05-01 | CN23: 2013-06-01 | CO23: 2013-07-01 | CP23: 2013-08-01 | CQ23: 2013-09-01 | CR23: 2013-10-01 | CS23: 2013-11-01 | CT23: 2013-12-01 | CU23: 2014-01-01 | CV23: 2014-02-01 | CW23: 2014-03-01 | CX23: 2014-04-01 | CY23: 2014-05-01 | CZ23: 2014-06-01 | DA23: 2014-07-01 | DB23: 2014-08-01 | DC23: 2014-09-01 | DD23: 2014-10-01 | DE23: 2014-11-01 | DF23: 2014-12-01 | DG23: 2015-01-01 | DH23: 2015-02-01 | DI23: 2015-03-01 | DJ23: 2015-04-01 | DK23: 2015-05-01 | DL23: 2015-06-01 | DM23: 2015-07-01 | DN23: 2015-08-01 | DO23: 2015-09-01 | DP23: 2015-10-01 | DQ23: 2015-11-01 | DR23: 2015-12-01 | DS23: 2016-01-01 | DT23: 2016-02-01 | DU23: 2016-03-01 | DV23: 2016-04-01 | DW23: 2016-05-01 | DX23: 2016-06-01 | DY23: 2016-07-01 | DZ23: 2016-08-01 | EA23: 2016-09-01 | EB23: 2016-10-01 | EC23: 2016-11-01 | ED23: 2016-12-01 | EE23: 2017-01-01 | EF23: 2017-02-01 | EG23: 2017-03-01 | EH23: 2017-04-01 | EI23: 2017-05-01 | EJ23: 2017-06-01 | EK23: 2017-07-01 | EL23: 2017-08-01 | EM23: 2017-09-01 | EN23: 2017-10-01 | EO23: 2017-11-01 | EP23: 2017-12-01
B24: Carbón | C24: 281585 | D24: 245804 | E24: 280062 | F24: 239665 | G24: 271836 | H24: 287051 | I24: 292771 | J24: 281322 | K24: 254499 | L24: 177022 | M24: 201042 | N24: 264651 | O24: 253259 | P24: 227525 | Q24: 220374 | R24: 263500 | S24: 228127 | T24: 222675 | U24: 278923 | V24: 292687 | W24: 263412 | X24: 229147 | Y24: 201758 | Z24: 262468 | AA24: 287616 | AB24: 269886 | AC24: 265619 | AD24: 216223 | AE24: 246771 | AF24: 279366 | AG24: 294598 | AH24: 301838 | AI24: 286166 | AJ24: 244583 | AK24: 217953 | AL24: 188207 | AM24: 186398 | AN24: 267602 | AO24: 230164 | AP24: 242090 | AQ24: 270324 | AR24: 291327 | AS24: 298599 | AT24: 307579 | AU24: 259941 | AV24: 281704 | AW24: 254121 | AX24: 280614 | AY24: 288628.964 | AZ24: 253130.437 | BA24: 284143.58 | BB24: 270785.11 | BC24: 229324.108 | BD24: 279046.162 | BE24: 292090 | BF24: 286753.928 | BG24: 285293.825 | BH24: 217296.101 | BI24: 192203.667 | BJ24: 222661.684 | BK24: 271039.094 | BL24: 222552.524 | BM24: 133127.452 | BN24: 193302.561 | BO24: 240528.496 | BP24: 255173.844 | BQ24: 292281.729 | BR24: 285531.254 | BS24: 269841.235 | BT24: 199222.629 | BU24: 166762.404 | BV24: 235503.629 | BW24: 265065.642 | BX24: 219166.837 | BY24: 224145.144 | BZ24: 203970.123 | CA24: 227618.822 | CB24: 243421 | CC24: 272060 | CD24: 272045 | CE24: 234898 | CF24: 185556 | CG24: 160648 | CH24: 173937 | CI24: 182300 | CJ24: 172763 | CK24: 186533 | CL24: 175478 | CM24: 187897 | CN24: 200607 | CO24: 246667 | CP24: 248252 | CQ24: 229417 | CR24: 169690.17 | CS24: 168250.602 | CT24: 182826 | CU24: 183089 | CV24: 150083 | CW24: 160256 | CX24: 174013 | CY24: 194494.804 | CZ24: 206570 | DA24: 234613 | DB24: 238509 | DC24: 227703 | DD24: 156196 | DE24: 86830 | DF24: 175269 | DG24: 180780.08 | DH24: 171710.04 | DI24: 173706 | DJ24: 70780.109 | DK24: 127697.454 | DL24: 185477.54 | DM24: 218839.822 | DN24: 250939.772 | DO24: 199152.056 | DP24: 83006.979 | DQ24: 103751.19 | DR24: 99427.255 | DS24: 115147.241 | DT24: 99808.855 | DU24: 105038.973 | DV24: 151496.986 | DW24: 197176.087 | DX24: 225485.472 | DY24: 286133.931 | DZ24: 265479.108 | EA24: 256769.331 | EB24: 224344.495 | EC24: 180604.211 | ED24: 196283.612 | EE24: 221058.214 | EF24: 189456.399 | EG24: 177641.412 | EH24: 198165.63 | EI24: - | EJ24: - | EK24: - | EL24: - | EM24: - | EN24: - | EO24: - | EP24: -
B25: Motores diesel | C25: 79209 | D25: 68329 | E25: 70721 | F25: 64718 | G25: 79303 | H25: 85154 | I25: 104210 | J25: 101456 | K25: 93527 | L25: 79792 | M25: 63493 | N25: 74990 | O25: 78135 | P25: 66061 | Q25: 74782 | R25: 71646 | S25: 84385 | T25: 92577 | U25: 102578 | V25: 105250 | W25: 96624 | X25: 79159 | Y25: 73984 | Z25: 80425 | AA25: 80489 | AB25: 70911 | AC25: 75416 | AD25: 72520 | AE25: 86002 | AF25: 96520 | AG25: 116196 | AH25: 118501 | AI25: 98449 | AJ25: 78246 | AK25: 72700 | AL25: 81131 | AM25: 85013 | AN25: 68206 | AO25: 71555 | AP25: 74273 | AQ25: 75820 | AR25: 91793 | AS25: 105509 | AT25: 106425 | AU25: 86067 | AV25: 70751 | AW25: 62004 | AX25: 74409 | AY25: 80487.338 | AZ25: 71127.049 | BA25: 78081.049 | BB25: 70171.272 | BC25: 83167.909 | BD25: 94393.464 | BE25: 113035.62 | BF25: 113945.387 | BG25: 97806.403 | BH25: 76729.221 | BI25: 67045.222 | BJ25: 81630.112 | BK25: 81369.631 | BL25: 64795.157 | BM25: 77210.809 | BN25: 71556.934 | BO25: 83563.773 | BP25: 89642.911 | BQ25: 96268.777 | BR25: 98322.805 | BS25: 81466.169 | BT25: 55484.905 | BU25: 49587.178 | BV25: 74506.567 | BW25: 80432.366 | BX25: 74636.626 | BY25: 73731.684 | BZ25: 72451.134 | CA25: 83642.36 | CB25: 94717.668 | CC25: 104719.432 | CD25: 103888.321 | CE25: 81520.529 | CF25: 62130.65 | CG25: 47317.415 | CH25: 55581.768 | CI25: 59201.001 | CJ25: 53145.453 | CK25: 52697.134 | CL25: 55012.708 | CM25: 67405.004 | CN25: 69930.771 | CO25: 90133.123 | CP25: 86504.203 | CQ25: 65992.844 | CR25: 50254.603 | CS25: 38564 | CT25: 55111 | CU25: 57916.596 | CV25: 54814.648 | CW25: 38555.431 | CX25: 37428.255 | CY25: 51478.368 | CZ25: 60837.202 | DA25: 69849.784 | DB25: 77074.996 | DC25: 69718.804 | DD25: 50951.88 | DE25: 51297.131 | DF25: 51325.232 | DG25: 56436.176 | DH25: 54370.104 | DI25: 51246.679 | DJ25: 53388.939 | DK25: 63795.299 | DL25: 64962.412 | DM25: 92963.655 | DN25: 83680.463 | DO25: 67767.982 | DP25: 52976.819 | DQ25: 38052.409 | DR25: 50124.937 | DS25: 38443.442 | DT25: 63296.957 | DU25: 77413.166 | DV25: 75104.327 | DW25: 87415.226 | DX25: 92667.362 | DY25: 107562.16 | DZ25: 107599.22 | EA25: 92554.883 | EB25: 88597.956 | EC25: 62253.617 | ED25: 70496.269 | EE25: 84317.429 | EF25: 70875.667 | EG25: 62401.051 | EH25: 73752.11 | EI25: - | EJ25: - | EK25: - | EL25: - | EM25: - | EN25: - | EO25: - | EP25: -
B26: Turbina de gas | C26: 6947 | D26: 10938 | E26: 22831 | F26: 13569 | G26: 15378 | H26: 29015 | I26: 55976 | J26: 40768 | K26: 31591 | L26: 29413.952 | M26: 18468 | N26: 17160 | O26: 23585 | P26: 20894 | Q26: 20510 | R26: 16976 | S26: 36834 | T26: 31757 | U26: 41358 | V26: 38367 | W26: 21309 | X26: 20978 | Y26: 20783 | Z26: 18090 | AA26: 17521 | AB26: 19944 | AC26: 19984 | AD26: 12615 | AE26: 13376 | AF26: 22615 | AG26: 34364 | AH26: 38299 | AI26: 31566 | AJ26: 20899 | AK26: 19341 | AL26: 21978 | AM26: 18986 | AN26: 20558 | AO26: 19663 | AP26: 12270 | AQ26: 24409 | AR26: 33876 | AS26: 53107 | AT26: 52569 | AU26: 37227 | AV26: 24608 | AW26: 21181 | AX26: 20915 | AY26: 23036.824 | AZ26: 25540.649 | BA26: 22064.977 | BB26: 16837.77 | BC26: 15550.542 | BD26: 20236.732 | BE26: 41379.637 | BF26: 42027.091 | BG26: 26953.492 | BH26: 22516.812 | BI26: 21406.807 | BJ26: 21863.033 | BK26: 16995.936 | BL26: 20869.65 | BM26: 17680.795 | BN26: 13200.816 | BO26: 17102.748 | BP26: 28124.346 | BQ26: 49934.766 | BR26: 59310.271 | BS26: 47553.175 | BT26: 38916.806 | BU26: 31018.1 | BV26: 10217.727 | BW26: 12720.373 | BX26: 24628.482 | BY26: 14603.772 | BZ26: 8007.726 | CA26: 12723.262 | CB26: 29862.118 | CC26: 42997.555 | CD26: 61596.516 | CE26: 39058.876 | CF26: 34035.275 | CG26: 28986.828 | CH26: 31723.758 | CI26: 30572.664 | CJ26: 33019.775 | CK26: 31897.868 | CL26: 25229.128 | CM26: 32068.698 | CN26: 39400.116 | CO26: 61334.674 | CP26: 68281.491 | CQ26: 57303.717 | CR26: 50631.494 | CS26: 41970.712 | CT26: 37596.616 | CU26: 28446.729 | CV26: 24552.033 | CW26: 42849.539 | CX26: 44140.442 | CY26: 47118.787 | CZ26: 57803.787 | DA26: 75697.594 | DB26: 79161.105 | DC26: 66060.736 | DD26: 52001.822 | DE26: 27833.903 | DF26: 36061.23 | DG26: 36489.4 | DH26: 32594.472 | DI26: 38185.657 | DJ26: 31999.216 | DK26: 43482.359 | DL26: 58635.015 | DM26: 77101.897 | DN26: 80387.589 | DO26: 57873.42 | DP26: 47588.997 | DQ26: 40863.166 | DR26: 36936.794 | DS26: 47667.171 | DT26: 19844.912 | DU26: 13369.73 | DV26: 9070.588 | DW26: 18358.821 | DX26: 33002.702 | DY26: 46443.63 | DZ26: 55165.45 | EA26: 43433.79 | EB26: 18338.288 | EC26: 20288.044 | ED26: 13304.507 | EE26: 13253.123 | EF26: 10760.688 | EG26: 22196.99 | EH26: 11784.68 | EI26: - | EJ26: - | EK26: - | EL26: - | EM26: - | EN26: - | EO26: - | EP26: -
B27: Fuel + Gas | C27: 86156 | D27: 79267 | E27: 93552 | F27: 78287 | G27: 94681 | H27: 114169 | I27: 160186 | J27: 142224 | K27: 125118 | L27: 109205.952 | M27: 81961 | N27: 92150 | O27: 101720 | P27: 86955 | Q27: 95292 | R27: 88622 | S27: 121219 | T27: 124334 | U27: 143936 | V27: 143617 | W27: 117933 | X27: 100137 | Y27: 94767 | Z27: 98515 | AA27: 98010 | AB27: 90855 | AC27: 95400 | AD27: 85135 | AE27: 99378 | AF27: 119135 | AG27: 150560 | AH27: 156800 | AI27: 130015 | AJ27: 99145 | AK27: 92041 | AL27: 103109 | AM27: 103999 | AN27: 88764 | AO27: 91218 | AP27: 86543 | AQ27: 100229 | AR27: 125669 | AS27: 158616 | AT27: 158994 | AU27: 123294 | AV27: 95359 | AW27: 83185 | AX27: 95324 | AY27: 103524.162 | AZ27: 96667.698 | BA27: 100146.026 | BB27: 87009.042 | BC27: 98718.451 | BD27: 114630.196 | BE27: 154415.257 | BF27: 155972.478 | BG27: 124759.895 | BH27: 99246.033 | BI27: 88452.029 | BJ27: 103493.145 | BK27: 98365.567 | BL27: 85664.807 | BM27: 94891.604 | BN27: 84757.75 | BO27: 100666.521 | BP27: 117767.257 | BQ27: 146203.543 | BR27: 157633.076 | BS27: 129019.344 | BT27: 94401.711 | BU27: 80605.278 | BV27: 84724.294 | BW27: 93152.739 | BX27: 99265.108 | BY27: 88335.456 | BZ27: 80458.86 | CA27: 96365.622 | CB27: 124579.786 | CC27: 147716.987 | CD27: 165484.837 | CE27: 120579.405 | CF27: 96165.925 | CG27: 76304.243 | CH27: 87305.526 | CI27: 89773.665 | CJ27: 86165.228 | CK27: 84595.002 | CL27: 80241.836 | CM27: 99473.702 | CN27: 109330.887 | CO27: 151467.797 | CP27: 154785.694 | CQ27: 123296.561 | CR27: 100886.097 | CS27: 80534.712 | CT27: 92707.616 | CU27: 86363.325 | CV27: 79366.681 | CW27: 81404.97 | CX27: 81568.697 | CY27: 98597.155 | CZ27: 118640.989 | DA27: 145547.378 | DB27: 156236.101 | DC27: 135779.54 | DD27: 102953.702 | DE27: 79131.034 | DF27: 87386.462 | DG27: 92925.576 | DH27: 86964.576 | DI27: 89432.336 | DJ27: 85388.155 | DK27: 107277.658 | DL27: 123597.427 | DM27: 170065.552 | DN27: 164068.052 | DO27: 125641.402 | DP27: 100565.816 | DQ27: 78915.575 | DR27: 87061.731 | DS27: 86110.613 | DT27: 83141.869 | DU27: 90782.896 | DV27: 84174.915 | DW27: 105774.047 | DX27: 125670.064 | DY27: 154005.79 | DZ27: 162764.67 | EA27: 135988.673 | EB27: 106936.244 | EC27: 82541.661 | ED27: 83800.776 | EE27: 97570.552 | EF27: 81636.355 | EG27: 84598.041 | EH27: 85536.79 | EI27: - | EJ27: - | EK27: - | EL27: - | EM27: - | EN27: - | EO27: - | EP27: -
B28: Ciclo combinado | C28: 115133 | D28: 112851 | E28: 71802 | F28: 58291 | G28: 79596 | H28: 107515 | I28: 173341 | J28: 167753 | K28: 132665 | L28: 163572 | M28: 80257 | N28: 79139 | O28: 109535 | P28: 97337 | Q28: 133306 | R28: 66630 | S28: 113287 | T28: 174631 | U28: 186393 | V28: 169251 | W28: 141173 | X28: 143962 | Y28: 135271 | Z28: 113219 | AA28: 92464 | AB28: 91614 | AC28: 97252 | AD28: 120602 | AE28: 114746 | AF28: 106773 | AG28: 178739 | AH28: 177899 | AI28: 121342 | AJ28: 111682 | AK28: 111297 | AL28: 199080 | AM28: 206459 | AN28: 81850 | AO28: 132809 | AP28: 89788 | AQ28: 70003 | AR28: 97131 | AS28: 175334 | AT28: 166521 | AU28: 120693 | AV28: 57370 | AW28: 29377 | AX28: 64848 | AY28: 83745.201 | AZ28: 90692.047 | BA28: 69947.986 | BB28: 35630.943 | BC28: 87840.324 | BD28: 61960.638 | BE28: 159205.11 | BF28: 145959.232 | BG28: 74275.329 | BH28: 107178.246 | BI28: 98555.294 | BJ28: 120643.372 | BK28: 87325.832 | BL28: 101278.758 | BM28: 204244.842 | BN28: 87108.139 | BO28: 89672.712 | BP28: 94536.337 | BQ28: 118352.707 | BR28: 152014.503 | BS28: 115098.602 | BT28: 118552.891 | BU28: 95594.106 | BV28: 62958.957 | BW28: 68913.752 | BX28: 134285.436 | BY28: 53854.985 | BZ28: 51852.373 | CA28: 56400.712 | CB28: 94530.843 | CC28: 109975.276 | CD28: 123495.865 | CE28: 47459.367 | CF28: 71343.37 | CG28: 43422 | CH28: 35026.341 | CI28: 37837 | CJ28: 51552.052 | CK28: 39448.04 | CL28: 25643.305 | CM28: 38630.023 | CN28: 16346 | CO28: 35588.272 | CP28: 29770 | CQ28: 3965 | CR28: 53247.095 | CS28: 34705.778 | CT28: 46843.259 | CU28: 33410 | CV28: 44603 | CW28: 51991.088 | CX28: 15938.374 | CY28: 33331.38 | CZ28: 16418 | DA28: 18189.412 | DB28: 27263.169 | DC28: 16977.943 | DD28: 52913.581 | DE28: 82131.794 | DF28: 33756.963 | DG28: 37290.882 | DH28: 37658.481 | DI28: 38154.075 | DJ28: 110890.848 | DK28: 103324.583 | DL28: 47975.309 | DM28: 79053.868 | DN28: 26774.831 | DO28: 35536.51 | DP28: 123453.669 | DQ28: 75824.937 | DR28: 93301.375 | DS28: 92999.952 | DT28: 108546.993 | DU28: 109982.425 | DV28: 51876.309 | DW28: 19259.798 | DX28: 12974.432 | DY28: 15678.454 | DZ28: 25123.114 | EA28: 27082.419 | EB28: 16743.347 | EC28: 35138.471 | ED28: 27146.894 | EE28: 37932.816 | EF28: 35459.598 | EG28: 32702.779 | EH28: 32255.317 | EI28: - | EJ28: - | EK28: - | EL28: - | EM28: - | EN28: - | EO28: - | EP28: -
B29: Generación auxiliar | C29: 0 | D29: 0 | E29: 0 | F29: 0 | G29: 0 | H29: 0 | I29: 213 | J29: 3531 | K29: 2469 | L29: 1 | M29: 0 | N29: 136.22 | O29: 0 | P29: 0 | Q29: 0 | R29: 0 | S29: 0 | T29: 0 | U29: 2447 | V29: 8618 | W29: 1547 | X29: 0 | Y29: 0 | Z29: 0 | AA29: 0 | AB29: 0 | AC29: 0 | AD29: 0 | AE29: 0 | AF29: 0 | AG29: 2048 | AH29: 2600 | AI29: 1282 | AJ29: 1 | AK29: 0 | AL29: 0 | AM29: 0 | AN29: 0 | AO29: 0 | AP29: 0 | AQ29: 0 | AR29: 0 | AS29: 1489 | AT29: 3042 | AU29: 1037 | AV29: -2 | AW29: 0 | AX29: 0 | AY29: 0 | AZ29: 0 | BA29: 0 | BB29: 0 | BC29: 0 | BD29: 45.686 | BE29: 2619.537 | BF29: 2927.97 | BG29: 1100.336 | BH29: 0.803 | BI29: 0 | BJ29: 0 | BK29: 0 | BL29: 0 | BM29: 0 | BN29: 0 | BO29: 0 | BP29: 1061.171 | BQ29: 2481.41 | BR29: 3645.407 | BS29: 1536.693 | BT29: 0 | BU29: 0 | BV29: 0 | BW29: 0 | BX29: 0 | BY29: 0 | BZ29: 0 | CA29: 0 | CB29: 984.287 | CC29: 2564 | CD29: 3950.438 | CE29: 1310 | CF29: 1 | CG29: 0 | CH29: 0 | CI29: 0 | CJ29: 0 | CK29: 0 | CL29: 0 | CM29: 1 | CN29: 625 | CO29: 2313.25 | CP29: 3044.55 | CQ29: 917 | CR29: 0.002 | CS29: 0 | CT29: 0 | CU29: 0 | CV29: 0 | CW29: 0 | CX29: 0 | CY29: 0 | CZ29: 0 | DA29: 2542 | DB29: 3212.201 | DC29: 1940 | DD29: 1 | DE29: 0 | DF29: 0 | DG29: 0 | DH29: 0 | DI29: 0 | DJ29: 0 | DK29: 0 | DL29: 337 | DM29: 3682.482 | DN29: 4194.614 | DO29: 2367.759 | DP29: 0 | DQ29: 0 | DR29: 0 | DS29: 0 | DT29: 0 | DU29: 0 | DV29: 0 | DW29: 0 | DX29: 1214 | DY29: 2921.631 | DZ29: 3386.124 | EA29: 2144 | EB29: 426 | EC29: 0 | ED29: 0 | EE29: 0 | EF29: 0 | EG29: 0 | EH29: 0 | EI29: - | EJ29: - | EK29: - | EL29: - | EM29: - | EN29: - | EO29: - | EP29: -
B30: Régimen ordinario | C30: 482874 | D30: 437922 | E30: 445416 | F30: 376243 | G30: 446113 | H30: 508735 | I30: 626511 | J30: 594830 | K30: 514751 | L30: 449800.952 | M30: 363260 | N30: 436076.22 | O30: 464514 | P30: 411817 | Q30: 448972 | R30: 418752 | S30: 462633 | T30: 521640 | U30: 611699 | V30: 614173 | W30: 524065 | X30: 473246 | Y30: 431796 | Z30: 474202 | AA30: 478090 | AB30: 452355 | AC30: 458271 | AD30: 421960 | AE30: 460895 | AF30: 505274 | AG30: 625945 | AH30: 639137 | AI30: 538805 | AJ30: 455411 | AK30: 421291 | AL30: 490396 | AM30: 496856 | AN30: 438216 | AO30: 454191 | AP30: 418421 | AQ30: 440556 | AR30: 514127 | AS30: 634038 | AT30: 636136 | AU30: 504965 | AV30: 434431 | AW30: 366683 | AX30: 440786 | AY30: 475898.327 | AZ30: 440490.182 | BA30: 454237.592 | BB30: 393425.095 | BC30: 415882.883 | BD30: 455682.682 | BE30: 608329.904 | BF30: 591613.608 | BG30: 485429.385 | BH30: 423721.183 | BI30: 379210.99 | BJ30: 446798.201 | BK30: 456730.493 | BL30: 409496.089 | BM30: 432263.898 | BN30: 365168.45 | BO30: 430867.729 | BP30: 468538.609 | BQ30: 559319.389 | BR30: 598824.24 | BS30: 515495.874 | BT30: 412177.231 | BU30: 342961.788 | BV30: 383186.88 | BW30: 427132.133 | BX30: 452717.381 | BY30: 366335.585 | BZ30: 336281.356 | CA30: 380385.156 | CB30: 463515.916 | CC30: 532316.263 | CD30: 564976.14 | CE30: 404246.772 | CF30: 353066.295 | CG30: 280374.243 | CH30: 296268.867 | CI30: 309910.665 | CJ30: 310480.28 | CK30: 310576.042 | CL30: 281363.141 | CM30: 326001.725 | CN30: 326908.887 | CO30: 436036.319 | CP30: 435852.244 | CQ30: 357595.561 | CR30: 323823.364 | CS30: 283491.092 | CT30: 322376.875 | CU30: - | CV30: - | CW30: - | CX30: - | CY30: - | CZ30: - | DA30: - | DB30: - | DC30: - | DD30: - | DE30: - | DF30: - | DG30: - | DH30: - | DI30: - | DJ30: - | DK30: - | DL30: - | DM30: - | DN30: - | DO30: - | DP30: - | DQ30: - | DR30: - | DS30: - | DT30: - | DU30: - | DV30: - | DW30: - | DX30: - | DY30: - | DZ30: - | EA30: - | EB30: - | EC30: - | ED30: - | EE30: - | EF30: - | EG30: - | EH30: - | EI30: - | EJ30: - | EK30: - | EL30: - | EM30: - | EN30: - | EO30: - | EP30: -
B31: Eólica | C31: 514.35 | D31: 371.374 | E31: 548.188 | F31: 366.096 | G31: 438.988 | H31: 366.65 | I31: 202.55 | J31: 548.332 | K31: 264.468 | L31: 347.647 | M31: 407.408 | N31: 501.305 | O31: 402 | P31: 480 | Q31: 585 | R31: 246 | S31: 392 | T31: 334 | U31: 358 | V31: 444 | W31: 320 | X31: 541 | Y31: 784 | Z31: 770 | AA31: 415 | AB31: 420 | AC31: 575 | AD31: 741 | AE31: 212 | AF31: 290 | AG31: 272 | AH31: 328 | AI31: 462 | AJ31: 470 | AK31: 620 | AL31: 692 | AM31: 472 | AN31: 688 | AO31: 529 | AP31: 482 | AQ31: 477 | AR31: 383 | AS31: 126 | AT31: 147 | AU31: 346 | AV31: 531 | AW31: 538 | AX31: 824 | AY31: 599 | AZ31: 689 | BA31: 590 | BB31: 377 | BC31: 312 | BD31: 275 | BE31: 322 | BF31: 395 | BG31: 303 | BH31: 477 | BI31: 529 | BJ31: 703 | BK31: 472 | BL31: 638 | BM31: 627 | BN31: 553 | BO31: 435 | BP31: 359 | BQ31: 432 | BR31: 356 | BS31: 229 | BT31: 587 | BU31: 549 | BV31: 592 | BW31: 479 | BX31: 1092 | BY31: 557 | BZ31: 570 | CA31: 377 | CB31: 358 | CC31: 430 | CD31: 261 | CE31: 666 | CF31: 424 | CG31: 540 | CH31: 751 | CI31: 687 | CJ31: 674 | CK31: 767 | CL31: 552 | CM31: 439 | CN31: 391 | CO31: 211 | CP31: 355 | CQ31: 349 | CR31: 477 | CS31: 772 | CT31: 486 | CU31: 587 | CV31: 635 | CW31: 749 | CX31: 441 | CY31: 509 | CZ31: 342 | DA31: 354 | DB31: 302 | DC31: 236 | DD31: 371 | DE31: 552 | DF31: 761 | DG31: 600 | DH31: 696 | DI31: 580 | DJ31: 434.88 | DK31: 636 | DL31: 253 | DM31: 309 | DN31: 231 | DO31: 509 | DP31: 555.89 | DQ31: 415.25 | DR31: 97 | DS31: 530 | DT31: 661 | DU31: 708 | DV31: 665.25 | DW31: 486 | DX31: 239 | DY31: 471.2 | DZ31: 478 | EA31: 222 | EB31: 292.19 | EC31: 402 | ED31: 260 | EE31: 469 | EF31: 280 | EG31: 227 | EH31: 263.32 | EI31: - | EJ31: - | EK31: - | EL31: - | EM31: - | EN31: - | EO31: - | EP31: -
B32: Solar fotovoltaica | C32: 43.973 | D32: 50.86 | E32: 83.446 | F32: 87.707 | G32: 102.911 | H32: 110.639 | I32: 126.145 | J32: 120.868 | K32: 111.756 | L32: 105.835 | M32: 84.201 | N32: 72.454 | O32: 95 | P32: 122 | Q32: 165 | R32: 156 | S32: 211 | T32: 207 | U32: 226 | V32: 209 | W32: 180 | X32: 139 | Y32: 119 | Z32: 123 | AA32: 134 | AB32: 194 | AC32: 416 | AD32: 664 | AE32: 955 | AF32: 1807 | AG32: 2659 | AH32: 4719 | AI32: 4821 | AJ32: 4337 | AK32: 3391 | AL32: 4283 | AM32: 3838 | AN32: 5190 | AO32: 7556 | AP32: 7099 | AQ32: 8802 | AR32: 9040 | AS32: 8898 | AT32: 8709 | AU32: 6680 | AV32: 6538 | AW32: 5096 | AX32: 3487 | AY32: 3845 | AZ32: 4810 | BA32: 6958 | BB32: 8061 | BC32: 9047 | BD32: 8957 | BE32: 10437 | BF32: 10003 | BG32: 8360 | BH32: 6793 | BI32: 5600 | BJ32: 4886 | BK32: 5358 | BL32: 6378 | BM32: 8047 | BN32: 9928 | BO32: 10914 | BP32: 10324 | BQ32: 10211 | BR32: 11535 | BS32: 9702 | BT32: 8434 | BU32: 4998 | BV32: 5392 | BW32: 6183 | BX32: 6956 | BY32: 10152 | BZ32: 10230 | CA32: 12309 | CB32: 11697 | CC32: 12533 | CD32: 12420 | CE32: 10873 | CF32: 9500 | CG32: 6016 | CH32: 6725 | CI32: 7273 | CJ32: 7404 | CK32: 11494 | CL32: 11209 | CM32: 12639 | CN32: 13817 | CO32: 14316 | CP32: 12847 | CQ32: 10745 | CR32: 8781 | CS32: 5602 | CT32: 5971 | CU32: 5828 | CV32: 8461 | CW32: 11098 | CX32: 12721 | CY32: 12507 | CZ32: 13247 | DA32: 13533 | DB32: 12560 | DC32: 10352 | DD32: 10338 | DE32: 6491 | DF32: 5637 | DG32: 6880 | DH32: 7213 | DI32: 10111 | DJ32: 12577.61 | DK32: 13499 | DL32: 13458 | DM32: 13857 | DN32: 12164 | DO32: 9669.87 | DP32: 8932 | DQ32: 8008 | DR32: 6276 | DS32: 7084 | DT32: 7540 | DU32: 10664 | DV32: 11178 | DW32: 12596 | DX32: 13172 | DY32: 13834 | DZ32: 13332 | EA32: 10351 | EB32: 8443 | EC32: 6529 | ED32: 5733 | EE32: 5831 | EF32: 7227 | EG32: 11958 | EH32: 12555.9 | EI32: - | EJ32: - | EK32: - | EL32: - | EM32: - | EN32: - | EO32: - | EP32: -
B33: Térmica renovable/Otras renovables | C33: - | D33: - | E33: - | F33: - | G33: - | H33: - | I33: - | J33: - | K33: - | L33: - | M33: - | N33: - | O33: - | P33: - | Q33: - | R33: - | S33: - | T33: - | U33: - | V33: - | W33: - | X33: - | Y33: - | Z33: - | AA33: - | AB33: - | AC33: - | AD33: - | AE33: - | AF33: - | AG33: - | AH33: - | AI33: - | AJ33: - | AK33: - | AL33: - | AM33: - | AN33: - | AO33: - | AP33: - | AQ33: - | AR33: - | AS33: - | AT33: - | AU33: - | AV33: - | AW33: - | AX33: - | AY33: - | AZ33: - | BA33: - | BB33: - | BC33: - | BD33: - | BE33: - | BF33: - | BG33: - | BH33: - | BI33: - | BJ33: - | BK33: - | BL33: - | BM33: - | BN33: - | BO33: - | BP33: - | BQ33: - | BR33: - | BS33: - | BT33: - | BU33: - | BV33: - | BW33: 45 | BX33: 23 | BY33: 79 | BZ33: 49 | CA33: 42 | CB33: 39 | CC33: 36 | CD33: 47 | CE33: 53 | CF33: 57 | CG33: 55 | CH33: 44 | CI33: 73 | CJ33: 47 | CK33: 75 | CL33: 93 | CM33: 16 | CN33: 73 | CO33: 75 | CP33: 30 | CQ33: 44 | CR33: 65 | CS33: 60 | CT33: 92 | CU33: 123 | CV33: 172 | CW33: 228 | CX33: 199 | CY33: 261 | CZ33: 167 | DA33: 89 | DB33: 121 | DC33: 92 | DD33: 132 | DE33: 185 | DF33: 175 | DG33: 229.29 | DH33: 171.29 | DI33: 164 | DJ33: 221 | DK33: 173 | DL33: 100 | DM33: 181 | DN33: 109 | DO33: 119 | DP33: 130.97 | DQ33: 148 | DR33: 226 | DS33: 176 | DT33: 164.92 | DU33: 176.14 | DV33: 153.4 | DW33: 126 | DX33: 32 | DY33: 36.05 | DZ33: 42.72 | EA33: 33 | EB33: 93 | EC33: 139 | ED33: 138 | EE33: 159 | EF33: 170 | EG33: 104 | EH33: 105.07 | EI33: - | EJ33: - | EK33: - | EL33: - | EM33: - | EN33: - | EO33: - | EP33: -
B34: Térmica no renovable/Cogeneración y resto/Cogeneración | C34: 13134.677 | D34: 11651.766 | E34: 12757.366 | F34: 12126.197 | G34: 9241.101 | H34: 11667.711 | I34: 11282.305 | J34: 11336.8 | K34: 10957.776 | L34: 11996.518 | M34: 10537.391 | N34: 12423.241 | O34: 10231 | P34: 11272 | Q34: 12861 | R34: 12018 | S34: 8170 | T34: 9987 | U34: 8947 | V34: 9642 | W34: 9504 | X34: 1019 | Y34: 8067 | Z34: 12215 | AA34: 11005 | AB34: 12227 | AC34: 12415 | AD34: 11349 | AE34: 11758 | AF34: 11450 | AG34: 11883 | AH34: 11405 | AI34: 10678 | AJ34: 11820 | AK34: 11914 | AL34: 12428 | AM34: 12679 | AN34: 9600 | AO34: 972 | AP34: 11178 | AQ34: 12259 | AR34: 11199 | AS34: 11190 | AT34: 10723 | AU34: 11294 | AV34: 11475 | AW34: 11970 | AX34: 12503 | AY34: 10815 | AZ34: 9246 | BA34: 11253 | BB34: 11204 | BC34: 10903 | BD34: 10391 | BE34: 11522 | BF34: 22957 | BG34: 25904 | BH34: 13766 | BI34: 17545 | BJ34: 20738 | BK34: 15300 | BL34: 13950 | BM34: 13834 | BN34: 17844 | BO34: 12581 | BP34: 24337 | BQ34: 27559 | BR34: 28922 | BS34: 29380 | BT34: 27852 | BU34: 22326 | BV34: 26863 | BW34: 23089 | BX34: 18830 | BY34: 21757 | BZ34: 18602 | CA34: 25063 | CB34: 22209 | CC34: 29853 | CD34: 28907 | CE34: 23443 | CF34: 16726 | CG34: 16004 | CH34: 27593 | CI34: 19631 | CJ34: 14416 | CK34: 18168 | CL34: 15890 | CM34: 19024 | CN34: 26233 | CO34: 24865 | CP34: 25589 | CQ34: 30297 | CR34: 19897 | CS34: 17598 | CT34: 20007 | CU34: 17963 | CV34: 14698 | CW34: 20661 | CX34: 23967 | CY34: 11904 | CZ34: 28025 | DA34: 32114 | DB34: 24993 | DC34: 30718 | DD34: 30760 | DE34: 19807 | DF34: 25780 | DG34: 3123 | DH34: 2527 | DI34: 2771 | DJ34: 1697.16 | DK34: 2205 | DL34: 1133.16 | DM34: 2922 | DN34: 2816 | DO34: 2464 | DP34: 3140 | DQ34: 3260 | DR34: 3461 | DS34: 3302 | DT34: 3209.64 | DU34: 3099 | DV34: 3052.58 | DW34: 2121 | DX34: 3355 | DY34: 2924.9 | DZ34: 2931 | EA34: 2901 | EB34: 2744 | EC34: 2387 | ED34: 2672 | EE34: 3018 | EF34: 3106 | EG34: 3515 | EH34: 1930.62 | EI34: - | EJ34: - | EK34: - | EL34: - | EM34: - | EN34: - | EO34: - | EP34: -
B35: Residuos | AY35: 0 | AZ35: 0 | BA35: 0 | BB35: 0 | BC35: 0 | BD35: 0 | BE35: 0 | BF35: 0 | BG35: 0 | BH35: 0 | BI35: 0 | BJ35: 0 | BK35: 0 | BL35: 0 | BM35: 0 | BN35: 0 | BO35: 0 | BP35: 0 | BQ35: 0 | BR35: 0 | BS35: 0 | BT35: 0 | BU35: 0 | BV35: 0 | BW35: 0 | BX35: 0 | BY35: 0 | BZ35: 0 | CA35: 0 | CB35: 0 | CC35: 0 | CD35: 0 | CE35: 0 | CF35: 0 | CG35: 0 | CH35: 0 | CI35: 0 | CJ35: 0 | CK35: 0 | CL35: 0 | CM35: 0 | CN35: 0 | CO35: 0 | CP35: 0 | CQ35: 0 | CR35: 0 | CS35: 0 | CT35: 0 | CU35: 0 | CV35: 0 | CW35: 0 | CX35: 0 | CY35: 0 | CZ35: 0 | DA35: 0 | DB35: 0 | DC35: 0 | DD35: 0 | DE35: 0 | DF35: 0 | DG35: 18327 | DH35: 13817 | DI35: 22788 | DJ35: 27278 | DK35: 29580 | DL35: 27409 | DM35: 25706 | DN35: 24975 | DO35: 29554 | DP35: 29329 | DQ35: 28636 | DR35: 24797 | DS35: 17129 | DT35: 9936 | DU35: 17224 | DV35: 24220 | DW35: 29020 | DX35: 27234 | DY35: 22533 | DZ35: 25370 | EA35: 25227 | EB35: 27325 | EC35: 18542 | ED35: 17851 | EE35: 15088 | EF35: 14444 | EG35: 21036 | EH35: 28507 | EI35: - | EJ35: - | EK35: - | EL35: - | EM35: - | EN35: - | EO35: - | EP35: -
B36: Régimen especial | C36: 13693 | D36: 12074 | E36: 13389 | F36: 12580 | G36: 9783 | H36: 12145 | I36: 11611 | J36: 12006 | K36: 11334 | L36: 12450 | M36: 11029 | N36: 12997 | O36: 10728 | P36: 11874 | Q36: 13611 | R36: 12420 | S36: 8773 | T36: 10528 | U36: 9531 | V36: 10295 | W36: 10004 | X36: 1699 | Y36: 8970 | Z36: 13108 | AA36: 11554 | AB36: 12841 | AC36: 13406 | AD36: 12754 | AE36: 12925 | AF36: 13547 | AG36: 14814 | AH36: 16452 | AI36: 15961 | AJ36: 16627 | AK36: 15925 | AL36: 17403 | AM36: 16989 | AN36: 15478 | AO36: 9057 | AP36: 18759 | AQ36: 21538 | AR36: 20622 | AS36: 20214 | AT36: 19579 | AU36: 18320 | AV36: 18544 | AW36: 17604 | AX36: 16814 | AY36: 15259 | AZ36: 14745 | BA36: 18801 | BB36: 19642 | BC36: 20262 | BD36: 19623 | BE36: 22281 | BF36: 33355 | BG36: 34567 | BH36: 21036 | BI36: 23674 | BJ36: 26327 | BK36: 21130 | BL36: 20966 | BM36: 22508 | BN36: 28325 | BO36: 23930 | BP36: 35020 | BQ36: 38202 | BR36: 40813 | BS36: 39311 | BT36: 36873 | BU36: 27873 | BV36: 32847 | BW36: 29796 | BX36: 26901 | BY36: 32545 | BZ36: 29451 | CA36: 37791 | CB36: 34303 | CC36: 42852 | CD36: 41635 | CE36: 35035 | CF36: 26707 | CG36: 22615 | CH36: 35113 | CI36: 27664 | CJ36: 22541 | CK36: 30504 | CL36: 27744 | CM36: 32118 | CN36: 40514 | CO36: 39467 | CP36: 38821 | CQ36: 41435 | CR36: 29220 | CS36: 24032 | CT36: 26556 | CU36: - | CV36: - | CW36: - | CX36: - | CY36: - | CZ36: - | DA36: - | DB36: - | DC36: - | DD36: - | DE36: - | DF36: - | DG36: - | DH36: - | DI36: - | DJ36: - | DK36: - | DL36: - | DM36: - | DN36: - | DO36: - | DP36: - | DQ36: - | DR36: - | DS36: - | DT36: - | DU36: - | DV36: - | DW36: - | DX36: - | DY36: - | DZ36: - | EA36: - | EB36: - | EC36: - | ED36: - | EE36: - | EF36: - | EG36: - | EH36: - | EI36: - | EJ36: - | EK36: - | EL36: - | EM36: - | EN36: - | EO36: - | EP36: -
B37: Generación | C37: 496567 | D37: 449996 | E37: 458805 | F37: 388823 | G37: 455896 | H37: 520880 | I37: 638122 | J37: 606836 | K37: 526085 | L37: 462250.952 | M37: 374289 | N37: 449073.22 | O37: 475242 | P37: 423691 | Q37: 462583 | R37: 431172 | S37: 471406 | T37: 532168 | U37: 621230 | V37: 624468 | W37: 534069 | X37: 474945 | Y37: 440766 | Z37: 487310 | AA37: 489644 | AB37: 465196 | AC37: 471677 | AD37: 434714 | AE37: 473820 | AF37: 518821 | AG37: 640759 | AH37: 655589 | AI37: 554766 | AJ37: 472038 | AK37: 437216 | AL37: 507799 | AM37: 513845 | AN37: 453694 | AO37: 463248 | AP37: 437180 | AQ37: 462094 | AR37: 534749 | AS37: 654252 | AT37: 655715 | AU37: 523285 | AV37: 452975 | AW37: 384287 | AX37: 457600 | AY37: 491157.327 | AZ37: 455235.182 | BA37: 473038.592 | BB37: 413067.095 | BC37: 436144.883 | BD37: 475305.682 | BE37: 630610.904 | BF37: 624968.608 | BG37: 519996.385 | BH37: 444757.183 | BI37: 402884.99 | BJ37: 473125.201 | BK37: 477860.493 | BL37: 430462.089 | BM37: 454771.898 | BN37: 393493.45 | BO37: 454797.729 | BP37: 503558.609 | BQ37: 597521.389 | BR37: 639637.24 | BS37: 554806.874 | BT37: 449050.231 | BU37: 370834.788 | BV37: 416033.88 | BW37: 456928.133 | BX37: 479618.381 | BY37: 398880.585 | BZ37: 365732.356 | CA37: 418176.156 | CB37: 497818.916 | CC37: 575168.263 | CD37: 606611.14 | CE37: 439281.772 | CF37: 379773.295 | CG37: 302989.243 | CH37: 331381.867 | CI37: 337574.665 | CJ37: 333021.28 | CK37: 341080.042 | CL37: 309107.141 | CM37: 358119.725 | CN37: 367422.887 | CO37: 475503.319 | CP37: 474673.244 | CQ37: 399030.561 | CR37: 353043.364 | CS37: 307523.092 | CT37: 348932.875 | CU37: 327363.325 | CV37: 298018.681 | CW37: 326388.058 | CX37: 308848.071 | CY37: 351604.339 | CZ37: 383409.989 | DA37: 446981.79 | DB37: 463196.471 | DC37: 423798.483 | DD37: 353665.283 | DE37: 275127.828 | DF37: 328765.425 | DG37: 340155.828 | DH37: 320757.387 | DI37: 337706.411 | DJ37: 309267.762 | DK37: 384392.695 | DL37: 399740.436 | DM37: 514616.724 | DN37: 486272.269 | DO37: 405013.597 | DP37: 349114.324 | DQ37: 298958.952 | DR37: 314647.361 | DS37: 322478.806 | DT37: 313009.277 | DU37: 337675.434 | DV37: 326817.44 | DW37: 366558.932 | DX37: 409375.968 | DY37: 498538.956 | DZ37: 498906.736 | EA37: 460718.423 | EB37: 387347.276 | EC37: 326283.343 | ED37: 333885.282 | EE37: 381126.582 | EF37: 331779.352 | EG37: 331782.232 | EH37: 359319.647 | EI37: - | EJ37: - | EK37: - | EL37: - | EM37: - | EN37: - | EO37: - | EP37: -
B38: Enlace Península-Baleares | C38: - | D38: - | E38: - | F38: - | G38: - | H38: - | I38: - | J38: - | K38: - | L38: - | M38: - | N38: - | O38: - | P38: - | Q38: - | R38: - | S38: - | T38: - | U38: - | V38: - | W38: - | X38: - | Y38: - | Z38: - | AA38: - | AB38: - | AC38: - | AD38: - | AE38: - | AF38: - | AG38: - | AH38: - | AI38: - | AJ38: - | AK38: - | AL38: - | AM38: - | AN38: - | AO38: - | AP38: - | AQ38: - | AR38: - | AS38: - | AT38: - | AU38: - | AV38: - | AW38: - | AX38: - | AY38: 0 | AZ38: 0 | BA38: 0 | BB38: 0 | BC38: 0 | BD38: 0 | BE38: 0 | BF38: 0 | BG38: 0 | BH38: 0 | BI38: 0 | BJ38: 0 | BK38: 0 | BL38: 0 | BM38: 0 | BN38: 0 | BO38: 0 | BP38: 0 | BQ38: 0 | BR38: 0 | BS38: 0 | BT38: 0 | BU38: -43.891 | BV38: 520.3 | BW38: 2681.381 | BX38: 25375.897 | BY38: 36694.079 | BZ38: 35112.659 | CA38: 27254.534 | CB38: 35803.857 | CC38: 36379.672 | CD38: 68014.382 | CE38: 74016.633 | CF38: 70230.888 | CG38: 67437.619 | CH38: 91247.602 | CI38: 108822.873 | CJ38: 90838.239 | CK38: 84296.937 | CL38: 88234.445 | CM38: 83693.952 | CN38: 112811.098 | CO38: 145595.967 | CP38: 157387.881 | CQ38: 113878.526 | CR38: 108856.743 | CS38: 86136.35 | CT38: 87955.589 | CU38: 98644.522 | CV38: 86919.696 | CW38: 88249.651 | CX38: 80404.574 | CY38: 85669.402 | CZ38: 124876.598 | DA38: 153191.786 | DB38: 165070.705 | DC38: 146829.629 | DD38: 101058.571 | DE38: 79551.937 | DF38: 87790.395 | DG38: 110897.596 | DH38: 111884.631 | DI38: 100736.395 | DJ38: 87606.187 | DK38: 65670.035 | DL38: 123291.107 | DM38: 181060.099 | DN38: 170384.126 | DO38: 119558.349 | DP38: 99376.747 | DQ38: 71777.664 | DR38: 93548.866 | DS38: 89213.443 | DT38: 91217.189 | DU38: 111467.448 | DV38: 86955.768 | DW38: 105354.345 | DX38: 124743.759 | DY38: 144841.694 | DZ38: 152538.68 | EA38: 109260.447 | EB38: 90882.304 | EC38: 58978.757 | ED38: 85128.667 | EE38: 96651.403 | EF38: 64562.012 | EG38: 78352.012 | EH38: 56832.6 | EI38: - | EJ38: - | EK38: - | EL38: - | EM38: - | EN38: - | EO38: - | EP38: -
B39: Demanda transporte (b.c.) | C39: 496567 | D39: 449996 | E39: 458805 | F39: 388823 | G39: 455896 | H39: 520880 | I39: 638122 | J39: 606836 | K39: 526085 | L39: 462250.952 | M39: 374289 | N39: 449073.22 | O39: 475242 | P39: 423691 | Q39: 462583 | R39: 431172 | S39: 471406 | T39: 532168 | U39: 621230 | V39: 624468 | W39: 534069 | X39: 474945 | Y39: 440766 | Z39: 487310 | AA39: 489644 | AB39: 465196 | AC39: 471677 | AD39: 434714 | AE39: 473820 | AF39: 518821 | AG39: 640759 | AH39: 655589 | AI39: 554766 | AJ39: 472038 | AK39: 437216 | AL39: 507799 | AM39: 513845 | AN39: 453694 | AO39: 463248 | AP39: 437180 | AQ39: 462094 | AR39: 534749 | AS39: 654252 | AT39: 655715 | AU39: 523285 | AV39: 452975 | AW39: 384287 | AX39: 457600 | AY39: 491157.327 | AZ39: 455235.182 | BA39: 473038.592 | BB39: 413067.095 | BC39: 436144.883 | BD39: 475305.682 | BE39: 630610.904 | BF39: 624968.608 | BG39: 519996.385 | BH39: 444757.183 | BI39: 402884.99 | BJ39: 473125.201 | BK39: 477860.493 | BL39: 430462.089 | BM39: 454771.898 | BN39: 393493.45 | BO39: 454797.729 | BP39: 503558.609 | BQ39: 597521.389 | BR39: 639637.24 | BS39: 554806.874 | BT39: 449050.231 | BU39: 370790.897 | BV39: 416554.18 | BW39: 459609.514 | BX39: 504994.278 | BY39: 435574.664 | BZ39: 400845.015 | CA39: 445430.69 | CB39: 533622.773 | CC39: 611547.935 | CD39: 674625.522 | CE39: 513298.405 | CF39: 450004.183 | CG39: 370426.862 | CH39: 422629.469 | CI39: 446397.538 | CJ39: 423859.519 | CK39: 425376.979 | CL39: 397341.586 | CM39: 441813.677 | CN39: 480233.985 | CO39: 621099.286 | CP39: 632061.125 | CQ39: 512909.087 | CR39: 461900.107 | CS39: 393659.442 | CT39: 436888.464 | CU39: 426007.847 | CV39: 384938.377 | CW39: 414637.709 | CX39: 389252.645 | CY39: 437273.741 | CZ39: 508286.587 | DA39: 600173.576 | DB39: 628267.176 | DC39: 570628.112 | DD39: 454723.854 | DE39: 354679.765 | DF39: 416555.82 | DG39: 451053.424 | DH39: 432642.018 | DI39: 438442.806 | DJ39: 396873.949 | DK39: 450062.73 | DL39: 523031.543 | DM39: 695676.823 | DN39: 656656.395 | DO39: 524571.946 | DP39: 448491.071 | DQ39: 370736.616 | DR39: 408196.227 | DS39: 411692.249 | DT39: 404226.466 | DU39: 449142.882 | DV39: 413773.208 | DW39: 471913.277 | DX39: 534119.727 | DY39: 643380.65 | DZ39: 651445.416 | EA39: 569978.87 | EB39: 478229.58 | EC39: 385262.1 | ED39: 419013.949 | EE39: 477777.985 | EF39: 396341.364 | EG39: 410134.244 | EH39: 416152.247 | EI39: - | EJ39: - | EK39: - | EL39: - | EM39: - | EN39: - | EO39: - | EP39: -
B41: Balance eléctrico mensual Islas Canarias (MWh) | C41: 2006-01-01 | D41: 2006-02-01 | E41: 2006-03-01 | F41: 2006-04-01 | G41: 2006-05-01 | H41: 2006-06-01 | I41: 2006-07-01 | J41: 2006-08-01 | K41: 2006-09-01 | L41: 2006-10-01 | M41: 2006-11-01 | N41: 2006-12-01 | O41: 2007-01-01 | P41: 2007-02-01 | Q41: 2007-03-01 | R41: 2007-04-01 | S41: 2007-05-01 | T41: 2007-06-01 | U41: 2007-07-01 | V41: 2007-08-01 | W41: 2007-09-01 | X41: 2007-10-01 | Y41: 2007-11-01 | Z41: 2007-12-01 | AA41: 2008-01-01 | AB41: 2008-02-01 | AC41: 2008-03-01 | AD41: 2008-04-01 | AE41: 2008-05-01 | AF41: 2008-06-01 | AG41: 2008-07-01 | AH41: 2008-08-01 | AI41: 2008-09-01 | AJ41: 2008-10-01 | AK41: 2008-11-01 | AL41: 2008-12-01 | AM41: 2009-01-01 | AN41: 2009-02-01 | AO41: 2009-03-01 | AP41: 2009-04-01 | AQ41: 2009-05-01 | AR41: 2009-06-01 | AS41: 2009-07-01 | AT41: 2009-08-01 | AU41: 2009-09-01 | AV41: 2009-10-01 | AW41: 2009-11-01 | AX41: 2009-12-01 | AY41: 2010-01-01 | AZ41: 2010-02-01 | BA41: 2010-03-01 | BB41: 2010-04-01 | BC41: 2010-05-01 | BD41: 2010-06-01 | BE41: 2010-07-01 | BF41: 2010-08-01 | BG41: 2010-09-01 | BH41: 2010-10-01 | BI41: 2010-11-01 | BJ41: 2010-12-01 | BK41: 2011-01-01 | BL41: 2011-02-01 | BM41: 2011-03-01 | BN41: 2011-04-01 | BO41: 2011-05-01 | BP41: 2011-06-01 | BQ41: 2011-07-01 | BR41: 2011-08-01 | BS41: 2011-09-01 | BT41: 2011-10-01 | BU41: 2011-11-01 | BV41: 2011-12-01 | BW41: 2012-01-01 | BX41: 2012-02-01 | BY41: 2012-03-01 | BZ41: 2012-04-01 | CA41: 2012-05-01 | CB41: 2012-06-01 | CC41: 2012-07-01 | CD41: 2012-08-01 | CE41: 2012-09-01 | CF41: 2012-10-01 | CG41: 2012-11-01 | CH41: 2012-12-01 | CI41: 2013-01-01 | CJ41: 2013-02-01 | CK41: 2013-03-01 | CL41: 2013-04-01 | CM41: 2013-05-01 | CN41: 2013-06-01 | CO41: 2013-07-01 | CP41: 2013-08-01 | CQ41: 2013-09-01 | CR41: 2013-10-01 | CS41: 2013-11-01 | CT41: 2013-12-01 | CU41: 2014-01-01 | CV41: 2014-02-01 | CW41: 2014-03-01 | CX41: 2014-04-01 | CY41: 2014-05-01 | CZ41: 2014-06-01 | DA41: 2014-07-01 | DB41: 2014-08-01 | DC41: 2014-09-01 | DD41: 2014-10-01 | DE41: 2014-11-01 | DF41: 2014-12-01 | DG41: 2015-01-01 | DH41: 2015-02-01 | DI41: 2015-03-01 | DJ41: 2015-04-01 | DK41: 2015-05-01 | DL41: 2015-06-01 | DM41: 2015-07-01 | DN41: 2015-08-01 | DO41: 2015-09-01 | DP41: 2015-10-01 | DQ41: 2015-11-01 | DR41: 2015-12-01 | DS41: 2016-01-01 | DT41: 2016-02-01 | DU41: 2016-03-01 | DV41: 2016-04-01 | DW41: 2016-05-01 | DX41: 2016-06-01 | DY41: 2016-07-01 | DZ41: 2016-08-01 | EA41: 2016-09-01 | EB41: 2016-10-01 | EC41: 2016-11-01 | ED41: 2016-12-01 | EE41: 2017-01-01 | EF41: 2017-02-01 | EG41: 2017-03-01 | EH41: 2017-04-01 | EI41: 2017-05-01 | EJ41: 2017-06-01 | EK41: 2017-07-01 | EL41: 2017-08-01 | EM41: 2017-09-01 | EN41: 2017-10-01 | EO41: 2017-11-01 | EP41: 2017-12-01
B42: Hidráulica | C42: 0 | D42: 0 | E42: 0 | F42: 0 | G42: 0 | H42: 0 | I42: 0 | J42: 0 | K42: 0 | L42: 0 | M42: 0 | N42: 0 | O42: 0 | P42: 0 | Q42: 0 | R42: 0 | S42: 0 | T42: 0 | U42: 0 | V42: 0 | W42: 0 | X42: 0 | Y42: 0 | Z42: 0 | AA42: 0 | AB42: 0 | AC42: 0 | AD42: 0 | AE42: 0 | AF42: 0 | AG42: 0 | AH42: 0 | AI42: 0 | AJ42: 0 | AK42: 0 | AL42: 0 | AM42: 0 | AN42: 0 | AO42: 0 | AP42: 0 | AQ42: 0 | AR42: 0 | AS42: 0 | AT42: 0 | AU42: 0 | AV42: 0 | AW42: 0 | AX42: 0 | AY42: 0 | AZ42: 0 | BA42: 0 | BB42: 0 | BC42: 0 | BD42: 0 | BE42: 0 | BF42: 0 | BG42: 0 | BH42: 0 | BI42: 0 | BJ42: 0 | BK42: 0 | BL42: 0 | BM42: 0 | BN42: 0 | BO42: 0 | BP42: 0 | BQ42: 0 | BR42: 0 | BS42: 0 | BT42: 0 | BU42: 0 | BV42: 0 | BW42: 0 | BX42: 0 | BY42: 0 | BZ42: 0 | CA42: 0 | CB42: 0 | CC42: 0 | CD42: 0 | CE42: 0 | CF42: 0 | CG42: 0 | CH42: 0 | CI42: 0 | CJ42: 0 | CK42: 0 | CL42: 0 | CM42: 0 | CN42: 0 | CO42: 0 | CP42: 0 | CQ42: 0 | CR42: 0 | CS42: 0 | CT42: 0 | CU42: 0 | CV42: 0 | CW42: 0 | CX42: 0 | CY42: 0 | CZ42: 0 | DA42: 0 | DB42: 0 | DC42: 0 | DD42: 0 | DE42: 0 | DF42: 0 | DG42: 303.6 | DH42: 270 | DI42: 304.6 | DJ42: 292 | DK42: 295 | DL42: 296 | DM42: 304 | DN42: 303 | DO42: 296 | DP42: 311 | DQ42: 301 | DR42: 309 | DS42: 309 | DT42: 282 | DU42: 311 | DV42: 299 | DW42: 308 | DX42: 301 | DY42: 313 | DZ42: 266 | EA42: 282 | EB42: 271 | EC42: 260 | ED42: 270 | EE42: 264 | EF42: 239 | EG42: 265 | EH42: 8.67 | EI42: - | EJ42: - | EK42: - | EL42: - | EM42: - | EN42: - | EO42: - | EP42: -
B43: Motores diesel | C43: 165513 | D43: 148359 | E43: 156468 | F43: 143502 | G43: 170858 | H43: 177722 | I43: 176016 | J43: 179233 | K43: 182517 | L43: 179648 | M43: 157979 | N43: 169849 | O43: 187608 | P43: 153155 | Q43: 170227 | R43: 158998 | S43: 161066 | T43: 167755 | U43: 183062 | V43: 178646 | W43: 169801 | X43: 172067 | Y43: 170171 | Z43: 169446 | AA43: 169904 | AB43: 169953 | AC43: 164609 | AD43: 171005 | AE43: 184619 | AF43: 170736 | AG43: 180381 | AH43: 181406 | AI43: 184435 | AJ43: 177595 | AK43: 169810 | AL43: 179313 | AM43: 175499 | AN43: 161432 | AO43: 167927 | AP43: 161723 | AQ43: 174920 | AR43: 177098 | AS43: 181952 | AT43: 183950 | AU43: 185161 | AV43: 193478 | AW43: 183078 | AX43: 194481 | AY43: 187860.426 | AZ43: 166955.349 | BA43: 187977.302 | BB43: 173369.214 | BC43: 162133.906 | BD43: 164800.029 | BE43: 181346.471 | BF43: 198336.867 | BG43: 189919.536 | BH43: 200384.633 | BI43: 184885.126 | BJ43: 185418.913 | BK43: 188502.864 | BL43: 169922.075 | BM43: 187482.117 | BN43: 176962.428 | BO43: 170170.944 | BP43: 179381.941 | BQ43: 187314.6 | BR43: 185824.936 | BS43: 188071.837 | BT43: 178369.316 | BU43: 172999.694 | BV43: 178373.343 | BW43: 179500.235 | BX43: 176820.426 | BY43: 179805.496 | BZ43: 178161.291 | CA43: 179655.167 | CB43: 163882.432 | CC43: 172623.939 | CD43: 197998.946 | CE43: 172035.132 | CF43: 174704.734 | CG43: 163848.488 | CH43: 171094.643 | CI43: 179868.34 | CJ43: 166432.496 | CK43: 179991.954 | CL43: 156656.79 | CM43: 166958.146 | CN43: 161808.769 | CO43: 167404.838 | CP43: 183067.236 | CQ43: 171801.899 | CR43: 179535.081 | CS43: 180393.312 | CT43: 184639.325 | CU43: 182041.559 | CV43: 166724.26 | CW43: 184161.931 | CX43: 173494.461 | CY43: 173886.989 | CZ43: 175680.004 | DA43: 177884.168 | DB43: 192713.803 | DC43: 182878.91 | DD43: 182334.088 | DE43: 165752.552 | DF43: 187559.179 | DG43: 183398.663 | DH43: 167418.437 | DI43: 185448.82 | DJ43: 175172.701 | DK43: 184138.624 | DL43: 162753.298 | DM43: 184557.635 | DN43: 199833.994 | DO43: 198140.223 | DP43: 191165.393 | DQ43: 181351.798 | DR43: 194312.774 | DS43: 191382.783 | DT43: 171121.665 | DU43: 189600.554 | DV43: 179374.398 | DW43: 182068.072 | DX43: 175199.829 | DY43: 195773.457 | DZ43: 199399.29 | EA43: 172730.772 | EB43: 198093.171 | EC43: 184851.452 | ED43: 188070.083 | EE43: 188283.132 | EF43: 166413.076 | EG43: 199642.388 | EH43: 185610.103 | EI43: - | EJ43: - | EK43: - | EL43: - | EM43: - | EN43: - | EO43: - | EP43: -
B44: Turbina de gas | C44: 52857 | D44: 58444 | E44: 91260 | F44: 61071 | G44: 57809 | H44: 75033 | I44: 67196 | J44: 68751 | K44: 76471.12 | L44: 83282 | M44: 74117 | N44: 58140 | O44: 64149 | P44: 63769 | Q44: 68930 | R44: 63759 | S44: 61840 | T44: 50272 | U44: 47789 | V44: 55948 | W44: 62897 | X44: 57361 | Y44: 55111 | Z44: 47645 | AA44: 49303 | AB44: 38729 | AC44: 28799 | AD44: 32804 | AE44: 40343 | AF44: 47105 | AG44: 47074 | AH44: 42237 | AI44: 50914 | AJ44: 36660 | AK44: 29392 | AL44: 30166 | AM44: 34805 | AN44: 21886 | AO44: 30042 | AP44: 11292 | AQ44: 38398 | AR44: 37443 | AS44: 25400 | AT44: 29481 | AU44: 39778.542 | AV44: 31205 | AW44: 25237.512 | AX44: 17204 | AY44: 13491.04 | AZ44: 18753.394 | BA44: 20108.357 | BB44: 13928.882 | BC44: 30855.156 | BD44: 31941.35 | BE44: 29817.828 | BF44: 24986.524 | BG44: 28373.724 | BH44: 46582.515 | BI44: 44841.278 | BJ44: 39601.609 | BK44: 34501.047 | BL44: 37022.041 | BM44: 48996.798 | BN44: 30090.472 | BO44: 33696.629 | BP44: 29253.318 | BQ44: 46053.293 | BR44: 43711.142 | BS44: 56663.614 | BT44: 57351.207 | BU44: 58097.327 | BV44: 53609.259 | BW44: 49954.794 | BX44: 46945.324 | BY44: 50673.429 | BZ44: 43039.486 | CA44: 43644.055 | CB44: 41616.254 | CC44: 41444.798 | CD44: 49387.208 | CE44: 59150.887 | CF44: 62477.418 | CG44: 48260.309 | CH44: 53988.732 | CI44: 33759.934 | CJ44: 27745.124 | CK44: 31738.947 | CL44: 35768.232 | CM44: 25760.226 | CN44: 22539.748 | CO44: 31573.401 | CP44: 33220.502 | CQ44: 28044.228 | CR44: 35123.301 | CS44: 32417.244 | CT44: 28837.824 | CU44: 26534.568 | CV44: 32861.774 | CW44: 19596.029 | CX44: 21361.484 | CY44: 24865.671 | CZ44: 29044.709 | DA44: 26256.525 | DB44: 19704.468 | DC44: 50295.97 | DD44: 36660.589 | DE44: 36644.1 | DF44: 39940.959 | DG44: 28149.965 | DH44: 28792.431 | DI44: 24246.496 | DJ44: 23841.565 | DK44: 37191.685 | DL44: 35424.378 | DM44: 28336.128 | DN44: 25334.37 | DO44: 32683.006 | DP44: 24129.388 | DQ44: 22541.905 | DR44: 20232.469 | DS44: 18719.83 | DT44: 21856.049 | DU44: 18621.349 | DV44: 19322.266 | DW44: 17715.981 | DX44: 14422.895 | DY44: 15882.528 | DZ44: 31498.591 | EA44: 37833.684 | EB44: 27452.88 | EC44: 26044.13 | ED44: 29769.361 | EE44: 31339.258 | EF44: 23523.017 | EG44: 18987.773 | EH44: 15683.638 | EI44: - | EJ44: - | EK44: - | EL44: - | EM44: - | EN44: - | EO44: - | EP44: -
B45: Turbina de vapor | C45: 348359 | D45: 305913 | E45: 351244 | F45: 298246 | G45: 274223 | H45: 249935 | I45: 254565 | J45: 265884 | K45: 284703 | L45: 261074 | M45: 270998 | N45: 264847 | O45: 267716 | P45: 244594 | Q45: 270944 | R45: 295087 | S45: 222900 | T45: 280003 | U45: 253974 | V45: 300035 | W45: 289769 | X45: 297640 | Y45: 280624 | Z45: 303519 | AA45: 325375 | AB45: 311290 | AC45: 288853 | AD45: 271239 | AE45: 285962 | AF45: 228474 | AG45: 273542 | AH45: 273013 | AI45: 285098 | AJ45: 298907 | AK45: 282718 | AL45: 289770 | AM45: 283886 | AN45: 246215 | AO45: 277471 | AP45: 250511 | AQ45: 289749 | AR45: 254556 | AS45: 266775 | AT45: 281781 | AU45: 281193 | AV45: 297557 | AW45: 249395 | AX45: 264539 | AY45: 275233.605 | AZ45: 239085.291 | BA45: 258003.025 | BB45: 233931.054 | BC45: 254626.209 | BD45: 255627.035 | BE45: 246393.45 | BF45: 264783.539 | BG45: 255925.195 | BH45: 219068.06 | BI45: 221691.146 | BJ45: 248219.496 | BK45: 239152.19 | BL45: 224589.211 | BM45: 264589.247 | BN45: 228431.985 | BO45: 220646.289 | BP45: 180534.772 | BQ45: 228077.559 | BR45: 216593.977 | BS45: 207647.786 | BT45: 232308.245 | BU45: 184270.279 | BV45: 210977.703 | BW45: 234910.729 | BX45: 199336.314 | BY45: 227404.865 | BZ45: 205202.234 | CA45: 198111.728 | CB45: 221665.346 | CC45: 237362.986 | CD45: 233682.876 | CE45: 221969.495 | CF45: 235563.274 | CG45: 244573.822 | CH45: 226155.134 | CI45: 194241.535 | CJ45: 194878.789 | CK45: 217861 | CL45: 205723.488 | CM45: 195840 | CN45: 176159.163 | CO45: 213945.362 | CP45: 213545 | CQ45: 203418 | CR45: 222976.216 | CS45: 206361 | CT45: 220100 | CU45: 216734.185 | CV45: 176820.284 | CW45: 150580.233 | CX45: 152882.112 | CY45: 146331.71 | CZ45: 168933.789 | DA45: 183295.434 | DB45: 180439.144 | DC45: 162676.411 | DD45: 170399.293 | DE45: 169086.92 | DF45: 195856.557 | DG45: 202078.565 | DH45: 176220.301 | DI45: 182024.827 | DJ45: 159738.793 | DK45: 150618.451 | DL45: 185584.929 | DM45: 204266.866 | DN45: 206409.507 | DO45: 216761.283 | DP45: 163670.586 | DQ45: 156374.23 | DR45: 221565.191 | DS45: 229365.613 | DT45: 206627.829 | DU45: 219237.899 | DV45: 193798.73 | DW45: 173434.728 | DX45: 204683.361 | DY45: 222433.549 | DZ45: 236381.934 | EA45: 224084.522 | EB45: 208666.932 | EC45: 172369.114 | ED45: 245579.436 | EE45: 210604.085 | EF45: 197055 | EG45: 204998.987 | EH45: 241657.455 | EI45: - | EJ45: - | EK45: - | EL45: - | EM45: - | EN45: - | EO45: - | EP45: -
B46: Fuel + Gas | C46: 566729 | D46: 512716 | E46: 598972 | F46: 502819 | G46: 502890 | H46: 502690 | I46: 497777 | J46: 513868 | K46: 543691.12 | L46: 524004 | M46: 503094 | N46: 492836 | O46: 519473 | P46: 461518 | Q46: 510101 | R46: 517844 | S46: 445806 | T46: 498030 | U46: 484825 | V46: 534629 | W46: 522467 | X46: 527068 | Y46: 505906 | Z46: 520610 | AA46: 544582 | AB46: 519972 | AC46: 482261 | AD46: 475048 | AE46: 510924 | AF46: 446315 | AG46: 500997 | AH46: 496656 | AI46: 520447 | AJ46: 513162 | AK46: 481920 | AL46: 499249 | AM46: 494190 | AN46: 429533 | AO46: 475440 | AP46: 423526 | AQ46: 503067 | AR46: 469097 | AS46: 474127 | AT46: 495212 | AU46: 506132.542 | AV46: 522240 | AW46: 457710.512 | AX46: 476224 | AY46: 476585.071 | AZ46: 424794.034 | BA46: 466088.684 | BB46: 421229.15 | BC46: 447615.271 | BD46: 452368.414 | BE46: 457557.749 | BF46: 488106.93 | BG46: 474218.455 | BH46: 466035.208 | BI46: 451417.55 | BJ46: 473240.018 | BK46: 462156.101 | BL46: 431533.327 | BM46: 501068.162 | BN46: 435484.885 | BO46: 424513.862 | BP46: 389170.031 | BQ46: 461445.452 | BR46: 446130.055 | BS46: 452383.237 | BT46: 468028.768 | BU46: 415367.3 | BV46: 442960.305 | BW46: 464365.758 | BX46: 423102.064 | BY46: 457883.79 | BZ46: 426403.011 | CA46: 421410.95 | CB46: 427164.032 | CC46: 451431.723 | CD46: 481069.03 | CE46: 453155.514 | CF46: 472745.426 | CG46: 456682.619 | CH46: 451238.509 | CI46: 407869.809 | CJ46: 389056.409 | CK46: 429591.901 | CL46: 398148.51 | CM46: 388558.372 | CN46: 360507.68 | CO46: 412923.601 | CP46: 429832.738 | CQ46: 403264.127 | CR46: 437634.598 | CS46: 419171.556 | CT46: 433577.149 | CU46: 425310.312 | CV46: 376406.318 | CW46: 354338.193 | CX46: 347738.057 | CY46: 345084.37 | CZ46: 373658.502 | DA46: 387436.127 | DB46: 392857.415 | DC46: 395851.291 | DD46: 389393.97 | DE46: 371483.572 | DF46: 423356.695 | DG46: 413627.193 | DH46: 372431.169 | DI46: 391720.143 | DJ46: 358753.059 | DK46: 371948.76 | DL46: 383762.605 | DM46: 417160.629 | DN46: 431577.871 | DO46: 447584.512 | DP46: 378965.367 | DQ46: 360267.933 | DR46: 436110.434 | DS46: 439468.226 | DT46: 399605.543 | DU46: 427459.802 | DV46: 392495.394 | DW46: 373218.781 | DX46: 394306.085 | DY46: 434089.534 | DZ46: 467279.815 | EA46: 434648.978 | EB46: 434212.983 | EC46: 383264.696 | ED46: 463418.88 | EE46: 430226.475 | EF46: 386991.093 | EG46: 423629.148 | EH46: 442951.196 | EI46: - | EJ46: - | EK46: - | EL46: - | EM46: - | EN46: - | EO46: - | EP46: -
B47: Ciclo combinado | C47: 125939 | D47: 107765 | E47: 79372 | F47: 139320 | G47: 154766 | H47: 168017 | I47: 187960 | J47: 206155 | K47: 200181 | L47: 216209 | M47: 204172 | N47: 217541 | O47: 203577 | P47: 170340 | Q47: 199354 | R47: 152118 | S47: 243924 | T47: 185380 | U47: 229495 | V47: 189228 | W47: 195544 | X47: 230632 | Y47: 226835 | Z47: 216848 | AA47: 199787 | AB47: 167592 | AC47: 219679 | AD47: 215393 | AE47: 194309 | AF47: 240047 | AG47: 218649 | AH47: 221342 | AI47: 228900 | AJ47: 217782 | AK47: 219404 | AL47: 230433 | AM47: 218103 | AN47: 205178 | AO47: 222643 | AP47: 198070 | AQ47: 148582 | AR47: 202502 | AS47: 234690 | AT47: 211977 | AU47: 201745 | AV47: 231922 | AW47: 241597 | AX47: 235319 | AY47: 230101.864 | AZ47: 203031.708 | BA47: 228450.678 | BB47: 216494.734 | BC47: 193292.748 | BD47: 190320.309 | BE47: 218682.102 | BF47: 224299.341 | BG47: 235057.37 | BH47: 266936.906 | BI47: 253781.819 | BJ47: 247960.606 | BK47: 252928.866 | BL47: 190920.098 | BM47: 187526.745 | BN47: 212566.242 | BO47: 245524.253 | BP47: 275132.26 | BQ47: 221773.292 | BR47: 252862.683 | BS47: 256339.487 | BT47: 268452.367 | BU47: 290455.415 | BV47: 264393.529 | BW47: 258410.931 | BX47: 234103.447 | BY47: 227913.742 | BZ47: 212401.385 | CA47: 248853.609 | CB47: 229398.869 | CC47: 233205.38 | CD47: 233457.065 | CE47: 272722.639 | CF47: 254754.651 | CG47: 229874.659 | CH47: 242675.197 | CI47: 278031.613 | CJ47: 223389 | CK47: 245774 | CL47: 243841 | CM47: 250123 | CN47: 244898 | CO47: 263512.415 | CP47: 270469 | CQ47: 270577 | CR47: 264188 | CS47: 246468 | CT47: 251409 | CU47: 248686.911 | CV47: 228402.058 | CW47: 280046.83 | CX47: 274981.906 | CY47: 280289.396 | CZ47: 252045.922 | DA47: 271160.345 | DB47: 264740.079 | DC47: 318190.978 | DD47: 336165.953 | DE47: 298564.982 | DF47: 258173.584 | DG47: 256340.419 | DH47: 226895.344 | DI47: 255027.685 | DJ47: 261373.916 | DK47: 260976.972 | DL47: 242886.79 | DM47: 257449.173 | DN47: 257210.086 | DO47: 261505.807 | DP47: 350690.368 | DQ47: 311693.576 | DR47: 270991.934 | DS47: 247044.882 | DT47: 217849.751 | DU47: 233400.213 | DV47: 247033.402 | DW47: 271015.081 | DX47: 238084.596 | DY47: 241073.81 | DZ47: 247232.457 | EA47: 240643.528 | EB47: 294696.653 | EC47: 304199.903 | ED47: 249425.235 | EE47: 282319.563 | EF47: 235324 | EG47: 250923.376 | EH47: 220884.188 | EI47: - | EJ47: - | EK47: - | EL47: - | EM47: - | EN47: - | EO47: - | EP47: -
B48: Generación auxiliar | C48: 0 | D48: 0 | E48: 0 | F48: 0 | G48: 0 | H48: 0 | I48: 0 | J48: 0 | K48: 0 | L48: 0 | M48: 0 | N48: 0 | O48: 12171 | P48: 11523 | Q48: 11651 | R48: 11641 | S48: 10919 | T48: 9438 | U48: 10685 | V48: 12461 | W48: 11325 | X48: 11933 | Y48: 10055 | Z48: 9038 | AA48: 10202 | AB48: 9659 | AC48: 10861 | AD48: 10032 | AE48: 6829 | AF48: 6410 | AG48: 7670 | AH48: 7858 | AI48: 5141 | AJ48: 4729 | AK48: 5487 | AL48: 4869 | AM48: 4385 | AN48: 3909 | AO48: 4661 | AP48: 2586 | AQ48: 2823 | AR48: 3208 | AS48: 5305 | AT48: 3351 | AU48: 1680 | AV48: 811 | AW48: 899 | AX48: 170 | AY48: 0 | AZ48: 0 | BA48: 0 | BB48: 0 | BC48: 0 | BD48: 0 | BE48: 0 | BF48: 0 | BG48: 0 | BH48: 0 | BI48: 0 | BJ48: 0 | BK48: 0 | BL48: 0
B49: Régimen ordinario | C49: 692668 | D49: 620481 | E49: 678344 | F49: 642139 | G49: 657656 | H49: 670707 | I49: 685737 | J49: 720023 | K49: 743872.12 | L49: 740213 | M49: 707266 | N49: 710377 | O49: 735221 | P49: 643381 | Q49: 721106 | R49: 681603 | S49: 700649 | T49: 692848 | U49: 725005 | V49: 736318 | W49: 729336 | X49: 769633 | Y49: 742796 | Z49: 746496 | AA49: 754571 | AB49: 697223 | AC49: 712801 | AD49: 700473 | AE49: 712062 | AF49: 692772 | AG49: 727316 | AH49: 725856 | AI49: 754488 | AJ49: 735673 | AK49: 706811 | AL49: 734551 | AM49: 716678 | AN49: 638620 | AO49: 702744 | AP49: 624182 | AQ49: 654472 | AR49: 674807 | AS49: 714122 | AT49: 710540 | AU49: 709557.542 | AV49: 754973 | AW49: 700206.512 | AX49: 711713 | AY49: 706686.935 | AZ49: 627825.742 | BA49: 694539.362 | BB49: 637723.884 | BC49: 640908.019 | BD49: 642688.723 | BE49: 676239.851 | BF49: 712406.271 | BG49: 709275.825 | BH49: 732972.114 | BI49: 705199.369 | BJ49: 721200.624 | BK49: 715084.967 | BL49: 622453.425 | BM49: 688594.907 | BN49: 648051.127 | BO49: 670038.115 | BP49: 664302.291 | BQ49: 683218.744 | BR49: 698992.738 | BS49: 708722.724 | BT49: 736481.135 | BU49: 705822.715 | BV49: 707353.834 | BW49: 722776.689 | BX49: 657205.511 | BY49: 685797.532 | BZ49: 638804.396 | CA49: 670264.559 | CB49: 656562.901 | CC49: 684637.103 | CD49: 714526.095 | CE49: 725878.153 | CF49: 727500.077 | CG49: 686557.278 | CH49: 693913.706 | CI49: 685901.422 | CJ49: 612445.409 | CK49: 675365.901 | CL49: 641989.51 | CM49: 638681.372 | CN49: 605405.68 | CO49: 676436.016 | CP49: 700301.738 | CQ49: 673841.127 | CR49: 701822.598 | CS49: 665639.556 | CT49: 684986.149 | CU49: - | CV49: - | CW49: - | CX49: - | CY49: - | CZ49: - | DA49: - | DB49: - | DC49: - | DD49: - | DE49: - | DF49: - | DG49: - | DH49: - | DI49: - | DJ49: - | DK49: - | DL49: - | DM49: - | DN49: - | DO49: - | DP49: - | DQ49: - | DR49: - | DS49: - | DT49: - | DU49: - | DV49: - | DW49: - | DX49: - | DY49: - | DZ49: - | EA49: - | EB49: - | EC49: - | ED49: - | EE49: - | EF49: - | EG49: - | EH49: - | EI49: - | EJ49: - | EK49: - | EL49: - | EM49: - | EN49: - | EO49: - | EP49: -
B50: Hidroeólica | C50: 0 | D50: 0 | E50: 0 | F50: 0 | G50: 0 | H50: 0 | I50: 0 | J50: 0 | K50: 0 | L50: 0 | M50: 0 | N50: 0 | O50: 0 | P50: 0 | Q50: 0 | R50: 0 | S50: 0 | T50: 0 | U50: 0 | V50: 0 | W50: 0 | X50: 0 | Y50: 0 | Z50: 0 | AA50: 0 | AB50: 0 | AC50: 0 | AD50: 0 | AE50: 0 | AF50: 0 | AG50: 0 | AH50: 0 | AI50: 0 | AJ50: 0 | AK50: 0 | AL50: 0 | AM50: 0 | AN50: 0 | AO50: 0 | AP50: 0 | AQ50: 0 | AR50: 0 | AS50: 0 | AT50: 0 | AU50: 0 | AV50: 0 | AW50: 0 | AX50: 0 | AY50: 0 | AZ50: 0 | BA50: 0 | BB50: 0 | BC50: 0 | BD50: 0 | BE50: 0 | BF50: 0 | BG50: 0 | BH50: 0 | BI50: 0 | BJ50: 0 | BK50: 0 | BL50: 0 | BM50: 0 | BN50: 0 | BO50: 0 | BP50: 0 | BQ50: 0 | BR50: 0 | BS50: 0 | BT50: 0 | BU50: 0 | BV50: 0 | BW50: 0 | BX50: 0 | BY50: 0 | BZ50: 0 | CA50: 0 | CB50: 0 | CC50: 0 | CD50: 0 | CE50: 0 | CF50: 0 | CG50: 0 | CH50: 0 | CI50: 0 | CJ50: 0 | CK50: 0 | CL50: 0 | CM50: 0 | CN50: 0 | CO50: 0 | CP50: 0 | CQ50: 0 | CR50: 0 | CS50: 0 | CT50: 0 | CU50: 0 | CV50: 0 | CW50: 0 | CX50: 0 | CY50: 0 | CZ50: 0 | DA50: 0.311 | DB50: 314.813 | DC50: 161.525 | DD50: 195.471 | DE50: 201.015 | DF50: 198.726 | DG50: 416.176 | DH50: 374.873 | DI50: 243.784 | DJ50: 125.636 | DK50: 242.058 | DL50: 362.421 | DM50: 2082.991 | DN50: 1928.824 | DO50: 742 | DP50: 484.646 | DQ50: 882.971 | DR50: 670.686 | DS50: 814.1 | DT50: 1779.526 | DU50: 1522.376 | DV50: 1303.018 | DW50: 923.463 | DX50: 2002.62 | DY50: 2580.273 | DZ50: 2223.9 | EA50: 2171.967 | EB50: 733.354 | EC50: 1012.851 | ED50: 1035.191 | EE50: 1084.578 | EF50: 1447.992 | EG50: 2129.755 | EH50: 960.701 | EI50: - | EJ50: - | EK50: - | EL50: - | EM50: - | EN50: - | EO50: - | EP50: -
B51: Hidráulica/Resto hidráulica | C51: 0 | D51: 0 | E51: 0 | F51: 0 | G51: 0 | H51: 0 | I51: 0 | J51: 0 | K51: 0 | L51: 0 | M51: 0 | N51: 0 | O51: 0 | P51: 0 | Q51: 0 | R51: 0 | S51: 0 | T51: 0 | U51: 82 | V51: 190 | W51: 247 | X51: 92 | Y51: 278 | Z51: 287 | AA51: 287 | AB51: 244 | AC51: 240 | AD51: 0 | AE51: 185 | AF51: 315 | AG51: 305 | AH51: 97 | AI51: 0 | AJ51: 0 | AK51: 0 | AL51: 0 | AM51: 9 | AN51: 164 | AO51: 175 | AP51: 50 | AQ51: 0 | AR51: 0 | AS51: 0 | AT51: 0 | AU51: 0 | AV51: 0 | AW51: 0 | AX51: 0 | AY51: 0 | AZ51: 0 | BA51: 0 | BB51: 0 | BC51: 0 | BD51: 0 | BE51: 0 | BF51: 0 | BG51: 0 | BH51: 0 | BI51: 0 | BJ51: 0 | BK51: 0 | BL51: 0 | BM51: 2 | BN51: 239 | BO51: 165 | BP51: 131 | BQ51: 245 | BR51: 179 | BS51: 201 | BT51: 238 | BU51: 164 | BV51: 111.408 | BW51: 116.439 | BX51: 0.075 | BY51: 163.001 | BZ51: 246.879 | CA51: 218.845 | CB51: 207.497 | CC51: 62.735 | CD51: 231.002 | CE51: 221.7 | CF51: 205.726 | CG51: 40.073 | CH51: 75.364 | CI51: 222.602 | CJ51: 204.523 | CK51: 136.682 | CL51: 136.99 | CM51: 292.267 | CN51: 286.388 | CO51: 286.267 | CP51: 286.374 | CQ51: 292.338 | CR51: 303.712 | CS51: 293.163 | CT51: 306 | CU51: 305 | CV51: 276 | CW51: 301 | CX51: 290 | CY51: 300 | CZ51: 283 | DA51: 308 | DB51: 310.021 | DC51: 296 | DD51: 272 | DE51: 261 | DF51: 277 | DG51: - | DH51: - | DI51: - | DJ51: - | DK51: - | DL51: - | DM51: - | DN51: - | DO51: - | DP51: - | DQ51: - | DR51: - | DS51: - | DT51: - | DU51: - | DV51: - | DW51: - | DX51: - | DY51: - | DZ51: - | EA51: - | EB51: - | EC51: - | ED51: - | EE51: - | EF51: - | EG51: - | EH51: - | EI51: - | EJ51: - | EK51: - | EL51: - | EM51: - | EN51: - | EO51: - | EP51: -
B52: Eólica | C52: 17431.845 | D52: 18906.552 | E52: 22433.485 | F52: 28613.578 | G52: 35233.5 | H52: 25590.253 | I52: 56231.544 | J52: 38386.534 | K52: 22680.768 | L52: 19552.139 | M52: 15309.171 | N52: 25694.21 | O52: 17536 | P52: 22919 | Q52: 37045 | R52: 26057 | S52: 34949 | T52: 31706 | U52: 57951 | V52: 48557 | W52: 26273 | X52: 19181 | Y52: 16085 | Z52: 18581 | AA52: 12697 | AB52: 16352 | AC52: 39237 | AD52: 36025 | AE52: 31842 | AF52: 39889 | AG52: 59648 | AH52: 61491 | AI52: 17713 | AJ52: 33991 | AK52: 22016 | AL52: 25574 | AM52: 23706 | AN52: 17290 | AO52: 24349 | AP52: 46455 | AQ52: 32116 | AR52: 20734 | AS52: 55995 | AT52: 57105 | AU52: 22914 | AV52: 12762 | AW52: 24732 | AX52: 20549 | AY52: 11740 | AZ52: 14778 | BA52: 23015 | BB52: 32147 | BC52: 36251 | BD52: 38838 | BE52: 47304 | BF52: 42622 | BG52: 35769 | BH52: 14015 | BI52: 17956 | BJ52: 16928 | BK52: 11345 | BL52: 24277 | BM52: 22847 | BN52: 23944 | BO52: 19554 | BP52: 37648 | BQ52: 55422 | BR52: 51939 | BS52: 31495 | BT52: 25599 | BU52: 15790 | BV52: 34295 | BW52: 18963.88 | BX52: 33726.285 | BY52: 33681.697 | BZ52: 30021.198 | CA52: 26774.771 | CB52: 44057.214 | CC52: 57535.39 | CD52: 54601 | CE52: 12813.212 | CF52: 17087.318 | CG52: 16904.712 | CH52: 15601.112 | CI52: 24542.069 | CJ52: 28387.059 | CK52: 13294 | CL52: 27647.999 | CM52: 38088.171 | CN52: 48342 | CO52: 41479 | CP52: 42314 | CQ52: 24540 | CR52: 24190 | CS52: 27763 | CT52: 22147 | CU52: 29456 | CV52: 32606 | CW52: 45694 | CX52: 27506 | CY52: 42525 | CZ52: 35026 | DA52: 45220 | DB52: 59362 | DC52: 12482 | DD52: 15750 | DE52: 20599 | DF52: 23738 | DG52: 41442 | DH52: 43677 | DI52: 41792.052 | DJ52: 28967 | DK52: 40094 | DL52: 30389 | DM52: 59611 | DN52: 49740 | DO52: 17421 | DP52: 10614 | DQ52: 24303 | DR52: 8611 | DS52: 19204 | DT52: 40945 | DU52: 33840 | DV52: 26156 | DW52: 30569 | DX52: 44372 | DY52: 56792 | DZ52: 48605 | EA52: 46718 | EB52: 13424 | EC52: 17701 | ED52: 15718 | EE52: 15118 | EF52: 22704 | EG52: 35608 | EH52: 19913.248 | EI52: - | EJ52: - | EK52: - | EL52: - | EM52: - | EN52: - | EO52: - | EP52: -
B53: Solar fotovoltaica | C53: 36.402 | D53: 46.196 | E53: 66.179 | F53: 67.328 | G53: 76.62 | H53: 77.053 | I53: 98.995 | J53: 430.708 | K53: 484.04 | L53: 533.362 | M53: 462.502 | N53: 536.165 | O53: 610 | P53: 833 | Q53: 1268 | R53: 1459 | S53: 1737 | T53: 1692 | U53: 2046 | V53: 2433 | W53: 2017 | X53: 2022 | Y53: 1635 | Z53: 1621 | AA53: 2022 | AB53: 2658 | AC53: 3713 | AD53: 4145 | AE53: 4312 | AF53: 4894 | AG53: 5548 | AH53: 5693 | AI53: 6152 | AJ53: 9825 | AK53: 7689 | AL53: 6849 | AM53: 8709 | AN53: 10847 | AO53: 12492 | AP53: 16156 | AQ53: 16219 | AR53: 16256 | AS53: 17530 | AT53: 17568 | AU53: 12555 | AV53: 13377 | AW53: 11497 | AX53: 9124 | AY53: 10698 | AZ53: 10306 | BA53: 16328 | BB53: 16499 | BC53: 19138 | BD53: 19607 | BE53: 22480 | BF53: 21526 | BG53: 17621 | BH53: 15830 | BI53: 12519 | BJ53: 12614 | BK53: 15178 | BL53: 16843 | BM53: 19656 | BN53: 19729 | BO53: 20773 | BP53: 23349 | BQ53: 23817 | BR53: 24739 | BS53: 20929 | BT53: 17684 | BU53: 14494 | BV53: 14948 | BW53: 15819 | BX53: 17853 | BY53: 23039 | BZ53: 20676 | CA53: 24978 | CB53: 25023 | CC53: 26449 | CD53: 26299 | CE53: 23158 | CF53: 19232 | CG53: 16071 | CH53: 17914 | CI53: 20253 | CJ53: 19458 | CK53: 23739 | CL53: 27152 | CM53: 27710 | CN53: 30875 | CO53: 30903 | CP53: 26948 | CQ53: 24098 | CR53: 22190 | CS53: 17740 | CT53: 15636 | CU53: 18995 | CV53: 20132 | CW53: 27162 | CX53: 25919 | CY53: 29372 | CZ53: 27594 | DA53: 27933 | DB53: 29920 | DC53: 21433 | DD53: 20634 | DE53: 16824 | DF53: 16373 | DG53: 18338.863 | DH53: 17768 | DI53: 25470.298 | DJ53: 25100 | DK53: 29874 | DL53: 27309 | DM53: 30356 | DN53: 26058 | DO53: 20796 | DP53: 17895 | DQ53: 18495 | DR53: 18094 | DS53: 19687 | DT53: 20003 | DU53: 24028 | DV53: 24143 | DW53: 25216 | DX53: 29415 | DY53: 29131 | DZ53: 27379 | EA53: 25671 | EB53: 20209 | EC53: 16921 | ED53: 15601 | EE53: 17938 | EF53: 18911 | EG53: 25307 | EH53: 25199.703 | EI53: - | EJ53: - | EK53: - | EL53: - | EM53: - | EN53: - | EO53: - | EP53: -
B54: Térmica renovable/Otras renovables | C54: 8687.566 | D54: 11201.252 | E54: 21105.336 | F54: 20726.094 | G54: 19570.88 | H54: 20816.694 | I54: 21169.461 | J54: 19156.758 | K54: 13239.192 | L54: 22026.499 | M54: 17532.327 | N54: 22967.625 | O54: 21162 | P54: 19576 | Q54: 5693 | R54: 17196 | S54: 15807 | T54: 15288 | U54: 19273 | V54: 20695 | W54: 19120 | X54: 18295 | Y54: 18031 | Z54: 23147 | AA54: 22239 | AB54: 19665 | AC54: 20200 | AD54: 19685 | AE54: 21462 | AF54: 14780 | AG54: 144 | AH54: 21585 | AI54: 13957 | AJ54: 17447 | AK54: 22889 | AL54: 23166 | AM54: 23472 | AN54: 22220 | AO54: 12230 | AP54: 24755 | AQ54: 22920 | AR54: 23920 | AS54: 24575 | AT54: 24604 | AU54: 23900 | AV54: 22497 | AW54: 23578 | AX54: 24384 | AY54: 23902 | AZ54: 18935 | BA54: 16313 | BB54: 24282 | BC54: 25112 | BD54: 19550 | BE54: 10072 | BF54: 5987 | BG54: 5025 | BH54: 5016 | BI54: 3979 | BJ54: 2388 | BK54: 3274 | BL54: 5746 | BM54: 5969 | BN54: 5585 | BO54: 6959 | BP54: 1329 | BQ54: 735 | BR54: 722 | BS54: 702 | BT54: 703 | BU54: 749 | BV54: 675.363 | BW54: 612.11 | BX54: 489.723 | BY54: 585.198 | BZ54: 682.916 | CA54: 647.635 | CB54: 645.866 | CC54: 716.723 | CD54: 723.62 | CE54: 743.061 | CF54: 760.459 | CG54: 617.475 | CH54: 825.668 | CI54: 628.674 | CJ54: 697.577 | CK54: 800.201 | CL54: 747.981 | CM54: 798.7 | CN54: 697.581 | CO54: 798.744 | CP54: 711.541 | CQ54: 628.877 | CR54: 722.197 | CS54: 511 | CT54: 644 | CU54: 787 | CV54: 707 | CW54: 778 | CX54: 663 | CY54: 669 | CZ54: 643 | DA54: 797 | DB54: 820.722 | DC54: 629 | DD54: 747 | DE54: 835 | DF54: 731 | DG54: 378 | DH54: 350 | DI54: 448 | DJ54: 494 | DK54: 606 | DL54: 795.298 | DM54: 837.918 | DN54: 841 | DO54: 865 | DP54: 810 | DQ54: 840 | DR54: 788 | DS54: 862 | DT54: 735 | DU54: 824 | DV54: 817 | DW54: 884 | DX54: 679 | DY54: 761 | DZ54: 696 | EA54: 738 | EB54: 786 | EC54: 765 | ED54: 789 | EE54: 811 | EF54: 720 | EG54: 831 | EH54: 26.285 | EI54: - | EJ54: - | EK54: - | EL54: - | EM54: - | EN54: - | EO54: - | EP54: -
B55: Térmica no renovable/Cogeneración y resto/Cogeneración | C55: 2832.187 | D55: 0 | E55: 0 | F55: 0 | G55: 0 | H55: 0 | I55: 0 | J55: 0 | K55: 0 | L55: 0 | M55: 0 | N55: 0 | O55: 0 | P55: 0 | Q55: 0 | R55: 0 | S55: 0 | T55: 0 | U55: 0 | V55: 0 | W55: 0 | X55: 0 | Y55: 0 | Z55: 0 | AA55: 0 | AB55: 0 | AC55: 0 | AD55: 0 | AE55: 0 | AF55: 0 | AG55: 0 | AH55: 0 | AI55: 0 | AJ55: 0 | AK55: 0 | AL55: 0 | AM55: 0 | AN55: 0 | AO55: 0 | AP55: 0 | AQ55: 10 | AR55: 10 | AS55: 0 | AT55: 0 | AU55: 0 | AV55: 0 | AW55: 0 | AX55: 0 | AY55: 0 | AZ55: 0 | BA55: 0 | BB55: 0 | BC55: 0 | BD55: 0 | BE55: 0 | BF55: 0 | BG55: 0 | BH55: 0 | BI55: 0 | BJ55: 0 | BK55: 0 | BL55: 0 | BM55: 0 | BN55: 0 | BO55: 0 | BP55: 0 | BQ55: 0 | BR55: 0 | BS55: 0 | BT55: 0 | BU55: 0 | BV55: 0 | BW55: 0 | BX55: 0 | BY55: 0 | BZ55: 0 | CA55: 0 | CB55: 0 | CC55: 0 | CD55: 0 | CE55: 0 | CF55: 0 | CG55: 0 | CH55: 0 | CI55: 0 | CJ55: 0 | CK55: 0 | CL55: 0 | CM55: 0 | CN55: 0 | CO55: 0 | CP55: 0 | CQ55: 0 | CR55: 0 | CS55: 0 | CT55: 0 | CU55: 0 | CV55: 0 | CW55: 0 | CX55: 0 | CY55: 0 | CZ55: 0 | DA55: 0 | DB55: 0 | DC55: 0 | DD55: 0 | DE55: 0 | DF55: 0 | DG55: 0 | DH55: 0 | DI55: 0 | DJ55: 0 | DK55: 0 | DL55: 0 | DM55: 0 | DN55: 0 | DO55: 0 | DP55: 0 | DQ55: 0 | DR55: 0 | DS55: 0 | DT55: 0 | DU55: 0 | DV55: 0 | DW55: 0 | DX55: 0 | DY55: 0 | DZ55: 0 | EA55: 0 | EB55: 0 | EC55: 0 | ED55: 0 | EE55: 0 | EF55: 0 | EG55: 0 | EH55: 0 | EI55: - | EJ55: - | EK55: - | EL55: - | EM55: - | EN55: - | EO55: - | EP55: -
B56: Régimen especial | C56: 28988 | D56: 30154 | E56: 43605 | F56: 49407 | G56: 54881 | H56: 46484 | I56: 77500 | J56: 57974 | K56: 36404 | L56: 42112 | M56: 33304 | N56: 49198 | O56: 39308 | P56: 43328 | Q56: 44006 | R56: 44712 | S56: 52493 | T56: 48686 | U56: 79352 | V56: 71875 | W56: 47657 | X56: 39590 | Y56: 36029 | Z56: 43636 | AA56: 37245 | AB56: 38919 | AC56: 63390 | AD56: 59855 | AE56: 57801 | AF56: 59878 | AG56: 65645 | AH56: 88866 | AI56: 37822 | AJ56: 61263 | AK56: 52594 | AL56: 55589 | AM56: 55896 | AN56: 50521 | AO56: 49246 | AP56: 87416 | AQ56: 71265 | AR56: 60920 | AS56: 98100 | AT56: 99277 | AU56: 59369 | AV56: 48636 | AW56: 59807 | AX56: 54057 | AY56: 46340 | AZ56: 44019 | BA56: 55656 | BB56: 72928 | BC56: 80501 | BD56: 77995 | BE56: 79856 | BF56: 70135 | BG56: 58415 | BH56: 34861 | BI56: 34454 | BJ56: 31930 | BK56: 29797 | BL56: 46866 | BM56: 48474 | BN56: 49497 | BO56: 47451 | BP56: 62457 | BQ56: 80219 | BR56: 77579 | BS56: 53327 | BT56: 44224 | BU56: 31197 | BV56: 50029.771 | BW56: 35511.429 | BX56: 52069.083 | BY56: 57468.896 | BZ56: 51626.993 | CA56: 52619.251 | CB56: 69933.577 | CC56: 84763.848 | CD56: 81854.622 | CE56: 36935.973 | CF56: 37285.503 | CG56: 33633.26 | CH56: 34416.144 | CI56: 45646.345 | CJ56: 48747.159 | CK56: 37969.883 | CL56: 55684.97 | CM56: 66889.138 | CN56: 80200.969 | CO56: 73467.011 | CP56: 70259.915 | CQ56: 49559.215 | CR56: 47405.909 | CS56: 46307.163 | CT56: 38733 | CU56: - | CV56: - | CW56: - | CX56: - | CY56: - | CZ56: - | DA56: - | DB56: - | DC56: - | DD56: - | DE56: - | DF56: - | DG56: - | DH56: - | DI56: - | DJ56: - | DK56: - | DL56: - | DM56: - | DN56: - | DO56: - | DP56: - | DQ56: - | DR56: - | DS56: - | DT56: - | DU56: - | DV56: - | DW56: - | DX56: - | DY56: - | DZ56: - | EA56: - | EB56: - | EC56: - | ED56: - | EE56: - | EF56: - | EG56: - | EH56: - | EI56: - | EJ56: - | EK56: - | EL56: - | EM56: - | EN56: - | EO56: - | EP56: -
B57: Generación | C57: 721656 | D57: 650635 | E57: 721949 | F57: 691546 | G57: 712537 | H57: 717191 | I57: 763237 | J57: 777997 | K57: 780276.12 | L57: 782325 | M57: 740570 | N57: 759575 | O57: 774529 | P57: 686709 | Q57: 765112 | R57: 726315 | S57: 753142 | T57: 741534 | U57: 804357 | V57: 808193 | W57: 776993 | X57: 809223 | Y57: 778825 | Z57: 790132 | AA57: 791816 | AB57: 736142 | AC57: 776191 | AD57: 760328 | AE57: 769863 | AF57: 752650 | AG57: 792961 | AH57: 814722 | AI57: 792310 | AJ57: 796936 | AK57: 759405 | AL57: 790140 | AM57: 772574 | AN57: 689141 | AO57: 751990 | AP57: 711598 | AQ57: 725737 | AR57: 735727 | AS57: 812222 | AT57: 809817 | AU57: 768926.542 | AV57: 803609 | AW57: 760013.512 | AX57: 765770 | AY57: 753026.935 | AZ57: 671844.742 | BA57: 750195.362 | BB57: 710651.884 | BC57: 721409.019 | BD57: 720683.723 | BE57: 756095.851 | BF57: 782541.271 | BG57: 767690.825 | BH57: 767833.114 | BI57: 739653.369 | BJ57: 753130.624 | BK57: 744881.967 | BL57: 669319.425 | BM57: 737068.907 | BN57: 697548.127 | BO57: 717489.115 | BP57: 726759.291 | BQ57: 763437.744 | BR57: 776571.738 | BS57: 762049.724 | BT57: 780705.135 | BU57: 737019.715 | BV57: 757383.605 | BW57: 758288.118 | BX57: 709274.594 | BY57: 743266.428 | BZ57: 690431.389 | CA57: 722883.81 | CB57: 726496.478 | CC57: 769400.951 | CD57: 796380.717 | CE57: 762814.126 | CF57: 764785.58 | CG57: 720190.538 | CH57: 728329.85 | CI57: 731547.767 | CJ57: 661192.568 | CK57: 713335.784 | CL57: 697674.48 | CM57: 705570.51 | CN57: 685606.649 | CO57: 749903.027 | CP57: 770561.653 | CQ57: 723400.342 | CR57: 749228.507 | CS57: 711946.719 | CT57: 723719.149 | CU57: 723540.223 | CV57: 658529.376 | CW57: 708320.023 | CX57: 677097.963 | CY57: 698239.766 | CZ57: 689250.424 | DA57: 732854.783 | DB57: 748325.05 | DC57: 749043.794 | DD57: 763158.394 | DE57: 708768.569 | DF57: 722848.005 | DG57: 730846.251 | DH57: 661766.386 | DI57: 715006.562 | DJ57: 675105.611 | DK57: 704036.79 | DL57: 685801.114 | DM57: 767801.711 | DN57: 767658.781 | DO57: 749210.319 | DP57: 759770.381 | DQ57: 716783.48 | DR57: 735575.054 | DS57: 727389.208 | DT57: 681199.82 | DU57: 721385.391 | DV57: 692246.814 | DW57: 702134.325 | DX57: 709160.301 | DY57: 764740.617 | DZ57: 793682.172 | EA57: 750873.473 | EB57: 764332.99 | EC57: 724124.45 | ED57: 746257.306 | EE57: 747761.616 | EF57: 666337.085 | EG57: 738693.279 | EH57: 709943.991 | EI57: - | EJ57: - | EK57: - | EL57: - | EM57: - | EN57: - | EO57: - | EP57: -
B58: Demanda transporte (b.c.) | C58: 721656 | D58: 650635 | E58: 721949 | F58: 691546 | G58: 712537 | H58: 717191 | I58: 763237 | J58: 777997 | K58: 780276.12 | L58: 782325 | M58: 740570 | N58: 759575 | O58: 774529 | P58: 686709 | Q58: 765112 | R58: 726315 | S58: 753142 | T58: 741534 | U58: 804357 | V58: 808193 | W58: 776993 | X58: 809223 | Y58: 778825 | Z58: 790132 | AA58: 791816 | AB58: 736142 | AC58: 776191 | AD58: 760328 | AE58: 769863 | AF58: 752650 | AG58: 792961 | AH58: 814722 | AI58: 792310 | AJ58: 796936 | AK58: 759405 | AL58: 790140 | AM58: 772574 | AN58: 689141 | AO58: 751990 | AP58: 711598 | AQ58: 725737 | AR58: 735727 | AS58: 812222 | AT58: 809817 | AU58: 768926.542 | AV58: 803609 | AW58: 760013.512 | AX58: 765770 | AY58: 753026.935 | AZ58: 671844.742 | BA58: 750195.362 | BB58: 710651.884 | BC58: 721409.019 | BD58: 720683.723 | BE58: 756095.851 | BF58: 782541.271 | BG58: 767690.825 | BH58: 767833.114 | BI58: 739653.369 | BJ58: 753130.624 | BK58: 744881.967 | BL58: 669319.425 | BM58: 737068.907 | BN58: 697548.127 | BO58: 717489.115 | BP58: 726759.291 | BQ58: 763437.744 | BR58: 776571.738 | BS58: 762049.724 | BT58: 780705.135 | BU58: 737019.715 | BV58: 757383.605 | BW58: 758288.118 | BX58: 709274.594 | BY58: 743266.428 | BZ58: 690431.389 | CA58: 722883.81 | CB58: 726496.478 | CC58: 769400.951 | CD58: 796380.717 | CE58: 762814.126 | CF58: 764785.58 | CG58: 720190.538 | CH58: 728329.85 | CI58: 731547.767 | CJ58: 661192.568 | CK58: 713335.784 | CL58: 697674.48 | CM58: 705570.51 | CN58: 685606.649 | CO58: 749903.027 | CP58: 770561.653 | CQ58: 723400.342 | CR58: 749228.507 | CS58: 711946.719 | CT58: 723719.149 | CU58: 723540.223 | CV58: 658529.376 | CW58: 708320.023 | CX58: 677097.963 | CY58: 698239.766 | CZ58: 689250.424 | DA58: 732854.783 | DB58: 748325.05 | DC58: 749043.794 | DD58: 763158.394 | DE58: 708768.569 | DF58: 722848.005 | DG58: 730846.251 | DH58: 661766.386 | DI58: 715006.562 | DJ58: 675105.611 | DK58: 704036.79 | DL58: 685801.114 | DM58: 767801.711 | DN58: 767658.781 | DO58: 749210.319 | DP58: 759770.381 | DQ58: 716783.48 | DR58: 735575.054 | DS58: 727389.208 | DT58: 681199.82 | DU58: 721385.391 | DV58: 692246.814 | DW58: 702134.325 | DX58: 709160.301 | DY58: 764740.617 | DZ58: 793682.172 | EA58: 750873.473 | EB58: 764332.99 | EC58: 724124.45 | ED58: 746257.306 | EE58: 747761.616 | EF58: 666337.085 | EG58: 738693.279 | EH58: 709943.991 | EI58: - | EJ58: - | EK58: - | EL58: - | EM58: - | EN58: - | EO58: - | EP58: -
B60: Balance eléctrico mensual Ceuta (MWh) | C60: 2007-01-01 | D60: 2007-02-01 | E60: 2007-03-01 | F60: 2007-04-01 | G60: 2007-05-01 | H60: 2007-06-01 | I60: 2007-07-01 | J60: 2007-08-01 | K60: 2007-09-01 | L60: 2007-10-01 | M60: 2007-11-01 | N60: 2007-12-01 | O60: 2008-01-01 | P60: 2008-02-01 | Q60: 2008-03-01 | R60: 2008-04-01 | S60: 2008-05-01 | T60: 2008-06-01 | U60: 2008-07-01 | V60: 2008-08-01 | W60: 2008-09-01 | X60: 2008-10-01 | Y60: 2008-11-01 | Z60: 2008-12-01 | AA60: 2009-01-01 | AB60: 2009-02-01 | AC60: 2009-03-01 | AD60: 2009-04-01 | AE60: 2009-05-01 | AF60: 2009-06-01 | AG60: 2009-07-01 | AH60: 2009-08-01 | AI60: 2009-09-01 | AJ60: 2009-10-01 | AK60: 2009-11-01 | AL60: 2009-12-01 | AM60: 2010-01-01 | AN60: 2010-02-01 | AO60: 2010-03-01 | AP60: 2010-04-01 | AQ60: 2010-05-01 | AR60: 2010-06-01 | AS60: 2010-07-01 | AT60: 2010-08-01 | AU60: 2010-09-01 | AV60: 2010-10-01 | AW60: 2010-11-01 | AX60: 2010-12-01 | AY60: 2011-01-01 | AZ60: 2011-02-01 | BA60: 2011-03-01 | BB60: 2011-04-01 | BC60: 2011-05-01 | BD60: 2011-06-01 | BE60: 2011-07-01 | BF60: 2011-08-01 | BG60: 2011-09-01 | BH60: 2011-10-01 | BI60: 2011-11-01 | BJ60: 2011-12-01 | BK60: 2012-01-01 | BL60: 2012-02-01 | BM60: 2012-03-01 | BN60: 2012-04-01 | BO60: 2012-05-01 | BP60: 2012-06-01 | BQ60: 2012-07-01 | BR60: 2012-08-01 | BS60: 2012-09-01 | BT60: 2012-10-01 | BU60: 2012-11-01 | BV60: 2012-12-01 | BW60: 2013-01-01 | BX60: 2013-02-01 | BY60: 2013-03-01 | BZ60: 2013-04-01 | CA60: 2013-05-01 | CB60: 2013-06-01 | CC60: 2013-07-01 | CD60: 2013-08-01 | CE60: 2013-09-01 | CF60: 2013-10-01 | CG60: 2013-11-01 | CH60: 2013-12-01 | CI60: 2014-01-01 | CJ60: 2014-02-01 | CK60: 2014-03-01 | CL60: 2014-04-01 | CM60: 2014-05-01 | CN60: 2014-06-01 | CO60: 2014-07-01 | CP60: 2014-08-01 | CQ60: 2014-09-01 | CR60: 2014-10-01 | CS60: 2014-11-01 | CT60: 2014-12-01 | CU60: 2015-01-01 | CV60: 2015-02-01 | CW60: 2015-03-01 | CX60: 2015-04-01 | CY60: 2015-05-01 | CZ60: 2015-06-01 | DA60: 2015-07-01 | DB60: 2015-08-01 | DC60: 2015-09-01 | DD60: 2015-10-01 | DE60: 2015-11-01 | DF60: 2015-12-01 | DG60: 2016-01-01 | DH60: 2016-02-01 | DI60: 2016-03-01 | DJ60: 2016-04-01 | DK60: 2016-05-01 | DL60: 2016-06-01 | DM60: 2016-07-01 | DN60: 2016-08-01 | DO60: 2016-09-01 | DP60: 2016-10-01 | DQ60: 2016-11-01 | DR60: 2016-12-01 | DS60: 2017-01-01 | DT60: 2017-02-01 | DU60: 2017-03-01 | DV60: 2017-04-01 | DW60: 2017-05-01 | DX60: 2017-06-01 | DY60: 2017-07-01 | DZ60: 2017-08-01 | EA60: 2017-09-01 | EB60: 2017-10-01 | EC60: 2017-11-01 | ED60: 2017-12-01
B61: Motores diesel | C61: 17987 | D61: 16069 | E61: 16710 | F61: 15678 | G61: 16366 | H61: 16225 | I61: 17421 | J61: 17411 | K61: 16812 | L61: 17279 | M61: 16847 | N61: 17839 | O61: 18351 | P61: 17181 | Q61: 16737 | R61: 16313 | S61: 16713 | T61: 16662 | U61: 18076 | V61: 18122 | W61: 17406 | X61: 17168 | Y61: 17471 | Z61: 19471 | AA61: 19477 | AB61: 16819 | AC61: 17213 | AD61: 15436 | AE61: 16246 | AF61: 17311 | AG61: 18716 | AH61: 16715 | AI61: 17948 | AJ61: 18184 | AK61: 16095 | AL61: 18156 | AM61: 16835.431 | AN61: 16928.369 | AO61: 17444.607 | AP61: 16234.077 | AQ61: 17320.935 | AR61: 17763.089 | AS61: 19394.423 | AT61: 20221.285 | AU61: 18911.029 | AV61: 18433.375 | AW61: 17839.231 | AX61: 17340.393 | AY61: 16727.881 | AZ61: 15217.21 | BA61: 16429.356 | BB61: 14974.758 | BC61: 15954.127 | BD61: 17325.873 | BE61: 18625.857 | BF61: 18453.02 | BG61: 16688.656 | BH61: 17719.742 | BI61: 16751.113 | BJ61: 17804.328 | BK61: 18519.808 | BL61: 17894.414 | BM61: 17521.669 | BN61: 16664.299 | BO61: 17367.828 | BP61: 17463.541 | BQ61: 17737.678 | BR61: 18518.044 | BS61: 17121.613 | BT61: 17633.501 | BU61: 17338.467 | BV61: 17742.493 | BW61: 17871.498 | BX61: 15517.114 | BY61: 15413.289 | BZ61: 14540.856 | CA61: 15588.026 | CB61: 15754.197 | CC61: 17866.71 | CD61: 18953.247 | CE61: 17325.049 | CF61: 16943.32 | CG61: 17475.432 | CH61: 18463.232 | CI61: 18803.363 | CJ61: 17215.982 | CK61: 17659.373 | CL61: 14795.035 | CM61: 17087.592 | CN61: 17314.244 | CO61: 18277.514 | CP61: 18625.962 | CQ61: 18513.111 | CR61: 18195.284 | CS61: 17359.331 | CT61: 18317.776 | CU61: 19053.229 | CV61: 16016.588 | CW61: 16277.81 | CX61: 15464.3 | CY61: 16941.84 | CZ61: 16886 | DA61: 19016 | DB61: 18610.287 | DC61: 16586.142 | DD61: 16965.087 | DE61: 15808.663 | DF61: 17089.673 | DG61: 17310.636 | DH61: 16980.969 | DI61: 16401.868 | DJ61: 16859.536 | DK61: 16947 | DL61: 16955.066 | DM61: 18292 | DN61: 19186 | DO61: 18115.227 | DP61: 17861.33 | DQ61: 17439.016 | DR61: 18263.341 | DS61: 18539.718 | DT61: 15709.319 | DU61: 15827.683 | DV61: 15285.039 | DW61: - | DX61: - | DY61: - | DZ61: - | EA61: - | EB61: - | EC61: - | ED61: -
B62: Turbina de gas | C62: 0 | D62: 0 | E62: 0 | F62: 0 | G62: 0 | H62: 0 | I62: 0 | J62: 0 | K62: 0 | L62: 0 | M62: 0 | N62: 0 | O62: 0 | P62: 0 | Q62: 0 | R62: 0 | S62: 0 | T62: 0 | U62: 0 | V62: 0 | W62: 0 | X62: 0 | Y62: 0 | Z62: 0 | AA62: 0 | AB62: 0 | AC62: 0 | AD62: 0 | AE62: 0 | AF62: 0 | AG62: 159 | AH62: 1859 | AI62: 0 | AJ62: 0 | AK62: 1026 | AL62: 209 | AM62: 2043.285 | AN62: 554.101 | AO62: 0 | AP62: 147.305 | AQ62: 121.071 | AR62: 0 | AS62: 0 | AT62: 0 | AU62: 0 | AV62: 0 | AW62: 0 | AX62: 3.105 | AY62: 26.118 | AZ62: 31.277 | BA62: 0 | BB62: 0 | BC62: 171.801 | BD62: 31.511 | BE62: 20.882 | BF62: 0.931 | BG62: 0 | BH62: 3.805 | BI62: 6.531 | BJ62: 8.119 | BK62: 0 | BL62: 140.908 | BM62: 107.635 | BN62: 9.984 | BO62: 132.478 | BP62: 24.65 | BQ62: 16.8 | BR62: 38.818 | BS62: 2.227 | BT62: 55.818 | BU62: 19.223 | BV62: 0 | BW62: 34.442 | BX62: 39.907 | BY62: 0.03 | BZ62: 31.384 | CA62: 112.964 | CB62: 8.6 | CC62: 0 | CD62: 0 | CE62: 0 | CF62: 0 | CG62: 10.623 | CH62: 10.144 | CI62: 2.427 | CJ62: 0 | CK62: 76.223 | CL62: 0 | CM62: 0.243 | CN62: 0.21 | CO62: 0 | CP62: 0.216 | CQ62: 0.243 | CR62: 0.294 | CS62: 9.299 | CT62: 0 | CU62: 0.162 | CV62: 220 | CW62: -0.16 | CX62: 0.25 | CY62: 65 | CZ62: 9 | DA62: 139 | DB62: 0.933 | DC62: 0.488 | DD62: 0 | DE62: 289.024 | DF62: 0.284 | DG62: 0.515 | DH62: 0.641 | DI62: 0.5 | DJ62: 0.412 | DK62: 0.504 | DL62: 0.179 | DM62: 0.603 | DN62: 0.523 | DO62: 92.182 | DP62: 3.886 | DQ62: 15.701 | DR62: 0.512 | DS62: 0.352 | DT62: 14.589 | DU62: 0.415 | DV62: 0.533 | DW62: - | DX62: - | DY62: - | DZ62: - | EA62: - | EB62: - | EC62: - | ED62: -
B63: Fuel + Gas | C63: 17987 | D63: 16069 | E63: 16710 | F63: 15678 | G63: 16366 | H63: 16225 | I63: 17421 | J63: 17411 | K63: 16812 | L63: 17279 | M63: 16847 | N63: 17839 | O63: 18351 | P63: 17181 | Q63: 16737 | R63: 16313 | S63: 16713 | T63: 16662 | U63: 18076 | V63: 18122 | W63: 17406 | X63: 17168 | Y63: 17471 | Z63: 19471 | AA63: 19477 | AB63: 16819 | AC63: 17213 | AD63: 15436 | AE63: 16246 | AF63: 17311 | AG63: 18875 | AH63: 18574 | AI63: 17948 | AJ63: 18184 | AK63: 17121 | AL63: 18365 | AM63: 18878.716 | AN63: 17482.47 | AO63: 17444.607 | AP63: 16381.382 | AQ63: 17442.006 | AR63: 17763.089 | AS63: 19394.423 | AT63: 20221.285 | AU63: 18911.029 | AV63: 18433.375 | AW63: 17839.231 | AX63: 17343.498 | AY63: 16753.999 | AZ63: 15248.487 | BA63: 16429.356 | BB63: 14974.758 | BC63: 16125.928 | BD63: 17357.384 | BE63: 18646.739 | BF63: 18453.951 | BG63: 16688.656 | BH63: 17723.547 | BI63: 16757.644 | BJ63: 17812.447 | BK63: 18519.808 | BL63: 18035.322 | BM63: 17629.304 | BN63: 16674.283 | BO63: 17500.306 | BP63: 17488.191 | BQ63: 17754.478 | BR63: 18556.862 | BS63: 17123.84 | BT63: 17689.319 | BU63: 17357.69 | BV63: 17742.493 | BW63: 17905.94 | BX63: 15557.021 | BY63: 15413.319 | BZ63: 14572.24 | CA63: 15700.99 | CB63: 15762.797 | CC63: 17866.71 | CD63: 18953.247 | CE63: 17325.049 | CF63: 16943.32 | CG63: 17486.055 | CH63: 18473.376 | CI63: 18805.79 | CJ63: 17215.982 | CK63: 17735.596 | CL63: 14795.035 | CM63: 17087.835 | CN63: 17314.454 | CO63: 18277.514 | CP63: 18626.178 | CQ63: 18513.354 | CR63: 18195.578 | CS63: 17368.63 | CT63: 18317.776 | CU63: 19053.391 | CV63: 16236.588 | CW63: 16277.65 | CX63: 15464.55 | CY63: 17006.84 | CZ63: 16895 | DA63: 19155 | DB63: 18611.22 | DC63: 16586.63 | DD63: 16965.087 | DE63: 16097.687 | DF63: 17089.957 | DG63: 17311.151 | DH63: 16981.61 | DI63: 16402.368 | DJ63: 16859.948 | DK63: 16947.504 | DL63: 16955.245 | DM63: 18292.603 | DN63: 19186.523 | DO63: 18207.409 | DP63: 17865.216 | DQ63: 17454.717 | DR63: 18263.853 | DS63: 18540.07 | DT63: 15723.908 | DU63: 15828.098 | DV63: 15285.572 | DW63: - | DX63: - | DY63: - | DZ63: - | EA63: - | EB63: - | EC63: - | ED63: -
B64: Régimen ordinario | C64: 17987 | D64: 16069 | E64: 16710 | F64: 15678 | G64: 16366 | H64: 16225 | I64: 17421 | J64: 17411 | K64: 16812 | L64: 17279 | M64: 16847 | N64: 17839 | O64: 18351 | P64: 17181 | Q64: 16737 | R64: 16313 | S64: 16713 | T64: 16662 | U64: 18076 | V64: 18122 | W64: 17406 | X64: 17168 | Y64: 17471 | Z64: 19471 | AA64: 19477 | AB64: 16819 | AC64: 17213 | AD64: 15436 | AE64: 16246 | AF64: 17311 | AG64: 18875 | AH64: 18574 | AI64: 17948 | AJ64: 18184 | AK64: 17121 | AL64: 18365 | AM64: 18878.716 | AN64: 17482.47 | AO64: 17444.607 | AP64: 16381.382 | AQ64: 17442.006 | AR64: 17763.089 | AS64: 19394.423 | AT64: 20221.285 | AU64: 18911.029 | AV64: 18433.375 | AW64: 17839.231 | AX64: 17343.498 | AY64: 16753.999 | AZ64: 15248.487 | BA64: 16429.356 | BB64: 14974.758 | BC64: 16125.928 | BD64: 17357.384 | BE64: 18646.739 | BF64: 18453.951 | BG64: 16688.656 | BH64: 17723.547 | BI64: 16757.644 | BJ64: 17812.447 | BK64: 18519.808 | BL64: 18035.322 | BM64: 17629.304 | BN64: 16674.283 | BO64: 17500.306 | BP64: 17488.191 | BQ64: 17754.478 | BR64: 18556.862 | BS64: 17123.84 | BT64: 17689.319 | BU64: 17357.69 | BV64: 17742.493 | BW64: 17905.94 | BX64: 15557.021 | BY64: 15413.319 | BZ64: 14572.24 | CA64: 15700.99 | CB64: 15762.797 | CC64: 17866.71 | CD64: 18953.247 | CE64: 17325.049 | CF64: 16943.32 | CG64: 17486.055 | CH64: 18473.376 | CI64: - | CJ64: - | CK64: - | CL64: - | CM64: - | CN64: - | CO64: - | CP64: - | CQ64: - | CR64: - | CS64: - | CT64: - | CU64: - | CV64: - | CW64: - | CX64: - | CY64: - | CZ64: - | DA64: - | DB64: - | DC64: - | DD64: - | DE64: - | DF64: - | DG64: - | DH64: - | DI64: - | DJ64: - | DK64: - | DL64: - | DM64: - | DN64: - | DO64: - | DP64: - | DQ64: - | DR64: - | DS64: - | DT64: - | DU64: - | DV64: - | DW64: - | DX64: - | DY64: - | DZ64: - | EA64: - | EB64: - | EC64: - | ED64: -
B65: Generación | C65: 17987 | D65: 16069 | E65: 16710 | F65: 15678 | G65: 16366 | H65: 16225 | I65: 17421 | J65: 17411 | K65: 16812 | L65: 17279 | M65: 16847 | N65: 17839 | O65: 18351 | P65: 17181 | Q65: 16737 | R65: 16313 | S65: 16713 | T65: 16662 | U65: 18076 | V65: 18122 | W65: 17406 | X65: 17168 | Y65: 17471 | Z65: 19471 | AA65: 19477 | AB65: 16819 | AC65: 17213 | AD65: 15436 | AE65: 16246 | AF65: 17311 | AG65: 18875 | AH65: 18574 | AI65: 17948 | AJ65: 18184 | AK65: 17121 | AL65: 18365 | AM65: 18878.716 | AN65: 17482.47 | AO65: 17444.607 | AP65: 16381.382 | AQ65: 17442.006 | AR65: 17763.089 | AS65: 19394.423 | AT65: 20221.285 | AU65: 18911.029 | AV65: 18433.375 | AW65: 17839.231 | AX65: 17343.498 | AY65: 16753.999 | AZ65: 15248.487 | BA65: 16429.356 | BB65: 14974.758 | BC65: 16125.928 | BD65: 17357.384 | BE65: 18646.739 | BF65: 18453.951 | BG65: 16688.656 | BH65: 17723.547 | BI65: 16757.644 | BJ65: 17812.447 | BK65: 18519.808 | BL65: 18035.322 | BM65: 17629.304 | BN65: 16674.283 | BO65: 17500.306 | BP65: 17488.191 | BQ65: 17754.478 | BR65: 18556.862 | BS65: 17123.84 | BT65: 17689.319 | BU65: 17357.69 | BV65: 17742.493 | BW65: 17905.94 | BX65: 15557.021 | BY65: 15413.319 | BZ65: 14572.24 | CA65: 15700.99 | CB65: 15762.797 | CC65: 17866.71 | CD65: 18953.247 | CE65: 17325.049 | CF65: 16943.32 | CG65: 17486.055 | CH65: 18473.376 | CI65: 18805.79 | CJ65: 17215.982 | CK65: 17735.596 | CL65: 14795.035 | CM65: 17087.835 | CN65: 17314.454 | CO65: 18277.514 | CP65: 18626.178 | CQ65: 18513.354 | CR65: 18195.578 | CS65: 17368.63 | CT65: 18317.776 | CU65: 19053.391 | CV65: 16236.588 | CW65: 16277.65 | CX65: 15464.55 | CY65: 17006.84 | CZ65: 16895 | DA65: 19155 | DB65: 18611.22 | DC65: 16586.63 | DD65: 16965.087 | DE65: 16097.687 | DF65: 17089.957 | DG65: 17311.151 | DH65: 16981.61 | DI65: 16402.368 | DJ65: 16859.948 | DK65: 16947.504 | DL65: 16955.245 | DM65: 18292.603 | DN65: 19186.523 | DO65: 18207.409 | DP65: 17865.216 | DQ65: 17454.717 | DR65: 18263.853 | DS65: 18540.07 | DT65: 15723.908 | DU65: 15828.098 | DV65: 15285.572 | DW65: - | DX65: - | DY65: - | DZ65: - | EA65: - | EB65: - | EC65: - | ED65: -
B66: Demanda transporte (b.c.) | C66: 17987 | D66: 16069 | E66: 16710 | F66: 15678 | G66: 16366 | H66: 16225 | I66: 17421 | J66: 17411 | K66: 16812 | L66: 17279 | M66: 16847 | N66: 17839 | O66: 18351 | P66: 17181 | Q66: 16737 | R66: 16313 | S66: 16713 | T66: 16662 | U66: 18076 | V66: 18122 | W66: 17406 | X66: 17168 | Y66: 17471 | Z66: 19471 | AA66: 19477 | AB66: 16819 | AC66: 17213 | AD66: 15436 | AE66: 16246 | AF66: 17311 | AG66: 18875 | AH66: 18574 | AI66: 17948 | AJ66: 18184 | AK66: 17121 | AL66: 18365 | AM66: 18878.716 | AN66: 17482.47 | AO66: 17444.607 | AP66: 16381.382 | AQ66: 17442.006 | AR66: 17763.089 | AS66: 19394.423 | AT66: 20221.285 | AU66: 18911.029 | AV66: 18433.375 | AW66: 17839.231 | AX66: 17343.498 | AY66: 16753.999 | AZ66: 15248.487 | BA66: 16429.356 | BB66: 14974.758 | BC66: 16125.928 | BD66: 17357.384 | BE66: 18646.739 | BF66: 18453.951 | BG66: 16688.656 | BH66: 17723.547 | BI66: 16757.644 | BJ66: 17812.447 | BK66: 18519.808 | BL66: 18035.322 | BM66: 17629.304 | BN66: 16674.283 | BO66: 17500.306 | BP66: 17488.191 | BQ66: 17754.478 | BR66: 18556.862 | BS66: 17123.84 | BT66: 17689.319 | BU66: 17357.69 | BV66: 17742.493 | BW66: 17905.94 | BX66: 15557.021 | BY66: 15413.319 | BZ66: 14572.24 | CA66: 15700.99 | CB66: 15762.797 | CC66: 17866.71 | CD66: 18953.247 | CE66: 17325.049 | CF66: 16943.32 | CG66: 17486.055 | CH66: 18473.376 | CI66: 18805.79 | CJ66: 17215.982 | CK66: 17735.596 | CL66: 14795.035 | CM66: 17087.835 | CN66: 17314.454 | CO66: 18277.514 | CP66: 18626.178 | CQ66: 18513.354 | CR66: 18195.578 | CS66: 17368.63 | CT66: 18317.776 | CU66: 19053.391 | CV66: 16236.588 | CW66: 16277.65 | CX66: 15464.55 | CY66: 17006.84 | CZ66: 16895 | DA66: 19155 | DB66: 18611.22 | DC66: 16586.63 | DD66: 16965.087 | DE66: 16097.687 | DF66: 17089.957 | DG66: 17311.151 | DH66: 16981.61 | DI66: 16402.368 | DJ66: 16859.948 | DK66: 16947.504 | DL66: 16955.245 | DM66: 18292.603 | DN66: 19186.523 | DO66: 18207.409 | DP66: 17865.216 | DQ66: 17454.717 | DR66: 18263.853 | DS66: 18540.07 | DT66: 15723.908 | DU66: 15828.098 | DV66: 15285.572 | DW66: - | DX66: - | DY66: - | DZ66: - | EA66: - | EB66: - | EC66: - | ED66: -
B68: Balance eléctrico mensual Melilla (MWh) | C68: 2007-01-01 | D68: 2007-02-01 | E68: 2007-03-01 | F68: 2007-04-01 | G68: 2007-05-01 | H68: 2007-06-01 | I68: 2007-07-01 | J68: 2007-08-01 | K68: 2007-09-01 | L68: 2007-10-01 | M68: 2007-11-01 | N68: 2007-12-01 | O68: 2008-01-01 | P68: 2008-02-01 | Q68: 2008-03-01 | R68: 2008-04-01 | S68: 2008-05-01 | T68: 2008-06-01 | U68: 2008-07-01 | V68: 2008-08-01 | W68: 2008-09-01 | X68: 2008-10-01 | Y68: 2008-11-01 | Z68: 2008-12-01 | AA68: 2009-01-01 | AB68: 2009-02-01 | AC68: 2009-03-01 | AD68: 2009-04-01 | AE68: 2009-05-01 | AF68: 2009-06-01 | AG68: 2009-07-01 | AH68: 2009-08-01 | AI68: 2009-09-01 | AJ68: 2009-10-01 | AK68: 2009-11-01 | AL68: 2009-12-01 | AM68: 2010-01-01 | AN68: 2010-02-01 | AO68: 2010-03-01 | AP68: 2010-04-01 | AQ68: 2010-05-01 | AR68: 2010-06-01 | AS68: 2010-07-01 | AT68: 2010-08-01 | AU68: 2010-09-01 | AV68: 2010-10-01 | AW68: 2010-11-01 | AX68: 2010-12-01 | AY68: 2011-01-01 | AZ68: 2011-02-01 | BA68: 2011-03-01 | BB68: 2011-04-01 | BC68: 2011-05-01 | BD68: 2011-06-01 | BE68: 2011-07-01 | BF68: 2011-08-01 | BG68: 2011-09-01 | BH68: 2011-10-01 | BI68: 2011-11-01 | BJ68: 2011-12-01 | BK68: 2012-01-01 | BL68: 2012-02-01 | BM68: 2012-03-01 | BN68: 2012-04-01 | BO68: 2012-05-01 | BP68: 2012-06-01 | BQ68: 2012-07-01 | BR68: 2012-08-01 | BS68: 2012-09-01 | BT68: 2012-10-01 | BU68: 2012-11-01 | BV68: 2012-12-01 | BW68: 2013-01-01 | BX68: 2013-02-01 | BY68: 2013-03-01 | BZ68: 2013-04-01 | CA68: 2013-05-01 | CB68: 2013-06-01 | CC68: 2013-07-01 | CD68: 2013-08-01 | CE68: 2013-09-01 | CF68: 2013-10-01 | CG68: 2013-11-01 | CH68: 2013-12-01 | CI68: 2014-01-01 | CJ68: 2014-02-01 | CK68: 2014-03-01 | CL68: 2014-04-01 | CM68: 2014-05-01 | CN68: 2014-06-01 | CO68: 2014-07-01 | CP68: 2014-08-01 | CQ68: 2014-09-01 | CR68: 2014-10-01 | CS68: 2014-11-01 | CT68: 2014-12-01 | CU68: 2015-01-01 | CV68: 2015-02-01 | CW68: 2015-03-01 | CX68: 2015-04-01 | CY68: 2015-05-01 | CZ68: 2015-06-01 | DA68: 2015-07-01 | DB68: 2015-08-01 | DC68: 2015-09-01 | DD68: 2015-10-01 | DE68: 2015-11-01 | DF68: 2015-12-01 | DG68: 2016-01-01 | DH68: 2016-02-01 | DI68: 2016-03-01 | DJ68: 2016-04-01 | DK68: 2016-05-01 | DL68: 2016-06-01 | DM68: 2016-07-01 | DN68: 2016-08-01 | DO68: 2016-09-01 | DP68: 2016-10-01 | DQ68: 2016-11-01 | DR68: 2016-12-01 | DS68: 2017-01-01 | DT68: 2017-02-01 | DU68: 2017-03-01 | DV68: 2017-04-01 | DW68: 2017-05-01 | DX68: 2017-06-01 | DY68: 2017-07-01 | DZ68: 2017-08-01 | EA68: 2017-09-01 | EB68: 2017-10-01 | EC68: 2017-11-01 | ED68: 2017-12-01
B69: Motores diesel | C69: 14250 | D69: 12593 | E69: 13459 | F69: 13734.55 | G69: 15030 | H69: 15717.05 | I69: 17790.86 | J69: 17035.76 | K69: 16233.4 | L69: 16172.12 | M69: 14199 | N69: 15653 | O69: 15536 | P69: 14623 | Q69: 14355 | R69: 14494 | S69: 14972 | T69: 16029 | U69: 18094 | V69: 19226 | W69: 16880 | X69: 15757 | Y69: 15458 | Z69: 17701 | AA69: 17753 | AB69: 15189 | AC69: 15459 | AD69: 14176 | AE69: 15222 | AF69: 16183 | AG69: 18807 | AH69: 19379 | AI69: 16442 | AJ69: 17363 | AK69: 15428 | AL69: 16152 | AM69: 16952.252 | AN69: 15255.491 | AO69: 16387.782 | AP69: 15007.841 | AQ69: 15685.419 | AR69: 16778.192 | AS69: 18965.345 | AT69: 20588.25 | AU69: 17840.764 | AV69: 16821.623 | AW69: 16795.424 | AX69: 17639.588 | AY69: 17153.75 | AZ69: 15687.581 | BA69: 16335.433 | BB69: 14891.459 | BC69: 16230.351 | BD69: 17378.183 | BE69: 18744.134 | BF69: 20150.582 | BG69: 18022.712 | BH69: 17479.501 | BI69: 16862.537 | BJ69: 18360.63 | BK69: 18982.949 | BL69: 18439.042 | BM69: 17598.366 | BN69: 16008.083 | BO69: 17071.491 | BP69: 18279.878 | BQ69: 20047.005 | BR69: 20975.617 | BS69: 17694.951 | BT69: 17457.093 | BU69: 15636.494 | BV69: 16659.874 | BW69: 17115.315 | BX69: 15530.096 | BY69: 15812.071 | BZ69: 15148.964 | CA69: 16036.971 | CB69: 15760.648 | CC69: 18177.462 | CD69: 19692.631 | CE69: 17663.716 | CF69: 16819.196 | CG69: 16654.163 | CH69: 17052.628 | CI69: 17118.326 | CJ69: 15201.501 | CK69: 16103.739 | CL69: 14934.156 | CM69: 15882.369 | CN69: 16465.359 | CO69: 18018.315 | CP69: 19102.751 | CQ69: 17938.816 | CR69: 16800.553 | CS69: 16113.987 | CT69: 16483.738 | CU69: 17344.713 | CV69: 16116.182 | CW69: 15853.05 | CX69: 15037.97 | CY69: 15928.74 | CZ69: 16467.5 | DA69: 20942 | DB69: 20511.47 | DC69: 17059.902 | DD69: 16541.39 | DE69: 16050.43 | DF69: 16374.786 | DG69: 16091.574 | DH69: 15296.041 | DI69: 15130.282 | DJ69: 15195.992 | DK69: 15696.293 | DL69: 16469.571 | DM69: 17928.629 | DN69: 19658.901 | DO69: 17864.675 | DP69: 16595.343 | DQ69: 16240.307 | DR69: 16158.705 | DS69: 17669.7 | DT69: 14726.86 | DU69: 15100.528 | DV69: 15273.221 | DW69: - | DX69: - | DY69: - | DZ69: - | EA69: - | EB69: - | EC69: - | ED69: -
B70: Turbina de gas | C70: 389 | D70: 201 | E70: 257 | F70: 105.45 | G70: 69 | H70: 0.95 | I70: 123.14 | J70: 231.24 | K70: 37.6 | L70: 48.88 | M70: 484 | N70: 465 | O70: 838 | P70: 433 | Q70: 488 | R70: 171 | S70: 45 | T70: 136 | U70: 205 | V70: 76 | W70: 213 | X70: 250 | Y70: 217 | Z70: 9 | AA70: 10 | AB70: 11 | AC70: 77 | AD70: 53 | AE70: 2 | AF70: 63 | AG70: 0 | AH70: 61 | AI70: 78 | AJ70: 7 | AK70: 126 | AL70: 57 | AM70: 16.721 | AN70: 21.807 | AO70: 3.251 | AP70: 24.138 | AQ70: 34.966 | AR70: 92.513 | AS70: 106.417 | AT70: 34.25 | AU70: 37.729 | AV70: 33.689 | AW70: 53.723 | AX70: 39.252 | AY70: 32.544 | AZ70: 2.217 | BA70: 6.055 | BB70: 42.744 | BC70: 23.424 | BD70: 34.478 | BE70: 134.265 | BF70: 34.911 | BG70: 9.992 | BH70: 126.021 | BI70: 46.3 | BJ70: 10.09 | BK70: 4.425 | BL70: 0 | BM70: 0 | BN70: 1.526 | BO70: 4.566 | BP70: 8.499 | BQ70: 21.271 | BR70: 0 | BS70: 70.233 | BT70: 0 | BU70: 1.829 | BV70: 0 | BW70: 0 | BX70: 0.875 | BY70: 0 | BZ70: 0 | CA70: 1.183 | CB70: 0.334 | CC70: 0.359 | CD70: 0 | CE70: 0 | CF70: 67.255 | CG70: 0 | CH70: 14.781 | CI70: 3.059 | CJ70: 44.712 | CK70: 9.57 | CL70: 0 | CM70: 0 | CN70: 64.411 | CO70: 29.165 | CP70: 0 | CQ70: 52.309 | CR70: 92.685 | CS70: 202 | CT70: 226.292 | CU70: 310 | CV70: 0 | CW70: 49.45 | CX70: 0 | CY70: 0 | CZ70: 1.73 | DA70: 124 | DB70: 0.889 | DC70: 0 | DD70: 0 | DE70: 99.494 | DF70: 2.295 | DG70: 0 | DH70: 0.254 | DI70: 0.529 | DJ70: 108 | DK70: 12.135 | DL70: 28.162 | DM70: 58.256 | DN70: 15 | DO70: 16.379 | DP70: 0 | DQ70: 0 | DR70: 2.818 | DS70: 0 | DT70: 3.826 | DU70: 0.426 | DV70: 0 | DW70: - | DX70: - | DY70: - | DZ70: - | EA70: - | EB70: - | EC70: - | ED70: -
B71: Fuel + gas | C71: 14639 | D71: 12794 | E71: 13716 | F71: 13840 | G71: 15099 | H71: 15718 | I71: 17914 | J71: 17267 | K71: 16271 | L71: 16221 | M71: 14683 | N71: 16118 | O71: 16374 | P71: 15056 | Q71: 14843 | R71: 14665 | S71: 15017 | T71: 16165 | U71: 18299 | V71: 19302 | W71: 17093 | X71: 16007 | Y71: 15675 | Z71: 17710 | AA71: 17763 | AB71: 15200 | AC71: 15536 | AD71: 14229 | AE71: 15224 | AF71: 16246 | AG71: 18807 | AH71: 19440 | AI71: 16520 | AJ71: 17370 | AK71: 15554 | AL71: 16209 | AM71: 16968.973 | AN71: 15277.298 | AO71: 16391.033 | AP71: 15031.979 | AQ71: 15720.385 | AR71: 16870.705 | AS71: 19071.762 | AT71: 20622.5 | AU71: 17878.493 | AV71: 16855.312 | AW71: 16849.147 | AX71: 17678.84 | AY71: 17186.294 | AZ71: 15689.798 | BA71: 16341.488 | BB71: 14934.203 | BC71: 16253.775 | BD71: 17412.661 | BE71: 18878.399 | BF71: 20185.493 | BG71: 18032.704 | BH71: 17605.522 | BI71: 16908.837 | BJ71: 18370.72 | BK71: 18987.374 | BL71: 18439.042 | BM71: 17598.366 | BN71: 16009.609 | BO71: 17076.057 | BP71: 18288.377 | BQ71: 20068.276 | BR71: 20975.617 | BS71: 17765.184 | BT71: 17457.093 | BU71: 15638.323 | BV71: 16659.874 | BW71: 17115.315 | BX71: 15530.971 | BY71: 15812.071 | BZ71: 15148.964 | CA71: 16038.154 | CB71: 15760.982 | CC71: 18177.821 | CD71: 19692.631 | CE71: 17663.716 | CF71: 16886.451 | CG71: 16654.163 | CH71: 17067.409 | CI71: 17121.385 | CJ71: 15246.213 | CK71: 16113.309 | CL71: 14934.156 | CM71: 15882.369 | CN71: 16529.77 | CO71: 18047.48 | CP71: 19102.751 | CQ71: 17991.125 | CR71: 16893.238 | CS71: 16315.987 | CT71: 16710.03 | CU71: 17654.713 | CV71: 16116.182 | CW71: 15902.5 | CX71: 15037.97 | CY71: 15928.74 | CZ71: 16469.23 | DA71: 21066 | DB71: 20512.359 | DC71: 17059.902 | DD71: 16541.39 | DE71: 16149.924 | DF71: 16377.081 | DG71: 16091.574 | DH71: 15296.295 | DI71: 15130.811 | DJ71: 15303.992 | DK71: 15708.428 | DL71: 16497.733 | DM71: 17986.885 | DN71: 19673.901 | DO71: 17881.054 | DP71: 16595.343 | DQ71: 16240.307 | DR71: 16161.523 | DS71: 17669.7 | DT71: 14730.686 | DU71: 15100.954 | DV71: 15273.221 | DW71: - | DX71: - | DY71: - | DZ71: - | EA71: - | EB71: - | EC71: - | ED71: -
B72: Régimen ordinario | C72: 14639 | D72: 12794 | E72: 13716 | F72: 13840 | G72: 15099 | H72: 15718 | I72: 17914 | J72: 17267 | K72: 16271 | L72: 16221 | M72: 14683 | N72: 16118 | O72: 16374 | P72: 15056 | Q72: 14843 | R72: 14665 | S72: 15017 | T72: 16165 | U72: 18299 | V72: 19302 | W72: 17093 | X72: 16007 | Y72: 15675 | Z72: 17710 | AA72: 17763 | AB72: 15200 | AC72: 15536 | AD72: 14229 | AE72: 15224 | AF72: 16246 | AG72: 18807 | AH72: 19440 | AI72: 16520 | AJ72: 17370 | AK72: 15554 | AL72: 16209 | AM72: 16968.973 | AN72: 15277.298 | AO72: 16391.033 | AP72: 15031.979 | AQ72: 15720.385 | AR72: 16870.705 | AS72: 19071.762 | AT72: 20622.5 | AU72: 17878.493 | AV72: 16855.312 | AW72: 16849.147 | AX72: 17678.84 | AY72: 17186.294 | AZ72: 15689.798 | BA72: 16341.488 | BB72: 14934.203 | BC72: 16253.775 | BD72: 17412.661 | BE72: 18878.399 | BF72: 20185.493 | BG72: 18032.704 | BH72: 17605.522 | BI72: 16908.837 | BJ72: 18370.72 | BK72: 18987.374 | BL72: 18439.042 | BM72: 17598.366 | BN72: 16009.609 | BO72: 17076.057 | BP72: 18288.377 | BQ72: 20068.276 | BR72: 20975.617 | BS72: 17765.184 | BT72: 17457.093 | BU72: 15638.323 | BV72: 16659.874 | BW72: 17115.315 | BX72: 15530.971 | BY72: 15812.071 | BZ72: 15148.964 | CA72: 16038.154 | CB72: 15760.982 | CC72: 18177.821 | CD72: 19692.631 | CE72: 17663.716 | CF72: 16886.451 | CG72: 16654.163 | CH72: 17067.409 | CI72: - | CJ72: - | CK72: - | CL72: - | CM72: - | CN72: - | CO72: - | CP72: - | CQ72: - | CR72: - | CS72: - | CT72: - | CU72: - | CV72: - | CW72: - | CX72: - | CY72: - | CZ72: - | DA72: - | DB72: - | DC72: - | DD72: - | DE72: - | DF72: - | DG72: - | DH72: - | DI72: - | DJ72: - | DK72: - | DL72: - | DM72: - | DN72: - | DO72: - | DP72: - | DQ72: - | DR72: - | DS72: - | DT72: - | DU72: - | DV72: - | DW72: - | DX72: - | DY72: - | DZ72: - | EA72: - | EB72: - | EC72: - | ED72: -
B73: Solar fotovoltaica | C73: 0 | D73: 0 | E73: 0 | F73: 0 | G73: 0 | H73: 0 | I73: 0 | J73: 0 | K73: 0 | L73: 0 | M73: 0 | N73: 0 | O73: 1 | P73: 0 | Q73: 0 | R73: 0 | S73: 0 | T73: 1 | U73: 1 | V73: 1 | W73: 1 | X73: 0 | Y73: 1 | Z73: 0 | AA73: 8 | AB73: 17 | AC73: 22 | AD73: 28 | AE73: 9 | AF73: 8 | AG73: 8 | AH73: 8 | AI73: 7 | AJ73: 6 | AK73: 0 | AL73: 1 | AM73: 1 | AN73: 5 | AO73: 6 | AP73: 7 | AQ73: 9 | AR73: 1 | AS73: 8 | AT73: 9 | AU73: 7 | AV73: 6 | AW73: 5 | AX73: 3 | AY73: 4 | AZ73: 7 | BA73: 7 | BB73: 7 | BC73: 8 | BD73: 8 | BE73: 7 | BF73: 6 | BG73: 5 | BH73: 5 | BI73: 4 | BJ73: 4 | BK73: 5 | BL73: 7 | BM73: 7 | BN73: 9 | BO73: 9 | BP73: 9 | BQ73: 9 | BR73: 8 | BS73: 7 | BT73: 6 | BU73: 4 | BV73: 4 | BW73: 5 | BX73: 5 | BY73: 7 | BZ73: 7 | CA73: 9 | CB73: 9 | CC73: 8 | CD73: 8 | CE73: 7 | CF73: 7 | CG73: 5 | CH73: 4 | CI73: 4 | CJ73: 6 | CK73: 8 | CL73: 9 | CM73: 9 | CN73: 9 | CO73: 9 | CP73: 9 | CQ73: 7 | CR73: 7 | CS73: 4 | CT73: 4 | CU73: 5 | CV73: 5 | CW73: 8 | CX73: 6 | CY73: 8 | CZ73: 8 | DA73: 9 | DB73: 7 | DC73: 7 | DD73: 6 | DE73: 5 | DF73: 4 | DG73: 4 | DH73: 6 | DI73: 8 | DJ73: 9 | DK73: 9 | DL73: 8 | DM73: 7 | DN73: 8 | DO73: 7 | DP73: 6 | DQ73: 5 | DR73: 4 | DS73: 5 | DT73: 4 | DU73: 7 | DV73: 0 | DW73: - | DX73: - | DY73: - | DZ73: - | EA73: - | EB73: - | EC73: - | ED73: -
B74: Térmica no renovable/Cogeneración y resto/Cogeneración | C74: 747 | D74: 694 | E74: 836 | F74: 656 | G74: 886 | H74: 845 | I74: 733 | J74: 805 | K74: 275 | L74: 611 | M74: 799 | N74: 853 | O74: 937 | P74: 797 | Q74: 849 | R74: 810 | S74: 755 | T74: 694 | U74: 0 | V74: 0 | W74: 0 | X74: 0 | Y74: 0 | Z74: 0 | AA74: 819 | AB74: 726 | AC74: 782 | AD74: 888 | AE74: 819 | AF74: 747 | AG74: 783 | AH74: 727 | AI74: 707 | AJ74: 1 | AK74: 0 | AL74: 736 | AM74: 699 | AN74: 606 | AO74: 781 | AP74: 808 | AQ74: 921 | AR74: 710 | AS74: 772 | AT74: 797 | AU74: 897 | AV74: 486 | AW74: 0 | AX74: 551 | AY74: 929 | AZ74: 796 | BA74: 861 | BB74: 747 | BC74: 674 | BD74: 670 | BE74: 765 | BF74: 676 | BG74: 693 | BH74: 209 | BI74: 16 | BJ74: 0 | BK74: 0 | BL74: 0 | BM74: 0 | BN74: 63 | BO74: 0 | BP74: 0 | BQ74: 0 | BR74: 171 | BS74: 552 | BT74: 47 | BU74: 672 | BV74: 804 | BW74: 781 | BX74: 648 | BY74: 605 | BZ74: 726 | CA74: 627 | CB74: 794 | CC74: 679 | CD74: 647 | CE74: 611 | CF74: 893 | CG74: 165 | CH74: 863 | CI74: 878 | CJ74: 853 | CK74: 900 | CL74: 784 | CM74: 684 | CN74: 655 | CO74: 775 | CP74: 700 | CQ74: 720 | CR74: 789 | CS74: 179 | CT74: 981 | CU74: 0 | CV74: 0 | CW74: 0 | CX74: 0 | CY74: 0 | CZ74: 0 | DA74: 0 | DB74: 0 | DC74: 0 | DD74: 0 | DE74: 0 | DF74: 0 | DG74: 0 | DH74: 0 | DI74: 0 | DJ74: 0 | DK74: 0 | DL74: 0 | DM74: 0 | DN74: 0 | DO74: 0 | DP74: 0 | DQ74: 0 | DR74: 0 | DS74: 0 | DT74: 0 | DU74: 0 | DV74: 0 | DW74: - | DX74: - | DY74: - | DZ74: - | EA74: - | EB74: - | EC74: - | ED74: -
B75: Residuos | C75: - | D75: - | E75: - | F75: - | G75: - | H75: - | I75: - | J75: - | K75: - | L75: - | M75: - | N75: - | O75: - | P75: - | Q75: - | R75: - | S75: - | T75: - | U75: - | V75: - | W75: - | X75: - | Y75: - | Z75: - | AA75: - | AB75: - | AC75: - | AD75: - | AE75: - | AF75: - | AG75: - | AH75: - | AI75: - | AJ75: - | AK75: - | AL75: - | AM75: - | AN75: - | AO75: - | AP75: - | AQ75: - | AR75: - | AS75: - | AT75: - | AU75: - | AV75: - | AW75: - | AX75: - | AY75: - | AZ75: - | BA75: - | BB75: - | BC75: - | BD75: - | BE75: - | BF75: - | BG75: - | BH75: - | BI75: - | BJ75: - | BK75: - | BL75: - | BM75: - | BN75: - | BO75: - | BP75: - | BQ75: - | BR75: - | BS75: - | BT75: - | BU75: - | BV75: - | BW75: - | BX75: - | BY75: - | BZ75: - | CA75: - | CB75: - | CC75: - | CD75: - | CE75: - | CF75: - | CG75: - | CH75: - | CI75: - | CJ75: - | CK75: - | CL75: - | CM75: - | CN75: - | CO75: - | CP75: - | CQ75: - | CR75: - | CS75: - | CT75: - | CU75: 812 | CV75: 769 | CW75: 799 | CX75: 769 | CY75: 799 | CZ75: 725 | DA75: 612 | DB75: 661 | DC75: 699 | DD75: 848 | DE75: 221 | DF75: 877 | DG75: 974 | DH75: 826 | DI75: 776 | DJ75: 900 | DK75: 743 | DL75: 813 | DM75: 790 | DN75: 805 | DO75: 829 | DP75: 1009 | DQ75: 222 | DR75: 1013 | DS75: 904 | DT75: 852 | DU75: 876 | DV75: 741.931 | DW75: - | DX75: - | DY75: - | DZ75: - | EA75: - | EB75: - | EC75: - | ED75: -
B76: Régimen especial | C76: 747 | D76: 694 | E76: 836 | F76: 656 | G76: 886 | H76: 845 | I76: 733 | J76: 805 | K76: 275 | L76: 611 | M76: 799 | N76: 853 | O76: 938 | P76: 797 | Q76: 849 | R76: 810 | S76: 755 | T76: 695 | U76: 1 | V76: 1 | W76: 1 | X76: 0 | Y76: 1 | Z76: 0 | AA76: 827 | AB76: 743 | AC76: 804 | AD76: 916 | AE76: 828 | AF76: 755 | AG76: 791 | AH76: 735 | AI76: 714 | AJ76: 7 | AK76: 0 | AL76: 737 | AM76: 700 | AN76: 611 | AO76: 787 | AP76: 815 | AQ76: 930 | AR76: 711 | AS76: 780 | AT76: 806 | AU76: 904 | AV76: 492 | AW76: 5 | AX76: 554 | AY76: 933 | AZ76: 803 | BA76: 868 | BB76: 754 | BC76: 682 | BD76: 678 | BE76: 772 | BF76: 682 | BG76: 698 | BH76: 214 | BI76: 20 | BJ76: 4 | BK76: 5 | BL76: 7 | BM76: 7 | BN76: 72 | BO76: 9 | BP76: 9 | BQ76: 9 | BR76: 179 | BS76: 559 | BT76: 53 | BU76: 676 | BV76: 808 | BW76: 786 | BX76: 653 | BY76: 612 | BZ76: 733 | CA76: 636 | CB76: 803 | CC76: 687 | CD76: 655 | CE76: 618 | CF76: 900 | CG76: 170 | CH76: 867 | CI76: - | CJ76: - | CK76: - | CL76: - | CM76: - | CN76: - | CO76: - | CP76: - | CQ76: - | CR76: - | CS76: - | CT76: - | CU76: - | CV76: - | CW76: - | CX76: - | CY76: - | CZ76: - | DA76: - | DB76: - | DC76: - | DD76: - | DE76: - | DF76: - | DG76: - | DH76: - | DI76: - | DJ76: - | DK76: - | DL76: - | DM76: - | DN76: - | DO76: - | DP76: - | DQ76: - | DR76: - | DS76: - | DT76: - | DU76: - | DV76: - | DW76: - | DX76: - | DY76: - | DZ76: - | EA76: - | EB76: - | EC76: - | ED76: -
B77: Generación | C77: 15386 | D77: 13488 | E77: 14552 | F77: 14496 | G77: 15985 | H77: 16563 | I77: 18647 | J77: 18072 | K77: 16546 | L77: 16832 | M77: 15482 | N77: 16971 | O77: 17312 | P77: 15853 | Q77: 15692 | R77: 15475 | S77: 15772 | T77: 16860 | U77: 18300 | V77: 19303 | W77: 17094 | X77: 16007 | Y77: 15676 | Z77: 17710 | AA77: 18590 | AB77: 15943 | AC77: 16340 | AD77: 15145 | AE77: 16052 | AF77: 17001 | AG77: 19598 | AH77: 20175 | AI77: 17234 | AJ77: 17377 | AK77: 15554 | AL77: 16946 | AM77: 17668.973 | AN77: 15888.298 | AO77: 17178.033 | AP77: 15846.979 | AQ77: 16650.385 | AR77: 17581.705 | AS77: 19851.762 | AT77: 21428.5 | AU77: 18782.493 | AV77: 17347.312 | AW77: 16854.147 | AX77: 18232.84 | AY77: 18119.294 | AZ77: 16492.798 | BA77: 17209.488 | BB77: 15688.203 | BC77: 16935.775 | BD77: 18090.661 | BE77: 19650.399 | BF77: 20867.493 | BG77: 18730.704 | BH77: 17819.522 | BI77: 16928.837 | BJ77: 18374.72 | BK77: 18992.374 | BL77: 18446.042 | BM77: 17605.366 | BN77: 16081.609 | BO77: 17085.057 | BP77: 18297.377 | BQ77: 20077.276 | BR77: 21154.617 | BS77: 18324.184 | BT77: 17510.093 | BU77: 16314.323 | BV77: 17467.874 | BW77: 17901.315 | BX77: 16183.971 | BY77: 16424.071 | BZ77: 15881.964 | CA77: 16674.154 | CB77: 16563.982 | CC77: 18864.821 | CD77: 20347.631 | CE77: 18281.716 | CF77: 17786.451 | CG77: 16824.163 | CH77: 17934.409 | CI77: 18003.385 | CJ77: 16105.213 | CK77: 17021.309 | CL77: 15727.156 | CM77: 16575.369 | CN77: 17193.77 | CO77: 18831.48 | CP77: 19811.751 | CQ77: 18718.125 | CR77: 17689.238 | CS77: 16498.987 | CT77: 17695.03 | CU77: 18471.713 | CV77: 16890.182 | CW77: 16709.5 | CX77: 15812.97 | CY77: 16735.74 | CZ77: 17202.23 | DA77: 21687 | DB77: 21180.359 | DC77: 17765.902 | DD77: 17395.39 | DE77: 16375.924 | DF77: 17258.081 | DG77: 17069.574 | DH77: 16128.295 | DI77: 15914.811 | DJ77: 16212.992 | DK77: 16460.428 | DL77: 17318.733 | DM77: 18783.885 | DN77: 20486.901 | DO77: 18717.054 | DP77: 17610.343 | DQ77: 16467.307 | DR77: 17178.523 | DS77: 18578.7 | DT77: 15586.686 | DU77: 15983.954 | DV77: 16015.152 | DW77: - | DX77: - | DY77: - | DZ77: - | EA77: - | EB77: - | EC77: - | ED77: -
B78: Demanda transporte (b.c.) | C78: 15386 | D78: 13488 | E78: 14552 | F78: 14496 | G78: 15985 | H78: 16563 | I78: 18647 | J78: 18072 | K78: 16546 | L78: 16832 | M78: 15482 | N78: 16971 | O78: 17312 | P78: 15853 | Q78: 15692 | R78: 15475 | S78: 15772 | T78: 16860 | U78: 18300 | V78: 19303 | W78: 17094 | X78: 16007 | Y78: 15676 | Z78: 17710 | AA78: 18590 | AB78: 15943 | AC78: 16340 | AD78: 15145 | AE78: 16052 | AF78: 17001 | AG78: 19598 | AH78: 20175 | AI78: 17234 | AJ78: 17377 | AK78: 15554 | AL78: 16946 | AM78: 17668.973 | AN78: 15888.298 | AO78: 17178.033 | AP78: 15846.979 | AQ78: 16650.385 | AR78: 17581.705 | AS78: 19851.762 | AT78: 21428.5 | AU78: 18782.493 | AV78: 17347.312 | AW78: 16854.147 | AX78: 18232.84 | AY78: 18119.294 | AZ78: 16492.798 | BA78: 17209.488 | BB78: 15688.203 | BC78: 16935.775 | BD78: 18090.661 | BE78: 19650.399 | BF78: 20867.493 | BG78: 18730.704 | BH78: 17819.522 | BI78: 16928.837 | BJ78: 18374.72 | BK78: 18992.374 | BL78: 18446.042 | BM78: 17605.366 | BN78: 16081.609 | BO78: 17085.057 | BP78: 18297.377 | BQ78: 20077.276 | BR78: 21154.617 | BS78: 18324.184 | BT78: 17510.093 | BU78: 16314.323 | BV78: 17467.874 | BW78: 17901.315 | BX78: 16183.971 | BY78: 16424.071 | BZ78: 15881.964 | CA78: 16674.154 | CB78: 16563.982 | CC78: 18864.821 | CD78: 20347.631 | CE78: 18281.716 | CF78: 17786.451 | CG78: 16824.163 | CH78: 17934.409 | CI78: 18003.385 | CJ78: 16105.213 | CK78: 17021.309 | CL78: 15727.156 | CM78: 16575.369 | CN78: 17193.77 | CO78: 18831.48 | CP78: 19811.751 | CQ78: 18718.125 | CR78: 17689.238 | CS78: 16498.987 | CT78: 17695.03 | CU78: 18471.713 | CV78: 16890.182 | CW78: 16709.5 | CX78: 15812.97 | CY78: 16735.74 | CZ78: 17202.23 | DA78: 21687 | DB78: 21180.359 | DC78: 17765.902 | DD78: 17395.39 | DE78: 16375.924 | DF78: 17258.081 | DG78: 17069.574 | DH78: 16128.295 | DI78: 15914.811 | DJ78: 16212.992 | DK78: 16460.428 | DL78: 17318.733 | DM78: 18783.885 | DN78: 20486.901 | DO78: 18717.054 | DP78: 17610.343 | DQ78: 16467.307 | DR78: 17178.523 | DS78: 18578.7 | DT78: 15586.686 | DU78: 15983.954 | DV78: 16015.152 | DW78: - | DX78: - | DY78: - | DZ78: - | EA78: - | EB78: - | EC78: - | ED78: -
B80: Balance eléctrico mensual nacional (GWh) | C80: 2007-01-01 | D80: 2007-02-01 | E80: 2007-03-01 | F80: 2007-04-01 | G80: 2007-05-01 | H80: 2007-06-01 | I80: 2007-07-01 | J80: 2007-08-01 | K80: 2007-09-01 | L80: 2007-10-01 | M80: 2007-11-01 | N80: 2007-12-01 | O80: 2008-01-01 | P80: 2008-02-01 | Q80: 2008-03-01 | R80: 2008-04-01 | S80: 2008-05-01 | T80: 2008-06-01 | U80: 2008-07-01 | V80: 2008-08-01 | W80: 2008-09-01 | X80: 2008-10-01 | Y80: 2008-11-01 | Z80: 2008-12-01 | AA80: 2009-01-01 | AB80: 2009-02-01 | AC80: 2009-03-01 | AD80: 2009-04-01 | AE80: 2009-05-01 | AF80: 2009-06-01 | AG80: 2009-07-01 | AH80: 2009-08-01 | AI80: 2009-09-01 | AJ80: 2009-10-01 | AK80: 2009-11-01 | AL80: 2009-12-01 | AM80: 2010-01-01 | AN80: 2010-02-01 | AO80: 2010-03-01 | AP80: 2010-04-01 | AQ80: 2010-05-01 | AR80: 2010-06-01 | AS80: 2010-07-01 | AT80: 2010-08-01 | AU80: 2010-09-01 | AV80: 2010-10-01 | AW80: 2010-11-01 | AX80: 2010-12-01 | AY80: 2011-01-01 | AZ80: 2011-02-01 | BA80: 2011-03-01 | BB80: 2011-04-01 | BC80: 2011-05-01 | BD80: 2011-06-01 | BE80: 2011-07-01 | BF80: 2011-08-01 | BG80: 2011-09-01 | BH80: 2011-10-01 | BI80: 2011-11-01 | BJ80: 2011-12-01 | BK80: 2012-01-01 | BL80: 2012-02-01 | BM80: 2012-03-01 | BN80: 2012-04-01 | BO80: 2012-05-01 | BP80: 2012-06-01 | BQ80: 2012-07-01 | BR80: 2012-08-01 | BS80: 2012-09-01 | BT80: 2012-10-01 | BU80: 2012-11-01 | BV80: 2012-12-01 | BW80: 2013-01-01 | BX80: 2013-02-01 | BY80: 2013-03-01 | BZ80: 2013-04-01 | CA80: 2013-05-01 | CB80: 2013-06-01 | CC80: 2013-07-01 | CD80: 2013-08-01 | CE80: 2013-09-01 | CF80: 2013-10-01 | CG80: 2013-11-01 | CH80: 2013-12-01 | CI80: 2014-01-01 | CJ80: 2014-02-01 | CK80: 2014-03-01 | CL80: 2014-04-01 | CM80: 2014-05-01 | CN80: 2014-06-01 | CO80: 2014-07-01 | CP80: 2014-08-01 | CQ80: 2014-09-01 | CR80: 2014-10-01 | CS80: 2014-11-01 | CT80: 2014-12-01 | CU80: 2015-01-01 | CV80: 2015-02-01 | CW80: 2015-03-01 | CX80: 2015-04-01 | CY80: 2015-05-01 | CZ80: 2015-06-01 | DA80: 2015-07-01 | DB80: 2015-08-01 | DC80: 2015-09-01 | DD80: 2015-10-01 | DE80: 2015-11-01 | DF80: 2015-12-01 | DG80: 2016-01-01 | DH80: 2016-02-01 | DI80: 2016-03-01 | DJ80: 2016-04-01 | DK80: 2016-05-01 | DL80: 2016-06-01 | DM80: 2016-07-01 | DN80: 2016-08-01 | DO80: 2016-09-01 | DP80: 2016-10-01 | DQ80: 2016-11-01 | DR80: 2016-12-01 | DS80: 2017-01-01 | DT80: 2017-02-01 | DU80: 2017-03-01 | DV80: 2017-04-01 | DW80: 2017-05-01 | DX80: 2017-06-01 | DY80: 2017-07-01 | DZ80: 2017-08-01 | EA80: 2017-09-01 | EB80: 2017-10-01 | EC80: 2017-11-01 | ED80: 2017-12-01
B81: Hidráulica | C81: 2180.291 | D81: 2816.85 | E81: 3681.278 | F81: 2543.08 | G81: 2606.62 | H81: 2145.872 | I81: 2385.917 | J81: 1774.248 | K81: 1432.069 | L81: 1747.45 | M81: 1421.001 | N81: 1346.903 | O81: 1354.557 | P81: 1017.947 | Q81: 1055.817 | R81: 2312.239 | S81: 2901.132 | T81: 2793.615 | U81: 1979.105 | V81: 1408.582 | W81: 1259.733 | X81: 1112.641 | Y81: 1480.554 | Z81: 2281.468 | AA81: 2097.988 | AB81: 3127.006 | AC81: 2431.408 | AD81: 1883.19 | AE81: 2181.921 | AF81: 1816.87 | AG81: 1561.772 | AH81: 1338.679 | AI81: 928.486 | AJ81: 1227.016 | AK81: 1839.212 | AL81: 2954.687 | AM81: 4943.88595 | AN81: 3839.031117 | AO81: 5413.043137 | AP81: 4242.06855 | AQ81: 3370.503482 | AR81: 3107.19674 | AS81: 2576.587098 | AT81: 1856.882582 | AU81: 1412.994312 | AV81: 1524.894218 | AW81: 2269.414636 | AX81: 3573.40017 | AY81: 4736.562871 | AZ81: 2661.689286 | BA81: 3413.721831 | BB81: 3149.45552 | BC81: 2414.950469 | BD81: 1754.266074 | BE81: 1378.10705 | BF81: 1346.77389 | BG81: 1126.063556 | BH81: 1274.693359 | BI81: 1952.733234 | BJ81: 2016.889 | BK81: 1609.526934 | BL81: 1159.229 | BM81: 1252.635934 | BN81: 1581.88496 | BO81: 2116.565248 | BP81: 1863.321606 | BQ81: 1529.582176 | BR81: 1326.369134 | BS81: 1106.914876 | BT81: 1403.075294 | BU81: 1852.270934 | BV81: 2378.397978 | BW81: 2718.657934 | BX81: 3206.197978 | BY81: 4235.779988 | BZ81: 4914.134444 | CA81: 3283.026454 | CB81: 2759.058822 | CC81: 2359.490098 | CD81: 1902.669014 | CE81: 1663.894216 | CF81: 1738.634822 | CG81: 2524.999 | CH81: 2270.638978 | CI81: 3919.577944 | CJ81: 5374.031891 | CK81: 4837.885468 | CL81: 4532.424727 | CM81: 2487.632363 | CN81: 2166.407894 | CO81: 2042.000852 | CP81: 1790.955276 | CQ81: 1600.810338 | CR81: 1538.647781 | CS81: 2233.135 | CT81: 2935.365 | CU81: 2886.21291 | CV81: 3851.043737 | CW81: 4171.655421 | CX81: 2911.683163 | CY81: 3189.199105 | CZ81: 2611.626989 | DA81: 2165.914739 | DB81: 1837.745496 | DC81: 1764.069618 | DD81: 1896.467669 | DE81: 2164.56717 | DF81: 1771.189256 | DG81: 3895.878161 | DH81: 4485.514111 | DI81: 4714.160907 | DJ81: 5656.558677 | DK81: 5401.43175 | DL81: 3107.868795 | DM81: 2361.683239 | DN81: 2151.127274 | DO81: 1755.279281 | DP81: 1794.324914 | DQ81: 1752.211509 | DR81: 2095.38001 | DS81: 2334.405571 | DT81: 2220.378032 | DU81: 2938.082497 | DV81: 1999.51857 | DW81: - | DX81: - | DY81: - | DZ81: - | EA81: - | EB81: - | EC81: - | ED81: -
B82: Nuclear | C82: 5319.158 | D82: 4778.305 | E82: 4947.463 | F82: 4342.93 | G82: 3485.058 | H82: 3161.45 | I82: 3855.746 | J82: 3976.62 | K82: 4877.284 | L82: 4891.066 | M82: 3934.346 | N82: 5069.501 | O82: 5322.941 | P82: 5119.932 | Q82: 5354.706 | R82: 4039.755 | S82: 4689.704 | T82: 4579.733 | U82: 4541.035 | V82: 5013.949 | W82: 4482.389 | X82: 4314.462 | Y82: 4045.827 | Z82: 4955.858 | AA82: 5438.39 | AB82: 4335.14 | AC82: 3949.223 | AD82: 4063.489 | AE82: 3687.607 | AF82: 3530.33 | AG82: 3998.25 | AH82: 5278.162 | AI82: 4387.847 | AJ82: 3957.824 | AK82: 3973.495 | AL82: 3949.688 | AM82: 4480.61 | AN82: 4635.983 | AO82: 4877.964647 | AP82: 4894.268 | AQ82: 4417.869 | AR82: 4693.97 | AS82: 5399.984 | AT82: 5421.255 | AU82: 5066.819 | AV82: 5429.769 | AW82: 5094.619 | AX82: 4829.211 | AY82: 4718.777 | AZ82: 4271.59 | BA82: 4332.264311 | BB82: 4457.337 | BC82: 3640.74 | BD82: 4702.229 | BE82: 4823.025 | BF82: 5271.61 | BG82: 4983.123 | BH82: 4499.729 | BI82: 4546.877 | BJ82: 4856.63 | BK82: 5171.784 | BL82: 5146.045 | BM82: 5472.373 | BN82: 5200.715 | BO82: 4487.326 | BP82: 3504.371 | BQ82: 5098.692 | BR82: 5457.922 | BS82: 5300.065 | BT82: 5396.02 | BU82: 4070.386 | BV82: 4361.288 | BW82: 4582.812 | BX82: 4425.602 | BY82: 5210.321 | BZ82: 4458.841 | CA82: 3995.289 | CB82: 4334.933 | CC82: 5136.478 | CD82: 5025.363 | CE82: 4740.614 | CF82: 4342.401 | CG82: 4067.681 | CH82: 3986.552 | CI82: 4535.384 | CJ82: 4723.773 | CK82: 5288.506 | CL82: 5057.696 | CM82: 4341.378 | CN82: 3439.377 | CO82: 4262.548 | CP82: 4221.397 | CQ82: 4806.071 | CR82: 5129.582 | CS82: 4369.283 | CT82: 4695.244 | CU82: 5242.722 | CV82: 4720.861 | CW82: 5205.786 | CX82: 4690.141 | CY82: 3554.401048 | CZ82: 3771.769 | DA82: 4798.925 | DB82: 4963.979 | DC82: 4873.917 | DD82: 4095.259 | DE82: 3973.493 | DF82: 4863.586 | DG82: 4615.686 | DH82: 3973.207 | DI82: 5191.753 | DJ82: 5055.57 | DK82: 3891.866 | DL82: 4819.247 | DM82: 5178.065 | DN82: 5151.821 | DO82: 5009.895 | DP82: 5096.101 | DQ82: 3774.597 | DR82: 4341.164 | DS82: 5285.374 | DT82: 4768.268 | DU82: 5270.734 | DV82: 4931.1529 | DW82: - | DX82: - | DY82: - | DZ82: - | EA82: - | EB82: - | EC82: - | ED82: -
B83: Carbón | C83: 6355.929 | D83: 5122.869 | E83: 5084.009 | F83: 6098.414 | G83: 6219.931 | H83: 5996.388 | I83: 6220.399 | J83: 6178.925 | K83: 5753.596 | L83: 5577.975 | M83: 5687.978 | N83: 6333.69 | O83: 5268.578 | P83: 4867.598 | Q83: 3927.526 | R83: 3323.271 | S83: 2421.465 | T83: 2321.117 | U83: 3976.963 | V83: 3367.824 | W83: 3731.902 | X83: 4344.144 | Y83: 4316.304 | Z83: 4641.671 | AA83: 4771.561 | AB83: 3283.016 | AC83: 3194.999 | AD83: 2027.452 | AE83: 2501.199 | AF83: 2745.413 | AG83: 3511.526 | AH83: 2102.673 | AI83: 2949.413 | AJ83: 3336.002 | AK83: 2251.833 | AL83: 2117.938 | AM83: 1984.722964 | AN83: 1620.406437 | AO83: 1128.340414 | AP83: 904.48311 | AQ83: 1053.230108 | AR83: 1601.609162 | AS83: 2742.506 | AT83: 3122.487928 | AU83: 3256.419825 | AV83: 2204.432101 | AW83: 1819.434667 | AX83: 2262.540684 | AY83: 2317.949094 | AZ83: 2688.537524 | BA83: 3114.986859 | BB83: 2636.293561 | BC83: 3202.222496 | BD83: 2982.201844 | BE83: 4478.894729 | BF83: 4355.338254 | BG83: 4935.491235 | BH83: 4481.841629 | BI83: 4047.311404 | BJ83: 4025.625629 | BK83: 5420.788642 | BL83: 5503.613837 | BM83: 4674.831144 | BN83: 2723.947123 | BO83: 4013.743822 | BP83: 5305.805 | BQ83: 4946.989 | BR83: 5091.314 | BS83: 4045.915 | BT83: 4244.014037 | BU83: 4076.372 | BV83: 3766.084 | BW83: 3069.549 | BX83: 2589.366 | BY83: 1444.32 | BZ83: 1079.71 | CA83: 2089.633 | CB83: 2664.941 | CC83: 5473.645 | CD83: 4622.505 | CE83: 4769.379 | CF83: 4201.70217 | CG83: 2679.560602 | CH83: 4843.253 | CI83: 2299.697 | CJ83: 906.381 | CK83: 1309.475 | CL83: 1396.712 | CM83: 3372.185804 | CN83: 5214.553 | CO83: 5612.784 | CP83: 5291.399 | CQ83: 5911.97 | CR83: 4547.202 | CS83: 3234.909 | CT83: 4223.035 | CU83: 5080.89308 | CV83: 3113.21804 | CW83: 2764.966 | CX83: 3026.572109 | CY83: 2957.160454 | CZ83: 5516.30354 | DA83: 6282.281822 | DB83: 5453.089772 | DC83: 4797.428056 | DD83: 4387.638979 | DE83: 4681.76619 | DF83: 4727.722622 | DG83: 2676.173241 | DH83: 1906.292855 | DI83: 1795.665973 | DJ83: 1055.057986 | DK83: 1233.321087 | DL83: 2278.853472 | DM83: 3945.654931 | DN83: 3663.870108 | DO83: 4561.040331 | DP83: 4508.051495 | DQ83: 4638.032211 | DR83: 5229.258612 | DS83: 5387.197214 | DT83: 3516.025399 | DU83: 1969.144412 | DV83: 2090.84533 | DW83: - | DX83: - | DY83: - | DZ83: - | EA83: - | EB83: - | EC83: - | ED83: -
B84: Fuel + Gas | C84: 768.6 | D84: 809.296 | E84: 838.596 | F84: 760.797 | G84: 775.883 | H84: 747.341 | I84: 950.179 | J84: 946.664 | K84: 919.39 | L84: 799.77 | M84: 841.274 | N84: 830.675 | O84: 829.661 | P84: 776.978 | Q84: 690.657 | R84: 738.393 | S84: 796.628 | T84: 853.542 | U84: 852.613 | V84: 943.857 | W84: 880.453 | X84: 850.278 | Y84: 839.86 | Z84: 834.646 | AA84: 768.621 | AB84: 673.434 | AC84: 795.63 | AD84: 680.089 | AE84: 729.073 | AF84: 778.622 | AG84: 889.541 | AH84: 870.263 | AI84: 821.129542 | AJ84: 758.478 | AK84: 740.347512 | AL84: 771.076 | AM84: 769.165922 | AN84: 680.8875 | AO84: 622.58835 | AP84: 645.159553 | AQ84: 743.365113 | AR84: 767.24709 | AS84: 791.550728 | AT84: 801.003163 | AU84: 775.187208 | AV84: 725.473731 | AW84: 741.368957 | AX84: 758.762501 | AY84: 594.461961 | AZ84: 548.136419 | BA84: 628.73061 | BB84: 550.151596 | BC84: 557.560086 | BD84: 542.768504 | BE84: 647.655543 | BF84: 646.047982 | BG84: 617.660634 | BH84: 597.759548 | BI84: 529.639059 | BJ84: 563.867766 | BK84: 595.025679 | BL84: 558.841536 | BM84: 581.446916 | BN84: 539.545763 | BO84: 552.352935 | BP84: 588.504673 | BQ84: 639.535464 | BR84: 690.036784 | BS84: 609.933943 | BT84: 604.058763 | BU84: 565.982875 | BV84: 572.946402 | BW84: 532.664729 | BX84: 506.309629 | BY84: 545.412293 | BZ84: 508.11155 | CA84: 519.772218 | CB84: 501.987346 | CC84: 602.749179 | CD84: 626.30886 | CE84: 562.466453 | CF84: 572.350468 | CG84: 533.846486 | CH84: 561.82555 | CI84: 547.600812 | CJ84: 488.235194 | CK84: 469.592068 | CL84: 459.035945 | CM84: 476.651729 | CN84: 526.143715 | CO84: 571.850499 | CP84: 590.034646 | CQ84: 570.07531 | CR84: 527.437488 | CS84: 484.299223 | CT84: 545.770963 | CU84: 543.260873 | CV84: 491.748515 | CW84: 513.332629 | CX84: 474.643734 | CY84: 512.161998 | CZ84: 541.061262 | DA84: 631.129663 | DB84: 638.964116 | DC84: 609.240205 | DD84: 513.03766 | DE84: 471.431119 | DF84: 556.639203 | DG84: 558.981564 | DH84: 515.025317 | DI84: 549.775877 | DJ84: 508.834249 | DK84: 511.64876 | DL84: 554.643127 | DM84: 627.296443 | DN84: 672.291033 | DO84: 608.870114 | DP84: 576.035786 | DQ84: 499.501381 | DR84: 581.645032 | DS84: 564.006797 | DT84: 499.082042 | DU84: 539.156241 | DV84: 559.046779 | DW84: - | DX84: - | DY84: - | DZ84: - | EA84: - | EB84: - | EC84: - | ED84: -
B85: Ciclo combinado | C85: 6359.761 | D85: 4080.7 | E85: 4156.213 | F85: 4273.456 | G85: 4686.458 | H85: 6528.933 | I85: 6999.727 | J85: 5503.996 | K85: 5974.326 | L85: 6466.711 | M85: 7970.268 | N85: 7599.589 | O85: 8292.022 | P85: 8254.787 | Q85: 7091.735 | R85: 7235.105 | S85: 7505.336 | T85: 7943.094 | U85: 9260.919 | V85: 8622.542 | W85: 8167.759 | X85: 7543.919 | Y85: 7156.868 | Z85: 6123.453 | AA85: 6394.837 | AB85: 4731.219 | AC85: 5388.102 | AD85: 5722.303 | AE85: 5822.068 | AF85: 7920.279 | AG85: 8907.599 | AH85: 8556.312 | AI85: 7707.526 | AJ85: 6844.301 | AK85: 5793.124 | AL85: 6436.125 | AM85: 5621.942065 | AN85: 5052.503755 | AO85: 4384.988592 | AP85: 4612.741777 | AQ85: 4834.075072 | AR85: 5727.722947 | AS85: 7160.343212 | AT85: 6106.948573 | AU85: 6544.562699 | AV85: 5651.863152 | AW85: 5881.431113 | AX85: 5219.861195 | AY85: 5357.802838 | AZ85: 4918.277956 | BA85: 4328.05987 | BB85: 3079.857381 | BC85: 4480.573995 | BD85: 5207.211597 | BE85: 4853.878005 | BF85: 5091.46722 | BG85: 4843.177089 | BH85: 4096.552258 | BI85: 3732.806521 | BJ85: 3667.605898 | BK85: 4550.816683 | BL85: 4236.027883 | BM85: 3352.213727 | BN85: 2485.361189 | BO85: 2702.167351 | BP85: 3418.640712 | BQ85: 3694.776656 | BR85: 3827.244895 | BS85: 3194.778351 | BT85: 3541.401021 | BU85: 3221.146659 | BV85: 3075.423538 | BW85: 2923.095913 | BX85: 2233.436402 | BY85: 1783.25604 | BZ85: 1390.239305 | CA85: 1923.994319 | CB85: 1640.076001 | CC85: 2520.297504 | CD85: 2665.833108 | CE85: 2506.7 | CF85: 2852.639095 | CG85: 2316.153778 | CH85: 3071.116259 | CI85: 1833.13393 | CJ85: 1541.545305 | CK85: 1616.184918 | CL85: 1520.930721 | CM85: 1736.413776 | CN85: 2041.986092 | CO85: 2149.141917 | CP85: 2511.653084 | CQ85: 2994.660921 | CR85: 2526.571564 | CS85: 2309.435776 | CT85: 2293.469547 | CU85: 2521.056301 | CV85: 1980.794825 | CW85: 1918.489762 | CX85: 2039.256764 | CY85: 1964.818555 | CZ85: 2169.987099 | DA85: 3743.581041 | DB85: 2621.256917 | DC85: 2296.695317 | DD85: 2556.056037 | DE85: 2481.069513 | DF85: 2997.687309 | DG85: 2218.470834 | DH85: 1638.767744 | DI85: 1687.892638 | DJ85: 1470.654711 | DK85: 1789.828879 | DL85: 2142.692523 | DM85: 2638.667264 | DN85: 2295.653864 | DO85: 2410.816947 | DP85: 3612.855 | DQ85: 3771.242374 | DR85: 3582.858129 | DS85: 3154.652748 | DT85: 1755.908598 | DU85: 1709.090155 | DV85: 1457.673405 | DW85: - | DX85: - | DY85: - | DZ85: - | EA85: - | EB85: - | EC85: - | ED85: -
B86: Régimen ordinario | C86: 20983.739 | D86: 17608.02 | E86: 18707.559 | F86: 18018.677 | G86: 17773.95 | H86: 18579.984 | I86: 20411.968 | J86: 18380.453 | K86: 18956.665 | L86: 19482.972 | M86: 19854.867 | N86: 21180.358 | O86: 21067.759 | P86: 20037.242 | Q86: 18120.441 | R86: 17648.763 | S86: 18314.265 | T86: 18491.101 | U86: 20610.635 | V86: 19356.754 | W86: 18522.236 | X86: 18165.444 | Y86: 17839.413 | Z86: 18837.096 | AA86: 19471.397 | AB86: 16149.815 | AC86: 15759.362 | AD86: 14376.523 | AE86: 14921.868 | AF86: 16791.514 | AG86: 18868.688 | AH86: 18146.089 | AI86: 16794.40154 | AJ86: 16123.621 | AK86: 14598.01151 | AL86: 16229.514 | AM86: 17800.3269 | AN86: 15828.81181 | AO86: 16426.92514 | AP86: 15298.72099 | AQ86: 14419.04277 | AR86: 15897.74594 | AS86: 18670.97104 | AT86: 17308.57725 | AU86: 17055.98304 | AV86: 15536.4322 | AW86: 15806.26837 | AX86: 16643.77555 | AY86: 17725.55376 | AZ86: 15088.23119 | BA86: 15817.76348 | BB86: 13873.09506 | BC86: 14296.04705 | BD86: 15188.67702 | BE86: 16181.56033 | BF86: 16711.23735 | BG86: 16505.51551 | BH86: 14950.57579 | BI86: 14809.36722 | BJ86: 15130.61829 | BK86: 17347.94194 | BL86: 16603.75726 | BM86: 15333.50072 | BN86: 12531.45403 | BO86: 13872.15536 | BP86: 14680.64299 | BQ86: 15909.5753 | BR86: 16392.88681 | BS86: 14257.60717 | BT86: 15188.56912 | BU86: 13786.15847 | BV86: 14154.13992 | BW86: 13826.77958 | BX86: 12960.91201 | BY86: 13219.08932 | BZ86: 12351.0363 | CA86: 11811.71499 | CB86: 11900.99617 | CC86: 16092.65978 | CD86: 14842.67898 | CE86: 14243.05367 | CF86: 13707.72756 | CG86: 12122.24087 | CH86: 14733.38579 | CI86: - | CJ86: - | CK86: - | CL86: - | CM86: - | CN86: - | CO86: - | CP86: - | CQ86: - | CR86: - | CS86: - | CT86: - | CU86: - | CV86: - | CW86: - | CX86: - | CY86: - | CZ86: - | DA86: - | DB86: - | DC86: - | DD86: - | DE86: - | DF86: - | DG86: - | DH86: - | DI86: - | DJ86: - | DK86: - | DL86: - | DM86: - | DN86: - | DO86: - | DP86: - | DQ86: - | DR86: - | DS86: - | DT86: - | DU86: - | DV86: - | DW86: - | DX86: - | DY86: - | DZ86: - | EA86: - | EB86: - | EC86: - | ED86: -
B87: Hidroeólica | C87: - | D87: - | E87: - | F87: - | G87: - | H87: - | I87: - | J87: - | K87: - | L87: - | M87: - | N87: - | O87: - | P87: - | Q87: - | R87: - | S87: - | T87: - | U87: - | V87: - | W87: - | X87: - | Y87: - | Z87: - | AA87: - | AB87: - | AC87: - | AD87: - | AE87: - | AF87: - | AG87: - | AH87: - | AI87: - | AJ87: - | AK87: - | AL87: - | AM87: - | AN87: - | AO87: - | AP87: - | AQ87: - | AR87: - | AS87: - | AT87: - | AU87: - | AV87: - | AW87: - | AX87: - | AY87: - | AZ87: - | BA87: - | BB87: - | BC87: - | BD87: - | BE87: - | BF87: - | BG87: - | BH87: - | BI87: - | BJ87: - | BK87: - | BL87: - | BM87: - | BN87: - | BO87: - | BP87: - | BQ87: - | BR87: - | BS87: - | BT87: - | BU87: - | BV87: - | BW87: - | BX87: - | BY87: - | BZ87: - | CA87: - | CB87: - | CC87: - | CD87: - | CE87: - | CF87: - | CG87: - | CH87: - | CI87: - | CJ87: - | CK87: - | CL87: - | CM87: - | CN87: - | CO87: - | CP87: 0.314813 | CQ87: 0.161525 | CR87: 0.195471 | CS87: 0.201015 | CT87: 0.198726 | CU87: 0.416176 | CV87: 0.374873 | CW87: 0.243784 | CX87: 0.125636 | CY87: 0.242058 | CZ87: 0.362421 | DA87: 2.082991 | DB87: 1.928824 | DC87: 0.742 | DD87: 0.484646 | DE87: 0.882971 | DF87: 0.670686 | DG87: 0.8141 | DH87: 1.779526 | DI87: 1.522376 | DJ87: 1.303018 | DK87: 0.923463 | DL87: 2.00262 | DM87: 2.580273 | DN87: 2.2239 | DO87: 2.171967 | DP87: 0.733354 | DQ87: 1.012851 | DR87: 1.035191 | DS87: 1.084578 | DT87: 1.447992 | DU87: 2.129755 | DV87: 0.960701 | DW87: - | DX87: - | DY87: - | DZ87: - | EA87: - | EB87: - | EC87: - | ED87: -
B88: Hidráulica/Resto hidráulica | C88: 345.489 | D88: 478.796 | E88: 516.028 | F88: 529.759 | G88: 509.19 | H88: 412.917 | I88: 302.294 | J88: 256.691 | K88: 186.381 | L88: 186.98 | M88: 190.151 | N88: 211.825 | O88: 340.493 | P88: 233.462 | Q88: 301.474 | R88: 581.111 | S88: 613.464 | T88: 581.87 | U88: 380.714 | V88: 264.678 | W88: 212.28 | X88: 190.523 | Y88: 400.121 | Z88: 539.626 | AA88: 521.064 | AB88: 629.616 | AC88: 560.02 | AD88: 501.492 | AE88: 577.142 | AF88: 468.387 | AG88: 365.353 | AH88: 282.65 | AI88: 242.869 | AJ88: 230.81 | AK88: 466.05 | AL88: 608.618 | AM88: 764.37 | AN88: 616.578 | AO88: 784.76 | AP88: 690.196 | AQ88: 688.343 | AR88: 608.948 | AS88: 459.603 | AT88: 341.748 | AU88: 281.05 | AV88: 318.889 | AW88: 567.66 | AX88: 702.175 | AY88: 663.648 | AZ88: 506.22 | BA88: 655.865 | BB88: 588.367 | BC88: 489.703 | BD88: 405.389 | BE88: 384.431 | BF88: 304.973 | BG88: 235.764 | BH88: 189.24 | BI88: 423.656 | BJ88: 448.734408 | BK88: 336.939439 | BL88: 331.681075 | BM88: 325.025001 | BN88: 468.527879 | BO88: 642.378845 | BP88: 439.770497 | BQ88: 337.788735 | BR88: 265.083002 | BS88: 199.0297 | BT88: 269.689726 | BU88: 410.391073 | BV88: 620.030364 | BW88: 667.511602 | BX88: 688.127523 | BY88: 842.417682 | BZ88: 845.50599 | CA88: 780.139267 | CB88: 659.125388 | CC88: 535.227267 | CD88: 403.179374 | CE88: 303.201338 | CF88: 342.966712 | CG88: 522.919163 | CH88: 511.881 | CI88: 783.656 | CJ88: 754.849 | CK88: 806.469 | CL88: 776.585 | CM88: 608.777 | CN88: 523.701 | CO88: 480.106 | CP88: 401.825021 | CQ88: 357.688 | CR88: 363.002 | CS88: 544.266 | CT88: 672.075 | CU88: - | CV88: - | CW88: - | CX88: - | CY88: - | CZ88: - | DA88: - | DB88: - | DC88: - | DD88: - | DE88: - | DF88: - | DG88: - | DH88: - | DI88: - | DJ88: - | DK88: - | DL88: - | DM88: - | DN88: - | DO88: - | DP88: - | DQ88: - | DR88: - | DS88: - | DT88: - | DU88: - | DV88: - | DW88: - | DX88: - | DY88: - | DZ88: - | EA88: - | EB88: - | EC88: - | ED88: -
B89: Eólica | C89: 2167.745 | D89: 2895.318 | E89: 3123.877 | F89: 1382.619 | G89: 2641.214 | H89: 1818.328 | I89: 1946.918 | J89: 2468.82 | K89: 2055.448 | L89: 1927.347 | M89: 2769.181 | N89: 2414.836 | O89: 2664.58 | P89: 2035.72 | Q89: 4132.362 | R89: 3389.452 | S89: 1769.215 | T89: 2125.688 | U89: 2184.157 | V89: 2034.342 | W89: 2148.06 | X89: 2516.474 | Y89: 3485.324 | Z89: 3674.448 | AA89: 3527.977 | AB89: 3244.298 | AC89: 3125.394 | AD89: 3106.595 | AE89: 2730.597 | AF89: 2353.512 | AG89: 2482.25 | AH89: 2293.089 | AI89: 2489.991 | AJ89: 3138.623 | AK89: 4817.9 | AL89: 4942.601 | AM89: 4304.431 | AN89: 4637.902 | AO89: 4570.152 | AP89: 2667.343 | AQ89: 3655.897 | AR89: 2615.31 | AS89: 2845.759 | AT89: 2937.761 | AU89: 2337.395 | AV89: 3967.323 | AW89: 4366.544 | AX89: 4639.513 | AY89: 4030.467 | AZ89: 4053.161 | BA89: 4714.464 | BB89: 3423.906 | BC89: 3185.611 | BD89: 2975.204 | BE89: 3310.559 | BF89: 2781.78 | BG89: 2354.701 | BH89: 3175.691 | BI89: 3836.226 | BJ89: 4623.647 | BK89: 3664.95788 | BL89: 5049.483285 | BM89: 3839.792697 | BN89: 5336.981198 | BO89: 3735.030771 | BP89: 3473.616214 | BQ89: 3039.87839 | BR89: 3181.757 | BS89: 3950.891212 | BT89: 3147.332318 | BU89: 4622.286712 | BV89: 5466.330112 | BW89: 6316.803069 | BX89: 5370.057059 | BY89: 5763.164 | BZ89: 4424.981999 | CA89: 3970.877171 | CB89: 3875.785 | CC89: 2885.903 | CD89: 3453.544 | CE89: 3239.162 | CF89: 3988.547 | CG89: 6458.349 | CH89: 4966.073 | CI89: 6569.528 | CJ89: 5917.526 | CK89: 5096.774 | CL89: 3978.165 | CM89: 4177.875 | CN89: 3310.967 | CO89: 3637.176 | CP89: 2916.505 | CQ89: 2145.332 | CR89: 3398.893 | CS89: 5093.132 | CT89: 4788.82 | CU89: 4954.502 | CV89: 5992.547 | CW89: 4907.496052 | CX89: 3933.91988 | CY89: 4841.183 | CZ89: 2903.93 | DA89: 3113.294 | DB89: 3287.344 | DC89: 3020.625 | DD89: 3898.41889 | DE89: 3724.59825 | DF89: 3537.27 | DG89: 5624.575 | DH89: 6110.193 | DI89: 5444.562 | DJ89: 4441.66425 | DK89: 3933.622 | DL89: 3271.509 | DM89: 3522.2422 | DN89: 3652.793 | DO89: 2713.816 | DP89: 2389.77519 | DQ89: 3902.513 | DR89: 2687.878 | DS89: 4828.646 | DT89: 4948.478 | DU89: 4721.68 | DV89: 4148.454571 | DW89: - | DX89: - | DY89: - | DZ89: - | EA89: - | EB89: - | EC89: - | ED89: -
B90: Solar fotovoltaica | C90: 10.391 | D90: 12.96 | E90: 21.984 | F90: 26.106 | G90: 36.128 | H90: 40.742 | I90: 51.927 | J90: 56.504 | K90: 60.428 | L90: 57.696 | M90: 54.376 | N90: 54.66 | O90: 59.578 | P90: 73.401 | Q90: 108.562 | R90: 131.044 | S90: 137.021 | T90: 196.409 | U90: 240.442 | V90: 298.525 | W90: 328.085 | X90: 334.328 | Y90: 335.402 | Z90: 255.159 | AA90: 261.258 | AB90: 396.228 | AC90: 528.732 | AD90: 569.738 | AE90: 672.347 | AF90: 643.832 | AG90: 717.298 | AH90: 663.41 | AI90: 511.531 | AJ90: 502.206 | AK90: 361.993 | AL90: 243.817 | AM90: 263.119 | AN90: 305.071 | AO90: 481.509 | AP90: 590.407 | AQ90: 711.442 | AR90: 685.331 | AS90: 785.815 | AT90: 723.07 | AU90: 631.376 | AV90: 548.484 | AW90: 382.176 | AX90: 314.972 | AY90: 356.508 | AZ90: 504.475 | BA90: 536.094 | BB90: 661.118 | BC90: 747.813 | BD90: 810.579 | BE90: 855.845 | BF90: 802.648 | BG90: 732.97 | BH90: 628.058 | BI90: 363.852 | BJ90: 425.16 | BK90: 504.687 | BL90: 660.33 | BM90: 770.143 | BN90: 658.519 | BO90: 863.505 | BP90: 875.875 | BQ90: 941.618 | BR90: 865.181 | BS90: 692.372 | BT90: 595.358 | BU90: 372.473 | BV90: 402.029 | BW90: 446.284 | BX90: 527.674 | BY90: 566.696 | BZ90: 763.804 | CA90: 872.918 | CB90: 930.953 | CC90: 974.764 | CD90: 896.609 | CE90: 759.635 | CF90: 634.768 | CG90: 513.575 | CH90: 439.239 | CI90: 377.518 | CJ90: 434.384 | CK90: 735.898 | CL90: 791.913 | CM90: 924.375 | CN90: 903.697 | CO90: 951.484 | CP90: 913.992 | CQ90: 686.956 | CR90: 647.953 | CS90: 385.426 | CT90: 453.977 | CU90: 518.442863 | CV90: 494.229 | CW90: 713.271298 | CX90: 755.91261 | CY90: 924.103 | CZ90: 889.255 | DA90: 933.158 | DB90: 831.902 | DC90: 722.21187 | DD90: 537.135 | DE90: 529.703 | DF90: 393.752 | DG90: 364.464 | DH90: 480.127 | DI90: 708.919 | DJ90: 721.206 | DK90: 806.596 | DL90: 923.726 | DM90: 917.694 | DN90: 893.919 | DO90: 764.58 | DP90: 583.164 | DQ90: 425.39 | DR90: 374.969 | DS90: 472.35 | DT90: 442.03 | DU90: 711.96 | DV90: 838.096303 | DW90: - | DX90: - | DY90: - | DZ90: - | EA90: - | EB90: - | EC90: - | ED90: -
B91: Solar térmica | C91: 0 | D91: 0 | E91: 0.431 | F91: 0.342 | G91: 0.558 | H91: 0.883 | I91: 1.256 | J91: 1.116 | K91: 0.639 | L91: 1.214 | M91: 0.997 | N91: 0.191 | O91: 1.084 | P91: 0.797 | Q91: 1.461 | R91: 0.958 | S91: 0.942 | T91: 1.963 | U91: 2.038 | V91: 1.98 | W91: 0.859 | X91: 0.866 | Y91: 1.27 | Z91: 1.16 | AA91: 0.69 | AB91: 1.236 | AC91: 2.323 | AD91: 7.204 | AE91: 7.658 | AF91: 6.752 | AG91: 12.414 | AH91: 23.868 | AI91: 17.539 | AJ91: 23.446 | AK91: 16.183 | AL91: 10.51 | AM91: 13.152 | AN91: 11.682 | AO91: 23.732 | AP91: 36.92 | AQ91: 69.084 | AR91: 72.532 | AS91: 104.59 | AT91: 121.9 | AU91: 100.917 | AV91: 71.745 | AW91: 31.619 | AX91: 33.747 | AY91: 34.25 | AZ91: 88.657 | BA91: 98.457 | BB91: 137.833 | BC91: 154.073 | BD91: 232.484 | BE91: 284.208 | BF91: 235.329 | BG91: 228.558 | BH91: 172.912 | BI91: 80.437 | BJ91: 85.159 | BK91: 117.342 | BL91: 200.342 | BM91: 235.113 | BN91: 177.777 | BO91: 348.382 | BP91: 414.749 | BQ91: 541.317 | BR91: 485.127 | BS91: 368.643 | BT91: 285.795 | BU91: 133.962 | BV91: 135.585 | BW91: 113.494 | BX91: 204.009 | BY91: 125.37 | BZ91: 300.894 | CA91: 499.268 | CB91: 647.33 | CC91: 758.523 | CD91: 661.856 | CE91: 478.955 | CF91: 294.242 | CG91: 199.224 | CH91: 158.362 | CI91: 79.801 | CJ91: 103.265 | CK91: 385.175 | CL91: 435.527 | CM91: 729.936 | CN91: 687.288 | CO91: 811.153 | CP91: 833.178 | CQ91: 389.596 | CR91: 289.337 | CS91: 90.187 | CT91: 124.472 | CU91: 176.951 | CV91: 190.925 | CW91: 415.829 | CX91: 393.16 | CY91: 694.839 | CZ91: 734.054 | DA91: 888.918 | DB91: 607.623 | DC91: 483.25 | DD91: 188.169 | DE91: 226.818 | DF91: 84.699 | DG91: 59.914 | DH91: 133.027 | DI91: 387.896 | DJ91: 408.323 | DK91: 498.798 | DL91: 813.991 | DM91: 825.325 | DN91: 801.424 | DO91: 588.907 | DP91: 284.703 | DQ91: 139.7 | DR91: 118.136 | DS91: 149.214 | DT91: 88.742 | DU91: 340.838 | DV91: 547.154 | DW91: - | DX91: - | DY91: - | DZ91: - | EA91: - | EB91: - | EC91: - | ED91: -
B92: Térmica renovable/Otras renovables | C92: 216.579 | D92: 190.444 | E92: 202.655 | F92: 201.314 | G92: 212.921 | H92: 208.535 | I92: 222.325 | J92: 223.344 | K92: 210.393 | L92: 242.724 | M92: 222.188 | N92: 235.546 | O92: 240.543 | P92: 235.363 | Q92: 243.9 | R92: 241.168 | S92: 240.349 | T92: 235.231 | U92: 223.648 | V92: 239.895 | W92: 225.512 | X92: 247.172 | Y92: 248.545 | Z92: 247.382 | AA92: 267.158 | AB92: 253.473 | AC92: 264.576 | AD92: 300.052 | AE92: 272.998 | AF92: 253.046 | AG92: 260.849 | AH92: 260.463 | AI92: 287.976 | AJ92: 347.836 | AK92: 272.588 | AL92: 276.327 | AM92: 274.842 | AN92: 245.359 | AO92: 262.311 | AP92: 277.043 | AQ92: 300.037 | AR92: 288.511 | AS92: 278.102 | AT92: 284.791 | AU92: 267.962 | AV92: 284.303 | AW92: 273.1 | AX92: 295.999 | AY92: 360.325 | AZ92: 334.407 | BA92: 355.246 | BB92: 356.64 | BC92: 335.763 | BD92: 336.974 | BE92: 358.635 | BF92: 356.021 | BG92: 375.802 | BH92: 383.843 | BI92: 376.087 | BJ92: 388.246363 | BK92: 394.35711 | BL92: 373.432723 | BM92: 398.843198 | BN92: 372.661916 | BO92: 361.524635 | BP92: 406.766866 | BQ92: 422.106723 | BR92: 401.27762 | BS92: 373.846061 | BT92: 413.891459 | BU92: 401.555475 | BV92: 434.504668 | BW92: 436.522674 | BX92: 415.741577 | BY92: 453.799201 | BZ92: 422.255981 | CA92: 438.8117 | CB92: 393.223581 | CC92: 432.786744 | CD92: 418.179541 | CE92: 398.674877 | CF92: 405.476197 | CG92: 414.208 | CH92: 445.016 | CI92: 424.456 | CJ92: 332.233 | CK92: 366.407 | CL92: 339.558 | CM92: 410.952 | CN92: 407.037 | CO92: 412.22 | CP92: 446.011722 | CQ92: 422.947 | CR92: 388.494 | CS92: 373.562 | CT92: 404.851 | CU92: 240.00929 | CV92: 206.32529 | CW92: 234.656 | CX92: 180.423 | CY92: 226.981 | CZ92: 277.270298 | DA92: 300.352918 | DB92: 312.372 | DC92: 302.413 | DD92: 311.08697 | DE92: 304.674 | DF92: 287.413 | DG92: 269.973 | DH92: 261.56192 | DI92: 255.62714 | DJ92: 209.9944 | DK92: 277.222 | DL92: 287.56 | DM92: 311.08105 | DN92: 327.20372 | DO92: 307.945 | DP92: 306.985 | DQ92: 305.073 | DR92: 306.208 | DS92: 327.17 | DT92: 289.649 | DU92: 269.58 | DV92: 241.174755 | DW92: - | DX92: - | DY92: - | DZ92: - | EA92: - | EB92: - | EC92: - | ED92: -
B93: Térmica no renovable/Cogeneración y resto/Cogeneración | C93: 1995.545 | D93: 1768.996 | E93: 1879.585 | F93: 1844.236 | G93: 1838.946 | H93: 1904.773 | I93: 2000.027 | J93: 1879.026 | K93: 1965.914 | L93: 2104.393 | M93: 2108.932 | N93: 2160.057 | O93: 2263.859 | P93: 2239.883 | Q93: 2285.25 | R93: 2241.501 | S93: 2119.176 | T93: 2090.956 | U93: 2229.86 | V93: 2028.064 | W93: 2188.578 | X93: 2370.777 | Y93: 2326.19 | Z93: 2337.056 | AA93: 2435.461 | AB93: 2252.732 | AC93: 2408.4 | AD93: 2350.433 | AE93: 2364.214 | AF93: 2321.689 | AG93: 2408.567 | AH93: 2045.842 | AI93: 2349.301 | AJ93: 2475.896 | AK93: 2583.23 | AL93: 2604.966 | AM93: 2672.728 | AN93: 2486.873 | AO93: 2628.811 | AP93: 2562.366 | AQ93: 2593.181 | AR93: 2552.884 | AS93: 2625.967 | AT93: 2177.162 | AU93: 2550.565 | AV93: 2661.369 | AW93: 2677.227 | AX93: 2784.191 | AY93: 2796.988 | AZ93: 2610.832 | BA93: 2895.174 | BB93: 2706.582 | BC93: 2734.905 | BD93: 2601.586 | BE93: 2665.294 | BF93: 2230.609 | BG93: 2664.549 | BH93: 2787.182 | BI93: 2771.509 | BJ93: 2853.586 | BK93: 2953.813 | BL93: 2799.425 | BM93: 2938.2 | BN93: 2833.338 | BO93: 2870.899 | BP93: 2704.039 | BQ93: 2812.661 | BR93: 2379.191 | BS93: 2765.198 | BT93: 2920.401 | BU93: 2862.32 | BV93: 2927.764 | BW93: 3021.635 | BX93: 2704.59 | BY93: 2900.997 | BZ93: 2799.471 | CA93: 2837.919 | CB93: 2677.81 | CC93: 2682.459 | CD93: 2123.283 | CE93: 2588.922 | CF93: 2637.34 | CG93: 2631.232 | CH93: 2690.721 | CI93: 2699.431 | CJ93: 1996.249 | CK93: 1915.193 | CL93: 1734.681 | CM93: 2072.894 | CN93: 2222.13 | CO93: 2283.788 | CP93: 2126.696 | CQ93: 2284.691 | CR93: 2294.823 | CS93: 2087.91 | CT93: 2167.338 | CU93: 2225.926 | CV93: 1964.058 | CW93: 2120.353 | CX93: 2034.88216 | CY93: 2124.372 | CZ93: 2074.54516 | DA93: 2170.167 | DB93: 2044.506 | DC93: 2156.192 | DD93: 2218.036 | DE93: 2132.472 | DF93: 2183.985 | DG93: 2131.625 | DH93: 1970.72364 | DI93: 2072.46 | DJ93: 1995.52858 | DK93: 2115.754 | DL93: 2171.062 | DM93: 2242.3739 | DN93: 2113.419 | DO93: 2125.212 | DP93: 2293.835 | DQ93: 2266.921 | DR93: 2318.266 | DS93: 2449.329 | DT93: 2205.907 | DU93: 2389.928 | DV93: 2227.315017 | DW93: - | DX93: - | DY93: - | DZ93: - | EA93: - | EB93: - | EC93: - | ED93: -
B94: Residuos | C94: - | D94: - | E94: - | F94: - | G94: - | H94: - | I94: - | J94: - | K94: - | L94: - | M94: - | N94: - | O94: - | P94: - | Q94: - | R94: - | S94: - | T94: - | U94: - | V94: - | W94: - | X94: - | Y94: - | Z94: - | AA94: - | AB94: - | AC94: - | AD94: - | AE94: - | AF94: - | AG94: - | AH94: - | AI94: - | AJ94: - | AK94: - | AL94: - | AM94: - | AN94: - | AO94: - | AP94: - | AQ94: - | AR94: - | AS94: - | AT94: - | AU94: - | AV94: - | AW94: - | AX94: - | AY94: - | AZ94: - | BA94: - | BB94: - | BC94: - | BD94: - | BE94: - | BF94: - | BG94: - | BH94: - | BI94: - | BJ94: - | BK94: - | BL94: - | BM94: - | BN94: - | BO94: - | BP94: - | BQ94: - | BR94: - | BS94: - | BT94: - | BU94: - | BV94: - | BW94: - | BX94: - | BY94: - | BZ94: - | CA94: - | CB94: - | CC94: - | CD94: - | CE94: - | CF94: - | CG94: - | CH94: - | CI94: - | CJ94: - | CK94: - | CL94: - | CM94: - | CN94: - | CO94: - | CP94: - | CQ94: - | CR94: - | CS94: - | CT94: - | CU94: 261.846 | CV94: 237.131 | CW94: 279.62 | CX94: 215.535 | CY94: 272.78 | CZ94: 283.406 | DA94: 296.516 | DB94: 296.908 | DC94: 287.737 | DD94: 306.529 | DE94: 292.201 | DF94: 267.949 | DG94: 276.263 | DH94: 246.472 | DI94: 284.616 | DJ94: 231.237 | DK94: 191.039 | DL94: 278.754 | DM94: 329.914 | DN94: 329.645 | DO94: 325.101 | DP94: 318.422 | DQ94: 288.826 | DR94: 292.073 | DS94: 297.585 | DT94: 262.178 | DU94: 290.951 | DV94: 251.116031 | DW94: - | DX94: - | DY94: - | DZ94: - | EA94: - | EB94: - | EC94: - | ED94: -
